Workbook

Sheet MAIN
E1: SELECT ALL CHOICES BELOW FOR THE PROPOSED SYSTEM
E2: RESULT IS LISTED AT BOTTOM
B12: APX 8500 Frequency Band Information | F12: =IF(Lookups!$K$16,"ERROR: Please Check BANDS used by APX","") -> 
F13: =IF(Lookups!$P$17,"ERROR: Please Check APX BAND where VR will be Used","") -> 
F14: =IF(Lookups!$P$16,"ERROR: A Band chosen for APX-VR Repeat is not an APX Band","") -> 
K19: REFERENCE CONFIG: | L19: =Lookups!$B$16 -> 543
K20: FILTER TYPE: | L20: =Lookups!$M$29 -> 14
B23: REQUIRED FILTERING SOLUTION
D25: VR & APX Description: | E25: =Lookups!$M$28 -> VRX1000 (VHF) Inband & Crossband; For APX (VHF+UHF+700+800) using Single-Band Antenna(s)
B27: FILTERING REQUIRED (Listed Below)
D28: FILTER DESCRIPTION: | E28: =Lookups!$M$30 -> IN-BAND FILTER PACKAGE & APX Antenna TRIPLEXER
D29: ANTENNA NOTES: | E29: =Lookups!$M$31 -> N/A
D31: DRAWING NUMBER: | E31: =IF(VRcode=2,"No Drawing",Lookups!$M$33) -> No Drawing
B33: ORDER THESE FILTERING KITS:
B34: Quantity | C34: Order Code | E34: Description
B35: =VLOOKUP(FILTER_Code,AntennaFilters,5) -> 1 | C35: See Order Guide | E35: In-Band Filtering Package (Mandatory unless '0' quantity shown)
B36: =VLOOKUP(FILTER_Code,AntennaFilters,6) -> 1 | C36: =IF(B36=1,"QA09450AA","") -> QA09450AA | E36: Antenna Triplexer (Required for APX Radio using multiple antennas)
B37: =VLOOKUP(FILTER_Code,AntennaFilters,8) -> 0 | C37: =IF(AND(B37=1,Lookups!B3=2,Lookups!F3=1), "QA09450AA", IF(AND(B37=1, Lookups!B3=1),"QA09482AA","")) ->  | E37: Single Triplexer & Bypass Relay Kit
B38: =VLOOKUP(FILTER_Code,AntennaFilters,9) -> 0 | C38: =IF(AND(B38=1,Lookups!R3=TRUE,Lookups!S3=TRUE),"QA09448AA",IF(AND(B38=1,Lookups!R4=TRUE,Lookups!S4=TRUE),"QA09448AA",IF(AND(B38=1,Lookups!R6=TRUE,Lookups!S6=TRUE),"QA09448AA",IF(AND(B38=1,Lookups!R3=FALSE),"QA09447AA",IF(AND(B38=1,Lookups!R4=FALSE),"QA09447AA",IF(AND(B38=1,Lookups!R6=FALSE),"QA09447AA","")))))) ->  | E38: Dual Triplexer Kit
B39: =VLOOKUP(FILTER_Code,AntennaFilters,10) -> 0 | C39: =IF(AND(B39=1,Lookups!B3=1,Lookups!F3=1),"QA09487AA",IF(AND(B39=1,Lookups!B3=1,Lookups!F3=2),"QA09488AA",IF(AND(B39=1,Lookups!B3=1,Lookups!F3=3),"QA09488AA",IF(AND(B39=1,Lookups!B3=1,Lookups!F3=4),"QA09445AA",IF(AND(B39=1,Lookups!B3=1,Lookups!F3=5),"QA09455AA",IF(AND(B39=1,Lookups!B3=1,Lookups!F3=6),"QA09455AA",IF(AND(B39=1,Lookups!B3=2,Lookups!F3=1),"QA09489AA",IF(AND(B39=1,Lookups!B3=2,Lookups!F3=2),"QA09490AA",IF(AND(B39=1,Lookups!B3=2,Lookups!F3=3),"QA09490AA",IF(AND(B39=1,Lookups!B3=2,Lookups!F3=4),"QA09491AA",IF(AND(B39=1,Lookups!B3=2,Lookups!F3=5),"QA09491AA",IF(AND(B39=1,Lookups!B3=2,Lookups!F3=6),"QA09491AA","")))))))))))) ->  | E39: Dual Triplexers & Bypass Relay Kit
B40: =VLOOKUP(FILTER_Code,AntennaFilters,11) -> 0 | C40: =IF(AND(B40=1,Lookups!B3=1,Lookups!R3=FALSE),"QA09446AA",IF(AND(B40=1,Lookups!B3=2,Lookups!S3=TRUE),"Kit#TBD1",IF(AND(B40=1,Lookups!B3=2,Lookups!S4=TRUE),"Kit#TBD1",IF(AND(B40=1,Lookups!B3=2,Lookups!S6=TRUE),"Kit#TBD1",IF(AND(B40=1,Lookups!B3=2,Lookups!S3=TRUE),"Kit#TBD2",""))))) ->  | E40: Filter Bypass Relay Kit
B41: =VLOOKUP(FILTER_Code,AntennaFilters,14) -> 0 | C41: Special | E41: SPECIAL ORDER - Engineering Review and Quote Required from Futurecom
B43: Form Rev: | C43: 2023-12-21
B44: Form Ver. | C44: 3

Sheet VRX SOLUTIONS (hidden)
I1: VRX FILTERING CONFIGURATOR
A2: SOLUTIONS REQUIRED
B3: Kit-1 | C3: Kit-2 | D3: Kit-3 | E3: KIT-4 | F3: KIT-0 | G3: Kit-5 | I3: VRX | R3: Lookup/Sorting Codes | W3: FilterCode
A4: 1 | B4: 2 | C4: 3 | D4: 4 | E4: 5 | F4: 6 | G4: 6 | H4: 10 | J4: VRX | K4: MSU FREQUENCY BANDS USED | O4: MSU
B5: TRIPLEXER SOLUTION | F5: STANDARD | G5: OPTION | H5: Required | I5: NOTES | J5: BAND | K5: b1 | L5: b2 | M5: b3a | N5: b3b | O5: ANT | P5: REPEAT | R5: 4 | S5: 16 | T5: 4 | U5: 2
A6: NONE | B6: 1x | C6: 1x+Relay | D6: 2x | E6: 2x+Relay | F6: In-BAND | G6: Relay | H6: Relay | I6: NOTES | J6: VRX1000 | K6: VHF | L6: UHF | M6: 700 | N6: 800 | O6: MSU-Ant | P6: TYPE | Q6: DESCRIPTION | R6: VRF | S6: MRF | T6: RPT | U6: ANT | V6: TOTAl | W6: FL | X6: NumBands | Y6: Drawing
B7: X | J7: VHF | L7: X | O7: SINGLE | P7: XB-Forced | Q7: =$J$6&"("&$J7&")"&" "&VLOOKUP($P7,RPTCodes,2,FALSE) &"; For APX ("&VLOOKUP($S7,BAND_NAMES,2)&") using "&VLOOKUP($O7,ANTcodes,3,FALSE) -> VRX1000 (VHF) Crossband; For APX (UHF) using Single-Band Antenna(s) | R7: =VLOOKUP(J7,Freq_Bands,2) -> 1 | S7: =IF(K7="X",1,0)+IF(L7="X",2,0)+IF(M7="X",4,0)+IF(N7="X",8,0) -> 2 | T7: =VLOOKUP(P7,RPTCodes,4,FALSE) -> 4 | U7: =VLOOKUP(O7,ANTcodes,2,FALSE) -> 0 | V7: =$U7*MULT_ANT+$T7*MULT_RPT+$S7*MULT_MRF+$R7*MULT_VRF -> 319 | W7: =IF($A7="X",1,0)+IF($B7="X",2,0)+IF($C7="X",3,0)+IF($D7="X",4,0)+IF($E7="X",5,0)+IF($F7="X",6,0)+IF($H7="X",10,0)+IF($G7="X",6,0) -> 2 | X7: =COUNTA(K7:L7)+IF(RIGHT(M7&N7,1)="X",1,0) -> 1 | Y7: No Drawing
B8: X | J8: VHF | L8: X | O8: ALL | P8: XB-Forced | Q8: VRX1000 (VHF) Crossband; For APX (UHF) using One All-Band Antenna | R8: 1 | S8: 2 | T8: 4 | U8: 1 | V8: 320 | W8: 2 | X8: 1 | Y8: No Drawing
B9: X | J9: VHF | L9: X | O9: USER | P9: XB-Forced | Q9: VRX1000 (VHF) Crossband; For APX (UHF) using Unknown or User-Defined Antenna | R9: 1 | S9: 2 | T9: 4 | U9: 2 | V9: 321 | W9: 2 | X9: 1 | Y9: No Drawing
B10: X | J10: VHF | M10: X | O10: SINGLE | P10: XB-Forced | Q10: VRX1000 (VHF) Crossband; For APX (700) using Single-Band Antenna(s) | R10: 1 | S10: 4 | T10: 4 | U10: 0 | V10: 353 | W10: 2 | X10: 1 | Y10: No Drawing
B11: X | J11: VHF | M11: X | O11: ALL | P11: XB-Forced | Q11: VRX1000 (VHF) Crossband; For APX (700) using One All-Band Antenna | R11: 1 | S11: 4 | T11: 4 | U11: 1 | V11: 354 | W11: 2 | X11: 1 | Y11: No Drawing
B12: X | J12: VHF | M12: X | O12: USER | P12: XB-Forced | Q12: VRX1000 (VHF) Crossband; For APX (700) using Unknown or User-Defined Antenna | R12: 1 | S12: 4 | T12: 4 | U12: 2 | V12: 355 | W12: 2 | X12: 1 | Y12: No Drawing
B13: X | J13: VHF | L13: X | M13: X | O13: SINGLE | P13: XB-Forced | Q13: VRX1000 (VHF) Crossband; For APX (UHF+700) using Single-Band Antenna(s) | R13: 1 | S13: 6 | T13: 4 | U13: 0 | V13: 387 | W13: 2 | X13: 2 | Y13: No Drawing
B14: X | J14: VHF | N14: X | O14: SINGLE | P14: XB-Forced | Q14: VRX1000 (VHF) Crossband; For APX (800) using Single-Band Antenna(s) | R14: 1 | S14: 8 | T14: 4 | U14: 0 | V14: 421 | W14: 2 | X14: 1 | Y14: No Drawing
B15: X | J15: VHF | N15: X | O15: ALL | P15: XB-Forced | Q15: VRX1000 (VHF) Crossband; For APX (800) using One All-Band Antenna | R15: 1 | S15: 8 | T15: 4 | U15: 1 | V15: 422 | W15: 2 | X15: 1 | Y15: No Drawing
B16: X | J16: VHF | N16: X | O16: USER | P16: XB-Forced | Q16: VRX1000 (VHF) Crossband; For APX (800) using Unknown or User-Defined Antenna | R16: 1 | S16: 8 | T16: 4 | U16: 2 | V16: 423 | W16: 2 | X16: 1 | Y16: No Drawing
B17: X | J17: VHF | L17: X | N17: X | O17: SINGLE | P17: XB-Forced | Q17: VRX1000 (VHF) Crossband; For APX (UHF+800) using Single-Band Antenna(s) | R17: 1 | S17: 10 | T17: 4 | U17: 0 | V17: 455 | W17: 2 | X17: 2 | Y17: No Drawing
B18: X | J18: VHF | M18: X | N18: X | O18: SINGLE | P18: XB-Forced | Q18: VRX1000 (VHF) Crossband; For APX (700+800) using Single-Band Antenna(s) | R18: 1 | S18: 12 | T18: 4 | U18: 0 | V18: 489 | W18: 2 | X18: 1 | Y18: No Drawing
B19: X | J19: VHF | M19: X | N19: X | O19: ALL | P19: XB-Forced | Q19: VRX1000 (VHF) Crossband; For APX (700+800) using One All-Band Antenna | R19: 1 | S19: 12 | T19: 4 | U19: 1 | V19: 490 | W19: 2 | X19: 1 | Y19: No Drawing
B20: X | J20: VHF | M20: X | N20: X | O20: USER | P20: XB-Forced | Q20: VRX1000 (VHF) Crossband; For APX (700+800) using Unknown or User-Defined Antenna | R20: 1 | S20: 12 | T20: 4 | U20: 2 | V20: 491 | W20: 2 | X20: 1 | Y20: No Drawing
B21: X | J21: VHF | L21: X | M21: X | N21: X | O21: SINGLE | P21: XB-Forced | Q21: VRX1000 (VHF) Crossband; For APX (UHF+700+800) using Single-Band Antenna(s) | R21: 1 | S21: 14 | T21: 4 | U21: 0 | V21: 523 | W21: 2 | X21: 2 | Y21: No Drawing
B22: X | J22: UHF | K22: X | O22: SINGLE | P22: XB-Forced | Q22: VRX1000 (UHF) Crossband; For APX (VHF) using Single-Band Antenna(s) | R22: 2 | S22: 1 | T22: 4 | U22: 0 | V22: 575 | W22: 2 | X22: 1 | Y22: No Drawing
B23: X | J23: UHF | K23: X | O23: ALL | P23: XB-Forced | Q23: VRX1000 (UHF) Crossband; For APX (VHF) using One All-Band Antenna | R23: 2 | S23: 1 | T23: 4 | U23: 1 | V23: 576 | W23: 2 | X23: 1 | Y23: No Drawing
B24: X | J24: UHF | K24: X | O24: USER | P24: XB-Forced | Q24: VRX1000 (UHF) Crossband; For APX (VHF) using Unknown or User-Defined Antenna | R24: 2 | S24: 1 | T24: 4 | U24: 2 | V24: 577 | W24: 2 | X24: 1 | Y24: No Drawing
B25: X | J25: UHF | M25: X | O25: SINGLE | P25: XB-Forced | Q25: VRX1000 (UHF) Crossband; For APX (700) using Single-Band Antenna(s) | R25: 2 | S25: 4 | T25: 4 | U25: 0 | V25: 626 | W25: 2 | X25: 1 | Y25: No Drawing
B26: X | J26: UHF | M26: X | O26: ALL | P26: XB-Forced | Q26: VRX1000 (UHF) Crossband; For APX (700) using One All-Band Antenna | R26: 2 | S26: 4 | T26: 4 | U26: 1 | V26: 627 | W26: 2 | X26: 1 | Y26: No Drawing
B27: X | J27: UHF | M27: X | O27: USER | P27: XB-Forced | Q27: VRX1000 (UHF) Crossband; For APX (700) using Unknown or User-Defined Antenna | R27: 2 | S27: 4 | T27: 4 | U27: 2 | V27: 628 | W27: 2 | X27: 1 | Y27: No Drawing
B28: X | J28: UHF | K28: X | M28: X | O28: SINGLE | P28: XB-Forced | Q28: VRX1000 (UHF) Crossband; For APX (VHF+700) using Single-Band Antenna(s) | R28: 2 | S28: 5 | T28: 4 | U28: 0 | V28: 643 | W28: 2 | X28: 2 | Y28: No Drawing
B29: X | J29: UHF | N29: X | O29: SINGLE | P29: XB-Forced | Q29: VRX1000 (UHF) Crossband; For APX (800) using Single-Band Antenna(s) | R29: 2 | S29: 8 | T29: 4 | U29: 0 | V29: 694 | W29: 2 | X29: 1 | Y29: No Drawing
B30: X | J30: UHF | N30: X | O30: ALL | P30: XB-Forced | Q30: VRX1000 (UHF) Crossband; For APX (800) using One All-Band Antenna | R30: 2 | S30: 8 | T30: 4 | U30: 1 | V30: 695 | W30: 2 | X30: 1 | Y30: No Drawing
B31: X | J31: UHF | N31: X | O31: USER | P31: XB-Forced | Q31: VRX1000 (UHF) Crossband; For APX (800) using Unknown or User-Defined Antenna | R31: 2 | S31: 8 | T31: 4 | U31: 2 | V31: 696 | W31: 2 | X31: 1 | Y31: No Drawing
B32: X | J32: UHF | K32: X | N32: X | O32: SINGLE | P32: XB-Forced | Q32: VRX1000 (UHF) Crossband; For APX (VHF+800) using Single-Band Antenna(s) | R32: 2 | S32: 9 | T32: 4 | U32: 0 | V32: 711 | W32: 2 | X32: 2 | Y32: No Drawing
B33: X | J33: UHF | M33: X | N33: X | O33: SINGLE | P33: XB-Forced | Q33: VRX1000 (UHF) Crossband; For APX (700+800) using Single-Band Antenna(s) | R33: 2 | S33: 12 | T33: 4 | U33: 0 | V33: 762 | W33: 2 | X33: 1 | Y33: No Drawing
B34: X | J34: UHF | M34: X | N34: X | O34: ALL | P34: XB-Forced | Q34: VRX1000 (UHF) Crossband; For APX (700+800) using One All-Band Antenna | R34: 2 | S34: 12 | T34: 4 | U34: 1 | V34: 763 | W34: 2 | X34: 1 | Y34: No Drawing
B35: X | J35: UHF | M35: X | N35: X | O35: USER | P35: XB-Forced | Q35: VRX1000 (UHF) Crossband; For APX (700+800) using Unknown or User-Defined Antenna | R35: 2 | S35: 12 | T35: 4 | U35: 2 | V35: 764 | W35: 2 | X35: 1 | Y35: No Drawing
B36: X | J36: UHF | K36: X | M36: X | N36: X | O36: SINGLE | P36: XB-Forced | Q36: VRX1000 (UHF) Crossband; For APX (VHF+700+800) using Single-Band Antenna(s) | R36: 2 | S36: 13 | T36: 4 | U36: 0 | V36: 779 | W36: 2 | X36: 2 | Y36: No Drawing
B37: X | J37: 700 | K37: X | O37: SINGLE | P37: XB-Forced | Q37: VRX1000 (700) Crossband; For APX (VHF) using Single-Band Antenna(s) | R37: 3 | S37: 1 | T37: 4 | U37: 0 | V37: 848 | W37: 2 | X37: 1 | Y37: No Drawing
B38: X | J38: 700 | K38: X | O38: ALL | P38: XB-Forced | Q38: VRX1000 (700) Crossband; For APX (VHF) using One All-Band Antenna | R38: 3 | S38: 1 | T38: 4 | U38: 1 | V38: 849 | W38: 2 | X38: 1 | Y38: No Drawing
B39: X | J39: 700 | K39: X | O39: USER | P39: XB-Forced | Q39: VRX1000 (700) Crossband; For APX (VHF) using Unknown or User-Defined Antenna | R39: 3 | S39: 1 | T39: 4 | U39: 2 | V39: 850 | W39: 2 | X39: 1 | Y39: No Drawing
B40: X | J40: 700 | L40: X | O40: SINGLE | P40: XB-Forced | Q40: VRX1000 (700) Crossband; For APX (UHF) using Single-Band Antenna(s) | R40: 3 | S40: 2 | T40: 4 | U40: 0 | V40: 865 | W40: 2 | X40: 1 | Y40: No Drawing
B41: X | J41: 700 | L41: X | O41: ALL | P41: XB-Forced | Q41: VRX1000 (700) Crossband; For APX (UHF) using One All-Band Antenna | R41: 3 | S41: 2 | T41: 4 | U41: 1 | V41: 866 | W41: 2 | X41: 1 | Y41: No Drawing
B42: X | J42: 700 | L42: X | O42: USER | P42: XB-Forced | Q42: VRX1000 (700) Crossband; For APX (UHF) using Unknown or User-Defined Antenna | R42: 3 | S42: 2 | T42: 4 | U42: 2 | V42: 867 | W42: 2 | X42: 1 | Y42: No Drawing
B43: X | J43: 700 | K43: X | L43: X | O43: SINGLE | P43: XB-Forced | Q43: VRX1000 (700) Crossband; For APX (VHF+UHF) using Single-Band Antenna(s) | R43: 3 | S43: 3 | T43: 4 | U43: 0 | V43: 882 | W43: 2 | X43: 2 | Y43: No Drawing
B44: X | J44: 800 | K44: X | O44: SINGLE | P44: XB-Forced | Q44: VRX1000 (800) Crossband; For APX (VHF) using Single-Band Antenna(s) | R44: 4 | S44: 1 | T44: 4 | U44: 0 | V44: 1121 | W44: 2 | X44: 1 | Y44: No Drawing
B45: X | J45: 800 | K45: X | O45: ALL | P45: XB-Forced | Q45: VRX1000 (800) Crossband; For APX (VHF) using One All-Band Antenna | R45: 4 | S45: 1 | T45: 4 | U45: 1 | V45: 1122 | W45: 2 | X45: 1 | Y45: No Drawing
B46: X | J46: 800 | K46: X | O46: USER | P46: XB-Forced | Q46: VRX1000 (800) Crossband; For APX (VHF) using Unknown or User-Defined Antenna | R46: 4 | S46: 1 | T46: 4 | U46: 2 | V46: 1123 | W46: 2 | X46: 1 | Y46: No Drawing
B47: X | J47: 800 | L47: X | O47: SINGLE | P47: XB-Forced | Q47: VRX1000 (800) Crossband; For APX (UHF) using Single-Band Antenna(s) | R47: 4 | S47: 2 | T47: 4 | U47: 0 | V47: 1138 | W47: 2 | X47: 1 | Y47: No Drawing
B48: X | J48: 800 | L48: X | O48: ALL | P48: XB-Forced | Q48: VRX1000 (800) Crossband; For APX (UHF) using One All-Band Antenna | R48: 4 | S48: 2 | T48: 4 | U48: 1 | V48: 1139 | W48: 2 | X48: 1 | Y48: No Drawing
B49: X | J49: 800 | L49: X | O49: USER | P49: XB-Forced | Q49: VRX1000 (800) Crossband; For APX (UHF) using Unknown or User-Defined Antenna | R49: 4 | S49: 2 | T49: 4 | U49: 2 | V49: 1140 | W49: 2 | X49: 1 | Y49: No Drawing
B50: X | J50: 800 | K50: X | L50: X | O50: SINGLE | P50: XB-Forced | Q50: VRX1000 (800) Crossband; For APX (VHF+UHF) using Single-Band Antenna(s) | R50: 4 | S50: 3 | T50: 4 | U50: 0 | V50: 1155 | W50: 2 | X50: 2 | Y50: No Drawing
C51: X | J51: VHF | K51: X | L51: X | O51: ALL | P51: XB-Only | Q51: VRX1000 (VHF) Crossband/No Inband; For APX (VHF+UHF) using One All-Band Antenna | R51: 1 | S51: 3 | T51: 3 | U51: 1 | V51: 334 | W51: 3 | X51: 2 | Y51: 8J087X51-07
C52: X | J52: VHF | K52: X | L52: X | O52: USER | P52: XB-Only | Q52: VRX1000 (VHF) Crossband/No Inband; For APX (VHF+UHF) using Unknown or User-Defined Antenna | R52: 1 | S52: 3 | T52: 3 | U52: 2 | V52: 335 | W52: 3 | X52: 2 | Y52: No Drawing
C53: X | J53: VHF | K53: X | M53: X | O53: ALL | P53: XB-Only | Q53: VRX1000 (VHF) Crossband/No Inband; For APX (VHF+700) using One All-Band Antenna | R53: 1 | S53: 5 | T53: 3 | U53: 1 | V53: 368 | W53: 3 | X53: 2 | Y53: 8J087X51-08
C54: X | J54: VHF | K54: X | M54: X | O54: USER | P54: XB-Only | Q54: VRX1000 (VHF) Crossband/No Inband; For APX (VHF+700) using Unknown or User-Defined Antenna | R54: 1 | S54: 5 | T54: 3 | U54: 2 | V54: 369 | W54: 3 | X54: 2 | Y54: No Drawing
C55: X | J55: VHF | K55: X | N55: X | O55: ALL | P55: XB-Only | Q55: VRX1000 (VHF) Crossband/No Inband; For APX (VHF+800) using One All-Band Antenna | R55: 1 | S55: 9 | T55: 3 | U55: 1 | V55: 436 | W55: 3 | X55: 2 | Y55: 8J087X51-08
C56: X | J56: VHF | K56: X | N56: X | O56: USER | P56: XB-Only | Q56: VRX1000 (VHF) Crossband/No Inband; For APX (VHF+800) using Unknown or User-Defined Antenna | R56: 1 | S56: 9 | T56: 3 | U56: 2 | V56: 437 | W56: 3 | X56: 2 | Y56: No Drawing
C57: X | J57: VHF | K57: X | M57: X | N57: X | O57: ALL | P57: XB-Only | Q57: VRX1000 (VHF) Crossband/No Inband; For APX (VHF+700+800) using One All-Band Antenna | R57: 1 | S57: 13 | T57: 3 | U57: 1 | V57: 504 | W57: 3 | X57: 2 | Y57: 8J087X51-08
C58: X | J58: VHF | K58: X | M58: X | N58: X | O58: USER | P58: XB-Only | Q58: VRX1000 (VHF) Crossband/No Inband; For APX (VHF+700+800) using Unknown or User-Defined Antenna | R58: 1 | S58: 13 | T58: 3 | U58: 2 | V58: 505 | W58: 3 | X58: 2 | Y58: No Drawing
C59: X | J59: UHF | K59: X | L59: X | O59: ALL | P59: XB-Only | Q59: VRX1000 (UHF) Crossband/No Inband; For APX (VHF+UHF) using One All-Band Antenna | R59: 2 | S59: 3 | T59: 3 | U59: 1 | V59: 607 | W59: 3 | X59: 2 | Y59: 8J087X51-09
C60: X | J60: UHF | K60: X | L60: X | O60: USER | P60: XB-Only | Q60: VRX1000 (UHF) Crossband/No Inband; For APX (VHF+UHF) using Unknown or User-Defined Antenna | R60: 2 | S60: 3 | T60: 3 | U60: 2 | V60: 608 | W60: 3 | X60: 2 | Y60: No Drawing
C61: X | J61: UHF | L61: X | M61: X | O61: ALL | P61: XB-Only | Q61: VRX1000 (UHF) Crossband/No Inband; For APX (UHF+700) using One All-Band Antenna | R61: 2 | S61: 6 | T61: 3 | U61: 1 | V61: 658 | W61: 3 | X61: 2 | Y61: 8J087X51-10
C62: X | J62: UHF | L62: X | M62: X | O62: USER | P62: XB-Only | Q62: VRX1000 (UHF) Crossband/No Inband; For APX (UHF+700) using Unknown or User-Defined Antenna | R62: 2 | S62: 6 | T62: 3 | U62: 2 | V62: 659 | W62: 3 | X62: 2 | Y62: No Drawing
C63: X | J63: UHF | L63: X | N63: X | O63: ALL | P63: XB-Only | Q63: VRX1000 (UHF) Crossband/No Inband; For APX (UHF+800) using One All-Band Antenna | R63: 2 | S63: 10 | T63: 3 | U63: 1 | V63: 726 | W63: 3 | X63: 2 | Y63: 8J087X51-10
C64: X | J64: UHF | L64: X | N64: X | O64: USER | P64: XB-Only | Q64: VRX1000 (UHF) Crossband/No Inband; For APX (UHF+800) using Unknown or User-Defined Antenna | R64: 2 | S64: 10 | T64: 3 | U64: 2 | V64: 727 | W64: 3 | X64: 2 | Y64: No Drawing
C65: X | J65: UHF | L65: X | M65: X | N65: X | O65: ALL | P65: XB-Only | Q65: VRX1000 (UHF) Crossband/No Inband; For APX (UHF+700+800) using One All-Band Antenna | R65: 2 | S65: 14 | T65: 3 | U65: 1 | V65: 794 | W65: 3 | X65: 2 | Y65: 8J087X51-10
C66: X | J66: UHF | L66: X | M66: X | N66: X | O66: USER | P66: XB-Only | Q66: VRX1000 (UHF) Crossband/No Inband; For APX (UHF+700+800) using Unknown or User-Defined Antenna | R66: 2 | S66: 14 | T66: 3 | U66: 2 | V66: 795 | W66: 3 | X66: 2 | Y66: No Drawing
C67: X | J67: 700 | K67: X | M67: X | O67: ALL | P67: XB-Only | Q67: VRX1000 (700) Crossband/No Inband; For APX (VHF+700) using One All-Band Antenna | R67: 3 | S67: 5 | T67: 3 | U67: 1 | V67: 914 | W67: 3 | X67: 2 | Y67: 8J087X51-11
C68: X | J68: 700 | K68: X | M68: X | O68: USER | P68: XB-Only | Q68: VRX1000 (700) Crossband/No Inband; For APX (VHF+700) using Unknown or User-Defined Antenna | R68: 3 | S68: 5 | T68: 3 | U68: 2 | V68: 915 | W68: 3 | X68: 2 | Y68: No Drawing
C69: X | J69: 700 | L69: X | M69: X | O69: ALL | P69: XB-Only | Q69: VRX1000 (700) Crossband/No Inband; For APX (UHF+700) using One All-Band Antenna | R69: 3 | S69: 6 | T69: 3 | U69: 1 | V69: 931 | W69: 3 | X69: 2 | Y69: 8J087X51-12
C70: X | J70: 700 | L70: X | M70: X | O70: USER | P70: XB-Only | Q70: VRX1000 (700) Crossband/No Inband; For APX (UHF+700) using Unknown or User-Defined Antenna | R70: 3 | S70: 6 | T70: 3 | U70: 2 | V70: 932 | W70: 3 | X70: 2 | Y70: No Drawing
C71: X | J71: 700 | K71: X | N71: X | O71: ALL | P71: XB-Only | Q71: =$J$6&"("&$J71&")"&" "&VLOOKUP($P71,RPTCodes,2,FALSE) &"; For APX ("&VLOOKUP($S71,BAND_NAMES,2)&") using "&VLOOKUP($O71,ANTcodes,3,FALSE) -> VRX1000 (700) Crossband/No Inband; For APX (VHF+800) using One All-Band Antenna | R71: =VLOOKUP(J71,Freq_Bands,2) -> 3 | S71: =IF(K71="X",1,0)+IF(L71="X",2,0)+IF(M71="X",4,0)+IF(N71="X",8,0) -> 9 | T71: =VLOOKUP(P71,RPTCodes,4,FALSE) -> 3 | U71: =VLOOKUP(O71,ANTcodes,2,FALSE) -> 1 | V71: =$U71*MULT_ANT+$T71*MULT_RPT+$S71*MULT_MRF+$R71*MULT_VRF -> 982 | W71: =IF($A71="X",1,0)+IF($B71="X",2,0)+IF($C71="X",3,0)+IF($D71="X",4,0)+IF($E71="X",5,0)+IF($F71="X",6,0)+IF($H71="X",10,0)+IF($G71="X",6,0) -> 3 | X71: =COUNTA(K71:L71)+IF(RIGHT(M71&N71,1)="X",1,0) -> 2 | Y71: 8J087X51-11
C72: X | J72: 700 | K72: X | N72: X | O72: USER | P72: XB-Only | Q72: VRX1000 (700) Crossband/No Inband; For APX (VHF+800) using Unknown or User-Defined Antenna | R72: 3 | S72: 9 | T72: 3 | U72: 2 | V72: 983 | W72: 3 | X72: 2 | Y72: No Drawing
C73: X | J73: 700 | L73: X | N73: X | O73: ALL | P73: XB-Only | Q73: VRX1000 (700) Crossband/No Inband; For APX (UHF+800) using One All-Band Antenna | R73: 3 | S73: 10 | T73: 3 | U73: 1 | V73: 999 | W73: 3 | X73: 2 | Y73: 8J087X51-12
C74: X | J74: 700 | L74: X | N74: X | O74: USER | P74: XB-Only | Q74: VRX1000 (700) Crossband/No Inband; For APX (UHF+800) using Unknown or User-Defined Antenna | R74: 3 | S74: 10 | T74: 3 | U74: 2 | V74: 1000 | W74: 3 | X74: 2 | Y74: No Drawing
C75: X | J75: 700 | K75: X | M75: X | N75: X | O75: ALL | P75: XB-Only | Q75: VRX1000 (700) Crossband/No Inband; For APX (VHF+700+800) using One All-Band Antenna | R75: 3 | S75: 13 | T75: 3 | U75: 1 | V75: 1050 | W75: 3 | X75: 2 | Y75: 8J087X51-11
C76: X | J76: 700 | K76: X | M76: X | N76: X | O76: USER | P76: XB-Only | Q76: VRX1000 (700) Crossband/No Inband; For APX (VHF+700+800) using Unknown or User-Defined Antenna | R76: 3 | S76: 13 | T76: 3 | U76: 2 | V76: 1051 | W76: 3 | X76: 2 | Y76: No Drawing
C77: X | J77: 700 | L77: X | M77: X | N77: X | O77: ALL | P77: XB-Only | Q77: VRX1000 (700) Crossband/No Inband; For APX (UHF+700+800) using One All-Band Antenna | R77: 3 | S77: 14 | T77: 3 | U77: 1 | V77: 1067 | W77: 3 | X77: 2 | Y77: 8J087X51-12
C78: X | J78: 700 | L78: X | M78: X | N78: X | O78: USER | P78: XB-Only | Q78: VRX1000 (700) Crossband/No Inband; For APX (UHF+700+800) using Unknown or User-Defined Antenna | R78: 3 | S78: 14 | T78: 3 | U78: 2 | V78: 1068 | W78: 3 | X78: 2 | Y78: No Drawing
C79: X | J79: 800 | K79: X | M79: X | O79: ALL | P79: XB-Only | Q79: VRX1000 (800) Crossband/No Inband; For APX (VHF+700) using One All-Band Antenna | R79: 4 | S79: 5 | T79: 3 | U79: 1 | V79: 1187 | W79: 3 | X79: 2 | Y79: 8J087X51-11
C80: X | J80: 800 | K80: X | M80: X | O80: USER | P80: XB-Only | Q80: VRX1000 (800) Crossband/No Inband; For APX (VHF+700) using Unknown or User-Defined Antenna | R80: 4 | S80: 5 | T80: 3 | U80: 2 | V80: 1188 | W80: 3 | X80: 2 | Y80: No Drawing
C81: X | J81: 800 | L81: X | M81: X | O81: ALL | P81: XB-Only | Q81: VRX1000 (800) Crossband/No Inband; For APX (UHF+700) using One All-Band Antenna | R81: 4 | S81: 6 | T81: 3 | U81: 1 | V81: 1204 | W81: 3 | X81: 2 | Y81: 8J087X51-12
C82: X | J82: 800 | L82: X | M82: X | O82: USER | P82: XB-Only | Q82: VRX1000 (800) Crossband/No Inband; For APX (UHF+700) using Unknown or User-Defined Antenna | R82: 4 | S82: 6 | T82: 3 | U82: 2 | V82: 1205 | W82: 3 | X82: 2 | Y82: No Drawing
C83: X | J83: 800 | K83: X | N83: X | O83: ALL | P83: XB-Only | Q83: VRX1000 (800) Crossband/No Inband; For APX (VHF+800) using One All-Band Antenna | R83: 4 | S83: 9 | T83: 3 | U83: 1 | V83: 1255 | W83: 3 | X83: 2 | Y83: 8J087X51-11
C84: X | J84: 800 | K84: X | N84: X | O84: USER | P84: XB-Only | Q84: VRX1000 (800) Crossband/No Inband; For APX (VHF+800) using Unknown or User-Defined Antenna | R84: 4 | S84: 9 | T84: 3 | U84: 2 | V84: 1256 | W84: 3 | X84: 2 | Y84: No Drawing
C85: X | J85: 800 | L85: X | N85: X | O85: ALL | P85: XB-Only | Q85: VRX1000 (800) Crossband/No Inband; For APX (UHF+800) using One All-Band Antenna | R85: 4 | S85: 10 | T85: 3 | U85: 1 | V85: 1272 | W85: 3 | X85: 2 | Y85: 8J087X51-12
C86: X | J86: 800 | L86: X | N86: X | O86: USER | P86: XB-Only | Q86: VRX1000 (800) Crossband/No Inband; For APX (UHF+800) using Unknown or User-Defined Antenna | R86: 4 | S86: 10 | T86: 3 | U86: 2 | V86: 1273 | W86: 3 | X86: 2 | Y86: No Drawing
C87: X | J87: 800 | K87: X | M87: X | N87: X | O87: ALL | P87: XB-Only | Q87: VRX1000 (800) Crossband/No Inband; For APX (VHF+700+800) using One All-Band Antenna | R87: 4 | S87: 13 | T87: 3 | U87: 1 | V87: 1323 | W87: 3 | X87: 2 | Y87: 8J087X51-11
C88: X | J88: 800 | K88: X | M88: X | N88: X | O88: USER | P88: XB-Only | Q88: VRX1000 (800) Crossband/No Inband; For APX (VHF+700+800) using Unknown or User-Defined Antenna | R88: 4 | S88: 13 | T88: 3 | U88: 2 | V88: 1324 | W88: 3 | X88: 2 | Y88: No Drawing
C89: X | J89: 800 | L89: X | M89: X | N89: X | O89: ALL | P89: XB-Only | Q89: VRX1000 (800) Crossband/No Inband; For APX (UHF+700+800) using One All-Band Antenna | R89: 4 | S89: 14 | T89: 3 | U89: 1 | V89: 1340 | W89: 3 | X89: 2 | Y89: 8J087X51-12
C90: X | J90: 800 | L90: X | M90: X | N90: X | O90: USER | P90: XB-Only | Q90: VRX1000 (800) Crossband/No Inband; For APX (UHF+700+800) using Unknown or User-Defined Antenna | R90: 4 | S90: 14 | T90: 3 | U90: 2 | V90: 1341 | W90: 3 | X90: 2 | Y90: No Drawing
D91: X | J91: VHF | L91: X | M91: X | O91: ALL | P91: XB-Forced | Q91: VRX1000 (VHF) Crossband; For APX (UHF+700) using One All-Band Antenna | R91: 1 | S91: 6 | T91: 4 | U91: 1 | V91: 388 | W91: 4 | X91: 2 | Y91: 8J087X51-13
D92: X | J92: VHF | L92: X | M92: X | O92: USER | P92: XB-Forced | Q92: VRX1000 (VHF) Crossband; For APX (UHF+700) using Unknown or User-Defined Antenna | R92: 1 | S92: 6 | T92: 4 | U92: 2 | V92: 389 | W92: 4 | X92: 2 | Y92: No Drawing
D93: X | J93: VHF | L93: X | N93: X | O93: ALL | P93: XB-Forced | Q93: VRX1000 (VHF) Crossband; For APX (UHF+800) using One All-Band Antenna | R93: 1 | S93: 10 | T93: 4 | U93: 1 | V93: 456 | W93: 4 | X93: 2 | Y93: 8J087X51-13
D94: X | J94: VHF | L94: X | N94: X | O94: USER | P94: XB-Forced | Q94: VRX1000 (VHF) Crossband; For APX (UHF+800) using Unknown or User-Defined Antenna | R94: 1 | S94: 10 | T94: 4 | U94: 2 | V94: 457 | W94: 4 | X94: 2 | Y94: No Drawing
D95: X | J95: VHF | L95: X | M95: X | N95: X | O95: ALL | P95: XB-Forced | Q95: VRX1000 (VHF) Crossband; For APX (UHF+700+800) using One All-Band Antenna | R95: 1 | S95: 14 | T95: 4 | U95: 1 | V95: 524 | W95: 4 | X95: 2 | Y95: 8J087X51-13
D96: X | J96: VHF | L96: X | M96: X | N96: X | O96: USER | P96: XB-Forced | Q96: VRX1000 (VHF) Crossband; For APX (UHF+700+800) using Unknown or User-Defined Antenna | R96: 1 | S96: 14 | T96: 4 | U96: 2 | V96: 525 | W96: 4 | X96: 2 | Y96: No Drawing
D97: X | J97: UHF | K97: X | M97: X | O97: ALL | P97: XB-Forced | Q97: VRX1000 (UHF) Crossband; For APX (VHF+700) using One All-Band Antenna | R97: 2 | S97: 5 | T97: 4 | U97: 1 | V97: 644 | W97: 4 | X97: 2 | Y97: 8J087X51-14
D98: X | J98: UHF | K98: X | M98: X | O98: USER | P98: XB-Forced | Q98: VRX1000 (UHF) Crossband; For APX (VHF+700) using Unknown or User-Defined Antenna | R98: 2 | S98: 5 | T98: 4 | U98: 2 | V98: 645 | W98: 4 | X98: 2 | Y98: No Drawing
D99: X | J99: UHF | K99: X | N99: X | O99: ALL | P99: XB-Forced | Q99: VRX1000 (UHF) Crossband; For APX (VHF+800) using One All-Band Antenna | R99: 2 | S99: 9 | T99: 4 | U99: 1 | V99: 712 | W99: 4 | X99: 2 | Y99: 8J087X51-14
D100: X | J100: UHF | K100: X | N100: X | O100: USER | P100: XB-Forced | Q100: VRX1000 (UHF) Crossband; For APX (VHF+800) using Unknown or User-Defined Antenna | R100: 2 | S100: 9 | T100: 4 | U100: 2 | V100: 713 | W100: 4 | X100: 2 | Y100: No Drawing
D101: X | J101: UHF | K101: X | M101: X | N101: X | O101: ALL | P101: XB-Forced | Q101: VRX1000 (UHF) Crossband; For APX (VHF+700+800) using One All-Band Antenna | R101: 2 | S101: 13 | T101: 4 | U101: 1 | V101: 780 | W101: 4 | X101: 2 | Y101: 8J087X51-14
D102: X | J102: UHF | K102: X | M102: X | N102: X | O102: USER | P102: XB-Forced | Q102: VRX1000 (UHF) Crossband; For APX (VHF+700+800) using Unknown or User-Defined Antenna | R102: 2 | S102: 13 | T102: 4 | U102: 2 | V102: 781 | W102: 4 | X102: 2 | Y102: No Drawing
D103: X | J103: 700 | K103: X | L103: X | O103: ALL | P103: XB-Forced | Q103: VRX1000 (700) Crossband; For APX (VHF+UHF) using One All-Band Antenna | R103: 3 | S103: 3 | T103: 4 | U103: 1 | V103: 883 | W103: 4 | X103: 2 | Y103: 8J087X51-15
D104: X | J104: 700 | K104: X | L104: X | O104: USER | P104: XB-Forced | Q104: VRX1000 (700) Crossband; For APX (VHF+UHF) using Unknown or User-Defined Antenna | R104: 3 | S104: 3 | T104: 4 | U104: 2 | V104: 884 | W104: 4 | X104: 2 | Y104: No Drawing
D105: X | J105: 800 | K105: X | L105: X | O105: ALL | P105: XB-Forced | Q105: VRX1000 (800) Crossband; For APX (VHF+UHF) using One All-Band Antenna | R105: 4 | S105: 3 | T105: 4 | U105: 1 | V105: 1156 | W105: 4 | X105: 2 | Y105: 8J087X51-15
D106: X | J106: 800 | K106: X | L106: X | O106: USER | P106: XB-Forced | Q106: VRX1000 (800) Crossband; For APX (VHF+UHF) using Unknown or User-Defined Antenna | R106: 4 | S106: 3 | T106: 4 | U106: 2 | V106: 1157 | W106: 4 | X106: 2 | Y106: No Drawing
E107: X | J107: VHF | K107: X | L107: X | M107: X | O107: ALL | P107: XB-Only | Q107: VRX1000 (VHF) Crossband/No Inband; For APX (VHF+UHF+700) using One All-Band Antenna | R107: 1 | S107: 7 | T107: 3 | U107: 1 | V107: 402 | W107: 5 | X107: 3 | Y107: 8J087X51-40
E108: X | J108: VHF | K108: X | L108: X | M108: X | O108: USER | P108: XB-Only | Q108: VRX1000 (VHF) Crossband/No Inband; For APX (VHF+UHF+700) using Unknown or User-Defined Antenna | R108: 1 | S108: 7 | T108: 3 | U108: 2 | V108: 403 | W108: 5 | X108: 3 | Y108: No Drawing
E109: X | J109: VHF | K109: X | L109: X | N109: X | O109: ALL | P109: XB-Only | Q109: VRX1000 (VHF) Crossband/No Inband; For APX (VHF+UHF+800) using One All-Band Antenna | R109: 1 | S109: 11 | T109: 3 | U109: 1 | V109: 470 | W109: 5 | X109: 3 | Y109: 8J087X51-40
E110: X | J110: VHF | K110: X | L110: X | N110: X | O110: USER | P110: XB-Only | Q110: VRX1000 (VHF) Crossband/No Inband; For APX (VHF+UHF+800) using Unknown or User-Defined Antenna | R110: 1 | S110: 11 | T110: 3 | U110: 2 | V110: 471 | W110: 5 | X110: 3 | Y110: No Drawing
E111: X | J111: VHF | K111: X | L111: X | M111: X | N111: X | O111: ALL | P111: XB-Only | Q111: VRX1000 (VHF) Crossband/No Inband; For APX (VHF+UHF+700+800) using One All-Band Antenna | R111: 1 | S111: 15 | T111: 3 | U111: 1 | V111: 538 | W111: 5 | X111: 3 | Y111: 8J087X51-40
E112: X | J112: VHF | K112: X | L112: X | M112: X | N112: X | O112: USER | P112: XB-Only | Q112: VRX1000 (VHF) Crossband/No Inband; For APX (VHF+UHF+700+800) using Unknown or User-Defined Antenna | R112: 1 | S112: 15 | T112: 3 | U112: 2 | V112: 539 | W112: 5 | X112: 3 | Y112: No Drawing
E113: X | J113: UHF | K113: X | L113: X | M113: X | O113: ALL | P113: XB-Only | Q113: VRX1000 (UHF) Crossband/No Inband; For APX (VHF+UHF+700) using One All-Band Antenna | R113: 2 | S113: 7 | T113: 3 | U113: 1 | V113: 675 | W113: 5 | X113: 3 | Y113: 8J087X51-41
E114: X | J114: UHF | K114: X | L114: X | M114: X | O114: USER | P114: XB-Only | Q114: VRX1000 (UHF) Crossband/No Inband; For APX (VHF+UHF+700) using Unknown or User-Defined Antenna | R114: 2 | S114: 7 | T114: 3 | U114: 2 | V114: 676 | W114: 5 | X114: 3 | Y114: No Drawing
E115: X | J115: UHF | K115: X | L115: X | N115: X | O115: ALL | P115: XB-Only | Q115: VRX1000 (UHF) Crossband/No Inband; For APX (VHF+UHF+800) using One All-Band Antenna | R115: 2 | S115: 11 | T115: 3 | U115: 1 | V115: 743 | W115: 5 | X115: 3 | Y115: 8J087X51-41
E116: X | J116: UHF | K116: X | L116: X | N116: X | O116: USER | P116: XB-Only | Q116: VRX1000 (UHF) Crossband/No Inband; For APX (VHF+UHF+800) using Unknown or User-Defined Antenna | R116: 2 | S116: 11 | T116: 3 | U116: 2 | V116: 744 | W116: 5 | X116: 3 | Y116: No Drawing
E117: X | J117: UHF | K117: X | L117: X | M117: X | N117: X | O117: ALL | P117: XB-Only | Q117: VRX1000 (UHF) Crossband/No Inband; For APX (VHF+UHF+700+800) using One All-Band Antenna | R117: 2 | S117: 15 | T117: 3 | U117: 1 | V117: 811 | W117: 5 | X117: 3 | Y117: 8J087X51-41
E118: X | J118: UHF | K118: X | L118: X | M118: X | N118: X | O118: USER | P118: XB-Only | Q118: VRX1000 (UHF) Crossband/No Inband; For APX (VHF+UHF+700+800) using Unknown or User-Defined Antenna | R118: 2 | S118: 15 | T118: 3 | U118: 2 | V118: 812 | W118: 5 | X118: 3 | Y118: No Drawing
E119: X | J119: 700 | K119: X | L119: X | M119: X | O119: ALL | P119: XB-Only | Q119: VRX1000 (700) Crossband/No Inband; For APX (VHF+UHF+700) using One All-Band Antenna | R119: 3 | S119: 7 | T119: 3 | U119: 1 | V119: 948 | W119: 5 | X119: 3 | Y119: 8J087X51-42
E120: X | J120: 700 | K120: X | L120: X | M120: X | O120: USER | P120: XB-Only | Q120: VRX1000 (700) Crossband/No Inband; For APX (VHF+UHF+700) using Unknown or User-Defined Antenna | R120: 3 | S120: 7 | T120: 3 | U120: 2 | V120: 949 | W120: 5 | X120: 3 | Y120: No Drawing
E121: X | J121: 700 | K121: X | L121: X | N121: X | O121: ALL | P121: XB-Only | Q121: VRX1000 (700) Crossband/No Inband; For APX (VHF+UHF+800) using One All-Band Antenna | R121: 3 | S121: 11 | T121: 3 | U121: 1 | V121: 1016 | W121: 5 | X121: 3 | Y121: 8J087X51-42
E122: X | J122: 700 | K122: X | L122: X | N122: X | O122: USER | P122: XB-Only | Q122: VRX1000 (700) Crossband/No Inband; For APX (VHF+UHF+800) using Unknown or User-Defined Antenna | R122: 3 | S122: 11 | T122: 3 | U122: 2 | V122: 1017 | W122: 5 | X122: 3 | Y122: No Drawing
E123: X | J123: 700 | K123: X | L123: X | M123: X | N123: X | O123: ALL | P123: XB-Only | Q123: VRX1000 (700) Crossband/No Inband; For APX (VHF+UHF+700+800) using One All-Band Antenna | R123: 3 | S123: 15 | T123: 3 | U123: 1 | V123: 1084 | W123: 5 | X123: 3 | Y123: 8J087X51-42
E124: X | J124: 700 | K124: X | L124: X | M124: X | N124: X | O124: USER | P124: XB-Only | Q124: VRX1000 (700) Crossband/No Inband; For APX (VHF+UHF+700+800) using Unknown or User-Defined Antenna | R124: 3 | S124: 15 | T124: 3 | U124: 2 | V124: 1085 | W124: 5 | X124: 3 | Y124: No Drawing
E125: X | J125: 800 | K125: X | L125: X | M125: X | O125: ALL | P125: XB-Only | Q125: VRX1000 (800) Crossband/No Inband; For APX (VHF+UHF+700) using One All-Band Antenna | R125: 4 | S125: 7 | T125: 3 | U125: 1 | V125: 1221 | W125: 5 | X125: 3 | Y125: 8J087X51-42
E126: X | J126: 800 | K126: X | L126: X | M126: X | O126: USER | P126: XB-Only | Q126: VRX1000 (800) Crossband/No Inband; For APX (VHF+UHF+700) using Unknown or User-Defined Antenna | R126: 4 | S126: 7 | T126: 3 | U126: 2 | V126: 1222 | W126: 5 | X126: 3 | Y126: No Drawing
E127: X | J127: 800 | K127: X | L127: X | N127: X | O127: ALL | P127: XB-Only | Q127: VRX1000 (800) Crossband/No Inband; For APX (VHF+UHF+800) using One All-Band Antenna | R127: 4 | S127: 11 | T127: 3 | U127: 1 | V127: 1289 | W127: 5 | X127: 3 | Y127: 8J087X51-42
E128: X | J128: 800 | K128: X | L128: X | N128: X | O128: USER | P128: XB-Only | Q128: VRX1000 (800) Crossband/No Inband; For APX (VHF+UHF+800) using Unknown or User-Defined Antenna | R128: 4 | S128: 11 | T128: 3 | U128: 2 | V128: 1290 | W128: 5 | X128: 3 | Y128: No Drawing
E129: X | J129: 800 | K129: X | L129: X | M129: X | N129: X | O129: ALL | P129: XB-Only | Q129: VRX1000 (800) Crossband/No Inband; For APX (VHF+UHF+700+800) using One All-Band Antenna | R129: 4 | S129: 15 | T129: 3 | U129: 1 | V129: 1357 | W129: 5 | X129: 3 | Y129: 8J087X51-42
E130: X | J130: 800 | K130: X | L130: X | M130: X | N130: X | O130: USER | P130: XB-Only | Q130: VRX1000 (800) Crossband/No Inband; For APX (VHF+UHF+700+800) using Unknown or User-Defined Antenna | R130: 4 | S130: 15 | T130: 3 | U130: 2 | V130: 1358 | W130: 5 | X130: 3 | Y130: No Drawing
B131: X | H131: X | J131: VHF | K131: X | L131: X | O131: SINGLE | P131: XB-Only | Q131: VRX1000 (VHF) Crossband/No Inband; For APX (VHF+UHF) using Single-Band Antenna(s) | R131: 1 | S131: 3 | T131: 3 | U131: 0 | V131: 333 | W131: 12 | X131: 2 | Y131: 8J087X51-49
B132: X | H132: X | J132: VHF | K132: X | M132: X | O132: SINGLE | P132: XB-Only | Q132: VRX1000 (VHF) Crossband/No Inband; For APX (VHF+700) using Single-Band Antenna(s) | R132: 1 | S132: 5 | T132: 3 | U132: 0 | V132: 367 | W132: 12 | X132: 2 | Y132: 8J087X51-50
B133: X | H133: X | J133: VHF | K133: X | L133: X | M133: X | O133: SINGLE | P133: XB-Only | Q133: VRX1000 (VHF) Crossband/No Inband; For APX (VHF+UHF+700) using Single-Band Antenna(s) | R133: 1 | S133: 7 | T133: 3 | U133: 0 | V133: 401 | W133: 12 | X133: 3 | Y133: 8J087X51-58
B134: X | H134: X | J134: VHF | K134: X | N134: X | O134: SINGLE | P134: XB-Only | Q134: VRX1000 (VHF) Crossband/No Inband; For APX (VHF+800) using Single-Band Antenna(s) | R134: 1 | S134: 9 | T134: 3 | U134: 0 | V134: 435 | W134: 12 | X134: 2 | Y134: 8J087X51-50
B135: X | H135: X | J135: VHF | K135: X | L135: X | N135: X | O135: SINGLE | P135: XB-Only | Q135: =$J$6&"("&$J135&")"&" "&VLOOKUP($P135,RPTCodes,2,FALSE) &"; For APX ("&VLOOKUP($S135,BAND_NAMES,2)&") using "&VLOOKUP($O135,ANTcodes,3,FALSE) -> VRX1000 (VHF) Crossband/No Inband; For APX (VHF+UHF+800) using Single-Band Antenna(s) | R135: =VLOOKUP(J135,Freq_Bands,2) -> 1 | S135: =IF(K135="X",1,0)+IF(L135="X",2,0)+IF(M135="X",4,0)+IF(N135="X",8,0) -> 11 | T135: =VLOOKUP(P135,RPTCodes,4,FALSE) -> 3 | U135: =VLOOKUP(O135,ANTcodes,2,FALSE) -> 0 | V135: =$U135*MULT_ANT+$T135*MULT_RPT+$S135*MULT_MRF+$R135*MULT_VRF -> 469 | W135: =IF($A135="X",1,0)+IF($B135="X",2,0)+IF($C135="X",3,0)+IF($D135="X",4,0)+IF($E135="X",5,0)+IF($F135="X",6,0)+IF($H135="X",10,0)+IF($G135="X",6,0) -> 12 | X135: =COUNTA(K135:L135)+IF(RIGHT(M135&N135,1)="X",1,0) -> 3 | Y135: 8J087X51-58
B136: X | H136: X | J136: VHF | K136: X | M136: X | N136: X | O136: SINGLE | P136: XB-Only | Q136: VRX1000 (VHF) Crossband/No Inband; For APX (VHF+700+800) using Single-Band Antenna(s) | R136: 1 | S136: 13 | T136: 3 | U136: 0 | V136: 503 | W136: 12 | X136: 2 | Y136: 8J087X51-50
B137: X | H137: X | J137: VHF | K137: X | L137: X | M137: X | N137: X | O137: SINGLE | P137: XB-Only | Q137: VRX1000 (VHF) Crossband/No Inband; For APX (VHF+UHF+700+800) using Single-Band Antenna(s) | R137: 1 | S137: 15 | T137: 3 | U137: 0 | V137: 537 | W137: 12 | X137: 3 | Y137: 8J087X51-58
B138: X | H138: X | J138: UHF | K138: X | L138: X | O138: SINGLE | P138: XB-Only | Q138: VRX1000 (UHF) Crossband/No Inband; For APX (VHF+UHF) using Single-Band Antenna(s) | R138: 2 | S138: 3 | T138: 3 | U138: 0 | V138: 606 | W138: 12 | X138: 2 | Y138: 8J087X51-51
B139: X | H139: X | J139: UHF | L139: X | M139: X | O139: SINGLE | P139: XB-Only | Q139: VRX1000 (UHF) Crossband/No Inband; For APX (UHF+700) using Single-Band Antenna(s) | R139: 2 | S139: 6 | T139: 3 | U139: 0 | V139: 657 | W139: 12 | X139: 2 | Y139: 8J087X51-52
B140: X | H140: X | J140: UHF | K140: X | L140: X | M140: X | O140: SINGLE | P140: XB-Only | Q140: VRX1000 (UHF) Crossband/No Inband; For APX (VHF+UHF+700) using Single-Band Antenna(s) | R140: 2 | S140: 7 | T140: 3 | U140: 0 | V140: 674 | W140: 12 | X140: 3 | Y140: 8J087X51-59
B141: X | H141: X | J141: UHF | L141: X | N141: X | O141: SINGLE | P141: XB-Only | Q141: VRX1000 (UHF) Crossband/No Inband; For APX (UHF+800) using Single-Band Antenna(s) | R141: 2 | S141: 10 | T141: 3 | U141: 0 | V141: 725 | W141: 12 | X141: 2 | Y141: 8J087X51-52
B142: X | H142: X | J142: UHF | K142: X | L142: X | N142: X | O142: SINGLE | P142: XB-Only | Q142: VRX1000 (UHF) Crossband/No Inband; For APX (VHF+UHF+800) using Single-Band Antenna(s) | R142: 2 | S142: 11 | T142: 3 | U142: 0 | V142: 742 | W142: 12 | X142: 3 | Y142: 8J087X51-59
B143: X | H143: X | J143: UHF | L143: X | M143: X | N143: X | O143: SINGLE | P143: XB-Only | Q143: VRX1000 (UHF) Crossband/No Inband; For APX (UHF+700+800) using Single-Band Antenna(s) | R143: 2 | S143: 14 | T143: 3 | U143: 0 | V143: 793 | W143: 12 | X143: 2 | Y143: 8J087X51-52
B144: X | H144: X | J144: UHF | K144: X | L144: X | M144: X | N144: X | O144: SINGLE | P144: XB-Only | Q144: VRX1000 (UHF) Crossband/No Inband; For APX (VHF+UHF+700+800) using Single-Band Antenna(s) | R144: 2 | S144: 15 | T144: 3 | U144: 0 | V144: 810 | W144: 12 | X144: 3 | Y144: 8J087X51-59
B145: X | H145: X | J145: 700 | K145: X | M145: X | O145: SINGLE | P145: XB-Only | Q145: VRX1000 (700) Crossband/No Inband; For APX (VHF+700) using Single-Band Antenna(s) | R145: 3 | S145: 5 | T145: 3 | U145: 0 | V145: 913 | W145: 12 | X145: 2 | Y145: 8J087X51-53
B146: X | H146: X | J146: 700 | L146: X | M146: X | O146: SINGLE | P146: XB-Only | Q146: VRX1000 (700) Crossband/No Inband; For APX (UHF+700) using Single-Band Antenna(s) | R146: 3 | S146: 6 | T146: 3 | U146: 0 | V146: 930 | W146: 12 | X146: 2 | Y146: 8J087X51-54
B147: X | H147: X | J147: 700 | K147: X | L147: X | M147: X | O147: SINGLE | P147: XB-Only | Q147: VRX1000 (700) Crossband/No Inband; For APX (VHF+UHF+700) using Single-Band Antenna(s) | R147: 3 | S147: 7 | T147: 3 | U147: 0 | V147: 947 | W147: 12 | X147: 3 | Y147: 8J087X51-60
B148: X | H148: X | J148: 700 | K148: X | N148: X | O148: SINGLE | P148: XB-Only | Q148: VRX1000 (700) Crossband/No Inband; For APX (VHF+800) using Single-Band Antenna(s) | R148: 3 | S148: 9 | T148: 3 | U148: 0 | V148: 981 | W148: 12 | X148: 2 | Y148: 8J087X51-53
B149: X | H149: X | J149: 700 | L149: X | N149: X | O149: SINGLE | P149: XB-Only | Q149: VRX1000 (700) Crossband/No Inband; For APX (UHF+800) using Single-Band Antenna(s) | R149: 3 | S149: 10 | T149: 3 | U149: 0 | V149: 998 | W149: 12 | X149: 2 | Y149: 8J087X51-54
B150: X | H150: X | J150: 700 | K150: X | L150: X | N150: X | O150: SINGLE | P150: XB-Only | Q150: VRX1000 (700) Crossband/No Inband; For APX (VHF+UHF+800) using Single-Band Antenna(s) | R150: 3 | S150: 11 | T150: 3 | U150: 0 | V150: 1015 | W150: 12 | X150: 3 | Y150: 8J087X51-60
B151: X | H151: X | J151: 700 | K151: X | M151: X | N151: X | O151: SINGLE | P151: XB-Only | Q151: VRX1000 (700) Crossband/No Inband; For APX (VHF+700+800) using Single-Band Antenna(s) | R151: 3 | S151: 13 | T151: 3 | U151: 0 | V151: 1049 | W151: 12 | X151: 2 | Y151: 8J087X51-53
B152: X | H152: X | J152: 700 | L152: X | M152: X | N152: X | O152: SINGLE | P152: XB-Only | Q152: VRX1000 (700) Crossband/No Inband; For APX (UHF+700+800) using Single-Band Antenna(s) | R152: 3 | S152: 14 | T152: 3 | U152: 0 | V152: 1066 | W152: 12 | X152: 2 | Y152: 8J087X51-54
B153: X | H153: X | J153: 700 | K153: X | L153: X | M153: X | N153: X | O153: SINGLE | P153: XB-Only | Q153: VRX1000 (700) Crossband/No Inband; For APX (VHF+UHF+700+800) using Single-Band Antenna(s) | R153: 3 | S153: 15 | T153: 3 | U153: 0 | V153: 1083 | W153: 12 | X153: 3 | Y153: 8J087X51-60
B154: X | H154: X | J154: 800 | K154: X | M154: X | O154: SINGLE | P154: XB-Only | Q154: VRX1000 (800) Crossband/No Inband; For APX (VHF+700) using Single-Band Antenna(s) | R154: 4 | S154: 5 | T154: 3 | U154: 0 | V154: 1186 | W154: 12 | X154: 2 | Y154: 8J087X51-53
B155: X | H155: X | J155: 800 | L155: X | M155: X | O155: SINGLE | P155: XB-Only | Q155: VRX1000 (800) Crossband/No Inband; For APX (UHF+700) using Single-Band Antenna(s) | R155: 4 | S155: 6 | T155: 3 | U155: 0 | V155: 1203 | W155: 12 | X155: 2 | Y155: 8J087X51-54
B156: X | H156: X | J156: 800 | K156: X | L156: X | M156: X | O156: SINGLE | P156: XB-Only | Q156: VRX1000 (800) Crossband/No Inband; For APX (VHF+UHF+700) using Single-Band Antenna(s) | R156: 4 | S156: 7 | T156: 3 | U156: 0 | V156: 1220 | W156: 12 | X156: 3 | Y156: 8J087X51-60
B157: X | H157: X | J157: 800 | K157: X | N157: X | O157: SINGLE | P157: XB-Only | Q157: VRX1000 (800) Crossband/No Inband; For APX (VHF+800) using Single-Band Antenna(s) | R157: 4 | S157: 9 | T157: 3 | U157: 0 | V157: 1254 | W157: 12 | X157: 2 | Y157: 8J087X51-53
B158: X | H158: X | J158: 800 | L158: X | N158: X | O158: SINGLE | P158: XB-Only | Q158: VRX1000 (800) Crossband/No Inband; For APX (UHF+800) using Single-Band Antenna(s) | R158: 4 | S158: 10 | T158: 3 | U158: 0 | V158: 1271 | W158: 12 | X158: 2 | Y158: 8J087X51-54
B159: X | H159: X | J159: 800 | K159: X | L159: X | N159: X | O159: SINGLE | P159: XB-Only | Q159: VRX1000 (800) Crossband/No Inband; For APX (VHF+UHF+800) using Single-Band Antenna(s) | R159: 4 | S159: 11 | T159: 3 | U159: 0 | V159: 1288 | W159: 12 | X159: 3 | Y159: 8J087X51-60
B160: X | H160: X | J160: 800 | K160: X | M160: X | N160: X | O160: SINGLE | P160: XB-Only | Q160: VRX1000 (800) Crossband/No Inband; For APX (VHF+700+800) using Single-Band Antenna(s) | R160: 4 | S160: 13 | T160: 3 | U160: 0 | V160: 1322 | W160: 12 | X160: 2 | Y160: 8J087X51-53
B161: X | H161: X | J161: 800 | L161: X | M161: X | N161: X | O161: SINGLE | P161: XB-Only | Q161: VRX1000 (800) Crossband/No Inband; For APX (UHF+700+800) using Single-Band Antenna(s) | R161: 4 | S161: 14 | T161: 3 | U161: 0 | V161: 1339 | W161: 12 | X161: 2 | Y161: 8J087X51-54
B162: X | H162: X | J162: 800 | K162: X | L162: X | M162: X | N162: X | O162: SINGLE | P162: XB-Only | Q162: VRX1000 (800) Crossband/No Inband; For APX (VHF+UHF+700+800) using Single-Band Antenna(s) | R162: 4 | S162: 15 | T162: 3 | U162: 0 | V162: 1356 | W162: 12 | X162: 3 | Y162: 8J087X51-60
A163: X | F163: X | G163: X | J163: VHF | K163: X | O163: SINGLE | P163: IB-Forced | Q163: VRX1000 (VHF) Inband; For APX (VHF) using Single-Band Antenna(s) | R163: 1 | S163: 1 | T163: 2 | U163: 0 | V163: 296 | W163: 13 | X163: 1 | Y163: No Drawing
A164: X | F164: X | G164: X | J164: VHF | K164: X | O164: ALL | P164: IB-Forced | Q164: VRX1000 (VHF) Inband; For APX (VHF) using One All-Band Antenna | R164: 1 | S164: 1 | T164: 2 | U164: 1 | V164: 297 | W164: 13 | X164: 1 | Y164: No Drawing
A165: X | F165: X | G165: X | J165: VHF | K165: X | O165: USER | P165: IB-Forced | Q165: VRX1000 (VHF) Inband; For APX (VHF) using Unknown or User-Defined Antenna | R165: 1 | S165: 1 | T165: 2 | U165: 2 | V165: 298 | W165: 13 | X165: 1 | Y165: No Drawing
A166: X | F166: X | G166: X | J166: UHF | L166: X | O166: SINGLE | P166: IB-Forced | Q166: VRX1000 (UHF) Inband; For APX (UHF) using Single-Band Antenna(s) | R166: 2 | S166: 2 | T166: 2 | U166: 0 | V166: 586 | W166: 13 | X166: 1 | Y166: No Drawing
A167: X | F167: X | G167: X | J167: UHF | L167: X | O167: ALL | P167: IB-Forced | Q167: VRX1000 (UHF) Inband; For APX (UHF) using One All-Band Antenna | R167: 2 | S167: 2 | T167: 2 | U167: 1 | V167: 587 | W167: 13 | X167: 1 | Y167: No Drawing
A168: X | F168: X | G168: X | J168: UHF | L168: X | O168: USER | P168: IB-Forced | Q168: VRX1000 (UHF) Inband; For APX (UHF) using Unknown or User-Defined Antenna | R168: 2 | S168: 2 | T168: 2 | U168: 2 | V168: 588 | W168: 13 | X168: 1 | Y168: No Drawing
A169: X | F169: X | G169: X | J169: 700 | M169: X | O169: SINGLE | P169: IB-Forced | Q169: VRX1000 (700) Inband; For APX (700) using Single-Band Antenna(s) | R169: 3 | S169: 4 | T169: 2 | U169: 0 | V169: 893 | W169: 13 | X169: 1 | Y169: No Drawing
A170: X | F170: X | G170: X | J170: 700 | M170: X | O170: ALL | P170: IB-Forced | Q170: VRX1000 (700) Inband; For APX (700) using One All-Band Antenna | R170: 3 | S170: 4 | T170: 2 | U170: 1 | V170: 894 | W170: 13 | X170: 1 | Y170: No Drawing
A171: X | F171: X | G171: X | J171: 700 | M171: X | O171: USER | P171: IB-Forced | Q171: VRX1000 (700) Inband; For APX (700) using Unknown or User-Defined Antenna | R171: 3 | S171: 4 | T171: 2 | U171: 2 | V171: 895 | W171: 13 | X171: 1 | Y171: No Drawing
A172: X | F172: X | G172: X | J172: 700 | N172: X | O172: SINGLE | P172: IB-Forced | Q172: VRX1000 (700) Inband; For APX (800) using Single-Band Antenna(s) | R172: 3 | S172: 8 | T172: 2 | U172: 0 | V172: 961 | W172: 13 | X172: 1 | Y172: No Drawing
A173: X | F173: X | G173: X | J173: 700 | N173: X | O173: ALL | P173: IB-Forced | Q173: VRX1000 (700) Inband; For APX (800) using One All-Band Antenna | R173: 3 | S173: 8 | T173: 2 | U173: 1 | V173: 962 | W173: 13 | X173: 1 | Y173: No Drawing
A174: X | F174: X | G174: X | J174: 700 | N174: X | O174: USER | P174: IB-Forced | Q174: VRX1000 (700) Inband; For APX (800) using Unknown or User-Defined Antenna | R174: 3 | S174: 8 | T174: 2 | U174: 2 | V174: 963 | W174: 13 | X174: 1 | Y174: No Drawing
A175: X | F175: X | G175: X | J175: 700 | M175: X | N175: X | O175: SINGLE | P175: IB-Forced | Q175: VRX1000 (700) Inband; For APX (700+800) using Single-Band Antenna(s) | R175: 3 | S175: 12 | T175: 2 | U175: 0 | V175: 1029 | W175: 13 | X175: 1 | Y175: No Drawing
A176: X | F176: X | G176: X | J176: 700 | M176: X | N176: X | O176: ALL | P176: IB-Forced | Q176: VRX1000 (700) Inband; For APX (700+800) using One All-Band Antenna | R176: 3 | S176: 12 | T176: 2 | U176: 1 | V176: 1030 | W176: 13 | X176: 1 | Y176: No Drawing
A177: X | F177: X | G177: X | J177: 700 | M177: X | N177: X | O177: USER | P177: IB-Forced | Q177: VRX1000 (700) Inband; For APX (700+800) using Unknown or User-Defined Antenna | R177: 3 | S177: 12 | T177: 2 | U177: 2 | V177: 1031 | W177: 13 | X177: 1 | Y177: No Drawing
A178: X | F178: X | G178: X | J178: 800 | M178: X | O178: SINGLE | P178: IB-Forced | Q178: VRX1000 (800) Inband; For APX (700) using Single-Band Antenna(s) | R178: 4 | S178: 4 | T178: 2 | U178: 0 | V178: 1166 | W178: 13 | X178: 1 | Y178: No Drawing
A179: X | F179: X | G179: X | J179: 800 | M179: X | O179: ALL | P179: IB-Forced | Q179: VRX1000 (800) Inband; For APX (700) using One All-Band Antenna | R179: 4 | S179: 4 | T179: 2 | U179: 1 | V179: 1167 | W179: 13 | X179: 1 | Y179: No Drawing
A180: X | F180: X | G180: X | J180: 800 | M180: X | O180: USER | P180: IB-Forced | Q180: VRX1000 (800) Inband; For APX (700) using Unknown or User-Defined Antenna | R180: 4 | S180: 4 | T180: 2 | U180: 2 | V180: 1168 | W180: 13 | X180: 1 | Y180: No Drawing
A181: X | F181: X | G181: X | J181: 800 | N181: X | O181: SINGLE | P181: IB-Forced | Q181: VRX1000 (800) Inband; For APX (800) using Single-Band Antenna(s) | R181: 4 | S181: 8 | T181: 2 | U181: 0 | V181: 1234 | W181: 13 | X181: 1 | Y181: No Drawing
A182: X | F182: X | G182: X | J182: 800 | N182: X | O182: ALL | P182: IB-Forced | Q182: VRX1000 (800) Inband; For APX (800) using One All-Band Antenna | R182: 4 | S182: 8 | T182: 2 | U182: 1 | V182: 1235 | W182: 13 | X182: 1 | Y182: No Drawing
A183: X | F183: X | G183: X | J183: 800 | N183: X | O183: USER | P183: IB-Forced | Q183: VRX1000 (800) Inband; For APX (800) using Unknown or User-Defined Antenna | R183: 4 | S183: 8 | T183: 2 | U183: 2 | V183: 1236 | W183: 13 | X183: 1 | Y183: No Drawing
A184: X | F184: X | G184: X | J184: 800 | M184: X | N184: X | O184: SINGLE | P184: IB-Forced | Q184: VRX1000 (800) Inband; For APX (700+800) using Single-Band Antenna(s) | R184: 4 | S184: 12 | T184: 2 | U184: 0 | V184: 1302 | W184: 13 | X184: 1 | Y184: No Drawing
A185: X | F185: X | G185: X | J185: 800 | M185: X | N185: X | O185: ALL | P185: IB-Forced | Q185: VRX1000 (800) Inband; For APX (700+800) using One All-Band Antenna | R185: 4 | S185: 12 | T185: 2 | U185: 1 | V185: 1303 | W185: 13 | X185: 1 | Y185: No Drawing
A186: X | F186: X | G186: X | J186: 800 | M186: X | N186: X | O186: USER | P186: IB-Forced | Q186: VRX1000 (800) Inband; For APX (700+800) using Unknown or User-Defined Antenna | R186: 4 | S186: 12 | T186: 2 | U186: 2 | V186: 1304 | W186: 13 | X186: 1 | Y186: No Drawing
A187: X | F187: X | G187: X | J187: VHF | K187: X | L187: X | O187: ALL | P187: IB-Only | Q187: VRX1000 (VHF) Inband/No Crossband; For APX (VHF+UHF) using One All-Band Antenna | R187: 1 | S187: 3 | T187: 1 | U187: 1 | V187: 328 | W187: 13 | X187: 2 | Y187: No Drawing
A188: X | F188: X | G188: X | J188: VHF | K188: X | L188: X | O188: USER | P188: IB-Only | Q188: VRX1000 (VHF) Inband/No Crossband; For APX (VHF+UHF) using Unknown or User-Defined Antenna | R188: 1 | S188: 3 | T188: 1 | U188: 2 | V188: 329 | W188: 13 | X188: 2 | Y188: No Drawing
A189: X | F189: X | G189: X | J189: VHF | K189: X | M189: X | O189: ALL | P189: IB-Only | Q189: VRX1000 (VHF) Inband/No Crossband; For APX (VHF+700) using One All-Band Antenna | R189: 1 | S189: 5 | T189: 1 | U189: 1 | V189: 362 | W189: 13 | X189: 2 | Y189: No Drawing
A190: X | F190: X | G190: X | J190: VHF | K190: X | M190: X | O190: USER | P190: IB-Only | Q190: VRX1000 (VHF) Inband/No Crossband; For APX (VHF+700) using Unknown or User-Defined Antenna | R190: 1 | S190: 5 | T190: 1 | U190: 2 | V190: 363 | W190: 13 | X190: 2 | Y190: No Drawing
A191: X | F191: X | G191: X | J191: VHF | K191: X | N191: X | O191: ALL | P191: IB-Only | Q191: VRX1000 (VHF) Inband/No Crossband; For APX (VHF+800) using One All-Band Antenna | R191: 1 | S191: 9 | T191: 1 | U191: 1 | V191: 430 | W191: 13 | X191: 2 | Y191: No Drawing
A192: X | F192: X | G192: X | J192: VHF | K192: X | N192: X | O192: USER | P192: IB-Only | Q192: VRX1000 (VHF) Inband/No Crossband; For APX (VHF+800) using Unknown or User-Defined Antenna | R192: 1 | S192: 9 | T192: 1 | U192: 2 | V192: 431 | W192: 13 | X192: 2 | Y192: No Drawing
A193: X | F193: X | G193: X | J193: VHF | K193: X | M193: X | N193: X | O193: ALL | P193: IB-Only | Q193: VRX1000 (VHF) Inband/No Crossband; For APX (VHF+700+800) using One All-Band Antenna | R193: 1 | S193: 13 | T193: 1 | U193: 1 | V193: 498 | W193: 13 | X193: 2 | Y193: No Drawing
A194: X | F194: X | G194: X | J194: VHF | K194: X | M194: X | N194: X | O194: USER | P194: IB-Only | Q194: VRX1000 (VHF) Inband/No Crossband; For APX (VHF+700+800) using Unknown or User-Defined Antenna | R194: 1 | S194: 13 | T194: 1 | U194: 2 | V194: 499 | W194: 13 | X194: 2 | Y194: No Drawing
A195: X | F195: X | G195: X | J195: UHF | K195: X | L195: X | O195: ALL | P195: IB-Only | Q195: VRX1000 (UHF) Inband/No Crossband; For APX (VHF+UHF) using One All-Band Antenna | R195: 2 | S195: 3 | T195: 1 | U195: 1 | V195: 601 | W195: 13 | X195: 2 | Y195: No Drawing
A196: X | F196: X | G196: X | J196: UHF | K196: X | L196: X | O196: USER | P196: IB-Only | Q196: VRX1000 (UHF) Inband/No Crossband; For APX (VHF+UHF) using Unknown or User-Defined Antenna | R196: 2 | S196: 3 | T196: 1 | U196: 2 | V196: 602 | W196: 13 | X196: 2 | Y196: No Drawing
A197: X | F197: X | G197: X | J197: UHF | L197: X | M197: X | O197: ALL | P197: IB-Only | Q197: VRX1000 (UHF) Inband/No Crossband; For APX (UHF+700) using One All-Band Antenna | R197: 2 | S197: 6 | T197: 1 | U197: 1 | V197: 652 | W197: 13 | X197: 2 | Y197: No Drawing
A198: X | F198: X | G198: X | J198: UHF | L198: X | M198: X | O198: USER | P198: IB-Only | Q198: VRX1000 (UHF) Inband/No Crossband; For APX (UHF+700) using Unknown or User-Defined Antenna | R198: 2 | S198: 6 | T198: 1 | U198: 2 | V198: 653 | W198: 13 | X198: 2 | Y198: No Drawing
A199: X | F199: X | G199: X | J199: UHF | L199: X | N199: X | O199: ALL | P199: IB-Only | Q199: =$J$6&"("&$J199&")"&" "&VLOOKUP($P199,RPTCodes,2,FALSE) &"; For APX ("&VLOOKUP($S199,BAND_NAMES,2)&") using "&VLOOKUP($O199,ANTcodes,3,FALSE) -> VRX1000 (UHF) Inband/No Crossband; For APX (UHF+800) using One All-Band Antenna | R199: =VLOOKUP(J199,Freq_Bands,2) -> 2 | S199: =IF(K199="X",1,0)+IF(L199="X",2,0)+IF(M199="X",4,0)+IF(N199="X",8,0) -> 10 | T199: =VLOOKUP(P199,RPTCodes,4,FALSE) -> 1 | U199: =VLOOKUP(O199,ANTcodes,2,FALSE) -> 1 | V199: =$U199*MULT_ANT+$T199*MULT_RPT+$S199*MULT_MRF+$R199*MULT_VRF -> 720 | W199: =IF($A199="X",1,0)+IF($B199="X",2,0)+IF($C199="X",3,0)+IF($D199="X",4,0)+IF($E199="X",5,0)+IF($F199="X",6,0)+IF($H199="X",10,0)+IF($G199="X",6,0) -> 13 | X199: =COUNTA(K199:L199)+IF(RIGHT(M199&N199,1)="X",1,0) -> 2 | Y199: No Drawing
A200: X | F200: X | G200: X | J200: UHF | L200: X | N200: X | O200: USER | P200: IB-Only | Q200: VRX1000 (UHF) Inband/No Crossband; For APX (UHF+800) using Unknown or User-Defined Antenna | R200: 2 | S200: 10 | T200: 1 | U200: 2 | V200: 721 | W200: 13 | X200: 2 | Y200: No Drawing
... 178 more rows

Sheet MAIN -ORIGINAL (hidden)
E1: SELECT ALL CHOICES BELOW FOR THE PROPOSED SYSTEM
E2: RESULT IS LISTED AT BOTTOM
B12: APX 8500 Frequency Band Information | F12: =IF(Lookups!$K$16,"ERROR: Please Check BANDS used by APX","") -> 
F13: =IF(Lookups!$P$17,"ERROR: Please Check APX BAND where VR will be Used","") -> 
F14: =IF(Lookups!$P$16,"ERROR: A Band chosen for APX-VR Repeat is not an APX Band","") -> 
K19: REFERENCE CONFIG: | L19: =Lookups!$B$16 -> 543
K20: FILTER TYPE: | L20: =Lookups!$M$29 -> 14
B23: REQUIRED FILTERING SOLUTION
D25: VR & APX Description: | E25: =Lookups!$M$28 -> VRX1000 (VHF) Inband & Crossband; For APX (VHF+UHF+700+800) using Single-Band Antenna(s)
B27: FILTERING REQUIRED (Listed Below)
D28: FILTER DESCRIPTION: | E28: =Lookups!$M$30 -> IN-BAND FILTER PACKAGE & APX Antenna TRIPLEXER
D29: ANTENNA NOTES: | E29: =Lookups!$M$31 -> N/A
D31: DRAWING NUMBER: | E31: =IF(VRcode=2,"No Drawing",Lookups!$M$33) -> No Drawing
B33: ORDER THESE FILTERING KITS:
B34: Quantity | C34: Order Code | E34: Description
B35: =VLOOKUP(FILTER_Code,AntennaFilters,5) -> 1 | C35: See Order Guide | E35: In-Band Filtering Package (Mandatory unless '0' quantity shown)
B36: =VLOOKUP(FILTER_Code,AntennaFilters,6) -> 1 | C36: QA09450AA | E36: Antenna Triplexer (Required for APX Radio using multiple antennas)
B37: =VLOOKUP(FILTER_Code,AntennaFilters,8) -> 0 | C37: QA09449AA | E37: Single Triplexer & Bypass Relay Kit
B38: =VLOOKUP(FILTER_Code,AntennaFilters,9) -> 0 | C38: DDN2657A | E38: Dual Triplexer Kit
B39: =VLOOKUP(FILTER_Code,AntennaFilters,10) -> 0 | C39: QA09445AA | E39: Dual Triplexers & Bypass Relay Kit
B40: =VLOOKUP(FILTER_Code,AntennaFilters,11) -> 0 | C40: QA09446AA | E40: Filter Bypass Relay Kit
B41: =VLOOKUP(FILTER_Code,AntennaFilters,14) -> 0 | C41: Special | E41: SPECIAL ORDER - Engineering Review and Quote Required from Futurecom
B43: Form Rev: | C43: 2023-01-09
B44: Form Ver. | C44: 3

Sheet VRX SOLUTIONS- MAP (hidden)
I1: VRX FILTERING CONFIGURATOR
A2: SOLUTIONS REQUIRED
B3: Kit-1 | C3: Kit-2 | D3: Kit-3 | E3: KIT-4 | F3: KIT-0 | G3: Kit-5 | I3: VRX | R3: Lookup/Sorting Codes | W3: FilterCode
A4: 1 | B4: 2 | C4: 3 | D4: 4 | E4: 5 | F4: 6 | G4: 6 | H4: 10 | J4: VRX | K4: MSU FREQUENCY BANDS USED | O4: MSU
B5: TRIPLEXER SOLUTION | F5: STANDARD | G5: OPTION | H5: Required | I5: NOTES | J5: BAND | K5: b1 | L5: b2 | M5: b3a | N5: b3b | O5: ANT | P5: REPEAT | R5: 4 | S5: 16 | T5: 4 | U5: 2
A6: NONE | B6: 1x | C6: 1x+Relay | D6: 2x | E6: 2x+Relay | F6: In-BAND | G6: Relay | H6: Relay | I6: NOTES | J6: VRX1000 | K6: VHF | L6: UHF | M6: 700 | N6: 800 | O6: MSU-Ant | P6: TYPE | Q6: DESCRIPTION | R6: VRF | S6: MRF | T6: RPT | U6: ANT | V6: TOTAl | W6: FL | X6: NumBands | Y6: Drawing
B7: X | J7: VHF | L7: X | O7: SINGLE | P7: XB-Forced | Q7: =$J$6&"("&$J7&")"&" "&VLOOKUP($P7,RPTCodes,2,FALSE) &"; For APX ("&VLOOKUP($S7,BAND_NAMES,2)&") using "&VLOOKUP($O7,ANTcodes,3,FALSE) -> VRX1000 (VHF) Crossband; For APX (UHF) using Single-Band Antenna(s) | R7: =VLOOKUP(J7,Freq_Bands,2) -> 1 | S7: =IF(K7="X",1,0)+IF(L7="X",2,0)+IF(M7="X",4,0)+IF(N7="X",8,0) -> 2 | T7: =VLOOKUP(P7,RPTCodes,4,FALSE) -> 4 | U7: =VLOOKUP(O7,ANTcodes,2,FALSE) -> 0 | V7: =$U7*MULT_ANT+$T7*MULT_RPT+$S7*MULT_MRF+$R7*MULT_VRF -> 319 | W7: =IF($A7="X",1,0)+IF($B7="X",2,0)+IF($C7="X",3,0)+IF($D7="X",4,0)+IF($E7="X",5,0)+IF($F7="X",6,0)+IF($H7="X",10,0)+IF($G7="X",6,0) -> 2 | X7: =COUNTA(K7:L7)+IF(RIGHT(M7&N7,1)="X",1,0) -> 1 | Y7: No Drawing
B8: X | J8: VHF | L8: X | O8: ALL | P8: XB-Forced | Q8: VRX1000 (VHF) Crossband; For APX (UHF) using One All-Band Antenna | R8: 1 | S8: 2 | T8: 4 | U8: 1 | V8: 320 | W8: 2 | X8: 1 | Y8: No Drawing
B9: X | J9: VHF | L9: X | O9: USER | P9: XB-Forced | Q9: VRX1000 (VHF) Crossband; For APX (UHF) using Unknown or User-Defined Antenna | R9: 1 | S9: 2 | T9: 4 | U9: 2 | V9: 321 | W9: 2 | X9: 1 | Y9: No Drawing
B10: X | J10: VHF | M10: X | O10: SINGLE | P10: XB-Forced | Q10: VRX1000 (VHF) Crossband; For APX (700) using Single-Band Antenna(s) | R10: 1 | S10: 4 | T10: 4 | U10: 0 | V10: 353 | W10: 2 | X10: 1 | Y10: No Drawing
B11: X | J11: VHF | M11: X | O11: ALL | P11: XB-Forced | Q11: VRX1000 (VHF) Crossband; For APX (700) using One All-Band Antenna | R11: 1 | S11: 4 | T11: 4 | U11: 1 | V11: 354 | W11: 2 | X11: 1 | Y11: No Drawing
B12: X | J12: VHF | M12: X | O12: USER | P12: XB-Forced | Q12: VRX1000 (VHF) Crossband; For APX (700) using Unknown or User-Defined Antenna | R12: 1 | S12: 4 | T12: 4 | U12: 2 | V12: 355 | W12: 2 | X12: 1 | Y12: No Drawing
B13: X | J13: VHF | L13: X | M13: X | O13: SINGLE | P13: XB-Forced | Q13: VRX1000 (VHF) Crossband; For APX (UHF+700) using Single-Band Antenna(s) | R13: 1 | S13: 6 | T13: 4 | U13: 0 | V13: 387 | W13: 2 | X13: 2 | Y13: No Drawing
B14: X | J14: VHF | N14: X | O14: SINGLE | P14: XB-Forced | Q14: VRX1000 (VHF) Crossband; For APX (800) using Single-Band Antenna(s) | R14: 1 | S14: 8 | T14: 4 | U14: 0 | V14: 421 | W14: 2 | X14: 1 | Y14: No Drawing
B15: X | J15: VHF | N15: X | O15: ALL | P15: XB-Forced | Q15: VRX1000 (VHF) Crossband; For APX (800) using One All-Band Antenna | R15: 1 | S15: 8 | T15: 4 | U15: 1 | V15: 422 | W15: 2 | X15: 1 | Y15: No Drawing
B16: X | J16: VHF | N16: X | O16: USER | P16: XB-Forced | Q16: VRX1000 (VHF) Crossband; For APX (800) using Unknown or User-Defined Antenna | R16: 1 | S16: 8 | T16: 4 | U16: 2 | V16: 423 | W16: 2 | X16: 1 | Y16: No Drawing
B17: X | J17: VHF | L17: X | N17: X | O17: SINGLE | P17: XB-Forced | Q17: VRX1000 (VHF) Crossband; For APX (UHF+800) using Single-Band Antenna(s) | R17: 1 | S17: 10 | T17: 4 | U17: 0 | V17: 455 | W17: 2 | X17: 2 | Y17: No Drawing
B18: X | J18: VHF | M18: X | N18: X | O18: SINGLE | P18: XB-Forced | Q18: VRX1000 (VHF) Crossband; For APX (700+800) using Single-Band Antenna(s) | R18: 1 | S18: 12 | T18: 4 | U18: 0 | V18: 489 | W18: 2 | X18: 1 | Y18: No Drawing
B19: X | J19: VHF | M19: X | N19: X | O19: ALL | P19: XB-Forced | Q19: VRX1000 (VHF) Crossband; For APX (700+800) using One All-Band Antenna | R19: 1 | S19: 12 | T19: 4 | U19: 1 | V19: 490 | W19: 2 | X19: 1 | Y19: No Drawing
B20: X | J20: VHF | M20: X | N20: X | O20: USER | P20: XB-Forced | Q20: VRX1000 (VHF) Crossband; For APX (700+800) using Unknown or User-Defined Antenna | R20: 1 | S20: 12 | T20: 4 | U20: 2 | V20: 491 | W20: 2 | X20: 1 | Y20: No Drawing
B21: X | J21: VHF | L21: X | M21: X | N21: X | O21: SINGLE | P21: XB-Forced | Q21: VRX1000 (VHF) Crossband; For APX (UHF+700+800) using Single-Band Antenna(s) | R21: 1 | S21: 14 | T21: 4 | U21: 0 | V21: 523 | W21: 2 | X21: 2 | Y21: No Drawing
B22: X | J22: UHF | K22: X | O22: SINGLE | P22: XB-Forced | Q22: VRX1000 (UHF) Crossband; For APX (VHF) using Single-Band Antenna(s) | R22: 2 | S22: 1 | T22: 4 | U22: 0 | V22: 575 | W22: 2 | X22: 1 | Y22: No Drawing
B23: X | J23: UHF | K23: X | O23: ALL | P23: XB-Forced | Q23: VRX1000 (UHF) Crossband; For APX (VHF) using One All-Band Antenna | R23: 2 | S23: 1 | T23: 4 | U23: 1 | V23: 576 | W23: 2 | X23: 1 | Y23: No Drawing
B24: X | J24: UHF | K24: X | O24: USER | P24: XB-Forced | Q24: VRX1000 (UHF) Crossband; For APX (VHF) using Unknown or User-Defined Antenna | R24: 2 | S24: 1 | T24: 4 | U24: 2 | V24: 577 | W24: 2 | X24: 1 | Y24: No Drawing
B25: X | J25: UHF | M25: X | O25: SINGLE | P25: XB-Forced | Q25: VRX1000 (UHF) Crossband; For APX (700) using Single-Band Antenna(s) | R25: 2 | S25: 4 | T25: 4 | U25: 0 | V25: 626 | W25: 2 | X25: 1 | Y25: No Drawing
B26: X | J26: UHF | M26: X | O26: ALL | P26: XB-Forced | Q26: VRX1000 (UHF) Crossband; For APX (700) using One All-Band Antenna | R26: 2 | S26: 4 | T26: 4 | U26: 1 | V26: 627 | W26: 2 | X26: 1 | Y26: No Drawing
B27: X | J27: UHF | M27: X | O27: USER | P27: XB-Forced | Q27: VRX1000 (UHF) Crossband; For APX (700) using Unknown or User-Defined Antenna | R27: 2 | S27: 4 | T27: 4 | U27: 2 | V27: 628 | W27: 2 | X27: 1 | Y27: No Drawing
B28: X | J28: UHF | K28: X | M28: X | O28: SINGLE | P28: XB-Forced | Q28: VRX1000 (UHF) Crossband; For APX (VHF+700) using Single-Band Antenna(s) | R28: 2 | S28: 5 | T28: 4 | U28: 0 | V28: 643 | W28: 2 | X28: 2 | Y28: No Drawing
B29: X | J29: UHF | N29: X | O29: SINGLE | P29: XB-Forced | Q29: VRX1000 (UHF) Crossband; For APX (800) using Single-Band Antenna(s) | R29: 2 | S29: 8 | T29: 4 | U29: 0 | V29: 694 | W29: 2 | X29: 1 | Y29: No Drawing
B30: X | J30: UHF | N30: X | O30: ALL | P30: XB-Forced | Q30: VRX1000 (UHF) Crossband; For APX (800) using One All-Band Antenna | R30: 2 | S30: 8 | T30: 4 | U30: 1 | V30: 695 | W30: 2 | X30: 1 | Y30: No Drawing
B31: X | J31: UHF | N31: X | O31: USER | P31: XB-Forced | Q31: VRX1000 (UHF) Crossband; For APX (800) using Unknown or User-Defined Antenna | R31: 2 | S31: 8 | T31: 4 | U31: 2 | V31: 696 | W31: 2 | X31: 1 | Y31: No Drawing
B32: X | J32: UHF | K32: X | N32: X | O32: SINGLE | P32: XB-Forced | Q32: VRX1000 (UHF) Crossband; For APX (VHF+800) using Single-Band Antenna(s) | R32: 2 | S32: 9 | T32: 4 | U32: 0 | V32: 711 | W32: 2 | X32: 2 | Y32: No Drawing
B33: X | J33: UHF | M33: X | N33: X | O33: SINGLE | P33: XB-Forced | Q33: VRX1000 (UHF) Crossband; For APX (700+800) using Single-Band Antenna(s) | R33: 2 | S33: 12 | T33: 4 | U33: 0 | V33: 762 | W33: 2 | X33: 1 | Y33: No Drawing
B34: X | J34: UHF | M34: X | N34: X | O34: ALL | P34: XB-Forced | Q34: VRX1000 (UHF) Crossband; For APX (700+800) using One All-Band Antenna | R34: 2 | S34: 12 | T34: 4 | U34: 1 | V34: 763 | W34: 2 | X34: 1 | Y34: No Drawing
B35: X | J35: UHF | M35: X | N35: X | O35: USER | P35: XB-Forced | Q35: VRX1000 (UHF) Crossband; For APX (700+800) using Unknown or User-Defined Antenna | R35: 2 | S35: 12 | T35: 4 | U35: 2 | V35: 764 | W35: 2 | X35: 1 | Y35: No Drawing
B36: X | J36: UHF | K36: X | M36: X | N36: =VLOOKUP('VRX SOLUTIONS'!B7:B162,'VRX SOLUTIONS'!,6) | O36: SINGLE | P36: XB-Forced | Q36: VRX1000 (UHF) Crossband; For APX (VHF+700) using Single-Band Antenna(s) | R36: 2 | S36: 5 | T36: 4 | U36: 0 | V36: 643 | W36: 2 | X36: 1 | Y36: No Drawing
B37: X | J37: 700 | K37: X | O37: SINGLE | P37: XB-Forced | Q37: VRX1000 (700) Crossband; For APX (VHF) using Single-Band Antenna(s) | R37: 3 | S37: 1 | T37: 4 | U37: 0 | V37: 848 | W37: 2 | X37: 1 | Y37: No Drawing
B38: X | J38: 700 | K38: X | O38: ALL | P38: XB-Forced | Q38: VRX1000 (700) Crossband; For APX (VHF) using One All-Band Antenna | R38: 3 | S38: 1 | T38: 4 | U38: 1 | V38: 849 | W38: 2 | X38: 1 | Y38: No Drawing
B39: X | J39: 700 | K39: X | O39: USER | P39: XB-Forced | Q39: VRX1000 (700) Crossband; For APX (VHF) using Unknown or User-Defined Antenna | R39: 3 | S39: 1 | T39: 4 | U39: 2 | V39: 850 | W39: 2 | X39: 1 | Y39: No Drawing
B40: X | J40: 700 | L40: X | O40: SINGLE | P40: XB-Forced | Q40: VRX1000 (700) Crossband; For APX (UHF) using Single-Band Antenna(s) | R40: 3 | S40: 2 | T40: 4 | U40: 0 | V40: 865 | W40: 2 | X40: 1 | Y40: No Drawing
B41: X | J41: 700 | L41: X | O41: ALL | P41: XB-Forced | Q41: VRX1000 (700) Crossband; For APX (UHF) using One All-Band Antenna | R41: 3 | S41: 2 | T41: 4 | U41: 1 | V41: 866 | W41: 2 | X41: 1 | Y41: No Drawing
B42: X | J42: 700 | L42: X | O42: USER | P42: XB-Forced | Q42: VRX1000 (700) Crossband; For APX (UHF) using Unknown or User-Defined Antenna | R42: 3 | S42: 2 | T42: 4 | U42: 2 | V42: 867 | W42: 2 | X42: 1 | Y42: No Drawing
B43: X | J43: 700 | K43: X | L43: X | O43: SINGLE | P43: XB-Forced | Q43: VRX1000 (700) Crossband; For APX (VHF+UHF) using Single-Band Antenna(s) | R43: 3 | S43: 3 | T43: 4 | U43: 0 | V43: 882 | W43: 2 | X43: 2 | Y43: No Drawing
B44: X | J44: 800 | K44: X | O44: SINGLE | P44: XB-Forced | Q44: VRX1000 (800) Crossband; For APX (VHF) using Single-Band Antenna(s) | R44: 4 | S44: 1 | T44: 4 | U44: 0 | V44: 1121 | W44: 2 | X44: 1 | Y44: No Drawing
B45: X | J45: 800 | K45: X | O45: ALL | P45: XB-Forced | Q45: VRX1000 (800) Crossband; For APX (VHF) using One All-Band Antenna | R45: 4 | S45: 1 | T45: 4 | U45: 1 | V45: 1122 | W45: 2 | X45: 1 | Y45: No Drawing
B46: X | J46: 800 | K46: X | O46: USER | P46: XB-Forced | Q46: VRX1000 (800) Crossband; For APX (VHF) using Unknown or User-Defined Antenna | R46: 4 | S46: 1 | T46: 4 | U46: 2 | V46: 1123 | W46: 2 | X46: 1 | Y46: No Drawing
B47: X | J47: 800 | L47: X | O47: SINGLE | P47: XB-Forced | Q47: VRX1000 (800) Crossband; For APX (UHF) using Single-Band Antenna(s) | R47: 4 | S47: 2 | T47: 4 | U47: 0 | V47: 1138 | W47: 2 | X47: 1 | Y47: No Drawing
B48: X | J48: 800 | L48: X | O48: ALL | P48: XB-Forced | Q48: VRX1000 (800) Crossband; For APX (UHF) using One All-Band Antenna | R48: 4 | S48: 2 | T48: 4 | U48: 1 | V48: 1139 | W48: 2 | X48: 1 | Y48: No Drawing
B49: X | J49: 800 | L49: X | O49: USER | P49: XB-Forced | Q49: VRX1000 (800) Crossband; For APX (UHF) using Unknown or User-Defined Antenna | R49: 4 | S49: 2 | T49: 4 | U49: 2 | V49: 1140 | W49: 2 | X49: 1 | Y49: No Drawing
B50: X | J50: 800 | K50: X | L50: X | O50: SINGLE | P50: XB-Forced | Q50: VRX1000 (800) Crossband; For APX (VHF+UHF) using Single-Band Antenna(s) | R50: 4 | S50: 3 | T50: 4 | U50: 0 | V50: 1155 | W50: 2 | X50: 2 | Y50: No Drawing
C51: QA09484AA | J51: VHF | K51: X | L51: X | O51: ALL | P51: XB-Only | Q51: VRX1000 (VHF) Crossband/No Inband; For APX (VHF+UHF) using One All-Band Antenna | R51: 1 | S51: 3 | T51: 3 | U51: 1 | V51: 334 | W51: 0 | X51: 2 | Y51: 8J087X51-07
C52: QA09484AA | J52: VHF | K52: X | L52: X | O52: USER | P52: XB-Only | Q52: VRX1000 (VHF) Crossband/No Inband; For APX (VHF+UHF) using Unknown or User-Defined Antenna | R52: 1 | S52: 3 | T52: 3 | U52: 2 | V52: 335 | W52: 0 | X52: 2 | Y52: No Drawing
C53: QA09484AA | J53: VHF | K53: X | M53: X | O53: ALL | P53: XB-Only | Q53: VRX1000 (VHF) Crossband/No Inband; For APX (VHF+700) using One All-Band Antenna | R53: 1 | S53: 5 | T53: 3 | U53: 1 | V53: 368 | W53: 0 | X53: 2 | Y53: 8J087X51-08
C54: QA09484AA | J54: VHF | K54: X | M54: X | O54: USER | P54: XB-Only | Q54: VRX1000 (VHF) Crossband/No Inband; For APX (VHF+700) using Unknown or User-Defined Antenna | R54: 1 | S54: 5 | T54: 3 | U54: 2 | V54: 369 | W54: 0 | X54: 2 | Y54: No Drawing
C55: QA09484AA | J55: VHF | K55: X | N55: X | O55: ALL | P55: XB-Only | Q55: VRX1000 (VHF) Crossband/No Inband; For APX (VHF+800) using One All-Band Antenna | R55: 1 | S55: 9 | T55: 3 | U55: 1 | V55: 436 | W55: 0 | X55: 2 | Y55: 8J087X51-08
C56: QA09484AA | J56: VHF | K56: X | N56: X | O56: USER | P56: XB-Only | Q56: VRX1000 (VHF) Crossband/No Inband; For APX (VHF+800) using Unknown or User-Defined Antenna | R56: 1 | S56: 9 | T56: 3 | U56: 2 | V56: 437 | W56: 0 | X56: 2 | Y56: No Drawing
C57: QA09484AA | J57: VHF | K57: X | M57: X | N57: X | O57: ALL | P57: XB-Only | Q57: VRX1000 (VHF) Crossband/No Inband; For APX (VHF+700+800) using One All-Band Antenna | R57: 1 | S57: 13 | T57: 3 | U57: 1 | V57: 504 | W57: 0 | X57: 2 | Y57: 8J087X51-08
C58: QA09484AA | J58: VHF | K58: X | M58: X | N58: X | O58: USER | P58: XB-Only | Q58: VRX1000 (VHF) Crossband/No Inband; For APX (VHF+700+800) using Unknown or User-Defined Antenna | R58: 1 | S58: 13 | T58: 3 | U58: 2 | V58: 505 | W58: 0 | X58: 2 | Y58: No Drawing
C59: QA09485AA | J59: UHF | K59: X | L59: X | O59: ALL | P59: XB-Only | Q59: VRX1000 (UHF) Crossband/No Inband; For APX (VHF+UHF) using One All-Band Antenna | R59: 2 | S59: 3 | T59: 3 | U59: 1 | V59: 607 | W59: 0 | X59: 2 | Y59: 8J087X51-09
C60: QA09485AA | J60: UHF | K60: X | L60: X | O60: USER | P60: XB-Only | Q60: VRX1000 (UHF) Crossband/No Inband; For APX (VHF+UHF) using Unknown or User-Defined Antenna | R60: 2 | S60: 3 | T60: 3 | U60: 2 | V60: 608 | W60: 0 | X60: 2 | Y60: No Drawing
C61: QA09485AA | J61: UHF | L61: X | M61: X | O61: ALL | P61: XB-Only | Q61: VRX1000 (UHF) Crossband/No Inband; For APX (UHF+700) using One All-Band Antenna | R61: 2 | S61: 6 | T61: 3 | U61: 1 | V61: 658 | W61: 0 | X61: 2 | Y61: 8J087X51-10
C62: QA09485AA | J62: UHF | L62: X | M62: X | O62: USER | P62: XB-Only | Q62: VRX1000 (UHF) Crossband/No Inband; For APX (UHF+700) using Unknown or User-Defined Antenna | R62: 2 | S62: 6 | T62: 3 | U62: 2 | V62: 659 | W62: 0 | X62: 2 | Y62: No Drawing
C63: QA09485AA | J63: UHF | L63: X | N63: X | O63: ALL | P63: XB-Only | Q63: VRX1000 (UHF) Crossband/No Inband; For APX (UHF+800) using One All-Band Antenna | R63: 2 | S63: 10 | T63: 3 | U63: 1 | V63: 726 | W63: 0 | X63: 2 | Y63: 8J087X51-10
C64: QA09485AA | J64: UHF | L64: X | N64: X | O64: USER | P64: XB-Only | Q64: VRX1000 (UHF) Crossband/No Inband; For APX (UHF+800) using Unknown or User-Defined Antenna | R64: 2 | S64: 10 | T64: 3 | U64: 2 | V64: 727 | W64: 0 | X64: 2 | Y64: No Drawing
C65: QA09485AA | J65: UHF | L65: X | M65: X | N65: X | O65: ALL | P65: XB-Only | Q65: VRX1000 (UHF) Crossband/No Inband; For APX (UHF+700+800) using One All-Band Antenna | R65: 2 | S65: 14 | T65: 3 | U65: 1 | V65: 794 | W65: 0 | X65: 2 | Y65: 8J087X51-10
C66: QA09485AA | J66: UHF | L66: X | M66: X | N66: X | O66: USER | P66: XB-Only | Q66: VRX1000 (UHF) Crossband/No Inband; For APX (UHF+700+800) using Unknown or User-Defined Antenna | R66: 2 | S66: 14 | T66: 3 | U66: 2 | V66: 795 | W66: 0 | X66: 2 | Y66: No Drawing
C67: QA09486AA | J67: 700 | K67: X | M67: X | O67: ALL | P67: XB-Only | Q67: VRX1000 (700) Crossband/No Inband; For APX (VHF+700) using One All-Band Antenna | R67: 3 | S67: 5 | T67: 3 | U67: 1 | V67: 914 | W67: 0 | X67: 2 | Y67: 8J087X51-11
C68: QA09486AA | J68: 700 | K68: X | M68: X | O68: USER | P68: XB-Only | Q68: VRX1000 (700) Crossband/No Inband; For APX (VHF+700) using Unknown or User-Defined Antenna | R68: 3 | S68: 5 | T68: 3 | U68: 2 | V68: 915 | W68: 0 | X68: 2 | Y68: No Drawing
C69: QA09486AA | J69: 700 | L69: X | M69: X | O69: ALL | P69: XB-Only | Q69: VRX1000 (700) Crossband/No Inband; For APX (UHF+700) using One All-Band Antenna | R69: 3 | S69: 6 | T69: 3 | U69: 1 | V69: 931 | W69: 0 | X69: 2 | Y69: 8J087X51-12
C70: QA09486AA | J70: 700 | L70: X | M70: X | O70: USER | P70: XB-Only | Q70: VRX1000 (700) Crossband/No Inband; For APX (UHF+700) using Unknown or User-Defined Antenna | R70: 3 | S70: 6 | T70: 3 | U70: 2 | V70: 932 | W70: 0 | X70: 2 | Y70: No Drawing
C71: QA09486AA | J71: 700 | K71: X | N71: X | O71: ALL | P71: XB-Only | Q71: =$J$6&"("&$J71&")"&" "&VLOOKUP($P71,RPTCodes,2,FALSE) &"; For APX ("&VLOOKUP($S71,BAND_NAMES,2)&") using "&VLOOKUP($O71,ANTcodes,3,FALSE) -> VRX1000 (700) Crossband/No Inband; For APX (VHF+800) using One All-Band Antenna | R71: =VLOOKUP(J71,Freq_Bands,2) -> 3 | S71: =IF(K71="X",1,0)+IF(L71="X",2,0)+IF(M71="X",4,0)+IF(N71="X",8,0) -> 9 | T71: =VLOOKUP(P71,RPTCodes,4,FALSE) -> 3 | U71: =VLOOKUP(O71,ANTcodes,2,FALSE) -> 1 | V71: =$U71*MULT_ANT+$T71*MULT_RPT+$S71*MULT_MRF+$R71*MULT_VRF -> 982 | W71: =IF($A71="X",1,0)+IF($B71="X",2,0)+IF($C71="X",3,0)+IF($D71="X",4,0)+IF($E71="X",5,0)+IF($F71="X",6,0)+IF($H71="X",10,0)+IF($G71="X",6,0) -> 0 | X71: =COUNTA(K71:L71)+IF(RIGHT(M71&N71,1)="X",1,0) -> 2 | Y71: 8J087X51-11
C72: QA09486AA | J72: 700 | K72: X | N72: X | O72: USER | P72: XB-Only | Q72: VRX1000 (700) Crossband/No Inband; For APX (VHF+800) using Unknown or User-Defined Antenna | R72: 3 | S72: 9 | T72: 3 | U72: 2 | V72: 983 | W72: 0 | X72: 2 | Y72: No Drawing
C73: QA09486AA | J73: 700 | L73: X | N73: X | O73: ALL | P73: XB-Only | Q73: VRX1000 (700) Crossband/No Inband; For APX (UHF+800) using One All-Band Antenna | R73: 3 | S73: 10 | T73: 3 | U73: 1 | V73: 999 | W73: 0 | X73: 2 | Y73: 8J087X51-12
C74: QA09486AA | J74: 700 | L74: X | N74: X | O74: USER | P74: XB-Only | Q74: VRX1000 (700) Crossband/No Inband; For APX (UHF+800) using Unknown or User-Defined Antenna | R74: 3 | S74: 10 | T74: 3 | U74: 2 | V74: 1000 | W74: 0 | X74: 2 | Y74: No Drawing
C75: QA09486AA | J75: 700 | K75: X | M75: X | N75: X | O75: ALL | P75: XB-Only | Q75: VRX1000 (700) Crossband/No Inband; For APX (VHF+700+800) using One All-Band Antenna | R75: 3 | S75: 13 | T75: 3 | U75: 1 | V75: 1050 | W75: 0 | X75: 2 | Y75: 8J087X51-11
C76: QA09486AA | J76: 700 | K76: X | M76: X | N76: X | O76: USER | P76: XB-Only | Q76: VRX1000 (700) Crossband/No Inband; For APX (VHF+700+800) using Unknown or User-Defined Antenna | R76: 3 | S76: 13 | T76: 3 | U76: 2 | V76: 1051 | W76: 0 | X76: 2 | Y76: No Drawing
C77: QA09486AA | J77: 700 | L77: X | M77: X | N77: X | O77: ALL | P77: XB-Only | Q77: VRX1000 (700) Crossband/No Inband; For APX (UHF+700+800) using One All-Band Antenna | R77: 3 | S77: 14 | T77: 3 | U77: 1 | V77: 1067 | W77: 0 | X77: 2 | Y77: 8J087X51-12
C78: QA09486AA | J78: 700 | L78: X | M78: X | N78: X | O78: USER | P78: XB-Only | Q78: VRX1000 (700) Crossband/No Inband; For APX (UHF+700+800) using Unknown or User-Defined Antenna | R78: 3 | S78: 14 | T78: 3 | U78: 2 | V78: 1068 | W78: 0 | X78: 2 | Y78: No Drawing
C79: QA09486AA | J79: 800 | K79: X | M79: X | O79: ALL | P79: XB-Only | Q79: VRX1000 (800) Crossband/No Inband; For APX (VHF+700) using One All-Band Antenna | R79: 4 | S79: 5 | T79: 3 | U79: 1 | V79: 1187 | W79: 0 | X79: 2 | Y79: 8J087X51-11
C80: QA09486AA | J80: 800 | K80: X | M80: X | O80: USER | P80: XB-Only | Q80: VRX1000 (800) Crossband/No Inband; For APX (VHF+700) using Unknown or User-Defined Antenna | R80: 4 | S80: 5 | T80: 3 | U80: 2 | V80: 1188 | W80: 0 | X80: 2 | Y80: No Drawing
C81: QA09486AA | J81: 800 | L81: X | M81: X | O81: ALL | P81: XB-Only | Q81: VRX1000 (800) Crossband/No Inband; For APX (UHF+700) using One All-Band Antenna | R81: 4 | S81: 6 | T81: 3 | U81: 1 | V81: 1204 | W81: 0 | X81: 2 | Y81: 8J087X51-12
C82: QA09486AA | J82: 800 | L82: X | M82: X | O82: USER | P82: XB-Only | Q82: VRX1000 (800) Crossband/No Inband; For APX (UHF+700) using Unknown or User-Defined Antenna | R82: 4 | S82: 6 | T82: 3 | U82: 2 | V82: 1205 | W82: 0 | X82: 2 | Y82: No Drawing
C83: QA09486AA | J83: 800 | K83: X | N83: X | O83: ALL | P83: XB-Only | Q83: VRX1000 (800) Crossband/No Inband; For APX (VHF+800) using One All-Band Antenna | R83: 4 | S83: 9 | T83: 3 | U83: 1 | V83: 1255 | W83: 0 | X83: 2 | Y83: 8J087X51-11
C84: QA09486AA | J84: 800 | K84: X | N84: X | O84: USER | P84: XB-Only | Q84: VRX1000 (800) Crossband/No Inband; For APX (VHF+800) using Unknown or User-Defined Antenna | R84: 4 | S84: 9 | T84: 3 | U84: 2 | V84: 1256 | W84: 0 | X84: 2 | Y84: No Drawing
C85: QA09486AA | J85: 800 | L85: X | N85: X | O85: ALL | P85: XB-Only | Q85: VRX1000 (800) Crossband/No Inband; For APX (UHF+800) using One All-Band Antenna | R85: 4 | S85: 10 | T85: 3 | U85: 1 | V85: 1272 | W85: 0 | X85: 2 | Y85: 8J087X51-12
C86: QA09486AA | J86: 800 | L86: X | N86: X | O86: USER | P86: XB-Only | Q86: VRX1000 (800) Crossband/No Inband; For APX (UHF+800) using Unknown or User-Defined Antenna | R86: 4 | S86: 10 | T86: 3 | U86: 2 | V86: 1273 | W86: 0 | X86: 2 | Y86: No Drawing
C87: QA09486AA | J87: 800 | K87: X | M87: X | N87: X | O87: ALL | P87: XB-Only | Q87: VRX1000 (800) Crossband/No Inband; For APX (VHF+700+800) using One All-Band Antenna | R87: 4 | S87: 13 | T87: 3 | U87: 1 | V87: 1323 | W87: 0 | X87: 2 | Y87: 8J087X51-11
C88: QA09486AA | J88: 800 | K88: X | M88: X | N88: X | O88: USER | P88: XB-Only | Q88: VRX1000 (800) Crossband/No Inband; For APX (VHF+700+800) using Unknown or User-Defined Antenna | R88: 4 | S88: 13 | T88: 3 | U88: 2 | V88: 1324 | W88: 0 | X88: 2 | Y88: No Drawing
C89: QA09486AA | J89: 800 | L89: X | M89: X | N89: X | O89: ALL | P89: XB-Only | Q89: VRX1000 (800) Crossband/No Inband; For APX (UHF+700+800) using One All-Band Antenna | R89: 4 | S89: 14 | T89: 3 | U89: 1 | V89: 1340 | W89: 0 | X89: 2 | Y89: 8J087X51-12
C90: QA09486AA | J90: 800 | L90: X | M90: X | N90: X | O90: USER | P90: XB-Only | Q90: VRX1000 (800) Crossband/No Inband; For APX (UHF+700+800) using Unknown or User-Defined Antenna | R90: 4 | S90: 14 | T90: 3 | U90: 2 | V90: 1341 | W90: 0 | X90: 2 | Y90: No Drawing
D91: QA09447AA | J91: VHF | L91: X | M91: X | O91: ALL | P91: XB-Forced | Q91: VRX1000 (VHF) Crossband; For APX (UHF+700) using One All-Band Antenna | R91: 1 | S91: 6 | T91: 4 | U91: 1 | V91: 388 | W91: 0 | X91: 2 | Y91: 8J087X51-13
D92: QA09447AA | J92: VHF | L92: X | M92: X | O92: USER | P92: XB-Forced | Q92: VRX1000 (VHF) Crossband; For APX (UHF+700) using Unknown or User-Defined Antenna | R92: 1 | S92: 6 | T92: 4 | U92: 2 | V92: 389 | W92: 0 | X92: 2 | Y92: No Drawing
D93: QA09447AA | J93: VHF | L93: X | N93: X | O93: ALL | P93: XB-Forced | Q93: VRX1000 (VHF) Crossband; For APX (UHF+800) using One All-Band Antenna | R93: 1 | S93: 10 | T93: 4 | U93: 1 | V93: 456 | W93: 0 | X93: 2 | Y93: 8J087X51-13
D94: QA09447AA | J94: VHF | L94: X | N94: X | O94: USER | P94: XB-Forced | Q94: VRX1000 (VHF) Crossband; For APX (UHF+800) using Unknown or User-Defined Antenna | R94: 1 | S94: 10 | T94: 4 | U94: 2 | V94: 457 | W94: 0 | X94: 2 | Y94: No Drawing
D95: QA09447AA | J95: VHF | L95: X | M95: X | N95: X | O95: ALL | P95: XB-Forced | Q95: VRX1000 (VHF) Crossband; For APX (UHF+700+800) using One All-Band Antenna | R95: 1 | S95: 14 | T95: 4 | U95: 1 | V95: 524 | W95: 0 | X95: 2 | Y95: 8J087X51-13
D96: QA09447AA | J96: VHF | L96: X | M96: X | N96: X | O96: USER | P96: XB-Forced | Q96: VRX1000 (VHF) Crossband; For APX (UHF+700+800) using Unknown or User-Defined Antenna | R96: 1 | S96: 14 | T96: 4 | U96: 2 | V96: 525 | W96: 0 | X96: 2 | Y96: No Drawing
D97: QA09447AA | J97: UHF | K97: X | M97: X | O97: ALL | P97: XB-Forced | Q97: VRX1000 (UHF) Crossband; For APX (VHF+700) using One All-Band Antenna | R97: 2 | S97: 5 | T97: 4 | U97: 1 | V97: 644 | W97: 0 | X97: 2 | Y97: 8J087X51-14
D98: QA09447AA | J98: UHF | K98: X | M98: X | O98: USER | P98: XB-Forced | Q98: VRX1000 (UHF) Crossband; For APX (VHF+700) using Unknown or User-Defined Antenna | R98: 2 | S98: 5 | T98: 4 | U98: 2 | V98: 645 | W98: 0 | X98: 2 | Y98: No Drawing
D99: QA09447AA | J99: UHF | K99: X | N99: X | O99: ALL | P99: XB-Forced | Q99: VRX1000 (UHF) Crossband; For APX (VHF+800) using One All-Band Antenna | R99: 2 | S99: 9 | T99: 4 | U99: 1 | V99: 712 | W99: 0 | X99: 2 | Y99: 8J087X51-14
D100: QA09447AA | J100: UHF | K100: X | N100: X | O100: USER | P100: XB-Forced | Q100: VRX1000 (UHF) Crossband; For APX (VHF+800) using Unknown or User-Defined Antenna | R100: 2 | S100: 9 | T100: 4 | U100: 2 | V100: 713 | W100: 0 | X100: 2 | Y100: No Drawing
D101: QA09447AA | J101: UHF | K101: X | M101: X | N101: X | O101: ALL | P101: XB-Forced | Q101: VRX1000 (UHF) Crossband; For APX (VHF+700+800) using One All-Band Antenna | R101: 2 | S101: 13 | T101: 4 | U101: 1 | V101: 780 | W101: 0 | X101: 2 | Y101: 8J087X51-14
D102: QA09447AA | J102: UHF | K102: X | M102: X | N102: X | O102: USER | P102: XB-Forced | Q102: VRX1000 (UHF) Crossband; For APX (VHF+700+800) using Unknown or User-Defined Antenna | R102: 2 | S102: 13 | T102: 4 | U102: 2 | V102: 781 | W102: 0 | X102: 2 | Y102: No Drawing
D103: QA09447AA | J103: 700 | K103: X | L103: X | O103: ALL | P103: XB-Forced | Q103: VRX1000 (700) Crossband; For APX (VHF+UHF) using One All-Band Antenna | R103: 3 | S103: 3 | T103: 4 | U103: 1 | V103: 883 | W103: 0 | X103: 2 | Y103: 8J087X51-15
D104: QA09447AA | J104: 700 | K104: X | L104: X | O104: USER | P104: XB-Forced | Q104: VRX1000 (700) Crossband; For APX (VHF+UHF) using Unknown or User-Defined Antenna | R104: 3 | S104: 3 | T104: 4 | U104: 2 | V104: 884 | W104: 0 | X104: 2 | Y104: No Drawing
D105: QA09447AA | J105: 800 | K105: X | L105: X | O105: ALL | P105: XB-Forced | Q105: VRX1000 (800) Crossband; For APX (VHF+UHF) using One All-Band Antenna | R105: 4 | S105: 3 | T105: 4 | U105: 1 | V105: 1156 | W105: 0 | X105: 2 | Y105: 8J087X51-15
D106: QA09447AA | J106: 800 | K106: X | L106: X | O106: USER | P106: XB-Forced | Q106: VRX1000 (800) Crossband; For APX (VHF+UHF) using Unknown or User-Defined Antenna | R106: 4 | S106: 3 | T106: 4 | U106: 2 | V106: 1157 | W106: 0 | X106: 2 | Y106: No Drawing
E107: QA09489AA | J107: VHF | K107: X | L107: X | M107: X | O107: ALL | P107: XB-Only | Q107: VRX1000 (VHF) Crossband/No Inband; For APX (VHF+UHF+700) using One All-Band Antenna | R107: 1 | S107: 7 | T107: 3 | U107: 1 | V107: 402 | W107: 0 | X107: 3 | Y107: 8J087X51-40
E108: QA09489AA | J108: VHF | K108: X | L108: X | M108: X | O108: USER | P108: XB-Only | Q108: VRX1000 (VHF) Crossband/No Inband; For APX (VHF+UHF+700) using Unknown or User-Defined Antenna | R108: 1 | S108: 7 | T108: 3 | U108: 2 | V108: 403 | W108: 0 | X108: 3 | Y108: No Drawing
E109: QA09489AA | J109: VHF | K109: X | L109: X | N109: X | O109: ALL | P109: XB-Only | Q109: VRX1000 (VHF) Crossband/No Inband; For APX (VHF+UHF+800) using One All-Band Antenna | R109: 1 | S109: 11 | T109: 3 | U109: 1 | V109: 470 | W109: 0 | X109: 3 | Y109: 8J087X51-40
E110: QA09489AA | J110: VHF | K110: X | L110: X | N110: X | O110: USER | P110: XB-Only | Q110: VRX1000 (VHF) Crossband/No Inband; For APX (VHF+UHF+800) using Unknown or User-Defined Antenna | R110: 1 | S110: 11 | T110: 3 | U110: 2 | V110: 471 | W110: 0 | X110: 3 | Y110: No Drawing
E111: QA09489AA | J111: VHF | K111: X | L111: X | M111: X | N111: X | O111: ALL | P111: XB-Only | Q111: VRX1000 (VHF) Crossband/No Inband; For APX (VHF+UHF+700+800) using One All-Band Antenna | R111: 1 | S111: 15 | T111: 3 | U111: 1 | V111: 538 | W111: 0 | X111: 3 | Y111: 8J087X51-40
E112: QA09489AA | J112: VHF | K112: X | L112: X | M112: X | N112: X | O112: USER | P112: XB-Only | Q112: VRX1000 (VHF) Crossband/No Inband; For APX (VHF+UHF+700+800) using Unknown or User-Defined Antenna | R112: 1 | S112: 15 | T112: 3 | U112: 2 | V112: 539 | W112: 0 | X112: 3 | Y112: No Drawing
E113: QA09490AA | J113: UHF | K113: X | L113: X | M113: X | O113: ALL | P113: XB-Only | Q113: VRX1000 (UHF) Crossband/No Inband; For APX (VHF+UHF+700) using One All-Band Antenna | R113: 2 | S113: 7 | T113: 3 | U113: 1 | V113: 675 | W113: 0 | X113: 3 | Y113: 8J087X51-41
E114: QA09490AA | J114: UHF | K114: X | L114: X | M114: X | O114: USER | P114: XB-Only | Q114: VRX1000 (UHF) Crossband/No Inband; For APX (VHF+UHF+700) using Unknown or User-Defined Antenna | R114: 2 | S114: 7 | T114: 3 | U114: 2 | V114: 676 | W114: 0 | X114: 3 | Y114: No Drawing
E115: QA09490AA | J115: UHF | K115: X | L115: X | N115: X | O115: ALL | P115: XB-Only | Q115: VRX1000 (UHF) Crossband/No Inband; For APX (VHF+UHF+800) using One All-Band Antenna | R115: 2 | S115: 11 | T115: 3 | U115: 1 | V115: 743 | W115: 0 | X115: 3 | Y115: 8J087X51-41
E116: QA09490AA | J116: UHF | K116: X | L116: X | N116: X | O116: USER | P116: XB-Only | Q116: VRX1000 (UHF) Crossband/No Inband; For APX (VHF+UHF+800) using Unknown or User-Defined Antenna | R116: 2 | S116: 11 | T116: 3 | U116: 2 | V116: 744 | W116: 0 | X116: 3 | Y116: No Drawing
E117: QA09490AA | J117: UHF | K117: X | L117: X | M117: X | N117: X | O117: ALL | P117: XB-Only | Q117: VRX1000 (UHF) Crossband/No Inband; For APX (VHF+UHF+700+800) using One All-Band Antenna | R117: 2 | S117: 15 | T117: 3 | U117: 1 | V117: 811 | W117: 0 | X117: 3 | Y117: 8J087X51-41
E118: QA09490AA | J118: UHF | K118: X | L118: X | M118: X | N118: X | O118: USER | P118: XB-Only | Q118: VRX1000 (UHF) Crossband/No Inband; For APX (VHF+UHF+700+800) using Unknown or User-Defined Antenna | R118: 2 | S118: 15 | T118: 3 | U118: 2 | V118: 812 | W118: 0 | X118: 3 | Y118: No Drawing
E119: QA09491AA | J119: 700 | K119: X | L119: X | M119: X | O119: ALL | P119: XB-Only | Q119: VRX1000 (700) Crossband/No Inband; For APX (VHF+UHF+700) using One All-Band Antenna | R119: 3 | S119: 7 | T119: 3 | U119: 1 | V119: 948 | W119: 0 | X119: 3 | Y119: 8J087X51-42
E120: QA09491AA | J120: 700 | K120: X | L120: X | M120: X | O120: USER | P120: XB-Only | Q120: VRX1000 (700) Crossband/No Inband; For APX (VHF+UHF+700) using Unknown or User-Defined Antenna | R120: 3 | S120: 7 | T120: 3 | U120: 2 | V120: 949 | W120: 0 | X120: 3 | Y120: No Drawing
E121: QA09491AA | J121: 700 | K121: X | L121: X | N121: X | O121: ALL | P121: XB-Only | Q121: VRX1000 (700) Crossband/No Inband; For APX (VHF+UHF+800) using One All-Band Antenna | R121: 3 | S121: 11 | T121: 3 | U121: 1 | V121: 1016 | W121: 0 | X121: 3 | Y121: 8J087X51-42
E122: QA09491AA | J122: 700 | K122: X | L122: X | N122: X | O122: USER | P122: XB-Only | Q122: VRX1000 (700) Crossband/No Inband; For APX (VHF+UHF+800) using Unknown or User-Defined Antenna | R122: 3 | S122: 11 | T122: 3 | U122: 2 | V122: 1017 | W122: 0 | X122: 3 | Y122: No Drawing
E123: QA09491AA | J123: 700 | K123: X | L123: X | M123: X | N123: X | O123: ALL | P123: XB-Only | Q123: VRX1000 (700) Crossband/No Inband; For APX (VHF+UHF+700+800) using One All-Band Antenna | R123: 3 | S123: 15 | T123: 3 | U123: 1 | V123: 1084 | W123: 0 | X123: 3 | Y123: 8J087X51-42
E124: QA09491AA | J124: 700 | K124: X | L124: X | M124: X | N124: X | O124: USER | P124: XB-Only | Q124: VRX1000 (700) Crossband/No Inband; For APX (VHF+UHF+700+800) using Unknown or User-Defined Antenna | R124: 3 | S124: 15 | T124: 3 | U124: 2 | V124: 1085 | W124: 0 | X124: 3 | Y124: No Drawing
E125: QA09491AA | J125: 800 | K125: X | L125: X | M125: X | O125: ALL | P125: XB-Only | Q125: VRX1000 (800) Crossband/No Inband; For APX (VHF+UHF+700) using One All-Band Antenna | R125: 4 | S125: 7 | T125: 3 | U125: 1 | V125: 1221 | W125: 0 | X125: 3 | Y125: 8J087X51-42
E126: QA09491AA | J126: 800 | K126: X | L126: X | M126: X | O126: USER | P126: XB-Only | Q126: VRX1000 (800) Crossband/No Inband; For APX (VHF+UHF+700) using Unknown or User-Defined Antenna | R126: 4 | S126: 7 | T126: 3 | U126: 2 | V126: 1222 | W126: 0 | X126: 3 | Y126: No Drawing
E127: QA09491AA | J127: 800 | K127: X | L127: X | N127: X | O127: ALL | P127: XB-Only | Q127: VRX1000 (800) Crossband/No Inband; For APX (VHF+UHF+800) using One All-Band Antenna | R127: 4 | S127: 11 | T127: 3 | U127: 1 | V127: 1289 | W127: 0 | X127: 3 | Y127: 8J087X51-42
E128: QA09491AA | J128: 800 | K128: X | L128: X | N128: X | O128: USER | P128: XB-Only | Q128: VRX1000 (800) Crossband/No Inband; For APX (VHF+UHF+800) using Unknown or User-Defined Antenna | R128: 4 | S128: 11 | T128: 3 | U128: 2 | V128: 1290 | W128: 0 | X128: 3 | Y128: No Drawing
E129: QA09491AA | J129: 800 | K129: X | L129: X | M129: X | N129: X | O129: ALL | P129: XB-Only | Q129: VRX1000 (800) Crossband/No Inband; For APX (VHF+UHF+700+800) using One All-Band Antenna | R129: 4 | S129: 15 | T129: 3 | U129: 1 | V129: 1357 | W129: 0 | X129: 3 | Y129: 8J087X51-42
E130: QA09491AA | J130: 800 | K130: X | L130: X | M130: X | N130: X | O130: USER | P130: XB-Only | Q130: VRX1000 (800) Crossband/No Inband; For APX (VHF+UHF+700+800) using Unknown or User-Defined Antenna | R130: 4 | S130: 15 | T130: 3 | U130: 2 | V130: 1358 | W130: 0 | X130: 3 | Y130: No Drawing
B131: X | H131: Kit#TBD1 | J131: VHF | K131: X | L131: X | O131: SINGLE | P131: XB-Only | Q131: VRX1000 (VHF) Crossband/No Inband; For APX (VHF+UHF) using Single-Band Antenna(s) | R131: 1 | S131: 3 | T131: 3 | U131: 0 | V131: 333 | W131: 2 | X131: 2 | Y131: 8J087X51-49
B132: X | H132: Kit#TBD1 | J132: VHF | K132: X | M132: X | O132: SINGLE | P132: XB-Only | Q132: VRX1000 (VHF) Crossband/No Inband; For APX (VHF+700) using Single-Band Antenna(s) | R132: 1 | S132: 5 | T132: 3 | U132: 0 | V132: 367 | W132: 2 | X132: 2 | Y132: 8J087X51-50
B133: X | H133: Kit#TBD1 | J133: VHF | K133: X | L133: X | M133: X | O133: SINGLE | P133: XB-Only | Q133: VRX1000 (VHF) Crossband/No Inband; For APX (VHF+UHF+700) using Single-Band Antenna(s) | R133: 1 | S133: 7 | T133: 3 | U133: 0 | V133: 401 | W133: 2 | X133: 3 | Y133: 8J087X51-58
B134: X | H134: Kit#TBD1 | J134: VHF | K134: X | N134: X | O134: SINGLE | P134: XB-Only | Q134: VRX1000 (VHF) Crossband/No Inband; For APX (VHF+800) using Single-Band Antenna(s) | R134: 1 | S134: 9 | T134: 3 | U134: 0 | V134: 435 | W134: 2 | X134: 2 | Y134: 8J087X51-50
B135: X | H135: Kit#TBD1 | J135: VHF | K135: X | L135: X | N135: X | O135: SINGLE | P135: XB-Only | Q135: =$J$6&"("&$J135&")"&" "&VLOOKUP($P135,RPTCodes,2,FALSE) &"; For APX ("&VLOOKUP($S135,BAND_NAMES,2)&") using "&VLOOKUP($O135,ANTcodes,3,FALSE) -> VRX1000 (VHF) Crossband/No Inband; For APX (VHF+UHF+800) using Single-Band Antenna(s) | R135: =VLOOKUP(J135,Freq_Bands,2) -> 1 | S135: =IF(K135="X",1,0)+IF(L135="X",2,0)+IF(M135="X",4,0)+IF(N135="X",8,0) -> 11 | T135: =VLOOKUP(P135,RPTCodes,4,FALSE) -> 3 | U135: =VLOOKUP(O135,ANTcodes,2,FALSE) -> 0 | V135: =$U135*MULT_ANT+$T135*MULT_RPT+$S135*MULT_MRF+$R135*MULT_VRF -> 469 | W135: =IF($A135="X",1,0)+IF($B135="X",2,0)+IF($C135="X",3,0)+IF($D135="X",4,0)+IF($E135="X",5,0)+IF($F135="X",6,0)+IF($H135="X",10,0)+IF($G135="X",6,0) -> 2 | X135: =COUNTA(K135:L135)+IF(RIGHT(M135&N135,1)="X",1,0) -> 3 | Y135: 8J087X51-58
B136: X | H136: Kit#TBD1 | J136: VHF | K136: X | M136: X | N136: X | O136: SINGLE | P136: XB-Only | Q136: VRX1000 (VHF) Crossband/No Inband; For APX (VHF+700+800) using Single-Band Antenna(s) | R136: 1 | S136: 13 | T136: 3 | U136: 0 | V136: 503 | W136: 2 | X136: 2 | Y136: 8J087X51-50
B137: X | H137: Kit#TBD1 | J137: VHF | K137: X | L137: X | M137: X | N137: X | O137: SINGLE | P137: XB-Only | Q137: VRX1000 (VHF) Crossband/No Inband; For APX (VHF+UHF+700+800) using Single-Band Antenna(s) | R137: 1 | S137: 15 | T137: 3 | U137: 0 | V137: 537 | W137: 2 | X137: 3 | Y137: 8J087X51-58
B138: X | H138: Kit#TBD1 | J138: UHF | K138: X | L138: X | O138: SINGLE | P138: XB-Only | Q138: VRX1000 (UHF) Crossband/No Inband; For APX (VHF+UHF) using Single-Band Antenna(s) | R138: 2 | S138: 3 | T138: 3 | U138: 0 | V138: 606 | W138: 2 | X138: 2 | Y138: 8J087X51-51
B139: X | H139: Kit#TBD1 | J139: UHF | L139: X | M139: X | O139: SINGLE | P139: XB-Only | Q139: VRX1000 (UHF) Crossband/No Inband; For APX (UHF+700) using Single-Band Antenna(s) | R139: 2 | S139: 6 | T139: 3 | U139: 0 | V139: 657 | W139: 2 | X139: 2 | Y139: 8J087X51-52
B140: X | H140: Kit#TBD1 | J140: UHF | K140: X | L140: X | M140: X | O140: SINGLE | P140: XB-Only | Q140: VRX1000 (UHF) Crossband/No Inband; For APX (VHF+UHF+700) using Single-Band Antenna(s) | R140: 2 | S140: 7 | T140: 3 | U140: 0 | V140: 674 | W140: 2 | X140: 3 | Y140: 8J087X51-59
B141: X | H141: Kit#TBD1 | J141: UHF | L141: X | N141: X | O141: SINGLE | P141: XB-Only | Q141: VRX1000 (UHF) Crossband/No Inband; For APX (UHF+800) using Single-Band Antenna(s) | R141: 2 | S141: 10 | T141: 3 | U141: 0 | V141: 725 | W141: 2 | X141: 2 | Y141: 8J087X51-52
B142: X | H142: Kit#TBD1 | J142: UHF | K142: X | L142: X | N142: X | O142: SINGLE | P142: XB-Only | Q142: VRX1000 (UHF) Crossband/No Inband; For APX (VHF+UHF+800) using Single-Band Antenna(s) | R142: 2 | S142: 11 | T142: 3 | U142: 0 | V142: 742 | W142: 2 | X142: 3 | Y142: 8J087X51-59
B143: X | H143: Kit#TBD1 | J143: UHF | L143: X | M143: X | N143: X | O143: SINGLE | P143: XB-Only | Q143: VRX1000 (UHF) Crossband/No Inband; For APX (UHF+700+800) using Single-Band Antenna(s) | R143: 2 | S143: 14 | T143: 3 | U143: 0 | V143: 793 | W143: 2 | X143: 2 | Y143: 8J087X51-52
B144: X | H144: Kit#TBD1 | J144: UHF | K144: X | L144: X | M144: X | N144: X | O144: SINGLE | P144: XB-Only | Q144: VRX1000 (UHF) Crossband/No Inband; For APX (VHF+UHF+700+800) using Single-Band Antenna(s) | R144: 2 | S144: 15 | T144: 3 | U144: 0 | V144: 810 | W144: 2 | X144: 3 | Y144: 8J087X51-59
B145: X | H145: Kit#TBD1 | J145: 700 | K145: X | M145: X | O145: SINGLE | P145: XB-Only | Q145: VRX1000 (700) Crossband/No Inband; For APX (VHF+700) using Single-Band Antenna(s) | R145: 3 | S145: 5 | T145: 3 | U145: 0 | V145: 913 | W145: 2 | X145: 2 | Y145: 8J087X51-53
B146: X | H146: Kit#TBD1 | J146: 700 | L146: X | M146: X | O146: SINGLE | P146: XB-Only | Q146: VRX1000 (700) Crossband/No Inband; For APX (UHF+700) using Single-Band Antenna(s) | R146: 3 | S146: 6 | T146: 3 | U146: 0 | V146: 930 | W146: 2 | X146: 2 | Y146: 8J087X51-54
B147: X | H147: Kit#TBD1 | J147: 700 | K147: X | L147: X | M147: X | O147: SINGLE | P147: XB-Only | Q147: VRX1000 (700) Crossband/No Inband; For APX (VHF+UHF+700) using Single-Band Antenna(s) | R147: 3 | S147: 7 | T147: 3 | U147: 0 | V147: 947 | W147: 2 | X147: 3 | Y147: 8J087X51-60
B148: X | H148: Kit#TBD1 | J148: 700 | K148: X | N148: X | O148: SINGLE | P148: XB-Only | Q148: VRX1000 (700) Crossband/No Inband; For APX (VHF+800) using Single-Band Antenna(s) | R148: 3 | S148: 9 | T148: 3 | U148: 0 | V148: 981 | W148: 2 | X148: 2 | Y148: 8J087X51-53
B149: X | H149: Kit#TBD1 | J149: 700 | L149: X | N149: X | O149: SINGLE | P149: XB-Only | Q149: VRX1000 (700) Crossband/No Inband; For APX (UHF+800) using Single-Band Antenna(s) | R149: 3 | S149: 10 | T149: 3 | U149: 0 | V149: 998 | W149: 2 | X149: 2 | Y149: 8J087X51-54
B150: X | H150: Kit#TBD1 | J150: 700 | K150: X | L150: X | N150: X | O150: SINGLE | P150: XB-Only | Q150: VRX1000 (700) Crossband/No Inband; For APX (VHF+UHF+800) using Single-Band Antenna(s) | R150: 3 | S150: 11 | T150: 3 | U150: 0 | V150: 1015 | W150: 2 | X150: 3 | Y150: 8J087X51-60
B151: X | H151: Kit#TBD1 | J151: 700 | K151: X | M151: X | N151: X | O151: SINGLE | P151: XB-Only | Q151: VRX1000 (700) Crossband/No Inband; For APX (VHF+700+800) using Single-Band Antenna(s) | R151: 3 | S151: 13 | T151: 3 | U151: 0 | V151: 1049 | W151: 2 | X151: 2 | Y151: 8J087X51-53
B152: X | H152: Kit#TBD1 | J152: 700 | L152: X | M152: X | N152: X | O152: SINGLE | P152: XB-Only | Q152: VRX1000 (700) Crossband/No Inband; For APX (UHF+700+800) using Single-Band Antenna(s) | R152: 3 | S152: 14 | T152: 3 | U152: 0 | V152: 1066 | W152: 2 | X152: 2 | Y152: 8J087X51-54
B153: X | H153: Kit#TBD1 | J153: 700 | K153: X | L153: X | M153: X | N153: X | O153: SINGLE | P153: XB-Only | Q153: VRX1000 (700) Crossband/No Inband; For APX (VHF+UHF+700+800) using Single-Band Antenna(s) | R153: 3 | S153: 15 | T153: 3 | U153: 0 | V153: 1083 | W153: 2 | X153: 3 | Y153: 8J087X51-60
B154: X | H154: Kit#TBD1 | J154: 800 | K154: X | M154: X | O154: SINGLE | P154: XB-Only | Q154: VRX1000 (800) Crossband/No Inband; For APX (VHF+700) using Single-Band Antenna(s) | R154: 4 | S154: 5 | T154: 3 | U154: 0 | V154: 1186 | W154: 2 | X154: 2 | Y154: 8J087X51-53
B155: X | H155: Kit#TBD1 | J155: 800 | L155: X | M155: X | O155: SINGLE | P155: XB-Only | Q155: VRX1000 (800) Crossband/No Inband; For APX (UHF+700) using Single-Band Antenna(s) | R155: 4 | S155: 6 | T155: 3 | U155: 0 | V155: 1203 | W155: 2 | X155: 2 | Y155: 8J087X51-54
B156: X | H156: Kit#TBD1 | J156: 800 | K156: X | L156: X | M156: X | O156: SINGLE | P156: XB-Only | Q156: VRX1000 (800) Crossband/No Inband; For APX (VHF+UHF+700) using Single-Band Antenna(s) | R156: 4 | S156: 7 | T156: 3 | U156: 0 | V156: 1220 | W156: 2 | X156: 3 | Y156: 8J087X51-60
B157: X | H157: Kit#TBD1 | J157: 800 | K157: X | N157: X | O157: SINGLE | P157: XB-Only | Q157: VRX1000 (800) Crossband/No Inband; For APX (VHF+800) using Single-Band Antenna(s) | R157: 4 | S157: 9 | T157: 3 | U157: 0 | V157: 1254 | W157: 2 | X157: 2 | Y157: 8J087X51-53
B158: X | H158: Kit#TBD1 | J158: 800 | L158: X | N158: X | O158: SINGLE | P158: XB-Only | Q158: VRX1000 (800) Crossband/No Inband; For APX (UHF+800) using Single-Band Antenna(s) | R158: 4 | S158: 10 | T158: 3 | U158: 0 | V158: 1271 | W158: 2 | X158: 2 | Y158: 8J087X51-54
B159: X | H159: Kit#TBD1 | J159: 800 | K159: X | L159: X | N159: X | O159: SINGLE | P159: XB-Only | Q159: VRX1000 (800) Crossband/No Inband; For APX (VHF+UHF+800) using Single-Band Antenna(s) | R159: 4 | S159: 11 | T159: 3 | U159: 0 | V159: 1288 | W159: 2 | X159: 3 | Y159: 8J087X51-60
B160: X | H160: Kit#TBD1 | J160: 800 | K160: X | M160: X | N160: X | O160: SINGLE | P160: XB-Only | Q160: VRX1000 (800) Crossband/No Inband; For APX (VHF+700+800) using Single-Band Antenna(s) | R160: 4 | S160: 13 | T160: 3 | U160: 0 | V160: 1322 | W160: 2 | X160: 2 | Y160: 8J087X51-53
B161: X | H161: Kit#TBD1 | J161: 800 | L161: X | M161: X | N161: X | O161: SINGLE | P161: XB-Only | Q161: VRX1000 (800) Crossband/No Inband; For APX (UHF+700+800) using Single-Band Antenna(s) | R161: 4 | S161: 14 | T161: 3 | U161: 0 | V161: 1339 | W161: 2 | X161: 2 | Y161: 8J087X51-54
B162: X | H162: Kit#TBD1 | J162: 800 | K162: X | L162: X | M162: X | N162: X | O162: SINGLE | P162: XB-Only | Q162: VRX1000 (800) Crossband/No Inband; For APX (VHF+UHF+700+800) using Single-Band Antenna(s) | R162: 4 | S162: 15 | T162: 3 | U162: 0 | V162: 1356 | W162: 2 | X162: 3 | Y162: 8J087X51-60
A163: X | F163: X | G163: X | J163: VHF | K163: X | O163: SINGLE | P163: IB-Forced | Q163: VRX1000 (VHF) Inband; For APX (VHF) using Single-Band Antenna(s) | R163: 1 | S163: 1 | T163: 2 | U163: 0 | V163: 296 | W163: 13 | X163: 1 | Y163: No Drawing
A164: X | F164: X | G164: X | J164: VHF | K164: X | O164: ALL | P164: IB-Forced | Q164: VRX1000 (VHF) Inband; For APX (VHF) using One All-Band Antenna | R164: 1 | S164: 1 | T164: 2 | U164: 1 | V164: 297 | W164: 13 | X164: 1 | Y164: No Drawing
A165: X | F165: X | G165: X | J165: VHF | K165: X | O165: USER | P165: IB-Forced | Q165: VRX1000 (VHF) Inband; For APX (VHF) using Unknown or User-Defined Antenna | R165: 1 | S165: 1 | T165: 2 | U165: 2 | V165: 298 | W165: 13 | X165: 1 | Y165: No Drawing
A166: X | F166: X | G166: X | J166: UHF | L166: X | O166: SINGLE | P166: IB-Forced | Q166: VRX1000 (UHF) Inband; For APX (UHF) using Single-Band Antenna(s) | R166: 2 | S166: 2 | T166: 2 | U166: 0 | V166: 586 | W166: 13 | X166: 1 | Y166: No Drawing
A167: X | F167: X | G167: X | J167: UHF | L167: X | O167: ALL | P167: IB-Forced | Q167: VRX1000 (UHF) Inband; For APX (UHF) using One All-Band Antenna | R167: 2 | S167: 2 | T167: 2 | U167: 1 | V167: 587 | W167: 13 | X167: 1 | Y167: No Drawing
A168: X | F168: X | G168: X | J168: UHF | L168: X | O168: USER | P168: IB-Forced | Q168: VRX1000 (UHF) Inband; For APX (UHF) using Unknown or User-Defined Antenna | R168: 2 | S168: 2 | T168: 2 | U168: 2 | V168: 588 | W168: 13 | X168: 1 | Y168: No Drawing
A169: X | F169: X | G169: X | J169: 700 | M169: X | O169: SINGLE | P169: IB-Forced | Q169: VRX1000 (700) Inband; For APX (700) using Single-Band Antenna(s) | R169: 3 | S169: 4 | T169: 2 | U169: 0 | V169: 893 | W169: 13 | X169: 1 | Y169: No Drawing
A170: X | F170: X | G170: X | J170: 700 | M170: X | O170: ALL | P170: IB-Forced | Q170: VRX1000 (700) Inband; For APX (700) using One All-Band Antenna | R170: 3 | S170: 4 | T170: 2 | U170: 1 | V170: 894 | W170: 13 | X170: 1 | Y170: No Drawing
A171: X | F171: X | G171: X | J171: 700 | M171: X | O171: USER | P171: IB-Forced | Q171: VRX1000 (700) Inband; For APX (700) using Unknown or User-Defined Antenna | R171: 3 | S171: 4 | T171: 2 | U171: 2 | V171: 895 | W171: 13 | X171: 1 | Y171: No Drawing
A172: X | F172: X | G172: X | J172: 700 | N172: X | O172: SINGLE | P172: IB-Forced | Q172: VRX1000 (700) Inband; For APX (800) using Single-Band Antenna(s) | R172: 3 | S172: 8 | T172: 2 | U172: 0 | V172: 961 | W172: 13 | X172: 1 | Y172: No Drawing
A173: X | F173: X | G173: X | J173: 700 | N173: X | O173: ALL | P173: IB-Forced | Q173: VRX1000 (700) Inband; For APX (800) using One All-Band Antenna | R173: 3 | S173: 8 | T173: 2 | U173: 1 | V173: 962 | W173: 13 | X173: 1 | Y173: No Drawing
A174: X | F174: X | G174: X | J174: 700 | N174: X | O174: USER | P174: IB-Forced | Q174: VRX1000 (700) Inband; For APX (800) using Unknown or User-Defined Antenna | R174: 3 | S174: 8 | T174: 2 | U174: 2 | V174: 963 | W174: 13 | X174: 1 | Y174: No Drawing
A175: X | F175: X | G175: X | J175: 700 | M175: X | N175: X | O175: SINGLE | P175: IB-Forced | Q175: VRX1000 (700) Inband; For APX (700+800) using Single-Band Antenna(s) | R175: 3 | S175: 12 | T175: 2 | U175: 0 | V175: 1029 | W175: 13 | X175: 1 | Y175: No Drawing
A176: X | F176: X | G176: X | J176: 700 | M176: X | N176: X | O176: ALL | P176: IB-Forced | Q176: VRX1000 (700) Inband; For APX (700+800) using One All-Band Antenna | R176: 3 | S176: 12 | T176: 2 | U176: 1 | V176: 1030 | W176: 13 | X176: 1 | Y176: No Drawing
A177: X | F177: X | G177: X | J177: 700 | M177: X | N177: X | O177: USER | P177: IB-Forced | Q177: VRX1000 (700) Inband; For APX (700+800) using Unknown or User-Defined Antenna | R177: 3 | S177: 12 | T177: 2 | U177: 2 | V177: 1031 | W177: 13 | X177: 1 | Y177: No Drawing
A178: X | F178: X | G178: X | J178: 800 | M178: X | O178: SINGLE | P178: IB-Forced | Q178: VRX1000 (800) Inband; For APX (700) using Single-Band Antenna(s) | R178: 4 | S178: 4 | T178: 2 | U178: 0 | V178: 1166 | W178: 13 | X178: 1 | Y178: No Drawing
A179: X | F179: X | G179: X | J179: 800 | M179: X | O179: ALL | P179: IB-Forced | Q179: VRX1000 (800) Inband; For APX (700) using One All-Band Antenna | R179: 4 | S179: 4 | T179: 2 | U179: 1 | V179: 1167 | W179: 13 | X179: 1 | Y179: No Drawing
A180: X | F180: X | G180: X | J180: 800 | M180: X | O180: USER | P180: IB-Forced | Q180: VRX1000 (800) Inband; For APX (700) using Unknown or User-Defined Antenna | R180: 4 | S180: 4 | T180: 2 | U180: 2 | V180: 1168 | W180: 13 | X180: 1 | Y180: No Drawing
A181: X | F181: X | G181: X | J181: 800 | N181: X | O181: SINGLE | P181: IB-Forced | Q181: VRX1000 (800) Inband; For APX (800) using Single-Band Antenna(s) | R181: 4 | S181: 8 | T181: 2 | U181: 0 | V181: 1234 | W181: 13 | X181: 1 | Y181: No Drawing
A182: X | F182: X | G182: X | J182: 800 | N182: X | O182: ALL | P182: IB-Forced | Q182: VRX1000 (800) Inband; For APX (800) using One All-Band Antenna | R182: 4 | S182: 8 | T182: 2 | U182: 1 | V182: 1235 | W182: 13 | X182: 1 | Y182: No Drawing
A183: X | F183: X | G183: X | J183: 800 | N183: X | O183: USER | P183: IB-Forced | Q183: VRX1000 (800) Inband; For APX (800) using Unknown or User-Defined Antenna | R183: 4 | S183: 8 | T183: 2 | U183: 2 | V183: 1236 | W183: 13 | X183: 1 | Y183: No Drawing
A184: X | F184: X | G184: X | J184: 800 | M184: X | N184: X | O184: SINGLE | P184: IB-Forced | Q184: VRX1000 (800) Inband; For APX (700+800) using Single-Band Antenna(s) | R184: 4 | S184: 12 | T184: 2 | U184: 0 | V184: 1302 | W184: 13 | X184: 1 | Y184: No Drawing
A185: X | F185: X | G185: X | J185: 800 | M185: X | N185: X | O185: ALL | P185: IB-Forced | Q185: VRX1000 (800) Inband; For APX (700+800) using One All-Band Antenna | R185: 4 | S185: 12 | T185: 2 | U185: 1 | V185: 1303 | W185: 13 | X185: 1 | Y185: No Drawing
A186: X | F186: X | G186: X | J186: 800 | M186: X | N186: X | O186: USER | P186: IB-Forced | Q186: VRX1000 (800) Inband; For APX (700+800) using Unknown or User-Defined Antenna | R186: 4 | S186: 12 | T186: 2 | U186: 2 | V186: 1304 | W186: 13 | X186: 1 | Y186: No Drawing
A187: X | F187: X | G187: X | J187: VHF | K187: X | L187: X | O187: ALL | P187: IB-Only | Q187: VRX1000 (VHF) Inband/No Crossband; For APX (VHF+UHF) using One All-Band Antenna | R187: 1 | S187: 3 | T187: 1 | U187: 1 | V187: 328 | W187: 13 | X187: 2 | Y187: No Drawing
A188: X | F188: X | G188: X | J188: VHF | K188: X | L188: X | O188: USER | P188: IB-Only | Q188: VRX1000 (VHF) Inband/No Crossband; For APX (VHF+UHF) using Unknown or User-Defined Antenna | R188: 1 | S188: 3 | T188: 1 | U188: 2 | V188: 329 | W188: 13 | X188: 2 | Y188: No Drawing
A189: X | F189: X | G189: X | J189: VHF | K189: X | M189: X | O189: ALL | P189: IB-Only | Q189: VRX1000 (VHF) Inband/No Crossband; For APX (VHF+700) using One All-Band Antenna | R189: 1 | S189: 5 | T189: 1 | U189: 1 | V189: 362 | W189: 13 | X189: 2 | Y189: No Drawing
A190: X | F190: X | G190: X | J190: VHF | K190: X | M190: X | O190: USER | P190: IB-Only | Q190: VRX1000 (VHF) Inband/No Crossband; For APX (VHF+700) using Unknown or User-Defined Antenna | R190: 1 | S190: 5 | T190: 1 | U190: 2 | V190: 363 | W190: 13 | X190: 2 | Y190: No Drawing
A191: X | F191: X | G191: X | J191: VHF | K191: X | N191: X | O191: ALL | P191: IB-Only | Q191: VRX1000 (VHF) Inband/No Crossband; For APX (VHF+800) using One All-Band Antenna | R191: 1 | S191: 9 | T191: 1 | U191: 1 | V191: 430 | W191: 13 | X191: 2 | Y191: No Drawing
A192: X | F192: X | G192: X | J192: VHF | K192: X | N192: X | O192: USER | P192: IB-Only | Q192: VRX1000 (VHF) Inband/No Crossband; For APX (VHF+800) using Unknown or User-Defined Antenna | R192: 1 | S192: 9 | T192: 1 | U192: 2 | V192: 431 | W192: 13 | X192: 2 | Y192: No Drawing
A193: X | F193: X | G193: X | J193: VHF | K193: X | M193: X | N193: X | O193: ALL | P193: IB-Only | Q193: VRX1000 (VHF) Inband/No Crossband; For APX (VHF+700+800) using One All-Band Antenna | R193: 1 | S193: 13 | T193: 1 | U193: 1 | V193: 498 | W193: 13 | X193: 2 | Y193: No Drawing
A194: X | F194: X | G194: X | J194: VHF | K194: X | M194: X | N194: X | O194: USER | P194: IB-Only | Q194: VRX1000 (VHF) Inband/No Crossband; For APX (VHF+700+800) using Unknown or User-Defined Antenna | R194: 1 | S194: 13 | T194: 1 | U194: 2 | V194: 499 | W194: 13 | X194: 2 | Y194: No Drawing
A195: X | F195: X | G195: X | J195: UHF | K195: X | L195: X | O195: ALL | P195: IB-Only | Q195: VRX1000 (UHF) Inband/No Crossband; For APX (VHF+UHF) using One All-Band Antenna | R195: 2 | S195: 3 | T195: 1 | U195: 1 | V195: 601 | W195: 13 | X195: 2 | Y195: No Drawing
A196: X | F196: X | G196: X | J196: UHF | K196: X | L196: X | O196: USER | P196: IB-Only | Q196: VRX1000 (UHF) Inband/No Crossband; For APX (VHF+UHF) using Unknown or User-Defined Antenna | R196: 2 | S196: 3 | T196: 1 | U196: 2 | V196: 602 | W196: 13 | X196: 2 | Y196: No Drawing
A197: X | F197: X | G197: X | J197: UHF | L197: X | M197: X | O197: ALL | P197: IB-Only | Q197: VRX1000 (UHF) Inband/No Crossband; For APX (UHF+700) using One All-Band Antenna | R197: 2 | S197: 6 | T197: 1 | U197: 1 | V197: 652 | W197: 13 | X197: 2 | Y197: No Drawing
A198: X | F198: X | G198: X | J198: UHF | L198: X | M198: X | O198: USER | P198: IB-Only | Q198: VRX1000 (UHF) Inband/No Crossband; For APX (UHF+700) using Unknown or User-Defined Antenna | R198: 2 | S198: 6 | T198: 1 | U198: 2 | V198: 653 | W198: 13 | X198: 2 | Y198: No Drawing
A199: X | F199: X | G199: X | J199: UHF | L199: X | N199: X | O199: ALL | P199: IB-Only | Q199: =$J$6&"("&$J199&")"&" "&VLOOKUP($P199,RPTCodes,2,FALSE) &"; For APX ("&VLOOKUP($S199,BAND_NAMES,2)&") using "&VLOOKUP($O199,ANTcodes,3,FALSE) -> VRX1000 (UHF) Inband/No Crossband; For APX (UHF+800) using One All-Band Antenna | R199: =VLOOKUP(J199,Freq_Bands,2) -> 2 | S199: =IF(K199="X",1,0)+IF(L199="X",2,0)+IF(M199="X",4,0)+IF(N199="X",8,0) -> 10 | T199: =VLOOKUP(P199,RPTCodes,4,FALSE) -> 1 | U199: =VLOOKUP(O199,ANTcodes,2,FALSE) -> 1 | V199: =$U199*MULT_ANT+$T199*MULT_RPT+$S199*MULT_MRF+$R199*MULT_VRF -> 720 | W199: =IF($A199="X",1,0)+IF($B199="X",2,0)+IF($C199="X",3,0)+IF($D199="X",4,0)+IF($E199="X",5,0)+IF($F199="X",6,0)+IF($H199="X",10,0)+IF($G199="X",6,0) -> 13 | X199: =COUNTA(K199:L199)+IF(RIGHT(M199&N199,1)="X",1,0) -> 2 | Y199: No Drawing
A200: X | F200: X | G200: X | J200: UHF | L200: X | N200: X | O200: USER | P200: IB-Only | Q200: VRX1000 (UHF) Inband/No Crossband; For APX (UHF+800) using Unknown or User-Defined Antenna | R200: 2 | S200: 10 | T200: 1 | U200: 2 | V200: 721 | W200: 13 | X200: 2 | Y200: No Drawing
... 178 more rows

Sheet DVR SOLUTIONS- MAP (hidden)
I1: DVR FILTERING CONFIGURATOR
A2: SOLUTIONS REQUIRED
B3: Kit-1 | C3: Kit-2 | D3: Kit-3 | E3: KIT-4 | F3: KIT-0 | G3: Kit-5 | I3: DVR | R3: Lookup/Sorting Codes | W3: FilterCode
A4: 1 | B4: 2 | C4: 3 | D4: 4 | E4: 5 | F4: 6 | H4: 10 | J4: DVR | K4: MSU FREQUENCY BANDS USED | O4: MSU
B5: TRIPLEXER SOLUTION | F5: STANDARD | G5: OPTION | H5: Required | I5: NOTES | J5: BAND | K5: b1 | L5: b2 | M5: b3a | N5: b3b | O5: ANT | P5: REPEAT | R5: 4 | S5: 16 | T5: 4 | U5: 2
A6: NONE | B6: 1x | C6: 1x+Relay | D6: 2x | E6: 2x+Relay | F6: In-BAND | G6: Relay | H6: Relay | I6: NOTES | J6: DVR | K6: VHF | L6: UHF | M6: 700 | N6: 800 | O6: MSU-Ant | P6: TYPE | Q6: DESCRIPTION | R6: VRF | S6: MRF | T6: RPT | U6: ANT | V6: TOTAl | W6: FL | X6: NumBands | Y6: Drawing
A7: X | F7: X | J7: VHF | K7: X | O7: SINGLE | P7: IB-Forced | Q7: =$J$6&"("&$J7&")"&" "&VLOOKUP($P7,RPTCodes,2,FALSE) &"; For APX ("&VLOOKUP($S7,BAND_NAMES,2)&") using "&VLOOKUP($O7,ANTcodes,3,FALSE) -> DVR (VHF) Inband; For APX (VHF) using Single-Band Antenna(s) | R7: =VLOOKUP(J7,Freq_Bands,2) -> 1 | S7: =IF(K7="X",1,0)+IF(L7="X",2,0)+IF(M7="X",4,0)+IF(N7="X",8,0) -> 1 | T7: =VLOOKUP(P7,RPTCodes,4,FALSE) -> 2 | U7: =VLOOKUP(O7,ANTcodes,2,FALSE) -> 0 | V7: =$U7*MULT_ANT+$T7*MULT_RPT+$S7*MULT_MRF+$R7*MULT_VRF -> 296 | W7: =IF($A7="X",1,0)+IF($B7="X",2,0)+IF($C7="X",3,0)+IF($D7="X",4,0)+IF($E7="X",5,0)+IF($F7="X",6,0)+IF($H7="X",10,0) -> 7 | X7: =COUNTA(K7:L7)+IF(RIGHT(M7&N7,1)="X",1,0) -> 1 | Y7: No Drawing | Z7: =IF(COUNTIF($A7:$H7, "<>"&"")=0,"INVALID COMBO","") -> 
A8: X | F8: X | J8: VHF | K8: X | O8: ALL | P8: IB-Forced | Q8: DVR (VHF) Inband; For APX (VHF) using One All-Band Antenna | R8: 1 | S8: 1 | T8: 2 | U8: 1 | V8: 297 | W8: 7 | X8: 1 | Y8: No Drawing
A9: X | F9: X | J9: VHF | K9: X | O9: USER | P9: IB-Forced | Q9: DVR (VHF) Inband; For APX (VHF) using Unknown or User-Defined Antenna | R9: 1 | S9: 1 | T9: 2 | U9: 2 | V9: 298 | W9: 7 | X9: 1 | Y9: No Drawing
I10: INVALID COMBO | J10: VHF | K10: X | O10: SINGLE | P10: XB-Only | Q10: DVR (VHF) Crossband/No Inband; For APX (VHF) using Single-Band Antenna(s) | R10: 1 | S10: 1 | T10: 3 | U10: 0 | V10: 299 | W10: 0 | X10: 1 | Y10: No Drawing | Z10: INVALID COMBO
I11: INVALID COMBO | J11: VHF | K11: X | O11: ALL | P11: XB-Only | Q11: DVR (VHF) Crossband/No Inband; For APX (VHF) using One All-Band Antenna | R11: 1 | S11: 1 | T11: 3 | U11: 1 | V11: 300 | W11: 0 | X11: 1 | Y11: No Drawing | Z11: INVALID COMBO
I12: INVALID COMBO | J12: VHF | K12: X | O12: USER | P12: XB-Only | Q12: DVR (VHF) Crossband/No Inband; For APX (VHF) using Unknown or User-Defined Antenna | R12: 1 | S12: 1 | T12: 3 | U12: 2 | V12: 301 | W12: 0 | X12: 1 | Y12: No Drawing | Z12: INVALID COMBO
B13: X | J13: VHF | L13: X | O13: SINGLE | P13: XB-Forced | Q13: DVR (VHF) Crossband; For APX (UHF) using Single-Band Antenna(s) | R13: 1 | S13: 2 | T13: 4 | U13: 0 | V13: 319 | W13: 2 | X13: 1 | Y13: No Drawing
B14: X | J14: VHF | L14: X | O14: ALL | P14: XB-Forced | Q14: DVR (VHF) Crossband; For APX (UHF) using One All-Band Antenna | R14: 1 | S14: 2 | T14: 4 | U14: 1 | V14: 320 | W14: 2 | X14: 1 | Y14: No Drawing
B15: X | J15: VHF | L15: X | O15: USER | P15: XB-Forced | Q15: DVR (VHF) Crossband; For APX (UHF) using Unknown or User-Defined Antenna | R15: 1 | S15: 2 | T15: 4 | U15: 2 | V15: 321 | W15: 2 | X15: 1 | Y15: No Drawing
B16: X | F16: X | J16: VHF | K16: X | L16: X | O16: SINGLE | P16: IB-Only | Q16: DVR (VHF) Inband/No Crossband; For APX (VHF+UHF) using Single-Band Antenna(s) | R16: 1 | S16: 3 | T16: 1 | U16: 0 | V16: 327 | W16: 8 | X16: 2 | Y16: No Drawing
F17: X | J17: VHF | K17: X | L17: X | O17: ALL | P17: IB-Only | Q17: DVR (VHF) Inband/No Crossband; For APX (VHF+UHF) using One All-Band Antenna | R17: 1 | S17: 3 | T17: 1 | U17: 1 | V17: 328 | W17: 6 | X17: 2 | Y17: No Drawing
F18: X | J18: VHF | K18: X | L18: X | O18: USER | P18: IB-Only | Q18: DVR (VHF) Inband/No Crossband; For APX (VHF+UHF) using Unknown or User-Defined Antenna | R18: 1 | S18: 3 | T18: 1 | U18: 2 | V18: 329 | W18: 6 | X18: 2 | Y18: No Drawing
B19: X | H19: QA09446AA | J19: VHF | K19: X | L19: X | O19: SINGLE | P19: XB-Only | Q19: DVR (VHF) Crossband/No Inband; For APX (VHF+UHF) using Single-Band Antenna(s) | R19: 1 | S19: 3 | T19: 3 | U19: 0 | V19: 333 | W19: 2 | X19: 2 | Y19: 8J087X51-43
C20: QA09482AA | J20: VHF | K20: X | L20: X | O20: ALL | P20: XB-Only | Q20: DVR (VHF) Crossband/No Inband; For APX (VHF+UHF) using One All-Band Antenna | R20: 1 | S20: 3 | T20: 3 | U20: 1 | V20: 334 | W20: 0 | X20: 2 | Y20: 8J087X51-01
C21: QA09482AA | J21: VHF | K21: X | L21: X | O21: USER | P21: XB-Only | Q21: DVR (VHF) Crossband/No Inband; For APX (VHF+UHF) using Unknown or User-Defined Antenna | R21: 1 | S21: 3 | T21: 3 | U21: 2 | V21: 335 | W21: 0 | X21: 2 | Y21: No Drawing
B22: X | F22: X | J22: VHF | K22: X | L22: X | O22: SINGLE | P22: IB+XB | Q22: DVR (VHF) Inband & Crossband; For APX (VHF+UHF) using Single-Band Antenna(s) | R22: 1 | S22: 3 | T22: 5 | U22: 0 | V22: 339 | W22: 8 | X22: 2 | Y22: No Drawing
D23: QA09448AA | F23: X | J23: VHF | K23: X | L23: X | O23: ALL | P23: IB+XB | Q23: DVR (VHF) Inband & Crossband; For APX (VHF+UHF) using One All-Band Antenna | R23: 1 | S23: 3 | T23: 5 | U23: 1 | V23: 340 | W23: 6 | X23: 2 | Y23: 8J087X51-25
D24: QA09448AA | F24: X | J24: VHF | K24: X | L24: X | O24: USER | P24: IB+XB | Q24: DVR (VHF) Inband & Crossband; For APX (VHF+UHF) using Unknown or User-Defined Antenna | R24: 1 | S24: 3 | T24: 5 | U24: 2 | V24: 341 | W24: 6 | X24: 2 | Y24: No Drawing
B25: X | J25: VHF | M25: X | O25: SINGLE | P25: XB-Forced | Q25: DVR (VHF) Crossband; For APX (700) using Single-Band Antenna(s) | R25: 1 | S25: 4 | T25: 4 | U25: 0 | V25: 353 | W25: 2 | X25: 1 | Y25: No Drawing
B26: X | J26: VHF | M26: X | O26: ALL | P26: XB-Forced | Q26: DVR (VHF) Crossband; For APX (700) using One All-Band Antenna | R26: 1 | S26: 4 | T26: 4 | U26: 1 | V26: 354 | W26: 2 | X26: 1 | Y26: No Drawing
B27: X | J27: VHF | M27: X | O27: USER | P27: XB-Forced | Q27: DVR (VHF) Crossband; For APX (700) using Unknown or User-Defined Antenna | R27: 1 | S27: 4 | T27: 4 | U27: 2 | V27: 355 | W27: 2 | X27: 1 | Y27: No Drawing
B28: X | F28: X | J28: VHF | K28: X | M28: X | O28: SINGLE | P28: IB-Only | Q28: DVR (VHF) Inband/No Crossband; For APX (VHF+700) using Single-Band Antenna(s) | R28: 1 | S28: 5 | T28: 1 | U28: 0 | V28: 361 | W28: 8 | X28: 2 | Y28: No Drawing
F29: X | J29: VHF | K29: X | M29: X | O29: ALL | P29: IB-Only | Q29: DVR (VHF) Inband/No Crossband; For APX (VHF+700) using One All-Band Antenna | R29: 1 | S29: 5 | T29: 1 | U29: 1 | V29: 362 | W29: 6 | X29: 2 | Y29: No Drawing
F30: X | J30: VHF | K30: X | M30: X | O30: USER | P30: IB-Only | Q30: DVR (VHF) Inband/No Crossband; For APX (VHF+700) using Unknown or User-Defined Antenna | R30: 1 | S30: 5 | T30: 1 | U30: 2 | V30: 363 | W30: 6 | X30: 2 | Y30: No Drawing
B31: X | H31: QA09446AA | J31: VHF | K31: X | M31: X | O31: SINGLE | P31: XB-Only | Q31: DVR (VHF) Crossband/No Inband; For APX (VHF+700) using Single-Band Antenna(s) | R31: 1 | S31: 5 | T31: 3 | U31: 0 | V31: 367 | W31: 2 | X31: 2 | Y31: 8J087X51-44
C32: QA09482AA | J32: VHF | K32: X | M32: X | O32: ALL | P32: XB-Only | Q32: DVR (VHF) Crossband/No Inband; For APX (VHF+700) using One All-Band Antenna | R32: 1 | S32: 5 | T32: 3 | U32: 1 | V32: 368 | W32: 0 | X32: 2 | Y32: 8J087X51-02
C33: QA09482AA | J33: VHF | K33: X | M33: X | O33: USER | P33: XB-Only | Q33: DVR (VHF) Crossband/No Inband; For APX (VHF+700) using Unknown or User-Defined Antenna | R33: 1 | S33: 5 | T33: 3 | U33: 2 | V33: 369 | W33: 0 | X33: 2 | Y33: No Drawing
B34: X | F34: X | J34: VHF | K34: X | M34: X | O34: SINGLE | P34: IB+XB | Q34: DVR (VHF) Inband & Crossband; For APX (VHF+700) using Single-Band Antenna(s) | R34: 1 | S34: 5 | T34: 5 | U34: 0 | V34: 373 | W34: 8 | X34: 2 | Y34: No Drawing
D35: QA09448AA | F35: X | J35: VHF | K35: X | M35: X | O35: ALL | P35: IB+XB | Q35: DVR (VHF) Inband & Crossband; For APX (VHF+700) using One All-Band Antenna | R35: 1 | S35: 5 | T35: 5 | U35: 1 | V35: 374 | W35: 6 | X35: 2 | Y35: 8J087X51-26
D36: QA09448AA | F36: X | J36: VHF | K36: X | M36: X | O36: USER | P36: IB+XB | Q36: DVR (VHF) Inband & Crossband; For APX (VHF+700) using Unknown or User-Defined Antenna | R36: 1 | S36: 5 | T36: 5 | U36: 2 | V36: 375 | W36: 6 | X36: 2 | Y36: No Drawing
B37: X | J37: VHF | L37: X | M37: X | O37: SINGLE | P37: XB-Forced | Q37: DVR (VHF) Crossband; For APX (UHF+700) using Single-Band Antenna(s) | R37: 1 | S37: 6 | T37: 4 | U37: 0 | V37: 387 | W37: 2 | X37: 2 | Y37: No Drawing
D38: QA09447AA | J38: VHF | L38: X | M38: X | O38: ALL | P38: XB-Forced | Q38: DVR (VHF) Crossband; For APX (UHF+700) using One All-Band Antenna | R38: 1 | S38: 6 | T38: 4 | U38: 1 | V38: 388 | W38: 0 | X38: 2 | Y38: 8J087X51-16
D39: QA09447AA | J39: VHF | L39: X | M39: X | O39: USER | P39: XB-Forced | Q39: DVR (VHF) Crossband; For APX (UHF+700) using Unknown or User-Defined Antenna | R39: 1 | S39: 6 | T39: 4 | U39: 2 | V39: 389 | W39: 0 | X39: 2 | Y39: No Drawing
B40: X | F40: X | J40: VHF | K40: X | L40: X | M40: X | O40: SINGLE | P40: IB-Only | Q40: DVR (VHF) Inband/No Crossband; For APX (VHF+UHF+700) using Single-Band Antenna(s) | R40: 1 | S40: 7 | T40: 1 | U40: 0 | V40: 395 | W40: 8 | X40: 3 | Y40: No Drawing
F41: X | J41: VHF | K41: X | L41: X | M41: X | O41: ALL | P41: IB-Only | Q41: DVR (VHF) Inband/No Crossband; For APX (VHF+UHF+700) using One All-Band Antenna | R41: 1 | S41: 7 | T41: 1 | U41: 1 | V41: 396 | W41: 6 | X41: 3 | Y41: No Drawing
F42: X | J42: VHF | K42: X | L42: X | M42: X | O42: USER | P42: IB-Only | Q42: DVR (VHF) Inband/No Crossband; For APX (VHF+UHF+700) using Unknown or User-Defined Antenna | R42: 1 | S42: 7 | T42: 1 | U42: 2 | V42: 397 | W42: 6 | X42: 3 | Y42: No Drawing
B43: X | H43: QA09446AA | J43: VHF | K43: X | L43: X | M43: X | O43: SINGLE | P43: XB-Only | Q43: DVR (VHF) Crossband/No Inband; For APX (VHF+UHF+700) using Single-Band Antenna(s) | R43: 1 | S43: 7 | T43: 3 | U43: 0 | V43: 401 | W43: 2 | X43: 3 | Y43: 8J087X51-55
E44: QA09487AA | J44: VHF | K44: X | L44: X | M44: X | O44: ALL | P44: XB-Only | Q44: DVR (VHF) Crossband/No Inband; For APX (VHF+UHF+700) using One All-Band Antenna | R44: 1 | S44: 7 | T44: 3 | U44: 1 | V44: 402 | W44: 0 | X44: 3 | Y44: 8J087X51-37
E45: QA09487AA | J45: VHF | K45: X | L45: X | M45: X | O45: USER | P45: XB-Only | Q45: DVR (VHF) Crossband/No Inband; For APX (VHF+UHF+700) using Unknown or User-Defined Antenna | R45: 1 | S45: 7 | T45: 3 | U45: 2 | V45: 403 | W45: 0 | X45: 3 | Y45: No Drawing
B46: X | F46: X | J46: VHF | K46: X | L46: X | M46: X | O46: SINGLE | P46: IB+XB | Q46: DVR (VHF) Inband & Crossband; For APX (VHF+UHF+700) using Single-Band Antenna(s) | R46: 1 | S46: 7 | T46: 5 | U46: 0 | V46: 407 | W46: 8 | X46: 3 | Y46: No Drawing
D47: QA09448AA | F47: X | J47: VHF | K47: X | L47: X | M47: X | O47: ALL | P47: IB+XB | Q47: DVR (VHF) Inband & Crossband; For APX (VHF+UHF+700) using One All-Band Antenna | R47: 1 | S47: 7 | T47: 5 | U47: 1 | V47: 408 | W47: 6 | X47: 3 | Y47: 8J087X51-34
D48: QA09448AA | F48: X | J48: VHF | K48: X | L48: X | M48: X | O48: USER | P48: IB+XB | Q48: DVR (VHF) Inband & Crossband; For APX (VHF+UHF+700) using Unknown or User-Defined Antenna | R48: 1 | S48: 7 | T48: 5 | U48: 2 | V48: 409 | W48: 6 | X48: 3 | Y48: No Drawing
B49: X | J49: VHF | N49: X | O49: SINGLE | P49: XB-Forced | Q49: DVR (VHF) Crossband; For APX (800) using Single-Band Antenna(s) | R49: 1 | S49: 8 | T49: 4 | U49: 0 | V49: 421 | W49: 2 | X49: 1 | Y49: No Drawing
B50: X | J50: VHF | N50: X | O50: ALL | P50: XB-Forced | Q50: DVR (VHF) Crossband; For APX (800) using One All-Band Antenna | R50: 1 | S50: 8 | T50: 4 | U50: 1 | V50: 422 | W50: 2 | X50: 1 | Y50: No Drawing
B51: X | J51: VHF | N51: X | O51: USER | P51: XB-Forced | Q51: DVR (VHF) Crossband; For APX (800) using Unknown or User-Defined Antenna | R51: 1 | S51: 8 | T51: 4 | U51: 2 | V51: 423 | W51: 2 | X51: 1 | Y51: No Drawing
B52: X | F52: X | J52: VHF | K52: X | N52: X | O52: SINGLE | P52: IB-Only | Q52: DVR (VHF) Inband/No Crossband; For APX (VHF+800) using Single-Band Antenna(s) | R52: 1 | S52: 9 | T52: 1 | U52: 0 | V52: 429 | W52: 8 | X52: 2 | Y52: No Drawing
F53: X | J53: VHF | K53: X | N53: X | O53: ALL | P53: IB-Only | Q53: DVR (VHF) Inband/No Crossband; For APX (VHF+800) using One All-Band Antenna | R53: 1 | S53: 9 | T53: 1 | U53: 1 | V53: 430 | W53: 6 | X53: 2 | Y53: No Drawing
F54: X | J54: VHF | K54: X | N54: X | O54: USER | P54: IB-Only | Q54: DVR (VHF) Inband/No Crossband; For APX (VHF+800) using Unknown or User-Defined Antenna | R54: 1 | S54: 9 | T54: 1 | U54: 2 | V54: 431 | W54: 6 | X54: 2 | Y54: No Drawing
B55: X | H55: QA09446AA | J55: VHF | K55: X | N55: X | O55: SINGLE | P55: XB-Only | Q55: DVR (VHF) Crossband/No Inband; For APX (VHF+800) using Single-Band Antenna(s) | R55: 1 | S55: 9 | T55: 3 | U55: 0 | V55: 435 | W55: 2 | X55: 2 | Y55: 8J087X51-44
C56: QA09482AA | J56: VHF | K56: X | N56: X | O56: ALL | P56: XB-Only | Q56: DVR (VHF) Crossband/No Inband; For APX (VHF+800) using One All-Band Antenna | R56: 1 | S56: 9 | T56: 3 | U56: 1 | V56: 436 | W56: 0 | X56: 2 | Y56: 8J087X51-02
C57: QA09482AA | J57: VHF | K57: X | N57: X | O57: USER | P57: XB-Only | Q57: DVR (VHF) Crossband/No Inband; For APX (VHF+800) using Unknown or User-Defined Antenna | R57: 1 | S57: 9 | T57: 3 | U57: 2 | V57: 437 | W57: 0 | X57: 2 | Y57: No Drawing
B58: X | F58: X | J58: VHF | K58: X | N58: X | O58: SINGLE | P58: IB+XB | Q58: DVR (VHF) Inband & Crossband; For APX (VHF+800) using Single-Band Antenna(s) | R58: 1 | S58: 9 | T58: 5 | U58: 0 | V58: 441 | W58: 8 | X58: 2 | Y58: No Drawing
D59: QA09448AA | F59: X | J59: VHF | K59: X | N59: X | O59: ALL | P59: IB+XB | Q59: DVR (VHF) Inband & Crossband; For APX (VHF+800) using One All-Band Antenna | R59: 1 | S59: 9 | T59: 5 | U59: 1 | V59: 442 | W59: 6 | X59: 2 | Y59: 8J087X51-26
D60: QA09448AA | F60: X | J60: VHF | K60: X | N60: X | O60: USER | P60: IB+XB | Q60: DVR (VHF) Inband & Crossband; For APX (VHF+800) using Unknown or User-Defined Antenna | R60: 1 | S60: 9 | T60: 5 | U60: 2 | V60: 443 | W60: 6 | X60: 2 | Y60: No Drawing
B61: X | J61: VHF | L61: X | N61: X | O61: SINGLE | P61: XB-Forced | Q61: DVR (VHF) Crossband; For APX (UHF+800) using Single-Band Antenna(s) | R61: 1 | S61: 10 | T61: 4 | U61: 0 | V61: 455 | W61: 2 | X61: 2 | Y61: No Drawing
D62: QA09447AA | J62: VHF | L62: X | N62: X | O62: ALL | P62: XB-Forced | Q62: DVR (VHF) Crossband; For APX (UHF+800) using One All-Band Antenna | R62: 1 | S62: 10 | T62: 4 | U62: 1 | V62: 456 | W62: 0 | X62: 2 | Y62: 8J087X51-16
D63: QA09447AA | J63: VHF | L63: X | N63: X | O63: USER | P63: XB-Forced | Q63: DVR (VHF) Crossband; For APX (UHF+800) using Unknown or User-Defined Antenna | R63: 1 | S63: 10 | T63: 4 | U63: 2 | V63: 457 | W63: 0 | X63: 2 | Y63: No Drawing
B64: X | F64: X | J64: VHF | K64: X | L64: X | N64: X | O64: SINGLE | P64: IB-Only | Q64: DVR (VHF) Inband/No Crossband; For APX (VHF+UHF+800) using Single-Band Antenna(s) | R64: 1 | S64: 11 | T64: 1 | U64: 0 | V64: 463 | W64: 8 | X64: 3 | Y64: No Drawing
F65: X | J65: VHF | K65: X | L65: X | N65: X | O65: ALL | P65: IB-Only | Q65: DVR (VHF) Inband/No Crossband; For APX (VHF+UHF+800) using One All-Band Antenna | R65: 1 | S65: 11 | T65: 1 | U65: 1 | V65: 464 | W65: 6 | X65: 3 | Y65: No Drawing
F66: X | J66: VHF | K66: X | L66: X | N66: X | O66: USER | P66: IB-Only | Q66: DVR (VHF) Inband/No Crossband; For APX (VHF+UHF+800) using Unknown or User-Defined Antenna | R66: 1 | S66: 11 | T66: 1 | U66: 2 | V66: 465 | W66: 6 | X66: 3 | Y66: No Drawing
B67: X | H67: QA09446AA | J67: VHF | K67: X | L67: X | N67: X | O67: SINGLE | P67: XB-Only | Q67: DVR (VHF) Crossband/No Inband; For APX (VHF+UHF+800) using Single-Band Antenna(s) | R67: 1 | S67: 11 | T67: 3 | U67: 0 | V67: 469 | W67: 2 | X67: 3 | Y67: 8J087X51-55
E68: QA09487AA | J68: VHF | K68: X | L68: X | N68: X | O68: ALL | P68: XB-Only | Q68: DVR (VHF) Crossband/No Inband; For APX (VHF+UHF+800) using One All-Band Antenna | R68: 1 | S68: 11 | T68: 3 | U68: 1 | V68: 470 | W68: 0 | X68: 3 | Y68: 8J087X51-37
E69: QA09487AA | J69: VHF | K69: X | L69: X | N69: X | O69: USER | P69: XB-Only | Q69: DVR (VHF) Crossband/No Inband; For APX (VHF+UHF+800) using Unknown or User-Defined Antenna | R69: 1 | S69: 11 | T69: 3 | U69: 2 | V69: 471 | W69: 0 | X69: 3 | Y69: No Drawing
B70: X | F70: X | J70: VHF | K70: X | L70: X | N70: X | O70: SINGLE | P70: IB+XB | Q70: DVR (VHF) Inband & Crossband; For APX (VHF+UHF+800) using Single-Band Antenna(s) | R70: 1 | S70: 11 | T70: 5 | U70: 0 | V70: 475 | W70: 8 | X70: 3 | Y70: No Drawing
D71: QA09448AA | F71: X | J71: VHF | K71: X | L71: X | N71: X | O71: ALL | P71: IB+XB | Q71: =$J$6&"("&$J71&")"&" "&VLOOKUP($P71,RPTCodes,2,FALSE) &"; For APX ("&VLOOKUP($S71,BAND_NAMES,2)&") using "&VLOOKUP($O71,ANTcodes,3,FALSE) -> DVR (VHF) Inband & Crossband; For APX (VHF+UHF+800) using One All-Band Antenna | R71: =VLOOKUP(J71,Freq_Bands,2) -> 1 | S71: =IF(K71="X",1,0)+IF(L71="X",2,0)+IF(M71="X",4,0)+IF(N71="X",8,0) -> 11 | T71: =VLOOKUP(P71,RPTCodes,4,FALSE) -> 5 | U71: =VLOOKUP(O71,ANTcodes,2,FALSE) -> 1 | V71: =$U71*MULT_ANT+$T71*MULT_RPT+$S71*MULT_MRF+$R71*MULT_VRF -> 476 | W71: =IF($A71="X",1,0)+IF($B71="X",2,0)+IF($C71="X",3,0)+IF($D71="X",4,0)+IF($E71="X",5,0)+IF($F71="X",6,0)+IF($H71="X",10,0) -> 6 | X71: =COUNTA(K71:L71)+IF(RIGHT(M71&N71,1)="X",1,0) -> 3 | Y71: 8J087X51-34 | Z71: =IF(COUNTIF($A71:$H71, "<>"&"")=0,"INVALID COMBO","") -> 
D72: QA09448AA | F72: X | J72: VHF | K72: X | L72: X | N72: X | O72: USER | P72: IB+XB | Q72: DVR (VHF) Inband & Crossband; For APX (VHF+UHF+800) using Unknown or User-Defined Antenna | R72: 1 | S72: 11 | T72: 5 | U72: 2 | V72: 477 | W72: 6 | X72: 3 | Y72: No Drawing
B73: X | J73: VHF | M73: X | N73: X | O73: SINGLE | P73: XB-Forced | Q73: DVR (VHF) Crossband; For APX (700+800) using Single-Band Antenna(s) | R73: 1 | S73: 12 | T73: 4 | U73: 0 | V73: 489 | W73: 2 | X73: 1 | Y73: No Drawing
B74: X | J74: VHF | M74: X | N74: X | O74: ALL | P74: XB-Forced | Q74: DVR (VHF) Crossband; For APX (700+800) using One All-Band Antenna | R74: 1 | S74: 12 | T74: 4 | U74: 1 | V74: 490 | W74: 2 | X74: 1 | Y74: No Drawing
B75: X | J75: VHF | M75: X | N75: X | O75: USER | P75: XB-Forced | Q75: DVR (VHF) Crossband; For APX (700+800) using Unknown or User-Defined Antenna | R75: 1 | S75: 12 | T75: 4 | U75: 2 | V75: 491 | W75: 2 | X75: 1 | Y75: No Drawing
B76: X | F76: X | J76: VHF | K76: X | M76: X | N76: X | O76: SINGLE | P76: IB-Only | Q76: DVR (VHF) Inband/No Crossband; For APX (VHF+700+800) using Single-Band Antenna(s) | R76: 1 | S76: 13 | T76: 1 | U76: 0 | V76: 497 | W76: 8 | X76: 2 | Y76: No Drawing
F77: X | J77: VHF | K77: X | M77: X | N77: X | O77: ALL | P77: IB-Only | Q77: DVR (VHF) Inband/No Crossband; For APX (VHF+700+800) using One All-Band Antenna | R77: 1 | S77: 13 | T77: 1 | U77: 1 | V77: 498 | W77: 6 | X77: 2 | Y77: No Drawing
F78: X | J78: VHF | K78: X | M78: X | N78: X | O78: USER | P78: IB-Only | Q78: DVR (VHF) Inband/No Crossband; For APX (VHF+700+800) using Unknown or User-Defined Antenna | R78: 1 | S78: 13 | T78: 1 | U78: 2 | V78: 499 | W78: 6 | X78: 2 | Y78: No Drawing
B79: X | H79: QA09446AA | J79: VHF | K79: X | M79: X | N79: X | O79: SINGLE | P79: XB-Only | Q79: DVR (VHF) Crossband/No Inband; For APX (VHF+700+800) using Single-Band Antenna(s) | R79: 1 | S79: 13 | T79: 3 | U79: 0 | V79: 503 | W79: 2 | X79: 2 | Y79: 8J087X51-44
C80: QA09482AA | J80: VHF | K80: X | M80: X | N80: X | O80: ALL | P80: XB-Only | Q80: DVR (VHF) Crossband/No Inband; For APX (VHF+700+800) using One All-Band Antenna | R80: 1 | S80: 13 | T80: 3 | U80: 1 | V80: 504 | W80: 0 | X80: 2 | Y80: 8J087X51-02
C81: QA09482AA | J81: VHF | K81: X | M81: X | N81: X | O81: USER | P81: XB-Only | Q81: DVR (VHF) Crossband/No Inband; For APX (VHF+700+800) using Unknown or User-Defined Antenna | R81: 1 | S81: 13 | T81: 3 | U81: 2 | V81: 505 | W81: 0 | X81: 2 | Y81: No Drawing
B82: X | F82: X | J82: VHF | K82: X | M82: X | N82: X | O82: SINGLE | P82: IB+XB | Q82: DVR (VHF) Inband & Crossband; For APX (VHF+700+800) using Single-Band Antenna(s) | R82: 1 | S82: 13 | T82: 5 | U82: 0 | V82: 509 | W82: 8 | X82: 2 | Y82: No Drawing
D83: QA09448AA | F83: X | J83: VHF | K83: X | M83: X | N83: X | O83: ALL | P83: IB+XB | Q83: DVR (VHF) Inband & Crossband; For APX (VHF+700+800) using One All-Band Antenna | R83: 1 | S83: 13 | T83: 5 | U83: 1 | V83: 510 | W83: 6 | X83: 2 | Y83: 8J087X51-26
D84: QA09448AA | F84: X | J84: VHF | K84: X | M84: X | N84: X | O84: USER | P84: IB+XB | Q84: DVR (VHF) Inband & Crossband; For APX (VHF+700+800) using Unknown or User-Defined Antenna | R84: 1 | S84: 13 | T84: 5 | U84: 2 | V84: 511 | W84: 6 | X84: 2 | Y84: No Drawing
B85: X | J85: VHF | L85: X | M85: X | N85: X | O85: SINGLE | P85: XB-Forced | Q85: DVR (VHF) Crossband; For APX (UHF+700+800) using Single-Band Antenna(s) | R85: 1 | S85: 14 | T85: 4 | U85: 0 | V85: 523 | W85: 2 | X85: 2 | Y85: No Drawing
D86: QA09447AA | J86: VHF | L86: X | M86: X | N86: X | O86: ALL | P86: XB-Forced | Q86: DVR (VHF) Crossband; For APX (UHF+700+800) using One All-Band Antenna | R86: 1 | S86: 14 | T86: 4 | U86: 1 | V86: 524 | W86: 0 | X86: 2 | Y86: 8J087X51-16
D87: QA09447AA | J87: VHF | L87: X | M87: X | N87: X | O87: USER | P87: XB-Forced | Q87: DVR (VHF) Crossband; For APX (UHF+700+800) using Unknown or User-Defined Antenna | R87: 1 | S87: 14 | T87: 4 | U87: 2 | V87: 525 | W87: 0 | X87: 2 | Y87: No Drawing
B88: X | F88: X | J88: VHF | K88: X | L88: X | M88: X | N88: X | O88: SINGLE | P88: IB-Only | Q88: DVR (VHF) Inband/No Crossband; For APX (VHF+UHF+700+800) using Single-Band Antenna(s) | R88: 1 | S88: 15 | T88: 1 | U88: 0 | V88: 531 | W88: 8 | X88: 3 | Y88: No Drawing
F89: X | J89: VHF | K89: X | L89: X | M89: X | N89: X | O89: ALL | P89: IB-Only | Q89: DVR (VHF) Inband/No Crossband; For APX (VHF+UHF+700+800) using One All-Band Antenna | R89: 1 | S89: 15 | T89: 1 | U89: 1 | V89: 532 | W89: 6 | X89: 3 | Y89: No Drawing
F90: X | J90: VHF | K90: X | L90: X | M90: X | N90: X | O90: USER | P90: IB-Only | Q90: DVR (VHF) Inband/No Crossband; For APX (VHF+UHF+700+800) using Unknown or User-Defined Antenna | R90: 1 | S90: 15 | T90: 1 | U90: 2 | V90: 533 | W90: 6 | X90: 3 | Y90: No Drawing
B91: X | H91: QA09446AA | J91: VHF | K91: X | L91: X | M91: X | N91: X | O91: SINGLE | P91: XB-Only | Q91: DVR (VHF) Crossband/No Inband; For APX (VHF+UHF+700+800) using Single-Band Antenna(s) | R91: 1 | S91: 15 | T91: 3 | U91: 0 | V91: 537 | W91: 2 | X91: 3 | Y91: 8J087X51-55
E92: QA09487AA | J92: VHF | K92: X | L92: X | M92: X | N92: X | O92: ALL | P92: XB-Only | Q92: DVR (VHF) Crossband/No Inband; For APX (VHF+UHF+700+800) using One All-Band Antenna | R92: 1 | S92: 15 | T92: 3 | U92: 1 | V92: 538 | W92: 0 | X92: 3 | Y92: 8J087X51-37
E93: QA09487AA | J93: VHF | K93: X | L93: X | M93: X | N93: X | O93: USER | P93: XB-Only | Q93: DVR (VHF) Crossband/No Inband; For APX (VHF+UHF+700+800) using Unknown or User-Defined Antenna | R93: 1 | S93: 15 | T93: 3 | U93: 2 | V93: 539 | W93: 0 | X93: 3 | Y93: No Drawing
B94: X | F94: X | J94: VHF | K94: X | L94: X | M94: X | N94: X | O94: SINGLE | P94: IB+XB | Q94: DVR (VHF) Inband & Crossband; For APX (VHF+UHF+700+800) using Single-Band Antenna(s) | R94: 1 | S94: 15 | T94: 5 | U94: 0 | V94: 543 | W94: 8 | X94: 3 | Y94: No Drawing
D95: QA09448AA | F95: X | J95: VHF | K95: X | L95: X | M95: X | N95: X | O95: ALL | P95: IB+XB | Q95: DVR (VHF) Inband & Crossband; For APX (VHF+UHF+700+800) using One All-Band Antenna | R95: 1 | S95: 15 | T95: 5 | U95: 1 | V95: 544 | W95: 6 | X95: 3 | Y95: 8J087X51-34
D96: QA09448AA | F96: X | J96: VHF | K96: X | L96: X | M96: X | N96: X | O96: USER | P96: IB+XB | Q96: DVR (VHF) Inband & Crossband; For APX (VHF+UHF+700+800) using Unknown or User-Defined Antenna | R96: 1 | S96: 15 | T96: 5 | U96: 2 | V96: 545 | W96: 6 | X96: 3 | Y96: No Drawing
B97: X | J97: UHF | K97: X | O97: SINGLE | P97: XB-Forced | Q97: DVR (UHF) Crossband; For APX (VHF) using Single-Band Antenna(s) | R97: 2 | S97: 1 | T97: 4 | U97: 0 | V97: 575 | W97: 2 | X97: 1 | Y97: No Drawing
B98: X | J98: UHF | K98: X | O98: ALL | P98: XB-Forced | Q98: DVR (UHF) Crossband; For APX (VHF) using One All-Band Antenna | R98: 2 | S98: 1 | T98: 4 | U98: 1 | V98: 576 | W98: 2 | X98: 1 | Y98: No Drawing
B99: X | J99: UHF | K99: X | O99: USER | P99: XB-Forced | Q99: DVR (UHF) Crossband; For APX (VHF) using Unknown or User-Defined Antenna | R99: 2 | S99: 1 | T99: 4 | U99: 2 | V99: 577 | W99: 2 | X99: 1 | Y99: No Drawing
A100: X | F100: X | J100: UHF | L100: X | O100: SINGLE | P100: IB-Forced | Q100: DVR (UHF) Inband; For APX (UHF) using Single-Band Antenna(s) | R100: 2 | S100: 2 | T100: 2 | U100: 0 | V100: 586 | W100: 7 | X100: 1 | Y100: No Drawing
A101: X | F101: X | J101: UHF | L101: X | O101: ALL | P101: IB-Forced | Q101: DVR (UHF) Inband; For APX (UHF) using One All-Band Antenna | R101: 2 | S101: 2 | T101: 2 | U101: 1 | V101: 587 | W101: 7 | X101: 1 | Y101: No Drawing
A102: X | F102: X | J102: UHF | L102: X | O102: USER | P102: IB-Forced | Q102: DVR (UHF) Inband; For APX (UHF) using Unknown or User-Defined Antenna | R102: 2 | S102: 2 | T102: 2 | U102: 2 | V102: 588 | W102: 7 | X102: 1 | Y102: No Drawing
I103: INVALID COMBO | J103: UHF | L103: X | O103: SINGLE | P103: XB-Only | Q103: DVR (UHF) Crossband/No Inband; For APX (UHF) using Single-Band Antenna(s) | R103: 2 | S103: 2 | T103: 3 | U103: 0 | V103: 589 | W103: 0 | X103: 1 | Y103: No Drawing | Z103: INVALID COMBO
I104: INVALID COMBO | J104: UHF | L104: X | O104: ALL | P104: XB-Only | Q104: DVR (UHF) Crossband/No Inband; For APX (UHF) using One All-Band Antenna | R104: 2 | S104: 2 | T104: 3 | U104: 1 | V104: 590 | W104: 0 | X104: 1 | Y104: No Drawing | Z104: INVALID COMBO
I105: INVALID COMBO | J105: UHF | L105: X | O105: USER | P105: XB-Only | Q105: DVR (UHF) Crossband/No Inband; For APX (UHF) using Unknown or User-Defined Antenna | R105: 2 | S105: 2 | T105: 3 | U105: 2 | V105: 591 | W105: 0 | X105: 1 | Y105: No Drawing | Z105: INVALID COMBO
B106: X | F106: X | J106: UHF | K106: X | L106: X | O106: SINGLE | P106: IB-Only | Q106: DVR (UHF) Inband/No Crossband; For APX (VHF+UHF) using Single-Band Antenna(s) | R106: 2 | S106: 3 | T106: 1 | U106: 0 | V106: 600 | W106: 8 | X106: 2 | Y106: No Drawing
F107: X | J107: UHF | K107: X | L107: X | O107: ALL | P107: IB-Only | Q107: DVR (UHF) Inband/No Crossband; For APX (VHF+UHF) using One All-Band Antenna | R107: 2 | S107: 3 | T107: 1 | U107: 1 | V107: 601 | W107: 6 | X107: 2 | Y107: No Drawing
F108: X | J108: UHF | K108: X | L108: X | O108: USER | P108: IB-Only | Q108: DVR (UHF) Inband/No Crossband; For APX (VHF+UHF) using Unknown or User-Defined Antenna | R108: 2 | S108: 3 | T108: 1 | U108: 2 | V108: 602 | W108: 6 | X108: 2 | Y108: No Drawing
B109: X | H109: QA09446AA | J109: UHF | K109: X | L109: X | O109: SINGLE | P109: XB-Only | Q109: DVR (UHF) Crossband/No Inband; For APX (VHF+UHF) using Single-Band Antenna(s) | R109: 2 | S109: 3 | T109: 3 | U109: 0 | V109: 606 | W109: 2 | X109: 2 | Y109: 8J087X51-45
C110: QA09483AA | J110: UHF | K110: X | L110: X | O110: ALL | P110: XB-Only | Q110: DVR (UHF) Crossband/No Inband; For APX (VHF+UHF) using One All-Band Antenna | R110: 2 | S110: 3 | T110: 3 | U110: 1 | V110: 607 | W110: 0 | X110: 2 | Y110: 8J087X51-03
C111: QA09483AA | J111: UHF | K111: X | L111: X | O111: USER | P111: XB-Only | Q111: DVR (UHF) Crossband/No Inband; For APX (VHF+UHF) using Unknown or User-Defined Antenna | R111: 2 | S111: 3 | T111: 3 | U111: 2 | V111: 608 | W111: 0 | X111: 2 | Y111: No Drawing
B112: X | F112: X | J112: UHF | K112: X | L112: X | O112: SINGLE | P112: IB+XB | Q112: DVR (UHF) Inband & Crossband; For APX (VHF+UHF) using Single-Band Antenna(s) | R112: 2 | S112: 3 | T112: 5 | U112: 0 | V112: 612 | W112: 8 | X112: 2 | Y112: No Drawing
D113: QA09448AA | F113: X | J113: UHF | K113: X | L113: X | O113: ALL | P113: IB+XB | Q113: DVR (UHF) Inband & Crossband; For APX (VHF+UHF) using One All-Band Antenna | R113: 2 | S113: 3 | T113: 5 | U113: 1 | V113: 613 | W113: 6 | X113: 2 | Y113: 8J087X51-27
D114: QA09448AA | F114: X | J114: UHF | K114: X | L114: X | O114: USER | P114: IB+XB | Q114: DVR (UHF) Inband & Crossband; For APX (VHF+UHF) using Unknown or User-Defined Antenna | R114: 2 | S114: 3 | T114: 5 | U114: 2 | V114: 614 | W114: 6 | X114: 2 | Y114: No Drawing
B115: X | J115: UHF | M115: X | O115: SINGLE | P115: XB-Forced | Q115: DVR (UHF) Crossband; For APX (700) using Single-Band Antenna(s) | R115: 2 | S115: 4 | T115: 4 | U115: 0 | V115: 626 | W115: 2 | X115: 1 | Y115: No Drawing
B116: X | J116: UHF | M116: X | O116: ALL | P116: XB-Forced | Q116: DVR (UHF) Crossband; For APX (700) using One All-Band Antenna | R116: 2 | S116: 4 | T116: 4 | U116: 1 | V116: 627 | W116: 2 | X116: 1 | Y116: No Drawing
B117: X | J117: UHF | M117: X | O117: USER | P117: XB-Forced | Q117: DVR (UHF) Crossband; For APX (700) using Unknown or User-Defined Antenna | R117: 2 | S117: 4 | T117: 4 | U117: 2 | V117: 628 | W117: 2 | X117: 1 | Y117: No Drawing
B118: X | J118: UHF | K118: X | M118: X | O118: SINGLE | P118: XB-Forced | Q118: DVR (UHF) Crossband; For APX (VHF+700) using Single-Band Antenna(s) | R118: 2 | S118: 5 | T118: 4 | U118: 0 | V118: 643 | W118: 2 | X118: 2 | Y118: No Drawing
D119: QA09447AA | J119: UHF | K119: X | M119: X | O119: ALL | P119: XB-Forced | Q119: DVR (UHF) Crossband; For APX (VHF+700) using One All-Band Antenna | R119: 2 | S119: 5 | T119: 4 | U119: 1 | V119: 644 | W119: 0 | X119: 2 | Y119: 8J087X51-17
D120: QA09447AA | J120: UHF | K120: X | M120: X | O120: USER | P120: XB-Forced | Q120: DVR (UHF) Crossband; For APX (VHF+700) using Unknown or User-Defined Antenna | R120: 2 | S120: 5 | T120: 4 | U120: 2 | V120: 645 | W120: 0 | X120: 2 | Y120: No Drawing
B121: X | F121: X | J121: UHF | L121: X | M121: X | O121: SINGLE | P121: IB-Only | Q121: DVR (UHF) Inband/No Crossband; For APX (UHF+700) using Single-Band Antenna(s) | R121: 2 | S121: 6 | T121: 1 | U121: 0 | V121: 651 | W121: 8 | X121: 2 | Y121: No Drawing
F122: X | J122: UHF | L122: X | M122: X | O122: ALL | P122: IB-Only | Q122: DVR (UHF) Inband/No Crossband; For APX (UHF+700) using One All-Band Antenna | R122: 2 | S122: 6 | T122: 1 | U122: 1 | V122: 652 | W122: 6 | X122: 2 | Y122: No Drawing
F123: X | J123: UHF | L123: X | M123: X | O123: USER | P123: IB-Only | Q123: DVR (UHF) Inband/No Crossband; For APX (UHF+700) using Unknown or User-Defined Antenna | R123: 2 | S123: 6 | T123: 1 | U123: 2 | V123: 653 | W123: 6 | X123: 2 | Y123: No Drawing
B124: X | H124: QA09446AA | J124: UHF | L124: X | M124: X | O124: SINGLE | P124: XB-Only | Q124: DVR (UHF) Crossband/No Inband; For APX (UHF+700) using Single-Band Antenna(s) | R124: 2 | S124: 6 | T124: 3 | U124: 0 | V124: 657 | W124: 2 | X124: 2 | Y124: 8J087X51-46
C125: QA09483AA | J125: UHF | L125: X | M125: X | O125: ALL | P125: XB-Only | Q125: DVR (UHF) Crossband/No Inband; For APX (UHF+700) using One All-Band Antenna | R125: 2 | S125: 6 | T125: 3 | U125: 1 | V125: 658 | W125: 0 | X125: 2 | Y125: 8J087X51-04
C126: QA09483AA | J126: UHF | L126: X | M126: X | O126: USER | P126: XB-Only | Q126: DVR (UHF) Crossband/No Inband; For APX (UHF+700) using Unknown or User-Defined Antenna | R126: 2 | S126: 6 | T126: 3 | U126: 2 | V126: 659 | W126: 0 | X126: 2 | Y126: No Drawing
B127: X | F127: X | J127: UHF | L127: X | M127: X | O127: SINGLE | P127: IB+XB | Q127: DVR (UHF) Inband & Crossband; For APX (UHF+700) using Single-Band Antenna(s) | R127: 2 | S127: 6 | T127: 5 | U127: 0 | V127: 663 | W127: 8 | X127: 2 | Y127: No Drawing
D128: QA09448AA | F128: X | J128: UHF | L128: X | M128: X | O128: ALL | P128: IB+XB | Q128: DVR (UHF) Inband & Crossband; For APX (UHF+700) using One All-Band Antenna | R128: 2 | S128: 6 | T128: 5 | U128: 1 | V128: 664 | W128: 6 | X128: 2 | Y128: 8J087X51-28
D129: QA09448AA | F129: X | J129: UHF | L129: X | M129: X | O129: USER | P129: IB+XB | Q129: DVR (UHF) Inband & Crossband; For APX (UHF+700) using Unknown or User-Defined Antenna | R129: 2 | S129: 6 | T129: 5 | U129: 2 | V129: 665 | W129: 6 | X129: 2 | Y129: No Drawing
B130: X | F130: X | J130: UHF | K130: X | L130: X | M130: X | O130: SINGLE | P130: IB-Only | Q130: DVR (UHF) Inband/No Crossband; For APX (VHF+UHF+700) using Single-Band Antenna(s) | R130: 2 | S130: 7 | T130: 1 | U130: 0 | V130: 668 | W130: 8 | X130: 3 | Y130: No Drawing
F131: X | J131: UHF | K131: X | L131: X | M131: X | O131: ALL | P131: IB-Only | Q131: DVR (UHF) Inband/No Crossband; For APX (VHF+UHF+700) using One All-Band Antenna | R131: 2 | S131: 7 | T131: 1 | U131: 1 | V131: 669 | W131: 6 | X131: 3 | Y131: No Drawing
F132: X | J132: UHF | K132: X | L132: X | M132: X | O132: USER | P132: IB-Only | Q132: DVR (UHF) Inband/No Crossband; For APX (VHF+UHF+700) using Unknown or User-Defined Antenna | R132: 2 | S132: 7 | T132: 1 | U132: 2 | V132: 670 | W132: 6 | X132: 3 | Y132: No Drawing
B133: X | H133: QA09446AA | J133: UHF | K133: X | L133: X | M133: X | O133: SINGLE | P133: XB-Only | Q133: DVR (UHF) Crossband/No Inband; For APX (VHF+UHF+700) using Single-Band Antenna(s) | R133: 2 | S133: 7 | T133: 3 | U133: 0 | V133: 674 | W133: 2 | X133: 3 | Y133: 8J087X51-56
E134: QA09488AA | J134: UHF | K134: X | L134: X | M134: X | O134: ALL | P134: XB-Only | Q134: DVR (UHF) Crossband/No Inband; For APX (VHF+UHF+700) using One All-Band Antenna | R134: 2 | S134: 7 | T134: 3 | U134: 1 | V134: 675 | W134: 0 | X134: 3 | Y134: 8J087X51-38
E135: QA09488AA | J135: UHF | K135: X | L135: X | M135: X | O135: USER | P135: XB-Only | Q135: =$J$6&"("&$J135&")"&" "&VLOOKUP($P135,RPTCodes,2,FALSE) &"; For APX ("&VLOOKUP($S135,BAND_NAMES,2)&") using "&VLOOKUP($O135,ANTcodes,3,FALSE) -> DVR (UHF) Crossband/No Inband; For APX (VHF+UHF+700) using Unknown or User-Defined Antenna | R135: =VLOOKUP(J135,Freq_Bands,2) -> 2 | S135: =IF(K135="X",1,0)+IF(L135="X",2,0)+IF(M135="X",4,0)+IF(N135="X",8,0) -> 7 | T135: =VLOOKUP(P135,RPTCodes,4,FALSE) -> 3 | U135: =VLOOKUP(O135,ANTcodes,2,FALSE) -> 2 | V135: =$U135*MULT_ANT+$T135*MULT_RPT+$S135*MULT_MRF+$R135*MULT_VRF -> 676 | W135: =IF($A135="X",1,0)+IF($B135="X",2,0)+IF($C135="X",3,0)+IF($D135="X",4,0)+IF($E135="X",5,0)+IF($F135="X",6,0)+IF($H135="X",10,0) -> 0 | X135: =COUNTA(K135:L135)+IF(RIGHT(M135&N135,1)="X",1,0) -> 3 | Y135: No Drawing | Z135: =IF(COUNTIF($A135:$H135, "<>"&"")=0,"INVALID COMBO","") -> 
B136: X | F136: X | J136: UHF | K136: X | L136: X | M136: X | O136: SINGLE | P136: IB+XB | Q136: DVR (UHF) Inband & Crossband; For APX (VHF+UHF+700) using Single-Band Antenna(s) | R136: 2 | S136: 7 | T136: 5 | U136: 0 | V136: 680 | W136: 8 | X136: 3 | Y136: No Drawing
D137: QA09448AA | F137: X | J137: UHF | K137: X | L137: X | M137: X | O137: ALL | P137: IB+XB | Q137: DVR (UHF) Inband & Crossband; For APX (VHF+UHF+700) using One All-Band Antenna | R137: 2 | S137: 7 | T137: 5 | U137: 1 | V137: 681 | W137: 6 | X137: 3 | Y137: 8J087X51-35
D138: QA09448AA | F138: X | J138: UHF | K138: X | L138: X | M138: X | O138: USER | P138: IB+XB | Q138: DVR (UHF) Inband & Crossband; For APX (VHF+UHF+700) using Unknown or User-Defined Antenna | R138: 2 | S138: 7 | T138: 5 | U138: 2 | V138: 682 | W138: 6 | X138: 3 | Y138: No Drawing
B139: X | J139: UHF | N139: X | O139: SINGLE | P139: XB-Forced | Q139: DVR (UHF) Crossband; For APX (800) using Single-Band Antenna(s) | R139: 2 | S139: 8 | T139: 4 | U139: 0 | V139: 694 | W139: 2 | X139: 1 | Y139: No Drawing
B140: X | J140: UHF | N140: X | O140: ALL | P140: XB-Forced | Q140: DVR (UHF) Crossband; For APX (800) using One All-Band Antenna | R140: 2 | S140: 8 | T140: 4 | U140: 1 | V140: 695 | W140: 2 | X140: 1 | Y140: No Drawing
B141: X | J141: UHF | N141: X | O141: USER | P141: XB-Forced | Q141: DVR (UHF) Crossband; For APX (800) using Unknown or User-Defined Antenna | R141: 2 | S141: 8 | T141: 4 | U141: 2 | V141: 696 | W141: 2 | X141: 1 | Y141: No Drawing
B142: X | J142: UHF | K142: X | N142: X | O142: SINGLE | P142: XB-Forced | Q142: DVR (UHF) Crossband; For APX (VHF+800) using Single-Band Antenna(s) | R142: 2 | S142: 9 | T142: 4 | U142: 0 | V142: 711 | W142: 2 | X142: 2 | Y142: No Drawing
D143: QA09447AA | J143: UHF | K143: X | N143: X | O143: ALL | P143: XB-Forced | Q143: DVR (UHF) Crossband; For APX (VHF+800) using One All-Band Antenna | R143: 2 | S143: 9 | T143: 4 | U143: 1 | V143: 712 | W143: 0 | X143: 2 | Y143: 8J087X51-17
D144: QA09447AA | J144: UHF | K144: X | N144: X | O144: USER | P144: XB-Forced | Q144: DVR (UHF) Crossband; For APX (VHF+800) using Unknown or User-Defined Antenna | R144: 2 | S144: 9 | T144: 4 | U144: 2 | V144: 713 | W144: 0 | X144: 2 | Y144: No Drawing
B145: X | F145: X | J145: UHF | L145: X | N145: X | O145: SINGLE | P145: IB-Only | Q145: DVR (UHF) Inband/No Crossband; For APX (UHF+800) using Single-Band Antenna(s) | R145: 2 | S145: 10 | T145: 1 | U145: 0 | V145: 719 | W145: 8 | X145: 2 | Y145: No Drawing
F146: X | J146: UHF | L146: X | N146: X | O146: ALL | P146: IB-Only | Q146: DVR (UHF) Inband/No Crossband; For APX (UHF+800) using One All-Band Antenna | R146: 2 | S146: 10 | T146: 1 | U146: 1 | V146: 720 | W146: 6 | X146: 2 | Y146: No Drawing
F147: X | J147: UHF | L147: X | N147: X | O147: USER | P147: IB-Only | Q147: DVR (UHF) Inband/No Crossband; For APX (UHF+800) using Unknown or User-Defined Antenna | R147: 2 | S147: 10 | T147: 1 | U147: 2 | V147: 721 | W147: 6 | X147: 2 | Y147: No Drawing
B148: X | H148: QA09446AA | J148: UHF | L148: X | N148: X | O148: SINGLE | P148: XB-Only | Q148: DVR (UHF) Crossband/No Inband; For APX (UHF+800) using Single-Band Antenna(s) | R148: 2 | S148: 10 | T148: 3 | U148: 0 | V148: 725 | W148: 2 | X148: 2 | Y148: 8J087X51-46
C149: QA09483AA | J149: UHF | L149: X | N149: X | O149: ALL | P149: XB-Only | Q149: DVR (UHF) Crossband/No Inband; For APX (UHF+800) using One All-Band Antenna | R149: 2 | S149: 10 | T149: 3 | U149: 1 | V149: 726 | W149: 0 | X149: 2 | Y149: 8J087X51-04
C150: QA09483AA | J150: UHF | L150: X | N150: X | O150: USER | P150: XB-Only | Q150: DVR (UHF) Crossband/No Inband; For APX (UHF+800) using Unknown or User-Defined Antenna | R150: 2 | S150: 10 | T150: 3 | U150: 2 | V150: 727 | W150: 0 | X150: 2 | Y150: No Drawing
B151: X | F151: X | J151: UHF | L151: X | N151: X | O151: SINGLE | P151: IB+XB | Q151: DVR (UHF) Inband & Crossband; For APX (UHF+800) using Single-Band Antenna(s) | R151: 2 | S151: 10 | T151: 5 | U151: 0 | V151: 731 | W151: 8 | X151: 2 | Y151: No Drawing
D152: QA09448AA | F152: X | J152: UHF | L152: X | N152: X | O152: ALL | P152: IB+XB | Q152: DVR (UHF) Inband & Crossband; For APX (UHF+800) using One All-Band Antenna | R152: 2 | S152: 10 | T152: 5 | U152: 1 | V152: 732 | W152: 6 | X152: 2 | Y152: 8J087X51-28
D153: QA09448AA | F153: X | J153: UHF | L153: X | N153: X | O153: USER | P153: IB+XB | Q153: DVR (UHF) Inband & Crossband; For APX (UHF+800) using Unknown or User-Defined Antenna | R153: 2 | S153: 10 | T153: 5 | U153: 2 | V153: 733 | W153: 6 | X153: 2 | Y153: No Drawing
B154: X | F154: X | J154: UHF | K154: X | L154: X | N154: X | O154: SINGLE | P154: IB-Only | Q154: DVR (UHF) Inband/No Crossband; For APX (VHF+UHF+800) using Single-Band Antenna(s) | R154: 2 | S154: 11 | T154: 1 | U154: 0 | V154: 736 | W154: 8 | X154: 3 | Y154: No Drawing
F155: X | J155: UHF | K155: X | L155: X | N155: X | O155: ALL | P155: IB-Only | Q155: DVR (UHF) Inband/No Crossband; For APX (VHF+UHF+800) using One All-Band Antenna | R155: 2 | S155: 11 | T155: 1 | U155: 1 | V155: 737 | W155: 6 | X155: 3 | Y155: No Drawing
F156: X | J156: UHF | K156: X | L156: X | N156: X | O156: USER | P156: IB-Only | Q156: DVR (UHF) Inband/No Crossband; For APX (VHF+UHF+800) using Unknown or User-Defined Antenna | R156: 2 | S156: 11 | T156: 1 | U156: 2 | V156: 738 | W156: 6 | X156: 3 | Y156: No Drawing
B157: X | H157: QA09446AA | J157: UHF | K157: X | L157: X | N157: X | O157: SINGLE | P157: XB-Only | Q157: DVR (UHF) Crossband/No Inband; For APX (VHF+UHF+800) using Single-Band Antenna(s) | R157: 2 | S157: 11 | T157: 3 | U157: 0 | V157: 742 | W157: 2 | X157: 3 | Y157: 8J087X51-56
E158: QA09488AA | J158: UHF | K158: X | L158: X | N158: X | O158: ALL | P158: XB-Only | Q158: DVR (UHF) Crossband/No Inband; For APX (VHF+UHF+800) using One All-Band Antenna | R158: 2 | S158: 11 | T158: 3 | U158: 1 | V158: 743 | W158: 0 | X158: 3 | Y158: 8J087X51-38
E159: QA09488AA | J159: UHF | K159: X | L159: X | N159: X | O159: USER | P159: XB-Only | Q159: DVR (UHF) Crossband/No Inband; For APX (VHF+UHF+800) using Unknown or User-Defined Antenna | R159: 2 | S159: 11 | T159: 3 | U159: 2 | V159: 744 | W159: 0 | X159: 3 | Y159: No Drawing
B160: X | F160: X | J160: UHF | K160: X | L160: X | N160: X | O160: SINGLE | P160: IB+XB | Q160: DVR (UHF) Inband & Crossband; For APX (VHF+UHF+800) using Single-Band Antenna(s) | R160: 2 | S160: 11 | T160: 5 | U160: 0 | V160: 748 | W160: 8 | X160: 3 | Y160: No Drawing
D161: QA09448AA | F161: X | J161: UHF | K161: X | L161: X | N161: X | O161: ALL | P161: IB+XB | Q161: DVR (UHF) Inband & Crossband; For APX (VHF+UHF+800) using One All-Band Antenna | R161: 2 | S161: 11 | T161: 5 | U161: 1 | V161: 749 | W161: 6 | X161: 3 | Y161: 8J087X51-35
D162: QA09448AA | F162: X | J162: UHF | K162: X | L162: X | N162: X | O162: USER | P162: IB+XB | Q162: DVR (UHF) Inband & Crossband; For APX (VHF+UHF+800) using Unknown or User-Defined Antenna | R162: 2 | S162: 11 | T162: 5 | U162: 2 | V162: 750 | W162: 6 | X162: 3 | Y162: No Drawing
B163: X | J163: UHF | M163: X | N163: X | O163: SINGLE | P163: XB-Forced | Q163: DVR (UHF) Crossband; For APX (700+800) using Single-Band Antenna(s) | R163: 2 | S163: 12 | T163: 4 | U163: 0 | V163: 762 | W163: 2 | X163: 1 | Y163: No Drawing
B164: X | J164: UHF | M164: X | N164: X | O164: ALL | P164: XB-Forced | Q164: DVR (UHF) Crossband; For APX (700+800) using One All-Band Antenna | R164: 2 | S164: 12 | T164: 4 | U164: 1 | V164: 763 | W164: 2 | X164: 1 | Y164: No Drawing
B165: X | J165: UHF | M165: X | N165: X | O165: USER | P165: XB-Forced | Q165: DVR (UHF) Crossband; For APX (700+800) using Unknown or User-Defined Antenna | R165: 2 | S165: 12 | T165: 4 | U165: 2 | V165: 764 | W165: 2 | X165: 1 | Y165: No Drawing
B166: X | J166: UHF | K166: X | M166: X | N166: X | O166: SINGLE | P166: XB-Forced | Q166: DVR (UHF) Crossband; For APX (VHF+700+800) using Single-Band Antenna(s) | R166: 2 | S166: 13 | T166: 4 | U166: 0 | V166: 779 | W166: 2 | X166: 2 | Y166: No Drawing
D167: QA09447AA | J167: UHF | K167: X | M167: X | N167: X | O167: ALL | P167: XB-Forced | Q167: DVR (UHF) Crossband; For APX (VHF+700+800) using One All-Band Antenna | R167: 2 | S167: 13 | T167: 4 | U167: 1 | V167: 780 | W167: 0 | X167: 2 | Y167: 8J087X51-17
D168: QA09447AA | J168: UHF | K168: X | M168: X | N168: X | O168: USER | P168: XB-Forced | Q168: DVR (UHF) Crossband; For APX (VHF+700+800) using Unknown or User-Defined Antenna | R168: 2 | S168: 13 | T168: 4 | U168: 2 | V168: 781 | W168: 0 | X168: 2 | Y168: No Drawing
B169: X | F169: X | J169: UHF | L169: X | M169: X | N169: X | O169: SINGLE | P169: IB-Only | Q169: DVR (UHF) Inband/No Crossband; For APX (UHF+700+800) using Single-Band Antenna(s) | R169: 2 | S169: 14 | T169: 1 | U169: 0 | V169: 787 | W169: 8 | X169: 2 | Y169: No Drawing
F170: X | J170: UHF | L170: X | M170: X | N170: X | O170: ALL | P170: IB-Only | Q170: DVR (UHF) Inband/No Crossband; For APX (UHF+700+800) using One All-Band Antenna | R170: 2 | S170: 14 | T170: 1 | U170: 1 | V170: 788 | W170: 6 | X170: 2 | Y170: No Drawing
F171: X | J171: UHF | L171: X | M171: X | N171: X | O171: USER | P171: IB-Only | Q171: DVR (UHF) Inband/No Crossband; For APX (UHF+700+800) using Unknown or User-Defined Antenna | R171: 2 | S171: 14 | T171: 1 | U171: 2 | V171: 789 | W171: 6 | X171: 2 | Y171: No Drawing
B172: X | H172: QA09446AA | J172: UHF | L172: X | M172: X | N172: X | O172: SINGLE | P172: XB-Only | Q172: DVR (UHF) Crossband/No Inband; For APX (UHF+700+800) using Single-Band Antenna(s) | R172: 2 | S172: 14 | T172: 3 | U172: 0 | V172: 793 | W172: 2 | X172: 2 | Y172: 8J087X51-46
C173: QA09483AA | J173: UHF | L173: X | M173: X | N173: X | O173: ALL | P173: XB-Only | Q173: DVR (UHF) Crossband/No Inband; For APX (UHF+700+800) using One All-Band Antenna | R173: 2 | S173: 14 | T173: 3 | U173: 1 | V173: 794 | W173: 0 | X173: 2 | Y173: 8J087X51-04
C174: QA09483AA | J174: UHF | L174: X | M174: X | N174: X | O174: USER | P174: XB-Only | Q174: DVR (UHF) Crossband/No Inband; For APX (UHF+700+800) using Unknown or User-Defined Antenna | R174: 2 | S174: 14 | T174: 3 | U174: 2 | V174: 795 | W174: 0 | X174: 2 | Y174: No Drawing
B175: X | F175: X | J175: UHF | L175: X | M175: X | N175: X | O175: SINGLE | P175: IB+XB | Q175: DVR (UHF) Inband & Crossband; For APX (UHF+700+800) using Single-Band Antenna(s) | R175: 2 | S175: 14 | T175: 5 | U175: 0 | V175: 799 | W175: 8 | X175: 2 | Y175: No Drawing
D176: QA09448AA | F176: X | J176: UHF | L176: X | M176: X | N176: X | O176: ALL | P176: IB+XB | Q176: DVR (UHF) Inband & Crossband; For APX (UHF+700+800) using One All-Band Antenna | R176: 2 | S176: 14 | T176: 5 | U176: 1 | V176: 800 | W176: 6 | X176: 2 | Y176: 8J087X51-28
D177: QA09448AA | F177: X | J177: UHF | L177: X | M177: X | N177: X | O177: USER | P177: IB+XB | Q177: DVR (UHF) Inband & Crossband; For APX (UHF+700+800) using Unknown or User-Defined Antenna | R177: 2 | S177: 14 | T177: 5 | U177: 2 | V177: 801 | W177: 6 | X177: 2 | Y177: No Drawing
B178: X | F178: X | J178: UHF | K178: X | L178: X | M178: X | N178: X | O178: SINGLE | P178: IB-Only | Q178: DVR (UHF) Inband/No Crossband; For APX (VHF+UHF+700+800) using Single-Band Antenna(s) | R178: 2 | S178: 15 | T178: 1 | U178: 0 | V178: 804 | W178: 8 | X178: 3 | Y178: No Drawing
F179: X | J179: UHF | K179: X | L179: X | M179: X | N179: X | O179: ALL | P179: IB-Only | Q179: DVR (UHF) Inband/No Crossband; For APX (VHF+UHF+700+800) using One All-Band Antenna | R179: 2 | S179: 15 | T179: 1 | U179: 1 | V179: 805 | W179: 6 | X179: 3 | Y179: No Drawing
F180: X | J180: UHF | K180: X | L180: X | M180: X | N180: X | O180: USER | P180: IB-Only | Q180: DVR (UHF) Inband/No Crossband; For APX (VHF+UHF+700+800) using Unknown or User-Defined Antenna | R180: 2 | S180: 15 | T180: 1 | U180: 2 | V180: 806 | W180: 6 | X180: 3 | Y180: No Drawing
B181: X | H181: QA09446AA | J181: UHF | K181: X | L181: X | M181: X | N181: X | O181: SINGLE | P181: XB-Only | Q181: DVR (UHF) Crossband/No Inband; For APX (VHF+UHF+700+800) using Single-Band Antenna(s) | R181: 2 | S181: 15 | T181: 3 | U181: 0 | V181: 810 | W181: 2 | X181: 3 | Y181: 8J087X51-56
E182: QA09488AA | J182: UHF | K182: X | L182: X | M182: X | N182: X | O182: ALL | P182: XB-Only | Q182: DVR (UHF) Crossband/No Inband; For APX (VHF+UHF+700+800) using One All-Band Antenna | R182: 2 | S182: 15 | T182: 3 | U182: 1 | V182: 811 | W182: 0 | X182: 3 | Y182: 8J087X51-38
E183: QA09488AA | J183: UHF | K183: X | L183: X | M183: X | N183: X | O183: USER | P183: XB-Only | Q183: DVR (UHF) Crossband/No Inband; For APX (VHF+UHF+700+800) using Unknown or User-Defined Antenna | R183: 2 | S183: 15 | T183: 3 | U183: 2 | V183: 812 | W183: 0 | X183: 3 | Y183: No Drawing
B184: X | F184: X | J184: UHF | K184: X | L184: X | M184: X | N184: X | O184: SINGLE | P184: IB+XB | Q184: DVR (UHF) Inband & Crossband; For APX (VHF+UHF+700+800) using Single-Band Antenna(s) | R184: 2 | S184: 15 | T184: 5 | U184: 0 | V184: 816 | W184: 8 | X184: 3 | Y184: No Drawing
D185: QA09448AA | F185: X | J185: UHF | K185: X | L185: X | M185: X | N185: X | O185: ALL | P185: IB+XB | Q185: DVR (UHF) Inband & Crossband; For APX (VHF+UHF+700+800) using One All-Band Antenna | R185: 2 | S185: 15 | T185: 5 | U185: 1 | V185: 817 | W185: 6 | X185: 3 | Y185: 8J087X51-35
D186: QA09448AA | F186: X | J186: UHF | K186: X | L186: X | M186: X | N186: X | O186: USER | P186: IB+XB | Q186: DVR (UHF) Inband & Crossband; For APX (VHF+UHF+700+800) using Unknown or User-Defined Antenna | R186: 2 | S186: 15 | T186: 5 | U186: 2 | V186: 818 | W186: 6 | X186: 3 | Y186: No Drawing
B187: X | J187: 700 | K187: X | O187: SINGLE | P187: XB-Forced | Q187: DVR (700) Crossband; For APX (VHF) using Single-Band Antenna(s) | R187: 3 | S187: 1 | T187: 4 | U187: 0 | V187: 848 | W187: 2 | X187: 1 | Y187: No Drawing
B188: X | J188: 700 | K188: X | O188: ALL | P188: XB-Forced | Q188: DVR (700) Crossband; For APX (VHF) using One All-Band Antenna | R188: 3 | S188: 1 | T188: 4 | U188: 1 | V188: 849 | W188: 2 | X188: 1 | Y188: No Drawing
B189: X | J189: 700 | K189: X | O189: USER | P189: XB-Forced | Q189: DVR (700) Crossband; For APX (VHF) using Unknown or User-Defined Antenna | R189: 3 | S189: 1 | T189: 4 | U189: 2 | V189: 850 | W189: 2 | X189: 1 | Y189: No Drawing
B190: X | J190: 700 | L190: X | O190: SINGLE | P190: XB-Forced | Q190: DVR (700) Crossband; For APX (UHF) using Single-Band Antenna(s) | R190: 3 | S190: 2 | T190: 4 | U190: 0 | V190: 865 | W190: 2 | X190: 1 | Y190: No Drawing
B191: X | J191: 700 | L191: X | O191: ALL | P191: XB-Forced | Q191: DVR (700) Crossband; For APX (UHF) using One All-Band Antenna | R191: 3 | S191: 2 | T191: 4 | U191: 1 | V191: 866 | W191: 2 | X191: 1 | Y191: No Drawing
B192: X | J192: 700 | L192: X | O192: USER | P192: XB-Forced | Q192: DVR (700) Crossband; For APX (UHF) using Unknown or User-Defined Antenna | R192: 3 | S192: 2 | T192: 4 | U192: 2 | V192: 867 | W192: 2 | X192: 1 | Y192: No Drawing
B193: X | J193: 700 | K193: X | L193: X | O193: SINGLE | P193: XB-Forced | Q193: DVR (700) Crossband; For APX (VHF+UHF) using Single-Band Antenna(s) | R193: 3 | S193: 3 | T193: 4 | U193: 0 | V193: 882 | W193: 2 | X193: 2 | Y193: No Drawing
D194: QA09447AA | J194: 700 | K194: X | L194: X | O194: ALL | P194: XB-Forced | Q194: DVR (700) Crossband; For APX (VHF+UHF) using One All-Band Antenna | R194: 3 | S194: 3 | T194: 4 | U194: 1 | V194: 883 | W194: 0 | X194: 2 | Y194: 8J087X51-18
D195: QA09447AA | J195: 700 | K195: X | L195: X | O195: USER | P195: XB-Forced | Q195: DVR (700) Crossband; For APX (VHF+UHF) using Unknown or User-Defined Antenna | R195: 3 | S195: 3 | T195: 4 | U195: 2 | V195: 884 | W195: 0 | X195: 2 | Y195: No Drawing
A196: X | F196: X | J196: 700 | M196: X | O196: SINGLE | P196: IB-Forced | Q196: DVR (700) Inband; For APX (700) using Single-Band Antenna(s) | R196: 3 | S196: 4 | T196: 2 | U196: 0 | V196: 893 | W196: 7 | X196: 1 | Y196: No Drawing
A197: X | F197: X | J197: 700 | M197: X | O197: ALL | P197: IB-Forced | Q197: DVR (700) Inband; For APX (700) using One All-Band Antenna | R197: 3 | S197: 4 | T197: 2 | U197: 1 | V197: 894 | W197: 7 | X197: 1 | Y197: No Drawing
A198: X | F198: X | J198: 700 | M198: X | O198: USER | P198: IB-Forced | Q198: DVR (700) Inband; For APX (700) using Unknown or User-Defined Antenna | R198: 3 | S198: 4 | T198: 2 | U198: 2 | V198: 895 | W198: 7 | X198: 1 | Y198: No Drawing
I199: INVALID COMBO | J199: 700 | M199: X | O199: SINGLE | P199: XB-Only | Q199: =$J$6&"("&$J199&")"&" "&VLOOKUP($P199,RPTCodes,2,FALSE) &"; For APX ("&VLOOKUP($S199,BAND_NAMES,2)&") using "&VLOOKUP($O199,ANTcodes,3,FALSE) -> DVR (700) Crossband/No Inband; For APX (700) using Single-Band Antenna(s) | R199: =VLOOKUP(J199,Freq_Bands,2) -> 3 | S199: =IF(K199="X",1,0)+IF(L199="X",2,0)+IF(M199="X",4,0)+IF(N199="X",8,0) -> 4 | T199: =VLOOKUP(P199,RPTCodes,4,FALSE) -> 3 | U199: =VLOOKUP(O199,ANTcodes,2,FALSE) -> 0 | V199: =$U199*MULT_ANT+$T199*MULT_RPT+$S199*MULT_MRF+$R199*MULT_VRF -> 896 | W199: =IF($A199="X",1,0)+IF($B199="X",2,0)+IF($C199="X",3,0)+IF($D199="X",4,0)+IF($E199="X",5,0)+IF($F199="X",6,0)+IF($H199="X",10,0) -> 0 | X199: =COUNTA(K199:L199)+IF(RIGHT(M199&N199,1)="X",1,0) -> 1 | Y199: No Drawing | Z199: =IF(COUNTIF($A199:$H199, "<>"&"")=0,"INVALID COMBO","") -> 
I200: INVALID COMBO | J200: 700 | M200: X | O200: ALL | P200: XB-Only | Q200: DVR (700) Crossband/No Inband; For APX (700) using One All-Band Antenna | R200: 3 | S200: 4 | T200: 3 | U200: 1 | V200: 897 | W200: 0 | X200: 1 | Y200: No Drawing | Z200: INVALID COMBO
... 202 more rows

Sheet DVR SOLUTIONS (hidden)
I1: DVR FILTERING CONFIGURATOR
A2: SOLUTIONS REQUIRED
B3: Kit-1 | C3: Kit-2 | D3: Kit-3 | E3: KIT-4 | F3: KIT-0 | G3: Kit-5 | I3: DVR | R3: Lookup/Sorting Codes | W3: FilterCode
A4: 1 | B4: 2 | C4: 3 | D4: 4 | E4: 5 | F4: 6 | H4: 10 | J4: DVR | K4: MSU FREQUENCY BANDS USED | O4: MSU
B5: TRIPLEXER SOLUTION | F5: STANDARD | G5: OPTION | H5: Required | I5: NOTES | J5: BAND | K5: b1 | L5: b2 | M5: b3a | N5: b3b | O5: ANT | P5: REPEAT | R5: 4 | S5: 16 | T5: 4 | U5: 2
A6: NONE | B6: 1x | C6: 1x+Relay | D6: 2x | E6: 2x+Relay | F6: In-BAND | G6: Relay | H6: Relay | I6: NOTES | J6: DVR | K6: VHF | L6: UHF | M6: 700 | N6: 800 | O6: MSU-Ant | P6: TYPE | Q6: DESCRIPTION | R6: VRF | S6: MRF | T6: RPT | U6: ANT | V6: TOTAl | W6: FL | X6: NumBands | Y6: Drawing
A7: X | F7: X | J7: VHF | K7: X | O7: SINGLE | P7: IB-Forced | Q7: =$J$6&"("&$J7&")"&" "&VLOOKUP($P7,RPTCodes,2,FALSE) &"; For APX ("&VLOOKUP($S7,BAND_NAMES,2)&") using "&VLOOKUP($O7,ANTcodes,3,FALSE) -> DVR (VHF) Inband; For APX (VHF) using Single-Band Antenna(s) | R7: =VLOOKUP(J7,Freq_Bands,2) -> 1 | S7: =IF(K7="X",1,0)+IF(L7="X",2,0)+IF(M7="X",4,0)+IF(N7="X",8,0) -> 1 | T7: =VLOOKUP(P7,RPTCodes,4,FALSE) -> 2 | U7: =VLOOKUP(O7,ANTcodes,2,FALSE) -> 0 | V7: =$U7*MULT_ANT+$T7*MULT_RPT+$S7*MULT_MRF+$R7*MULT_VRF -> 296 | W7: =IF($A7="X",1,0)+IF($B7="X",2,0)+IF($C7="X",3,0)+IF($D7="X",4,0)+IF($E7="X",5,0)+IF($F7="X",6,0)+IF($H7="X",10,0) -> 7 | X7: =COUNTA(K7:L7)+IF(RIGHT(M7&N7,1)="X",1,0) -> 1 | Y7: No Drawing | Z7: =IF(COUNTIF($A7:$H7, "<>"&"")=0,"INVALID COMBO","") -> 
A8: X | F8: X | J8: VHF | K8: X | O8: ALL | P8: IB-Forced | Q8: DVR (VHF) Inband; For APX (VHF) using One All-Band Antenna | R8: 1 | S8: 1 | T8: 2 | U8: 1 | V8: 297 | W8: 7 | X8: 1 | Y8: No Drawing
A9: X | F9: X | J9: VHF | K9: X | O9: USER | P9: IB-Forced | Q9: DVR (VHF) Inband; For APX (VHF) using Unknown or User-Defined Antenna | R9: 1 | S9: 1 | T9: 2 | U9: 2 | V9: 298 | W9: 7 | X9: 1 | Y9: No Drawing
I10: INVALID COMBO | J10: VHF | K10: X | O10: SINGLE | P10: XB-Only | Q10: DVR (VHF) Crossband/No Inband; For APX (VHF) using Single-Band Antenna(s) | R10: 1 | S10: 1 | T10: 3 | U10: 0 | V10: 299 | W10: 0 | X10: 1 | Y10: No Drawing | Z10: INVALID COMBO
I11: INVALID COMBO | J11: VHF | K11: X | O11: ALL | P11: XB-Only | Q11: DVR (VHF) Crossband/No Inband; For APX (VHF) using One All-Band Antenna | R11: 1 | S11: 1 | T11: 3 | U11: 1 | V11: 300 | W11: 0 | X11: 1 | Y11: No Drawing | Z11: INVALID COMBO
I12: INVALID COMBO | J12: VHF | K12: X | O12: USER | P12: XB-Only | Q12: DVR (VHF) Crossband/No Inband; For APX (VHF) using Unknown or User-Defined Antenna | R12: 1 | S12: 1 | T12: 3 | U12: 2 | V12: 301 | W12: 0 | X12: 1 | Y12: No Drawing | Z12: INVALID COMBO
B13: X | J13: VHF | L13: X | O13: SINGLE | P13: XB-Forced | Q13: DVR (VHF) Crossband; For APX (UHF) using Single-Band Antenna(s) | R13: 1 | S13: 2 | T13: 4 | U13: 0 | V13: 319 | W13: 2 | X13: 1 | Y13: No Drawing
B14: X | J14: VHF | L14: X | O14: ALL | P14: XB-Forced | Q14: DVR (VHF) Crossband; For APX (UHF) using One All-Band Antenna | R14: 1 | S14: 2 | T14: 4 | U14: 1 | V14: 320 | W14: 2 | X14: 1 | Y14: No Drawing
B15: X | J15: VHF | L15: X | O15: USER | P15: XB-Forced | Q15: DVR (VHF) Crossband; For APX (UHF) using Unknown or User-Defined Antenna | R15: 1 | S15: 2 | T15: 4 | U15: 2 | V15: 321 | W15: 2 | X15: 1 | Y15: No Drawing
B16: X | F16: X | J16: VHF | K16: X | L16: X | O16: SINGLE | P16: IB-Only | Q16: DVR (VHF) Inband/No Crossband; For APX (VHF+UHF) using Single-Band Antenna(s) | R16: 1 | S16: 3 | T16: 1 | U16: 0 | V16: 327 | W16: 8 | X16: 2 | Y16: No Drawing
F17: X | J17: VHF | K17: X | L17: X | O17: ALL | P17: IB-Only | Q17: DVR (VHF) Inband/No Crossband; For APX (VHF+UHF) using One All-Band Antenna | R17: 1 | S17: 3 | T17: 1 | U17: 1 | V17: 328 | W17: 6 | X17: 2 | Y17: No Drawing
F18: X | J18: VHF | K18: X | L18: X | O18: USER | P18: IB-Only | Q18: DVR (VHF) Inband/No Crossband; For APX (VHF+UHF) using Unknown or User-Defined Antenna | R18: 1 | S18: 3 | T18: 1 | U18: 2 | V18: 329 | W18: 6 | X18: 2 | Y18: No Drawing
B19: X | H19: X | J19: VHF | K19: X | L19: X | O19: SINGLE | P19: XB-Only | Q19: DVR (VHF) Crossband/No Inband; For APX (VHF+UHF) using Single-Band Antenna(s) | R19: 1 | S19: 3 | T19: 3 | U19: 0 | V19: 333 | W19: 12 | X19: 2 | Y19: 8J087X51-43
C20: X | J20: VHF | K20: X | L20: X | O20: ALL | P20: XB-Only | Q20: DVR (VHF) Crossband/No Inband; For APX (VHF+UHF) using One All-Band Antenna | R20: 1 | S20: 3 | T20: 3 | U20: 1 | V20: 334 | W20: 3 | X20: 2 | Y20: 8J087X51-01
C21: X | J21: VHF | K21: X | L21: X | O21: USER | P21: XB-Only | Q21: DVR (VHF) Crossband/No Inband; For APX (VHF+UHF) using Unknown or User-Defined Antenna | R21: 1 | S21: 3 | T21: 3 | U21: 2 | V21: 335 | W21: 3 | X21: 2 | Y21: No Drawing
B22: X | F22: X | J22: VHF | K22: X | L22: X | O22: SINGLE | P22: IB+XB | Q22: DVR (VHF) Inband & Crossband; For APX (VHF+UHF) using Single-Band Antenna(s) | R22: 1 | S22: 3 | T22: 5 | U22: 0 | V22: 339 | W22: 8 | X22: 2 | Y22: No Drawing
D23: X | F23: X | J23: VHF | K23: X | L23: X | O23: ALL | P23: IB+XB | Q23: DVR (VHF) Inband & Crossband; For APX (VHF+UHF) using One All-Band Antenna | R23: 1 | S23: 3 | T23: 5 | U23: 1 | V23: 340 | W23: 10 | X23: 2 | Y23: 8J087X51-25
D24: X | F24: X | J24: VHF | K24: X | L24: X | O24: USER | P24: IB+XB | Q24: DVR (VHF) Inband & Crossband; For APX (VHF+UHF) using Unknown or User-Defined Antenna | R24: 1 | S24: 3 | T24: 5 | U24: 2 | V24: 341 | W24: 10 | X24: 2 | Y24: No Drawing
B25: X | J25: VHF | M25: X | O25: SINGLE | P25: XB-Forced | Q25: DVR (VHF) Crossband; For APX (700) using Single-Band Antenna(s) | R25: 1 | S25: 4 | T25: 4 | U25: 0 | V25: 353 | W25: 2 | X25: 1 | Y25: No Drawing
B26: X | J26: VHF | M26: X | O26: ALL | P26: XB-Forced | Q26: DVR (VHF) Crossband; For APX (700) using One All-Band Antenna | R26: 1 | S26: 4 | T26: 4 | U26: 1 | V26: 354 | W26: 2 | X26: 1 | Y26: No Drawing
B27: X | J27: VHF | M27: X | O27: USER | P27: XB-Forced | Q27: DVR (VHF) Crossband; For APX (700) using Unknown or User-Defined Antenna | R27: 1 | S27: 4 | T27: 4 | U27: 2 | V27: 355 | W27: 2 | X27: 1 | Y27: No Drawing
B28: X | F28: X | J28: VHF | K28: X | M28: X | O28: SINGLE | P28: IB-Only | Q28: DVR (VHF) Inband/No Crossband; For APX (VHF+700) using Single-Band Antenna(s) | R28: 1 | S28: 5 | T28: 1 | U28: 0 | V28: 361 | W28: 8 | X28: 2 | Y28: No Drawing
F29: X | J29: VHF | K29: X | M29: X | O29: ALL | P29: IB-Only | Q29: DVR (VHF) Inband/No Crossband; For APX (VHF+700) using One All-Band Antenna | R29: 1 | S29: 5 | T29: 1 | U29: 1 | V29: 362 | W29: 6 | X29: 2 | Y29: No Drawing
F30: X | J30: VHF | K30: X | M30: X | O30: USER | P30: IB-Only | Q30: DVR (VHF) Inband/No Crossband; For APX (VHF+700) using Unknown or User-Defined Antenna | R30: 1 | S30: 5 | T30: 1 | U30: 2 | V30: 363 | W30: 6 | X30: 2 | Y30: No Drawing
B31: X | H31: X | J31: VHF | K31: X | M31: X | O31: SINGLE | P31: XB-Only | Q31: DVR (VHF) Crossband/No Inband; For APX (VHF+700) using Single-Band Antenna(s) | R31: 1 | S31: 5 | T31: 3 | U31: 0 | V31: 367 | W31: 12 | X31: 2 | Y31: 8J087X51-44
C32: X | J32: VHF | K32: X | M32: X | O32: ALL | P32: XB-Only | Q32: DVR (VHF) Crossband/No Inband; For APX (VHF+700) using One All-Band Antenna | R32: 1 | S32: 5 | T32: 3 | U32: 1 | V32: 368 | W32: 3 | X32: 2 | Y32: 8J087X51-02
C33: X | J33: VHF | K33: X | M33: X | O33: USER | P33: XB-Only | Q33: DVR (VHF) Crossband/No Inband; For APX (VHF+700) using Unknown or User-Defined Antenna | R33: 1 | S33: 5 | T33: 3 | U33: 2 | V33: 369 | W33: 3 | X33: 2 | Y33: No Drawing
B34: X | F34: X | J34: VHF | K34: X | M34: X | O34: SINGLE | P34: IB+XB | Q34: DVR (VHF) Inband & Crossband; For APX (VHF+700) using Single-Band Antenna(s) | R34: 1 | S34: 5 | T34: 5 | U34: 0 | V34: 373 | W34: 8 | X34: 2 | Y34: No Drawing
D35: X | F35: X | J35: VHF | K35: X | M35: X | O35: ALL | P35: IB+XB | Q35: DVR (VHF) Inband & Crossband; For APX (VHF+700) using One All-Band Antenna | R35: 1 | S35: 5 | T35: 5 | U35: 1 | V35: 374 | W35: 10 | X35: 2 | Y35: 8J087X51-26
D36: X | F36: X | J36: VHF | K36: X | M36: X | O36: USER | P36: IB+XB | Q36: DVR (VHF) Inband & Crossband; For APX (VHF+700) using Unknown or User-Defined Antenna | R36: 1 | S36: 5 | T36: 5 | U36: 2 | V36: 375 | W36: 10 | X36: 2 | Y36: No Drawing
B37: X | J37: VHF | L37: X | M37: X | O37: SINGLE | P37: XB-Forced | Q37: DVR (VHF) Crossband; For APX (UHF+700) using Single-Band Antenna(s) | R37: 1 | S37: 6 | T37: 4 | U37: 0 | V37: 387 | W37: 2 | X37: 2 | Y37: No Drawing
D38: X | J38: VHF | L38: X | M38: X | O38: ALL | P38: XB-Forced | Q38: DVR (VHF) Crossband; For APX (UHF+700) using One All-Band Antenna | R38: 1 | S38: 6 | T38: 4 | U38: 1 | V38: 388 | W38: 4 | X38: 2 | Y38: 8J087X51-16
D39: X | J39: VHF | L39: X | M39: X | O39: USER | P39: XB-Forced | Q39: DVR (VHF) Crossband; For APX (UHF+700) using Unknown or User-Defined Antenna | R39: 1 | S39: 6 | T39: 4 | U39: 2 | V39: 389 | W39: 4 | X39: 2 | Y39: No Drawing
B40: X | F40: X | J40: VHF | K40: X | L40: X | M40: X | O40: SINGLE | P40: IB-Only | Q40: DVR (VHF) Inband/No Crossband; For APX (VHF+UHF+700) using Single-Band Antenna(s) | R40: 1 | S40: 7 | T40: 1 | U40: 0 | V40: 395 | W40: 8 | X40: 3 | Y40: No Drawing
F41: X | J41: VHF | K41: X | L41: X | M41: X | O41: ALL | P41: IB-Only | Q41: DVR (VHF) Inband/No Crossband; For APX (VHF+UHF+700) using One All-Band Antenna | R41: 1 | S41: 7 | T41: 1 | U41: 1 | V41: 396 | W41: 6 | X41: 3 | Y41: No Drawing
F42: X | J42: VHF | K42: X | L42: X | M42: X | O42: USER | P42: IB-Only | Q42: DVR (VHF) Inband/No Crossband; For APX (VHF+UHF+700) using Unknown or User-Defined Antenna | R42: 1 | S42: 7 | T42: 1 | U42: 2 | V42: 397 | W42: 6 | X42: 3 | Y42: No Drawing
B43: X | H43: X | J43: VHF | K43: X | L43: X | M43: X | O43: SINGLE | P43: XB-Only | Q43: DVR (VHF) Crossband/No Inband; For APX (VHF+UHF+700) using Single-Band Antenna(s) | R43: 1 | S43: 7 | T43: 3 | U43: 0 | V43: 401 | W43: 12 | X43: 3 | Y43: 8J087X51-55
E44: X | J44: VHF | K44: X | L44: X | M44: X | O44: ALL | P44: XB-Only | Q44: DVR (VHF) Crossband/No Inband; For APX (VHF+UHF+700) using One All-Band Antenna | R44: 1 | S44: 7 | T44: 3 | U44: 1 | V44: 402 | W44: 5 | X44: 3 | Y44: 8J087X51-37
E45: X | J45: VHF | K45: X | L45: X | M45: X | O45: USER | P45: XB-Only | Q45: DVR (VHF) Crossband/No Inband; For APX (VHF+UHF+700) using Unknown or User-Defined Antenna | R45: 1 | S45: 7 | T45: 3 | U45: 2 | V45: 403 | W45: 5 | X45: 3 | Y45: No Drawing
B46: X | F46: X | J46: VHF | K46: X | L46: X | M46: X | O46: SINGLE | P46: IB+XB | Q46: DVR (VHF) Inband & Crossband; For APX (VHF+UHF+700) using Single-Band Antenna(s) | R46: 1 | S46: 7 | T46: 5 | U46: 0 | V46: 407 | W46: 8 | X46: 3 | Y46: No Drawing
D47: X | F47: X | J47: VHF | K47: X | L47: X | M47: X | O47: ALL | P47: IB+XB | Q47: DVR (VHF) Inband & Crossband; For APX (VHF+UHF+700) using One All-Band Antenna | R47: 1 | S47: 7 | T47: 5 | U47: 1 | V47: 408 | W47: 10 | X47: 3 | Y47: 8J087X51-34
D48: X | F48: X | J48: VHF | K48: X | L48: X | M48: X | O48: USER | P48: IB+XB | Q48: DVR (VHF) Inband & Crossband; For APX (VHF+UHF+700) using Unknown or User-Defined Antenna | R48: 1 | S48: 7 | T48: 5 | U48: 2 | V48: 409 | W48: 10 | X48: 3 | Y48: No Drawing
B49: X | J49: VHF | N49: X | O49: SINGLE | P49: XB-Forced | Q49: DVR (VHF) Crossband; For APX (800) using Single-Band Antenna(s) | R49: 1 | S49: 8 | T49: 4 | U49: 0 | V49: 421 | W49: 2 | X49: 1 | Y49: No Drawing
B50: X | J50: VHF | N50: X | O50: ALL | P50: XB-Forced | Q50: DVR (VHF) Crossband; For APX (800) using One All-Band Antenna | R50: 1 | S50: 8 | T50: 4 | U50: 1 | V50: 422 | W50: 2 | X50: 1 | Y50: No Drawing
B51: X | J51: VHF | N51: X | O51: USER | P51: XB-Forced | Q51: DVR (VHF) Crossband; For APX (800) using Unknown or User-Defined Antenna | R51: 1 | S51: 8 | T51: 4 | U51: 2 | V51: 423 | W51: 2 | X51: 1 | Y51: No Drawing
B52: X | F52: X | J52: VHF | K52: X | N52: X | O52: SINGLE | P52: IB-Only | Q52: DVR (VHF) Inband/No Crossband; For APX (VHF+800) using Single-Band Antenna(s) | R52: 1 | S52: 9 | T52: 1 | U52: 0 | V52: 429 | W52: 8 | X52: 2 | Y52: No Drawing
F53: X | J53: VHF | K53: X | N53: X | O53: ALL | P53: IB-Only | Q53: DVR (VHF) Inband/No Crossband; For APX (VHF+800) using One All-Band Antenna | R53: 1 | S53: 9 | T53: 1 | U53: 1 | V53: 430 | W53: 6 | X53: 2 | Y53: No Drawing
F54: X | J54: VHF | K54: X | N54: X | O54: USER | P54: IB-Only | Q54: DVR (VHF) Inband/No Crossband; For APX (VHF+800) using Unknown or User-Defined Antenna | R54: 1 | S54: 9 | T54: 1 | U54: 2 | V54: 431 | W54: 6 | X54: 2 | Y54: No Drawing
B55: X | H55: X | J55: VHF | K55: X | N55: X | O55: SINGLE | P55: XB-Only | Q55: DVR (VHF) Crossband/No Inband; For APX (VHF+800) using Single-Band Antenna(s) | R55: 1 | S55: 9 | T55: 3 | U55: 0 | V55: 435 | W55: 12 | X55: 2 | Y55: 8J087X51-44
C56: X | J56: VHF | K56: X | N56: X | O56: ALL | P56: XB-Only | Q56: DVR (VHF) Crossband/No Inband; For APX (VHF+800) using One All-Band Antenna | R56: 1 | S56: 9 | T56: 3 | U56: 1 | V56: 436 | W56: 3 | X56: 2 | Y56: 8J087X51-02
C57: X | J57: VHF | K57: X | N57: X | O57: USER | P57: XB-Only | Q57: DVR (VHF) Crossband/No Inband; For APX (VHF+800) using Unknown or User-Defined Antenna | R57: 1 | S57: 9 | T57: 3 | U57: 2 | V57: 437 | W57: 3 | X57: 2 | Y57: No Drawing
B58: X | F58: X | J58: VHF | K58: X | N58: X | O58: SINGLE | P58: IB+XB | Q58: DVR (VHF) Inband & Crossband; For APX (VHF+800) using Single-Band Antenna(s) | R58: 1 | S58: 9 | T58: 5 | U58: 0 | V58: 441 | W58: 8 | X58: 2 | Y58: No Drawing
D59: X | F59: X | J59: VHF | K59: X | N59: X | O59: ALL | P59: IB+XB | Q59: DVR (VHF) Inband & Crossband; For APX (VHF+800) using One All-Band Antenna | R59: 1 | S59: 9 | T59: 5 | U59: 1 | V59: 442 | W59: 10 | X59: 2 | Y59: 8J087X51-26
D60: X | F60: X | J60: VHF | K60: X | N60: X | O60: USER | P60: IB+XB | Q60: DVR (VHF) Inband & Crossband; For APX (VHF+800) using Unknown or User-Defined Antenna | R60: 1 | S60: 9 | T60: 5 | U60: 2 | V60: 443 | W60: 10 | X60: 2 | Y60: No Drawing
B61: X | J61: VHF | L61: X | N61: X | O61: SINGLE | P61: XB-Forced | Q61: DVR (VHF) Crossband; For APX (UHF+800) using Single-Band Antenna(s) | R61: 1 | S61: 10 | T61: 4 | U61: 0 | V61: 455 | W61: 2 | X61: 2 | Y61: No Drawing
D62: X | J62: VHF | L62: X | N62: X | O62: ALL | P62: XB-Forced | Q62: DVR (VHF) Crossband; For APX (UHF+800) using One All-Band Antenna | R62: 1 | S62: 10 | T62: 4 | U62: 1 | V62: 456 | W62: 4 | X62: 2 | Y62: 8J087X51-16
D63: X | J63: VHF | L63: X | N63: X | O63: USER | P63: XB-Forced | Q63: DVR (VHF) Crossband; For APX (UHF+800) using Unknown or User-Defined Antenna | R63: 1 | S63: 10 | T63: 4 | U63: 2 | V63: 457 | W63: 4 | X63: 2 | Y63: No Drawing
B64: X | F64: X | J64: VHF | K64: X | L64: X | N64: X | O64: SINGLE | P64: IB-Only | Q64: DVR (VHF) Inband/No Crossband; For APX (VHF+UHF+800) using Single-Band Antenna(s) | R64: 1 | S64: 11 | T64: 1 | U64: 0 | V64: 463 | W64: 8 | X64: 3 | Y64: No Drawing
F65: X | J65: VHF | K65: X | L65: X | N65: X | O65: ALL | P65: IB-Only | Q65: DVR (VHF) Inband/No Crossband; For APX (VHF+UHF+800) using One All-Band Antenna | R65: 1 | S65: 11 | T65: 1 | U65: 1 | V65: 464 | W65: 6 | X65: 3 | Y65: No Drawing
F66: X | J66: VHF | K66: X | L66: X | N66: X | O66: USER | P66: IB-Only | Q66: DVR (VHF) Inband/No Crossband; For APX (VHF+UHF+800) using Unknown or User-Defined Antenna | R66: 1 | S66: 11 | T66: 1 | U66: 2 | V66: 465 | W66: 6 | X66: 3 | Y66: No Drawing
B67: X | H67: X | J67: VHF | K67: X | L67: X | N67: X | O67: SINGLE | P67: XB-Only | Q67: DVR (VHF) Crossband/No Inband; For APX (VHF+UHF+800) using Single-Band Antenna(s) | R67: 1 | S67: 11 | T67: 3 | U67: 0 | V67: 469 | W67: 12 | X67: 3 | Y67: 8J087X51-55
E68: X | J68: VHF | K68: X | L68: X | N68: X | O68: ALL | P68: XB-Only | Q68: DVR (VHF) Crossband/No Inband; For APX (VHF+UHF+800) using One All-Band Antenna | R68: 1 | S68: 11 | T68: 3 | U68: 1 | V68: 470 | W68: 5 | X68: 3 | Y68: 8J087X51-37
E69: X | J69: VHF | K69: X | L69: X | N69: X | O69: USER | P69: XB-Only | Q69: DVR (VHF) Crossband/No Inband; For APX (VHF+UHF+800) using Unknown or User-Defined Antenna | R69: 1 | S69: 11 | T69: 3 | U69: 2 | V69: 471 | W69: 5 | X69: 3 | Y69: No Drawing
B70: X | F70: X | J70: VHF | K70: X | L70: X | N70: X | O70: SINGLE | P70: IB+XB | Q70: DVR (VHF) Inband & Crossband; For APX (VHF+UHF+800) using Single-Band Antenna(s) | R70: 1 | S70: 11 | T70: 5 | U70: 0 | V70: 475 | W70: 8 | X70: 3 | Y70: No Drawing
D71: X | F71: X | J71: VHF | K71: X | L71: X | N71: X | O71: ALL | P71: IB+XB | Q71: =$J$6&"("&$J71&")"&" "&VLOOKUP($P71,RPTCodes,2,FALSE) &"; For APX ("&VLOOKUP($S71,BAND_NAMES,2)&") using "&VLOOKUP($O71,ANTcodes,3,FALSE) -> DVR (VHF) Inband & Crossband; For APX (VHF+UHF+800) using One All-Band Antenna | R71: =VLOOKUP(J71,Freq_Bands,2) -> 1 | S71: =IF(K71="X",1,0)+IF(L71="X",2,0)+IF(M71="X",4,0)+IF(N71="X",8,0) -> 11 | T71: =VLOOKUP(P71,RPTCodes,4,FALSE) -> 5 | U71: =VLOOKUP(O71,ANTcodes,2,FALSE) -> 1 | V71: =$U71*MULT_ANT+$T71*MULT_RPT+$S71*MULT_MRF+$R71*MULT_VRF -> 476 | W71: =IF($A71="X",1,0)+IF($B71="X",2,0)+IF($C71="X",3,0)+IF($D71="X",4,0)+IF($E71="X",5,0)+IF($F71="X",6,0)+IF($H71="X",10,0) -> 10 | X71: =COUNTA(K71:L71)+IF(RIGHT(M71&N71,1)="X",1,0) -> 3 | Y71: 8J087X51-34 | Z71: =IF(COUNTIF($A71:$H71, "<>"&"")=0,"INVALID COMBO","") -> 
D72: X | F72: X | J72: VHF | K72: X | L72: X | N72: X | O72: USER | P72: IB+XB | Q72: DVR (VHF) Inband & Crossband; For APX (VHF+UHF+800) using Unknown or User-Defined Antenna | R72: 1 | S72: 11 | T72: 5 | U72: 2 | V72: 477 | W72: 10 | X72: 3 | Y72: No Drawing
B73: X | J73: VHF | M73: X | N73: X | O73: SINGLE | P73: XB-Forced | Q73: DVR (VHF) Crossband; For APX (700+800) using Single-Band Antenna(s) | R73: 1 | S73: 12 | T73: 4 | U73: 0 | V73: 489 | W73: 2 | X73: 1 | Y73: No Drawing
B74: X | J74: VHF | M74: X | N74: X | O74: ALL | P74: XB-Forced | Q74: DVR (VHF) Crossband; For APX (700+800) using One All-Band Antenna | R74: 1 | S74: 12 | T74: 4 | U74: 1 | V74: 490 | W74: 2 | X74: 1 | Y74: No Drawing
B75: X | J75: VHF | M75: X | N75: X | O75: USER | P75: XB-Forced | Q75: DVR (VHF) Crossband; For APX (700+800) using Unknown or User-Defined Antenna | R75: 1 | S75: 12 | T75: 4 | U75: 2 | V75: 491 | W75: 2 | X75: 1 | Y75: No Drawing
B76: X | F76: X | J76: VHF | K76: X | M76: X | N76: X | O76: SINGLE | P76: IB-Only | Q76: DVR (VHF) Inband/No Crossband; For APX (VHF+700+800) using Single-Band Antenna(s) | R76: 1 | S76: 13 | T76: 1 | U76: 0 | V76: 497 | W76: 8 | X76: 2 | Y76: No Drawing
F77: X | J77: VHF | K77: X | M77: X | N77: X | O77: ALL | P77: IB-Only | Q77: DVR (VHF) Inband/No Crossband; For APX (VHF+700+800) using One All-Band Antenna | R77: 1 | S77: 13 | T77: 1 | U77: 1 | V77: 498 | W77: 6 | X77: 2 | Y77: No Drawing
F78: X | J78: VHF | K78: X | M78: X | N78: X | O78: USER | P78: IB-Only | Q78: DVR (VHF) Inband/No Crossband; For APX (VHF+700+800) using Unknown or User-Defined Antenna | R78: 1 | S78: 13 | T78: 1 | U78: 2 | V78: 499 | W78: 6 | X78: 2 | Y78: No Drawing
B79: X | H79: X | J79: VHF | K79: X | M79: X | N79: X | O79: SINGLE | P79: XB-Only | Q79: DVR (VHF) Crossband/No Inband; For APX (VHF+700+800) using Single-Band Antenna(s) | R79: 1 | S79: 13 | T79: 3 | U79: 0 | V79: 503 | W79: 12 | X79: 2 | Y79: 8J087X51-44
C80: X | J80: VHF | K80: X | M80: X | N80: X | O80: ALL | P80: XB-Only | Q80: DVR (VHF) Crossband/No Inband; For APX (VHF+700+800) using One All-Band Antenna | R80: 1 | S80: 13 | T80: 3 | U80: 1 | V80: 504 | W80: 3 | X80: 2 | Y80: 8J087X51-02
C81: X | J81: VHF | K81: X | M81: X | N81: X | O81: USER | P81: XB-Only | Q81: DVR (VHF) Crossband/No Inband; For APX (VHF+700+800) using Unknown or User-Defined Antenna | R81: 1 | S81: 13 | T81: 3 | U81: 2 | V81: 505 | W81: 3 | X81: 2 | Y81: No Drawing
B82: X | F82: X | J82: VHF | K82: X | M82: X | N82: X | O82: SINGLE | P82: IB+XB | Q82: DVR (VHF) Inband & Crossband; For APX (VHF+700+800) using Single-Band Antenna(s) | R82: 1 | S82: 13 | T82: 5 | U82: 0 | V82: 509 | W82: 8 | X82: 2 | Y82: No Drawing
D83: X | F83: X | J83: VHF | K83: X | M83: X | N83: X | O83: ALL | P83: IB+XB | Q83: DVR (VHF) Inband & Crossband; For APX (VHF+700+800) using One All-Band Antenna | R83: 1 | S83: 13 | T83: 5 | U83: 1 | V83: 510 | W83: 10 | X83: 2 | Y83: 8J087X51-26
D84: X | F84: X | J84: VHF | K84: X | M84: X | N84: X | O84: USER | P84: IB+XB | Q84: DVR (VHF) Inband & Crossband; For APX (VHF+700+800) using Unknown or User-Defined Antenna | R84: 1 | S84: 13 | T84: 5 | U84: 2 | V84: 511 | W84: 10 | X84: 2 | Y84: No Drawing
B85: X | J85: VHF | L85: X | M85: X | N85: X | O85: SINGLE | P85: XB-Forced | Q85: DVR (VHF) Crossband; For APX (UHF+700+800) using Single-Band Antenna(s) | R85: 1 | S85: 14 | T85: 4 | U85: 0 | V85: 523 | W85: 2 | X85: 2 | Y85: No Drawing
D86: X | J86: VHF | L86: X | M86: X | N86: X | O86: ALL | P86: XB-Forced | Q86: DVR (VHF) Crossband; For APX (UHF+700+800) using One All-Band Antenna | R86: 1 | S86: 14 | T86: 4 | U86: 1 | V86: 524 | W86: 4 | X86: 2 | Y86: 8J087X51-16
D87: X | J87: VHF | L87: X | M87: X | N87: X | O87: USER | P87: XB-Forced | Q87: DVR (VHF) Crossband; For APX (UHF+700+800) using Unknown or User-Defined Antenna | R87: 1 | S87: 14 | T87: 4 | U87: 2 | V87: 525 | W87: 4 | X87: 2 | Y87: No Drawing
B88: X | F88: X | J88: VHF | K88: X | L88: X | M88: X | N88: X | O88: SINGLE | P88: IB-Only | Q88: DVR (VHF) Inband/No Crossband; For APX (VHF+UHF+700+800) using Single-Band Antenna(s) | R88: 1 | S88: 15 | T88: 1 | U88: 0 | V88: 531 | W88: 8 | X88: 3 | Y88: No Drawing
F89: X | J89: VHF | K89: X | L89: X | M89: X | N89: X | O89: ALL | P89: IB-Only | Q89: DVR (VHF) Inband/No Crossband; For APX (VHF+UHF+700+800) using One All-Band Antenna | R89: 1 | S89: 15 | T89: 1 | U89: 1 | V89: 532 | W89: 6 | X89: 3 | Y89: No Drawing
F90: X | J90: VHF | K90: X | L90: X | M90: X | N90: X | O90: USER | P90: IB-Only | Q90: DVR (VHF) Inband/No Crossband; For APX (VHF+UHF+700+800) using Unknown or User-Defined Antenna | R90: 1 | S90: 15 | T90: 1 | U90: 2 | V90: 533 | W90: 6 | X90: 3 | Y90: No Drawing
B91: X | H91: X | J91: VHF | K91: X | L91: X | M91: X | N91: X | O91: SINGLE | P91: XB-Only | Q91: DVR (VHF) Crossband/No Inband; For APX (VHF+UHF+700+800) using Single-Band Antenna(s) | R91: 1 | S91: 15 | T91: 3 | U91: 0 | V91: 537 | W91: 12 | X91: 3 | Y91: 8J087X51-55
E92: X | J92: VHF | K92: X | L92: X | M92: X | N92: X | O92: ALL | P92: XB-Only | Q92: DVR (VHF) Crossband/No Inband; For APX (VHF+UHF+700+800) using One All-Band Antenna | R92: 1 | S92: 15 | T92: 3 | U92: 1 | V92: 538 | W92: 5 | X92: 3 | Y92: 8J087X51-37
E93: X | J93: VHF | K93: X | L93: X | M93: X | N93: X | O93: USER | P93: XB-Only | Q93: DVR (VHF) Crossband/No Inband; For APX (VHF+UHF+700+800) using Unknown or User-Defined Antenna | R93: 1 | S93: 15 | T93: 3 | U93: 2 | V93: 539 | W93: 5 | X93: 3 | Y93: No Drawing
B94: X | F94: X | J94: VHF | K94: X | L94: X | M94: X | N94: X | O94: SINGLE | P94: IB+XB | Q94: DVR (VHF) Inband & Crossband; For APX (VHF+UHF+700+800) using Single-Band Antenna(s) | R94: 1 | S94: 15 | T94: 5 | U94: 0 | V94: 543 | W94: 8 | X94: 3 | Y94: No Drawing
D95: X | F95: X | J95: VHF | K95: X | L95: X | M95: X | N95: X | O95: ALL | P95: IB+XB | Q95: DVR (VHF) Inband & Crossband; For APX (VHF+UHF+700+800) using One All-Band Antenna | R95: 1 | S95: 15 | T95: 5 | U95: 1 | V95: 544 | W95: 10 | X95: 3 | Y95: 8J087X51-34
D96: X | F96: X | J96: VHF | K96: X | L96: X | M96: X | N96: X | O96: USER | P96: IB+XB | Q96: DVR (VHF) Inband & Crossband; For APX (VHF+UHF+700+800) using Unknown or User-Defined Antenna | R96: 1 | S96: 15 | T96: 5 | U96: 2 | V96: 545 | W96: 10 | X96: 3 | Y96: No Drawing
B97: X | J97: UHF | K97: X | O97: SINGLE | P97: XB-Forced | Q97: DVR (UHF) Crossband; For APX (VHF) using Single-Band Antenna(s) | R97: 2 | S97: 1 | T97: 4 | U97: 0 | V97: 575 | W97: 2 | X97: 1 | Y97: No Drawing
B98: X | J98: UHF | K98: X | O98: ALL | P98: XB-Forced | Q98: DVR (UHF) Crossband; For APX (VHF) using One All-Band Antenna | R98: 2 | S98: 1 | T98: 4 | U98: 1 | V98: 576 | W98: 2 | X98: 1 | Y98: No Drawing
B99: X | J99: UHF | K99: X | O99: USER | P99: XB-Forced | Q99: DVR (UHF) Crossband; For APX (VHF) using Unknown or User-Defined Antenna | R99: 2 | S99: 1 | T99: 4 | U99: 2 | V99: 577 | W99: 2 | X99: 1 | Y99: No Drawing
A100: X | F100: X | J100: UHF | L100: X | O100: SINGLE | P100: IB-Forced | Q100: DVR (UHF) Inband; For APX (UHF) using Single-Band Antenna(s) | R100: 2 | S100: 2 | T100: 2 | U100: 0 | V100: 586 | W100: 7 | X100: 1 | Y100: No Drawing
A101: X | F101: X | J101: UHF | L101: X | O101: ALL | P101: IB-Forced | Q101: DVR (UHF) Inband; For APX (UHF) using One All-Band Antenna | R101: 2 | S101: 2 | T101: 2 | U101: 1 | V101: 587 | W101: 7 | X101: 1 | Y101: No Drawing
A102: X | F102: X | J102: UHF | L102: X | O102: USER | P102: IB-Forced | Q102: DVR (UHF) Inband; For APX (UHF) using Unknown or User-Defined Antenna | R102: 2 | S102: 2 | T102: 2 | U102: 2 | V102: 588 | W102: 7 | X102: 1 | Y102: No Drawing
I103: INVALID COMBO | J103: UHF | L103: X | O103: SINGLE | P103: XB-Only | Q103: DVR (UHF) Crossband/No Inband; For APX (UHF) using Single-Band Antenna(s) | R103: 2 | S103: 2 | T103: 3 | U103: 0 | V103: 589 | W103: 0 | X103: 1 | Y103: No Drawing | Z103: INVALID COMBO
I104: INVALID COMBO | J104: UHF | L104: X | O104: ALL | P104: XB-Only | Q104: DVR (UHF) Crossband/No Inband; For APX (UHF) using One All-Band Antenna | R104: 2 | S104: 2 | T104: 3 | U104: 1 | V104: 590 | W104: 0 | X104: 1 | Y104: No Drawing | Z104: INVALID COMBO
I105: INVALID COMBO | J105: UHF | L105: X | O105: USER | P105: XB-Only | Q105: DVR (UHF) Crossband/No Inband; For APX (UHF) using Unknown or User-Defined Antenna | R105: 2 | S105: 2 | T105: 3 | U105: 2 | V105: 591 | W105: 0 | X105: 1 | Y105: No Drawing | Z105: INVALID COMBO
B106: X | F106: X | J106: UHF | K106: X | L106: X | O106: SINGLE | P106: IB-Only | Q106: DVR (UHF) Inband/No Crossband; For APX (VHF+UHF) using Single-Band Antenna(s) | R106: 2 | S106: 3 | T106: 1 | U106: 0 | V106: 600 | W106: 8 | X106: 2 | Y106: No Drawing
F107: X | J107: UHF | K107: X | L107: X | O107: ALL | P107: IB-Only | Q107: DVR (UHF) Inband/No Crossband; For APX (VHF+UHF) using One All-Band Antenna | R107: 2 | S107: 3 | T107: 1 | U107: 1 | V107: 601 | W107: 6 | X107: 2 | Y107: No Drawing
F108: X | J108: UHF | K108: X | L108: X | O108: USER | P108: IB-Only | Q108: DVR (UHF) Inband/No Crossband; For APX (VHF+UHF) using Unknown or User-Defined Antenna | R108: 2 | S108: 3 | T108: 1 | U108: 2 | V108: 602 | W108: 6 | X108: 2 | Y108: No Drawing
B109: X | H109: X | J109: UHF | K109: X | L109: X | O109: SINGLE | P109: XB-Only | Q109: DVR (UHF) Crossband/No Inband; For APX (VHF+UHF) using Single-Band Antenna(s) | R109: 2 | S109: 3 | T109: 3 | U109: 0 | V109: 606 | W109: 12 | X109: 2 | Y109: 8J087X51-45
C110: X | J110: UHF | K110: X | L110: X | O110: ALL | P110: XB-Only | Q110: DVR (UHF) Crossband/No Inband; For APX (VHF+UHF) using One All-Band Antenna | R110: 2 | S110: 3 | T110: 3 | U110: 1 | V110: 607 | W110: 3 | X110: 2 | Y110: 8J087X51-03
C111: X | J111: UHF | K111: X | L111: X | O111: USER | P111: XB-Only | Q111: DVR (UHF) Crossband/No Inband; For APX (VHF+UHF) using Unknown or User-Defined Antenna | R111: 2 | S111: 3 | T111: 3 | U111: 2 | V111: 608 | W111: 3 | X111: 2 | Y111: No Drawing
B112: X | F112: X | J112: UHF | K112: X | L112: X | O112: SINGLE | P112: IB+XB | Q112: DVR (UHF) Inband & Crossband; For APX (VHF+UHF) using Single-Band Antenna(s) | R112: 2 | S112: 3 | T112: 5 | U112: 0 | V112: 612 | W112: 8 | X112: 2 | Y112: No Drawing
D113: X | F113: X | J113: UHF | K113: X | L113: X | O113: ALL | P113: IB+XB | Q113: DVR (UHF) Inband & Crossband; For APX (VHF+UHF) using One All-Band Antenna | R113: 2 | S113: 3 | T113: 5 | U113: 1 | V113: 613 | W113: 10 | X113: 2 | Y113: 8J087X51-27
D114: X | F114: X | J114: UHF | K114: X | L114: X | O114: USER | P114: IB+XB | Q114: DVR (UHF) Inband & Crossband; For APX (VHF+UHF) using Unknown or User-Defined Antenna | R114: 2 | S114: 3 | T114: 5 | U114: 2 | V114: 614 | W114: 10 | X114: 2 | Y114: No Drawing
B115: X | J115: UHF | M115: X | O115: SINGLE | P115: XB-Forced | Q115: DVR (UHF) Crossband; For APX (700) using Single-Band Antenna(s) | R115: 2 | S115: 4 | T115: 4 | U115: 0 | V115: 626 | W115: 2 | X115: 1 | Y115: No Drawing
B116: X | J116: UHF | M116: X | O116: ALL | P116: XB-Forced | Q116: DVR (UHF) Crossband; For APX (700) using One All-Band Antenna | R116: 2 | S116: 4 | T116: 4 | U116: 1 | V116: 627 | W116: 2 | X116: 1 | Y116: No Drawing
B117: X | J117: UHF | M117: X | O117: USER | P117: XB-Forced | Q117: DVR (UHF) Crossband; For APX (700) using Unknown or User-Defined Antenna | R117: 2 | S117: 4 | T117: 4 | U117: 2 | V117: 628 | W117: 2 | X117: 1 | Y117: No Drawing
B118: X | J118: UHF | K118: X | M118: X | O118: SINGLE | P118: XB-Forced | Q118: DVR (UHF) Crossband; For APX (VHF+700) using Single-Band Antenna(s) | R118: 2 | S118: 5 | T118: 4 | U118: 0 | V118: 643 | W118: 2 | X118: 2 | Y118: No Drawing
D119: X | J119: UHF | K119: X | M119: X | O119: ALL | P119: XB-Forced | Q119: DVR (UHF) Crossband; For APX (VHF+700) using One All-Band Antenna | R119: 2 | S119: 5 | T119: 4 | U119: 1 | V119: 644 | W119: 4 | X119: 2 | Y119: 8J087X51-17
D120: X | J120: UHF | K120: X | M120: X | O120: USER | P120: XB-Forced | Q120: DVR (UHF) Crossband; For APX (VHF+700) using Unknown or User-Defined Antenna | R120: 2 | S120: 5 | T120: 4 | U120: 2 | V120: 645 | W120: 4 | X120: 2 | Y120: No Drawing
B121: X | F121: X | J121: UHF | L121: X | M121: X | O121: SINGLE | P121: IB-Only | Q121: DVR (UHF) Inband/No Crossband; For APX (UHF+700) using Single-Band Antenna(s) | R121: 2 | S121: 6 | T121: 1 | U121: 0 | V121: 651 | W121: 8 | X121: 2 | Y121: No Drawing
F122: X | J122: UHF | L122: X | M122: X | O122: ALL | P122: IB-Only | Q122: DVR (UHF) Inband/No Crossband; For APX (UHF+700) using One All-Band Antenna | R122: 2 | S122: 6 | T122: 1 | U122: 1 | V122: 652 | W122: 6 | X122: 2 | Y122: No Drawing
F123: X | J123: UHF | L123: X | M123: X | O123: USER | P123: IB-Only | Q123: DVR (UHF) Inband/No Crossband; For APX (UHF+700) using Unknown or User-Defined Antenna | R123: 2 | S123: 6 | T123: 1 | U123: 2 | V123: 653 | W123: 6 | X123: 2 | Y123: No Drawing
B124: X | H124: X | J124: UHF | L124: X | M124: X | O124: SINGLE | P124: XB-Only | Q124: DVR (UHF) Crossband/No Inband; For APX (UHF+700) using Single-Band Antenna(s) | R124: 2 | S124: 6 | T124: 3 | U124: 0 | V124: 657 | W124: 12 | X124: 2 | Y124: 8J087X51-46
C125: X | J125: UHF | L125: X | M125: X | O125: ALL | P125: XB-Only | Q125: DVR (UHF) Crossband/No Inband; For APX (UHF+700) using One All-Band Antenna | R125: 2 | S125: 6 | T125: 3 | U125: 1 | V125: 658 | W125: 3 | X125: 2 | Y125: 8J087X51-04
C126: X | J126: UHF | L126: X | M126: X | O126: USER | P126: XB-Only | Q126: DVR (UHF) Crossband/No Inband; For APX (UHF+700) using Unknown or User-Defined Antenna | R126: 2 | S126: 6 | T126: 3 | U126: 2 | V126: 659 | W126: 3 | X126: 2 | Y126: No Drawing
B127: X | F127: X | J127: UHF | L127: X | M127: X | O127: SINGLE | P127: IB+XB | Q127: DVR (UHF) Inband & Crossband; For APX (UHF+700) using Single-Band Antenna(s) | R127: 2 | S127: 6 | T127: 5 | U127: 0 | V127: 663 | W127: 8 | X127: 2 | Y127: No Drawing
D128: X | F128: X | J128: UHF | L128: X | M128: X | O128: ALL | P128: IB+XB | Q128: DVR (UHF) Inband & Crossband; For APX (UHF+700) using One All-Band Antenna | R128: 2 | S128: 6 | T128: 5 | U128: 1 | V128: 664 | W128: 10 | X128: 2 | Y128: 8J087X51-28
D129: X | F129: X | J129: UHF | L129: X | M129: X | O129: USER | P129: IB+XB | Q129: DVR (UHF) Inband & Crossband; For APX (UHF+700) using Unknown or User-Defined Antenna | R129: 2 | S129: 6 | T129: 5 | U129: 2 | V129: 665 | W129: 10 | X129: 2 | Y129: No Drawing
B130: X | F130: X | J130: UHF | K130: X | L130: X | M130: X | O130: SINGLE | P130: IB-Only | Q130: DVR (UHF) Inband/No Crossband; For APX (VHF+UHF+700) using Single-Band Antenna(s) | R130: 2 | S130: 7 | T130: 1 | U130: 0 | V130: 668 | W130: 8 | X130: 3 | Y130: No Drawing
F131: X | J131: UHF | K131: X | L131: X | M131: X | O131: ALL | P131: IB-Only | Q131: DVR (UHF) Inband/No Crossband; For APX (VHF+UHF+700) using One All-Band Antenna | R131: 2 | S131: 7 | T131: 1 | U131: 1 | V131: 669 | W131: 6 | X131: 3 | Y131: No Drawing
F132: X | J132: UHF | K132: X | L132: X | M132: X | O132: USER | P132: IB-Only | Q132: DVR (UHF) Inband/No Crossband; For APX (VHF+UHF+700) using Unknown or User-Defined Antenna | R132: 2 | S132: 7 | T132: 1 | U132: 2 | V132: 670 | W132: 6 | X132: 3 | Y132: No Drawing
B133: X | H133: X | J133: UHF | K133: X | L133: X | M133: X | O133: SINGLE | P133: XB-Only | Q133: DVR (UHF) Crossband/No Inband; For APX (VHF+UHF+700) using Single-Band Antenna(s) | R133: 2 | S133: 7 | T133: 3 | U133: 0 | V133: 674 | W133: 12 | X133: 3 | Y133: 8J087X51-56
E134: X | J134: UHF | K134: X | L134: X | M134: X | O134: ALL | P134: XB-Only | Q134: DVR (UHF) Crossband/No Inband; For APX (VHF+UHF+700) using One All-Band Antenna | R134: 2 | S134: 7 | T134: 3 | U134: 1 | V134: 675 | W134: 5 | X134: 3 | Y134: 8J087X51-38
E135: X | J135: UHF | K135: X | L135: X | M135: X | O135: USER | P135: XB-Only | Q135: =$J$6&"("&$J135&")"&" "&VLOOKUP($P135,RPTCodes,2,FALSE) &"; For APX ("&VLOOKUP($S135,BAND_NAMES,2)&") using "&VLOOKUP($O135,ANTcodes,3,FALSE) -> DVR (UHF) Crossband/No Inband; For APX (VHF+UHF+700) using Unknown or User-Defined Antenna | R135: =VLOOKUP(J135,Freq_Bands,2) -> 2 | S135: =IF(K135="X",1,0)+IF(L135="X",2,0)+IF(M135="X",4,0)+IF(N135="X",8,0) -> 7 | T135: =VLOOKUP(P135,RPTCodes,4,FALSE) -> 3 | U135: =VLOOKUP(O135,ANTcodes,2,FALSE) -> 2 | V135: =$U135*MULT_ANT+$T135*MULT_RPT+$S135*MULT_MRF+$R135*MULT_VRF -> 676 | W135: =IF($A135="X",1,0)+IF($B135="X",2,0)+IF($C135="X",3,0)+IF($D135="X",4,0)+IF($E135="X",5,0)+IF($F135="X",6,0)+IF($H135="X",10,0) -> 5 | X135: =COUNTA(K135:L135)+IF(RIGHT(M135&N135,1)="X",1,0) -> 3 | Y135: No Drawing | Z135: =IF(COUNTIF($A135:$H135, "<>"&"")=0,"INVALID COMBO","") -> 
B136: X | F136: X | J136: UHF | K136: X | L136: X | M136: X | O136: SINGLE | P136: IB+XB | Q136: DVR (UHF) Inband & Crossband; For APX (VHF+UHF+700) using Single-Band Antenna(s) | R136: 2 | S136: 7 | T136: 5 | U136: 0 | V136: 680 | W136: 8 | X136: 3 | Y136: No Drawing
D137: X | F137: X | J137: UHF | K137: X | L137: X | M137: X | O137: ALL | P137: IB+XB | Q137: DVR (UHF) Inband & Crossband; For APX (VHF+UHF+700) using One All-Band Antenna | R137: 2 | S137: 7 | T137: 5 | U137: 1 | V137: 681 | W137: 10 | X137: 3 | Y137: 8J087X51-35
D138: X | F138: X | J138: UHF | K138: X | L138: X | M138: X | O138: USER | P138: IB+XB | Q138: DVR (UHF) Inband & Crossband; For APX (VHF+UHF+700) using Unknown or User-Defined Antenna | R138: 2 | S138: 7 | T138: 5 | U138: 2 | V138: 682 | W138: 10 | X138: 3 | Y138: No Drawing
B139: X | J139: UHF | N139: X | O139: SINGLE | P139: XB-Forced | Q139: DVR (UHF) Crossband; For APX (800) using Single-Band Antenna(s) | R139: 2 | S139: 8 | T139: 4 | U139: 0 | V139: 694 | W139: 2 | X139: 1 | Y139: No Drawing
B140: X | J140: UHF | N140: X | O140: ALL | P140: XB-Forced | Q140: DVR (UHF) Crossband; For APX (800) using One All-Band Antenna | R140: 2 | S140: 8 | T140: 4 | U140: 1 | V140: 695 | W140: 2 | X140: 1 | Y140: No Drawing
B141: X | J141: UHF | N141: X | O141: USER | P141: XB-Forced | Q141: DVR (UHF) Crossband; For APX (800) using Unknown or User-Defined Antenna | R141: 2 | S141: 8 | T141: 4 | U141: 2 | V141: 696 | W141: 2 | X141: 1 | Y141: No Drawing
B142: X | J142: UHF | K142: X | N142: X | O142: SINGLE | P142: XB-Forced | Q142: DVR (UHF) Crossband; For APX (VHF+800) using Single-Band Antenna(s) | R142: 2 | S142: 9 | T142: 4 | U142: 0 | V142: 711 | W142: 2 | X142: 2 | Y142: No Drawing
D143: X | J143: UHF | K143: X | N143: X | O143: ALL | P143: XB-Forced | Q143: DVR (UHF) Crossband; For APX (VHF+800) using One All-Band Antenna | R143: 2 | S143: 9 | T143: 4 | U143: 1 | V143: 712 | W143: 4 | X143: 2 | Y143: 8J087X51-17
D144: X | J144: UHF | K144: X | N144: X | O144: USER | P144: XB-Forced | Q144: DVR (UHF) Crossband; For APX (VHF+800) using Unknown or User-Defined Antenna | R144: 2 | S144: 9 | T144: 4 | U144: 2 | V144: 713 | W144: 4 | X144: 2 | Y144: No Drawing
B145: X | F145: X | J145: UHF | L145: X | N145: X | O145: SINGLE | P145: IB-Only | Q145: DVR (UHF) Inband/No Crossband; For APX (UHF+800) using Single-Band Antenna(s) | R145: 2 | S145: 10 | T145: 1 | U145: 0 | V145: 719 | W145: 8 | X145: 2 | Y145: No Drawing
F146: X | J146: UHF | L146: X | N146: X | O146: ALL | P146: IB-Only | Q146: DVR (UHF) Inband/No Crossband; For APX (UHF+800) using One All-Band Antenna | R146: 2 | S146: 10 | T146: 1 | U146: 1 | V146: 720 | W146: 6 | X146: 2 | Y146: No Drawing
F147: X | J147: UHF | L147: X | N147: X | O147: USER | P147: IB-Only | Q147: DVR (UHF) Inband/No Crossband; For APX (UHF+800) using Unknown or User-Defined Antenna | R147: 2 | S147: 10 | T147: 1 | U147: 2 | V147: 721 | W147: 6 | X147: 2 | Y147: No Drawing
B148: X | H148: X | J148: UHF | L148: X | N148: X | O148: SINGLE | P148: XB-Only | Q148: DVR (UHF) Crossband/No Inband; For APX (UHF+800) using Single-Band Antenna(s) | R148: 2 | S148: 10 | T148: 3 | U148: 0 | V148: 725 | W148: 12 | X148: 2 | Y148: 8J087X51-46
C149: X | J149: UHF | L149: X | N149: X | O149: ALL | P149: XB-Only | Q149: DVR (UHF) Crossband/No Inband; For APX (UHF+800) using One All-Band Antenna | R149: 2 | S149: 10 | T149: 3 | U149: 1 | V149: 726 | W149: 3 | X149: 2 | Y149: 8J087X51-04
C150: X | J150: UHF | L150: X | N150: X | O150: USER | P150: XB-Only | Q150: DVR (UHF) Crossband/No Inband; For APX (UHF+800) using Unknown or User-Defined Antenna | R150: 2 | S150: 10 | T150: 3 | U150: 2 | V150: 727 | W150: 3 | X150: 2 | Y150: No Drawing
B151: X | F151: X | J151: UHF | L151: X | N151: X | O151: SINGLE | P151: IB+XB | Q151: DVR (UHF) Inband & Crossband; For APX (UHF+800) using Single-Band Antenna(s) | R151: 2 | S151: 10 | T151: 5 | U151: 0 | V151: 731 | W151: 8 | X151: 2 | Y151: No Drawing
D152: X | F152: X | J152: UHF | L152: X | N152: X | O152: ALL | P152: IB+XB | Q152: DVR (UHF) Inband & Crossband; For APX (UHF+800) using One All-Band Antenna | R152: 2 | S152: 10 | T152: 5 | U152: 1 | V152: 732 | W152: 10 | X152: 2 | Y152: 8J087X51-28
D153: X | F153: X | J153: UHF | L153: X | N153: X | O153: USER | P153: IB+XB | Q153: DVR (UHF) Inband & Crossband; For APX (UHF+800) using Unknown or User-Defined Antenna | R153: 2 | S153: 10 | T153: 5 | U153: 2 | V153: 733 | W153: 10 | X153: 2 | Y153: No Drawing
B154: X | F154: X | J154: UHF | K154: X | L154: X | N154: X | O154: SINGLE | P154: IB-Only | Q154: DVR (UHF) Inband/No Crossband; For APX (VHF+UHF+800) using Single-Band Antenna(s) | R154: 2 | S154: 11 | T154: 1 | U154: 0 | V154: 736 | W154: 8 | X154: 3 | Y154: No Drawing
F155: X | J155: UHF | K155: X | L155: X | N155: X | O155: ALL | P155: IB-Only | Q155: DVR (UHF) Inband/No Crossband; For APX (VHF+UHF+800) using One All-Band Antenna | R155: 2 | S155: 11 | T155: 1 | U155: 1 | V155: 737 | W155: 6 | X155: 3 | Y155: No Drawing
F156: X | J156: UHF | K156: X | L156: X | N156: X | O156: USER | P156: IB-Only | Q156: DVR (UHF) Inband/No Crossband; For APX (VHF+UHF+800) using Unknown or User-Defined Antenna | R156: 2 | S156: 11 | T156: 1 | U156: 2 | V156: 738 | W156: 6 | X156: 3 | Y156: No Drawing
B157: X | H157: X | J157: UHF | K157: X | L157: X | N157: X | O157: SINGLE | P157: XB-Only | Q157: DVR (UHF) Crossband/No Inband; For APX (VHF+UHF+800) using Single-Band Antenna(s) | R157: 2 | S157: 11 | T157: 3 | U157: 0 | V157: 742 | W157: 12 | X157: 3 | Y157: 8J087X51-56
E158: X | J158: UHF | K158: X | L158: X | N158: X | O158: ALL | P158: XB-Only | Q158: DVR (UHF) Crossband/No Inband; For APX (VHF+UHF+800) using One All-Band Antenna | R158: 2 | S158: 11 | T158: 3 | U158: 1 | V158: 743 | W158: 5 | X158: 3 | Y158: 8J087X51-38
E159: X | J159: UHF | K159: X | L159: X | N159: X | O159: USER | P159: XB-Only | Q159: DVR (UHF) Crossband/No Inband; For APX (VHF+UHF+800) using Unknown or User-Defined Antenna | R159: 2 | S159: 11 | T159: 3 | U159: 2 | V159: 744 | W159: 5 | X159: 3 | Y159: No Drawing
B160: X | F160: X | J160: UHF | K160: X | L160: X | N160: X | O160: SINGLE | P160: IB+XB | Q160: DVR (UHF) Inband & Crossband; For APX (VHF+UHF+800) using Single-Band Antenna(s) | R160: 2 | S160: 11 | T160: 5 | U160: 0 | V160: 748 | W160: 8 | X160: 3 | Y160: No Drawing
D161: X | F161: X | J161: UHF | K161: X | L161: X | N161: X | O161: ALL | P161: IB+XB | Q161: DVR (UHF) Inband & Crossband; For APX (VHF+UHF+800) using One All-Band Antenna | R161: 2 | S161: 11 | T161: 5 | U161: 1 | V161: 749 | W161: 10 | X161: 3 | Y161: 8J087X51-35
D162: X | F162: X | J162: UHF | K162: X | L162: X | N162: X | O162: USER | P162: IB+XB | Q162: DVR (UHF) Inband & Crossband; For APX (VHF+UHF+800) using Unknown or User-Defined Antenna | R162: 2 | S162: 11 | T162: 5 | U162: 2 | V162: 750 | W162: 10 | X162: 3 | Y162: No Drawing
B163: X | J163: UHF | M163: X | N163: X | O163: SINGLE | P163: XB-Forced | Q163: DVR (UHF) Crossband; For APX (700+800) using Single-Band Antenna(s) | R163: 2 | S163: 12 | T163: 4 | U163: 0 | V163: 762 | W163: 2 | X163: 1 | Y163: No Drawing
B164: X | J164: UHF | M164: X | N164: X | O164: ALL | P164: XB-Forced | Q164: DVR (UHF) Crossband; For APX (700+800) using One All-Band Antenna | R164: 2 | S164: 12 | T164: 4 | U164: 1 | V164: 763 | W164: 2 | X164: 1 | Y164: No Drawing
B165: X | J165: UHF | M165: X | N165: X | O165: USER | P165: XB-Forced | Q165: DVR (UHF) Crossband; For APX (700+800) using Unknown or User-Defined Antenna | R165: 2 | S165: 12 | T165: 4 | U165: 2 | V165: 764 | W165: 2 | X165: 1 | Y165: No Drawing
B166: X | J166: UHF | K166: X | M166: X | N166: X | O166: SINGLE | P166: XB-Forced | Q166: DVR (UHF) Crossband; For APX (VHF+700+800) using Single-Band Antenna(s) | R166: 2 | S166: 13 | T166: 4 | U166: 0 | V166: 779 | W166: 2 | X166: 2 | Y166: No Drawing
D167: X | J167: UHF | K167: X | M167: X | N167: X | O167: ALL | P167: XB-Forced | Q167: DVR (UHF) Crossband; For APX (VHF+700+800) using One All-Band Antenna | R167: 2 | S167: 13 | T167: 4 | U167: 1 | V167: 780 | W167: 4 | X167: 2 | Y167: 8J087X51-17
D168: X | J168: UHF | K168: X | M168: X | N168: X | O168: USER | P168: XB-Forced | Q168: DVR (UHF) Crossband; For APX (VHF+700+800) using Unknown or User-Defined Antenna | R168: 2 | S168: 13 | T168: 4 | U168: 2 | V168: 781 | W168: 4 | X168: 2 | Y168: No Drawing
B169: X | F169: X | J169: UHF | L169: X | M169: X | N169: X | O169: SINGLE | P169: IB-Only | Q169: DVR (UHF) Inband/No Crossband; For APX (UHF+700+800) using Single-Band Antenna(s) | R169: 2 | S169: 14 | T169: 1 | U169: 0 | V169: 787 | W169: 8 | X169: 2 | Y169: No Drawing
F170: X | J170: UHF | L170: X | M170: X | N170: X | O170: ALL | P170: IB-Only | Q170: DVR (UHF) Inband/No Crossband; For APX (UHF+700+800) using One All-Band Antenna | R170: 2 | S170: 14 | T170: 1 | U170: 1 | V170: 788 | W170: 6 | X170: 2 | Y170: No Drawing
F171: X | J171: UHF | L171: X | M171: X | N171: X | O171: USER | P171: IB-Only | Q171: DVR (UHF) Inband/No Crossband; For APX (UHF+700+800) using Unknown or User-Defined Antenna | R171: 2 | S171: 14 | T171: 1 | U171: 2 | V171: 789 | W171: 6 | X171: 2 | Y171: No Drawing
B172: X | H172: X | J172: UHF | L172: X | M172: X | N172: X | O172: SINGLE | P172: XB-Only | Q172: DVR (UHF) Crossband/No Inband; For APX (UHF+700+800) using Single-Band Antenna(s) | R172: 2 | S172: 14 | T172: 3 | U172: 0 | V172: 793 | W172: 12 | X172: 2 | Y172: 8J087X51-46
C173: X | J173: UHF | L173: X | M173: X | N173: X | O173: ALL | P173: XB-Only | Q173: DVR (UHF) Crossband/No Inband; For APX (UHF+700+800) using One All-Band Antenna | R173: 2 | S173: 14 | T173: 3 | U173: 1 | V173: 794 | W173: 3 | X173: 2 | Y173: 8J087X51-04
C174: X | J174: UHF | L174: X | M174: X | N174: X | O174: USER | P174: XB-Only | Q174: DVR (UHF) Crossband/No Inband; For APX (UHF+700+800) using Unknown or User-Defined Antenna | R174: 2 | S174: 14 | T174: 3 | U174: 2 | V174: 795 | W174: 3 | X174: 2 | Y174: No Drawing
B175: X | F175: X | J175: UHF | L175: X | M175: X | N175: X | O175: SINGLE | P175: IB+XB | Q175: DVR (UHF) Inband & Crossband; For APX (UHF+700+800) using Single-Band Antenna(s) | R175: 2 | S175: 14 | T175: 5 | U175: 0 | V175: 799 | W175: 8 | X175: 2 | Y175: No Drawing
D176: X | F176: X | J176: UHF | L176: X | M176: X | N176: X | O176: ALL | P176: IB+XB | Q176: DVR (UHF) Inband & Crossband; For APX (UHF+700+800) using One All-Band Antenna | R176: 2 | S176: 14 | T176: 5 | U176: 1 | V176: 800 | W176: 10 | X176: 2 | Y176: 8J087X51-28
D177: X | F177: X | J177: UHF | L177: X | M177: X | N177: X | O177: USER | P177: IB+XB | Q177: DVR (UHF) Inband & Crossband; For APX (UHF+700+800) using Unknown or User-Defined Antenna | R177: 2 | S177: 14 | T177: 5 | U177: 2 | V177: 801 | W177: 10 | X177: 2 | Y177: No Drawing
B178: X | F178: X | J178: UHF | K178: X | L178: X | M178: X | N178: X | O178: SINGLE | P178: IB-Only | Q178: DVR (UHF) Inband/No Crossband; For APX (VHF+UHF+700+800) using Single-Band Antenna(s) | R178: 2 | S178: 15 | T178: 1 | U178: 0 | V178: 804 | W178: 8 | X178: 3 | Y178: No Drawing
F179: X | J179: UHF | K179: X | L179: X | M179: X | N179: X | O179: ALL | P179: IB-Only | Q179: DVR (UHF) Inband/No Crossband; For APX (VHF+UHF+700+800) using One All-Band Antenna | R179: 2 | S179: 15 | T179: 1 | U179: 1 | V179: 805 | W179: 6 | X179: 3 | Y179: No Drawing
F180: X | J180: UHF | K180: X | L180: X | M180: X | N180: X | O180: USER | P180: IB-Only | Q180: DVR (UHF) Inband/No Crossband; For APX (VHF+UHF+700+800) using Unknown or User-Defined Antenna | R180: 2 | S180: 15 | T180: 1 | U180: 2 | V180: 806 | W180: 6 | X180: 3 | Y180: No Drawing
B181: X | H181: X | J181: UHF | K181: X | L181: X | M181: X | N181: X | O181: SINGLE | P181: XB-Only | Q181: DVR (UHF) Crossband/No Inband; For APX (VHF+UHF+700+800) using Single-Band Antenna(s) | R181: 2 | S181: 15 | T181: 3 | U181: 0 | V181: 810 | W181: 12 | X181: 3 | Y181: 8J087X51-56
E182: X | J182: UHF | K182: X | L182: X | M182: X | N182: X | O182: ALL | P182: XB-Only | Q182: DVR (UHF) Crossband/No Inband; For APX (VHF+UHF+700+800) using One All-Band Antenna | R182: 2 | S182: 15 | T182: 3 | U182: 1 | V182: 811 | W182: 5 | X182: 3 | Y182: 8J087X51-38
E183: X | J183: UHF | K183: X | L183: X | M183: X | N183: X | O183: USER | P183: XB-Only | Q183: DVR (UHF) Crossband/No Inband; For APX (VHF+UHF+700+800) using Unknown or User-Defined Antenna | R183: 2 | S183: 15 | T183: 3 | U183: 2 | V183: 812 | W183: 5 | X183: 3 | Y183: No Drawing
B184: X | F184: X | J184: UHF | K184: X | L184: X | M184: X | N184: X | O184: SINGLE | P184: IB+XB | Q184: DVR (UHF) Inband & Crossband; For APX (VHF+UHF+700+800) using Single-Band Antenna(s) | R184: 2 | S184: 15 | T184: 5 | U184: 0 | V184: 816 | W184: 8 | X184: 3 | Y184: No Drawing
D185: X | F185: X | J185: UHF | K185: X | L185: X | M185: X | N185: X | O185: ALL | P185: IB+XB | Q185: DVR (UHF) Inband & Crossband; For APX (VHF+UHF+700+800) using One All-Band Antenna | R185: 2 | S185: 15 | T185: 5 | U185: 1 | V185: 817 | W185: 10 | X185: 3 | Y185: 8J087X51-35
D186: X | F186: X | J186: UHF | K186: X | L186: X | M186: X | N186: X | O186: USER | P186: IB+XB | Q186: DVR (UHF) Inband & Crossband; For APX (VHF+UHF+700+800) using Unknown or User-Defined Antenna | R186: 2 | S186: 15 | T186: 5 | U186: 2 | V186: 818 | W186: 10 | X186: 3 | Y186: No Drawing
B187: X | J187: 700 | K187: X | O187: SINGLE | P187: XB-Forced | Q187: DVR (700) Crossband; For APX (VHF) using Single-Band Antenna(s) | R187: 3 | S187: 1 | T187: 4 | U187: 0 | V187: 848 | W187: 2 | X187: 1 | Y187: No Drawing
B188: X | J188: 700 | K188: X | O188: ALL | P188: XB-Forced | Q188: DVR (700) Crossband; For APX (VHF) using One All-Band Antenna | R188: 3 | S188: 1 | T188: 4 | U188: 1 | V188: 849 | W188: 2 | X188: 1 | Y188: No Drawing
B189: X | J189: 700 | K189: X | O189: USER | P189: XB-Forced | Q189: DVR (700) Crossband; For APX (VHF) using Unknown or User-Defined Antenna | R189: 3 | S189: 1 | T189: 4 | U189: 2 | V189: 850 | W189: 2 | X189: 1 | Y189: No Drawing
B190: X | J190: 700 | L190: X | O190: SINGLE | P190: XB-Forced | Q190: DVR (700) Crossband; For APX (UHF) using Single-Band Antenna(s) | R190: 3 | S190: 2 | T190: 4 | U190: 0 | V190: 865 | W190: 2 | X190: 1 | Y190: No Drawing
B191: X | J191: 700 | L191: X | O191: ALL | P191: XB-Forced | Q191: DVR (700) Crossband; For APX (UHF) using One All-Band Antenna | R191: 3 | S191: 2 | T191: 4 | U191: 1 | V191: 866 | W191: 2 | X191: 1 | Y191: No Drawing
B192: X | J192: 700 | L192: X | O192: USER | P192: XB-Forced | Q192: DVR (700) Crossband; For APX (UHF) using Unknown or User-Defined Antenna | R192: 3 | S192: 2 | T192: 4 | U192: 2 | V192: 867 | W192: 2 | X192: 1 | Y192: No Drawing
B193: X | J193: 700 | K193: X | L193: X | O193: SINGLE | P193: XB-Forced | Q193: DVR (700) Crossband; For APX (VHF+UHF) using Single-Band Antenna(s) | R193: 3 | S193: 3 | T193: 4 | U193: 0 | V193: 882 | W193: 2 | X193: 2 | Y193: No Drawing
D194: X | J194: 700 | K194: X | L194: X | O194: ALL | P194: XB-Forced | Q194: DVR (700) Crossband; For APX (VHF+UHF) using One All-Band Antenna | R194: 3 | S194: 3 | T194: 4 | U194: 1 | V194: 883 | W194: 4 | X194: 2 | Y194: 8J087X51-18
D195: X | J195: 700 | K195: X | L195: X | O195: USER | P195: XB-Forced | Q195: DVR (700) Crossband; For APX (VHF+UHF) using Unknown or User-Defined Antenna | R195: 3 | S195: 3 | T195: 4 | U195: 2 | V195: 884 | W195: 4 | X195: 2 | Y195: No Drawing
A196: X | F196: X | J196: 700 | M196: X | O196: SINGLE | P196: IB-Forced | Q196: DVR (700) Inband; For APX (700) using Single-Band Antenna(s) | R196: 3 | S196: 4 | T196: 2 | U196: 0 | V196: 893 | W196: 7 | X196: 1 | Y196: No Drawing
A197: X | F197: X | J197: 700 | M197: X | O197: ALL | P197: IB-Forced | Q197: DVR (700) Inband; For APX (700) using One All-Band Antenna | R197: 3 | S197: 4 | T197: 2 | U197: 1 | V197: 894 | W197: 7 | X197: 1 | Y197: No Drawing
A198: X | F198: X | J198: 700 | M198: X | O198: USER | P198: IB-Forced | Q198: DVR (700) Inband; For APX (700) using Unknown or User-Defined Antenna | R198: 3 | S198: 4 | T198: 2 | U198: 2 | V198: 895 | W198: 7 | X198: 1 | Y198: No Drawing
I199: INVALID COMBO | J199: 700 | M199: X | O199: SINGLE | P199: XB-Only | Q199: =$J$6&"("&$J199&")"&" "&VLOOKUP($P199,RPTCodes,2,FALSE) &"; For APX ("&VLOOKUP($S199,BAND_NAMES,2)&") using "&VLOOKUP($O199,ANTcodes,3,FALSE) -> DVR (700) Crossband/No Inband; For APX (700) using Single-Band Antenna(s) | R199: =VLOOKUP(J199,Freq_Bands,2) -> 3 | S199: =IF(K199="X",1,0)+IF(L199="X",2,0)+IF(M199="X",4,0)+IF(N199="X",8,0) -> 4 | T199: =VLOOKUP(P199,RPTCodes,4,FALSE) -> 3 | U199: =VLOOKUP(O199,ANTcodes,2,FALSE) -> 0 | V199: =$U199*MULT_ANT+$T199*MULT_RPT+$S199*MULT_MRF+$R199*MULT_VRF -> 896 | W199: =IF($A199="X",1,0)+IF($B199="X",2,0)+IF($C199="X",3,0)+IF($D199="X",4,0)+IF($E199="X",5,0)+IF($F199="X",6,0)+IF($H199="X",10,0) -> 0 | X199: =COUNTA(K199:L199)+IF(RIGHT(M199&N199,1)="X",1,0) -> 1 | Y199: No Drawing | Z199: =IF(COUNTIF($A199:$H199, "<>"&"")=0,"INVALID COMBO","") -> 
I200: INVALID COMBO | J200: 700 | M200: X | O200: ALL | P200: XB-Only | Q200: DVR (700) Crossband/No Inband; For APX (700) using One All-Band Antenna | R200: 3 | S200: 4 | T200: 3 | U200: 1 | V200: 897 | W200: 0 | X200: 1 | Y200: No Drawing | Z200: INVALID COMBO
... 202 more rows

Sheet DVR Suitcase (hidden)
J1: DVRS-SUITCASE FILTERING CONFIGURATOR | Q1: Note: Suitcase Internal triplexing is NOT possible. RF SWITCH can ONLY be used with IN-BAND Filtering
A2: SOLUTIONS REQUIRED
B3: Kit-6 | C3: XB-1 | D3: Kit-2 | E3: Kit-7 | F3: KIT-4 | G3: KIT-0 | H3: Kit-5 | J3: DVR | S3: Lookup/Sorting Codes | X3: FilterCode
A4: 1 | B4: 19 | C4: 23 | D4: 3 | E4: 20 | F4: 5 | G4: 6 | I4: 10 | J4: 0 | K4: DVR | L4: MSU FREQUENCY BANDS USED | P4: MSU
B5: TRIPLEXER SOLUTION | G5: STANDARD | H5: OPTION | I5: Required | J5: NOTES | K5: BAND | L5: b1 | M5: b2 | N5: b3a | O5: b3b | P5: ANT | Q5: REPEAT | S5: 4 | T5: 16 | U5: 4 | V5: 2
A6: NONE | B6: 1x (SC) | C6: 1XB | D6: 1x+Relay | E6: 2x (SC) | F6: 2x+Relay | G6: In-BAND | H6: Relay | I6: Relay | J6: NOTES | K6: SUITCASE-DVRS | L6: VHF | M6: UHF | N6: 700 | O6: 800 | P6: MSU-Ant | Q6: TYPE | R6: DESCRIPTION | S6: VRF | T6: MRF | U6: RPT | V6: ANT | W6: TOTAl | X6: FL | Y6: NumBands | Z6: Drawing | AA6: OLD FL | AB6: Other Notes
A7: X | G7: X | J7: =IF(OR(AND(Y7>2,$P7<>"All"),$P7="USER",$Q7="XB-Only"),"INVALID COMBO","") -> INVALID COMBO | K7: VHF | L7: X | P7: USER | Q7: IB-Forced | R7: =$K$6&"("&$K7&")"&" "&VLOOKUP($Q7,RPTCodes,2,FALSE) &"; For APX ("&VLOOKUP($T7,BAND_NAMES,2)&") using "&VLOOKUP($P7,ANTcodes,3,FALSE) -> SUITCASE-DVRS(VHF) Inband; For APX (VHF) using Unknown or User-Defined Antenna | S7: =VLOOKUP(K7,Freq_Bands,2) -> 1 | T7: =IF(L7="X",1,0)+IF(M7="X",2,0)+IF(N7="X",4,0)+IF(O7="X",8,0) -> 1 | U7: =VLOOKUP(Q7,RPTCodes,4,FALSE) -> 2 | V7: =VLOOKUP(P7,ANTcodes,2,FALSE) -> 2 | W7: =$V7*MULT_ANT+$U7*MULT_RPT+$T7*MULT_MRF+$S7*MULT_VRF -> 298 | X7: =IF(LEFT($J7,4)="INVA",$J$4,IF($A7="X",$A$4,0)+IF($B7="X",$B$4,0)+IF($D7="X",$D$4,0)+IF($E7="X",$E$4,0)+IF($F7="X",$F$4,0)+IF($G7="X",$G$4,0)+IF($I7="X",$I$4,0)+IF($C7="X",$C$4,0)) -> 0 | Y7: =COUNTA(L7:M7)+IF(RIGHT(N7&O7,1)="X",1,0) -> 1 | Z7: No Drawing | AA7: 7 | AB7: Single MSU Band | AC7: =IF(COUNTIF($A7:$H7, "<>"&"")=0,"INVALID COMBO","") -> 
J8: INVALID COMBO | K8: VHF | L8: X | P8: SINGLE | Q8: XB-Only | R8: SUITCASE-DVRS(VHF) Crossband/No Inband; For APX (VHF) using Single-Band Antenna(s) | S8: 1 | T8: 1 | U8: 3 | V8: 0 | W8: 299 | X8: 0 | Y8: 1 | Z8: No Drawing | AA8: 0 | AB8: Illogical terminology | AC8: INVALID COMBO | AD8: INVALID COMBO
J9: INVALID COMBO | K9: VHF | L9: X | P9: ALL | Q9: XB-Only | R9: SUITCASE-DVRS(VHF) Crossband/No Inband; For APX (VHF) using One All-Band Antenna | S9: 1 | T9: 1 | U9: 3 | V9: 1 | W9: 300 | X9: 0 | Y9: 1 | Z9: No Drawing | AA9: 0 | AB9: Illogical terminology | AC9: INVALID COMBO | AD9: INVALID COMBO
J10: INVALID COMBO | K10: VHF | L10: X | P10: USER | Q10: XB-Only | R10: SUITCASE-DVRS(VHF) Crossband/No Inband; For APX (VHF) using Unknown or User-Defined Antenna | S10: 1 | T10: 1 | U10: 3 | V10: 2 | W10: 301 | X10: 0 | Y10: 1 | Z10: No Drawing | AA10: 0 | AB10: Illogical terminology | AC10: INVALID COMBO | AD10: INVALID COMBO
B11: X | K11: VHF | M11: X | P11: SINGLE | Q11: XB-Forced | R11: SUITCASE-DVRS(VHF) Crossband; For APX (UHF) using Single-Band Antenna(s) | S11: 1 | T11: 2 | U11: 4 | V11: 0 | W11: 319 | X11: 19 | Y11: 1 | Z11: No Drawing | AA11: 2 | AB11: Single MSU Band
B12: X | K12: VHF | M12: X | P12: ALL | Q12: XB-Forced | R12: SUITCASE-DVRS(VHF) Crossband; For APX (UHF) using One All-Band Antenna | S12: 1 | T12: 2 | U12: 4 | V12: 1 | W12: 320 | X12: 19 | Y12: 1 | Z12: No Drawing | AA12: 2 | AB12: Single MSU Band
B13: X | J13: INVALID COMBO | K13: VHF | M13: X | P13: USER | Q13: XB-Forced | R13: SUITCASE-DVRS(VHF) Crossband; For APX (UHF) using Unknown or User-Defined Antenna | S13: 1 | T13: 2 | U13: 4 | V13: 2 | W13: 321 | X13: 0 | Y13: 1 | Z13: No Drawing | AA13: 2
G14: X | J14: INVALID COMBO | K14: VHF | L14: X | M14: X | P14: USER | Q14: IB-Only | R14: SUITCASE-DVRS(VHF) Inband/No Crossband; For APX (VHF+UHF) using Unknown or User-Defined Antenna | S14: 1 | T14: 3 | U14: 1 | V14: 2 | W14: 329 | X14: 0 | Y14: 2 | Z14: No Drawing | AA14: 6
B15: X | I15: X | J15: INVALID COMBO | K15: VHF | L15: X | M15: X | P15: SINGLE | Q15: XB-Only | R15: SUITCASE-DVRS(VHF) Crossband/No Inband; For APX (VHF+UHF) using Single-Band Antenna(s) | S15: 1 | T15: 3 | U15: 3 | V15: 0 | W15: 333 | X15: 0 | Y15: 2 | Z15: No Drawing | AA15: 18 | AB15: Original Special Order | AD15: Special Order
D16: X | J16: INVALID COMBO | K16: VHF | L16: X | M16: X | P16: ALL | Q16: XB-Only | R16: SUITCASE-DVRS(VHF) Crossband/No Inband; For APX (VHF+UHF) using One All-Band Antenna | S16: 1 | T16: 3 | U16: 3 | V16: 1 | W16: 334 | X16: 0 | Y16: 2 | Z16: No Drawing | AA16: 18 | AB16: Original Special Order | AD16: Special Order
D17: X | J17: INVALID COMBO | K17: VHF | L17: X | M17: X | P17: USER | Q17: XB-Only | R17: SUITCASE-DVRS(VHF) Crossband/No Inband; For APX (VHF+UHF) using Unknown or User-Defined Antenna | S17: 1 | T17: 3 | U17: 3 | V17: 2 | W17: 335 | X17: 0 | Y17: 2 | Z17: No Drawing | AA17: 18 | AD17: Special Order
E18: X | G18: X | J18: INVALID COMBO | K18: VHF | L18: X | M18: X | P18: USER | Q18: IB+XB | R18: SUITCASE-DVRS(VHF) Inband & Crossband; For APX (VHF+UHF) using Unknown or User-Defined Antenna | S18: 1 | T18: 3 | U18: 5 | V18: 2 | W18: 341 | X18: 0 | Y18: 2 | Z18: No Drawing | AA18: 10
B19: X | K19: VHF | N19: X | P19: SINGLE | Q19: XB-Forced | R19: SUITCASE-DVRS(VHF) Crossband; For APX (700) using Single-Band Antenna(s) | S19: 1 | T19: 4 | U19: 4 | V19: 0 | W19: 353 | X19: 19 | Y19: 1 | Z19: No Drawing | AA19: 2 | AB19: Single MSU Band
B20: X | K20: VHF | N20: X | P20: ALL | Q20: XB-Forced | R20: SUITCASE-DVRS(VHF) Crossband; For APX (700) using One All-Band Antenna | S20: 1 | T20: 4 | U20: 4 | V20: 1 | W20: 354 | X20: 19 | Y20: 1 | Z20: No Drawing | AA20: 2 | AB20: Single MSU Band
B21: X | J21: INVALID COMBO | K21: VHF | N21: X | P21: USER | Q21: XB-Forced | R21: SUITCASE-DVRS(VHF) Crossband; For APX (700) using Unknown or User-Defined Antenna | S21: 1 | T21: 4 | U21: 4 | V21: 2 | W21: 355 | X21: 0 | Y21: 1 | Z21: No Drawing | AA21: 2
G22: X | J22: INVALID COMBO | K22: VHF | L22: X | N22: X | P22: USER | Q22: IB-Only | R22: SUITCASE-DVRS(VHF) Inband/No Crossband; For APX (VHF+700) using Unknown or User-Defined Antenna | S22: 1 | T22: 5 | U22: 1 | V22: 2 | W22: 363 | X22: 0 | Y22: 2 | Z22: No Drawing | AA22: 6
B23: X | I23: X | J23: INVALID COMBO | K23: VHF | L23: X | N23: X | P23: SINGLE | Q23: XB-Only | R23: SUITCASE-DVRS(VHF) Crossband/No Inband; For APX (VHF+700) using Single-Band Antenna(s) | S23: 1 | T23: 5 | U23: 3 | V23: 0 | W23: 367 | X23: 0 | Y23: 2 | Z23: No Drawing | AA23: 18 | AB23: Original Special Order | AD23: Special Order
D24: X | J24: INVALID COMBO | K24: VHF | L24: X | N24: X | P24: ALL | Q24: XB-Only | R24: SUITCASE-DVRS(VHF) Crossband/No Inband; For APX (VHF+700) using One All-Band Antenna | S24: 1 | T24: 5 | U24: 3 | V24: 1 | W24: 368 | X24: 0 | Y24: 2 | Z24: No Drawing | AA24: 18 | AB24: Original Special Order | AD24: Special Order
D25: X | J25: INVALID COMBO | K25: VHF | L25: X | N25: X | P25: USER | Q25: XB-Only | R25: SUITCASE-DVRS(VHF) Crossband/No Inband; For APX (VHF+700) using Unknown or User-Defined Antenna | S25: 1 | T25: 5 | U25: 3 | V25: 2 | W25: 369 | X25: 0 | Y25: 2 | Z25: No Drawing | AA25: 18 | AD25: Special Order
E26: X | G26: X | J26: INVALID COMBO | K26: VHF | L26: X | N26: X | P26: USER | Q26: IB+XB | R26: SUITCASE-DVRS(VHF) Inband & Crossband; For APX (VHF+700) using Unknown or User-Defined Antenna | S26: 1 | T26: 5 | U26: 5 | V26: 2 | W26: 375 | X26: 0 | Y26: 2 | Z26: No Drawing | AA26: 10
E27: X | J27: INVALID COMBO | K27: VHF | M27: X | N27: X | P27: USER | Q27: XB-Forced | R27: SUITCASE-DVRS(VHF) Crossband; For APX (UHF+700) using Unknown or User-Defined Antenna | S27: 1 | T27: 6 | U27: 4 | V27: 2 | W27: 389 | X27: 0 | Y27: 2 | Z27: No Drawing | AA27: 4
J28: INVALID COMBO | K28: VHF | L28: X | M28: X | N28: X | P28: SINGLE | Q28: IB-Only | R28: SUITCASE-DVRS(VHF) Inband/No Crossband; For APX (VHF+UHF+700) using Single-Band Antenna(s) | S28: 1 | T28: 7 | U28: 1 | V28: 0 | W28: 395 | X28: 0 | Y28: 3 | Z28: No Drawing | AA28: 8 | AB28: 3-Band Single Antenna | AC28: INVALID COMBO
G29: X | J29: INVALID COMBO | K29: VHF | L29: X | M29: X | N29: X | P29: USER | Q29: IB-Only | R29: SUITCASE-DVRS(VHF) Inband/No Crossband; For APX (VHF+UHF+700) using Unknown or User-Defined Antenna | S29: 1 | T29: 7 | U29: 1 | V29: 2 | W29: 397 | X29: 0 | Y29: 3 | Z29: No Drawing | AA29: 6
J30: INVALID COMBO | K30: VHF | L30: X | M30: X | N30: X | P30: SINGLE | Q30: XB-Only | R30: SUITCASE-DVRS(VHF) Crossband/No Inband; For APX (VHF+UHF+700) using Single-Band Antenna(s) | S30: 1 | T30: 7 | U30: 3 | V30: 0 | W30: 401 | X30: 0 | Y30: 3 | Z30: No Drawing | AA30: 18 | AB30: 3-Band Single Antenna | AC30: INVALID COMBO | AD30: Special Order
F31: X | J31: INVALID COMBO | K31: VHF | L31: X | M31: X | N31: X | P31: ALL | Q31: XB-Only | R31: SUITCASE-DVRS(VHF) Crossband/No Inband; For APX (VHF+UHF+700) using One All-Band Antenna | S31: 1 | T31: 7 | U31: 3 | V31: 1 | W31: 402 | X31: 0 | Y31: 3 | Z31: No Drawing | AA31: 18 | AB31: Original Special Order | AD31: Special Order
F32: X | J32: INVALID COMBO | K32: VHF | L32: X | M32: X | N32: X | P32: USER | Q32: XB-Only | R32: SUITCASE-DVRS(VHF) Crossband/No Inband; For APX (VHF+UHF+700) using Unknown or User-Defined Antenna | S32: 1 | T32: 7 | U32: 3 | V32: 2 | W32: 403 | X32: 0 | Y32: 3 | Z32: No Drawing | AA32: 18 | AD32: Special Order
J33: INVALID COMBO | K33: VHF | L33: X | M33: X | N33: X | P33: SINGLE | Q33: IB+XB | R33: SUITCASE-DVRS(VHF) Inband & Crossband; For APX (VHF+UHF+700) using Single-Band Antenna(s) | S33: 1 | T33: 7 | U33: 5 | V33: 0 | W33: 407 | X33: 0 | Y33: 3 | Z33: No Drawing | AA33: 8 | AB33: 3-Band Single Antenna | AC33: INVALID COMBO
E34: X | G34: X | J34: INVALID COMBO | K34: VHF | L34: X | M34: X | N34: X | P34: USER | Q34: IB+XB | R34: SUITCASE-DVRS(VHF) Inband & Crossband; For APX (VHF+UHF+700) using Unknown or User-Defined Antenna | S34: 1 | T34: 7 | U34: 5 | V34: 2 | W34: 409 | X34: 0 | Y34: 3 | Z34: No Drawing | AA34: 10
B35: X | K35: VHF | O35: X | P35: SINGLE | Q35: XB-Forced | R35: SUITCASE-DVRS(VHF) Crossband; For APX (800) using Single-Band Antenna(s) | S35: 1 | T35: 8 | U35: 4 | V35: 0 | W35: 421 | X35: 19 | Y35: 1 | Z35: No Drawing | AA35: 2 | AB35: Single MSU Band
B36: X | K36: VHF | O36: X | P36: ALL | Q36: XB-Forced | R36: SUITCASE-DVRS(VHF) Crossband; For APX (800) using One All-Band Antenna | S36: 1 | T36: 8 | U36: 4 | V36: 1 | W36: 422 | X36: 19 | Y36: 1 | Z36: No Drawing | AA36: 2 | AB36: Single MSU Band
B37: X | J37: INVALID COMBO | K37: VHF | O37: X | P37: USER | Q37: XB-Forced | R37: SUITCASE-DVRS(VHF) Crossband; For APX (800) using Unknown or User-Defined Antenna | S37: 1 | T37: 8 | U37: 4 | V37: 2 | W37: 423 | X37: 0 | Y37: 1 | Z37: No Drawing | AA37: 2
G38: X | J38: INVALID COMBO | K38: VHF | L38: X | O38: X | P38: USER | Q38: IB-Only | R38: SUITCASE-DVRS(VHF) Inband/No Crossband; For APX (VHF+800) using Unknown or User-Defined Antenna | S38: 1 | T38: 9 | U38: 1 | V38: 2 | W38: 431 | X38: 0 | Y38: 2 | Z38: No Drawing | AA38: 6
B39: X | I39: X | J39: INVALID COMBO | K39: VHF | L39: X | O39: X | P39: SINGLE | Q39: XB-Only | R39: SUITCASE-DVRS(VHF) Crossband/No Inband; For APX (VHF+800) using Single-Band Antenna(s) | S39: 1 | T39: 9 | U39: 3 | V39: 0 | W39: 435 | X39: 0 | Y39: 2 | Z39: No Drawing | AA39: 18 | AB39: Original Special Order | AD39: Special Order
D40: X | J40: INVALID COMBO | K40: VHF | L40: X | O40: X | P40: ALL | Q40: XB-Only | R40: SUITCASE-DVRS(VHF) Crossband/No Inband; For APX (VHF+800) using One All-Band Antenna | S40: 1 | T40: 9 | U40: 3 | V40: 1 | W40: 436 | X40: 0 | Y40: 2 | Z40: No Drawing | AA40: 18 | AB40: Original Special Order | AD40: Special Order
D41: X | J41: INVALID COMBO | K41: VHF | L41: X | O41: X | P41: USER | Q41: XB-Only | R41: SUITCASE-DVRS(VHF) Crossband/No Inband; For APX (VHF+800) using Unknown or User-Defined Antenna | S41: 1 | T41: 9 | U41: 3 | V41: 2 | W41: 437 | X41: 0 | Y41: 2 | Z41: No Drawing | AA41: 18 | AD41: Special Order
E42: X | G42: X | J42: INVALID COMBO | K42: VHF | L42: X | O42: X | P42: USER | Q42: IB+XB | R42: SUITCASE-DVRS(VHF) Inband & Crossband; For APX (VHF+800) using Unknown or User-Defined Antenna | S42: 1 | T42: 9 | U42: 5 | V42: 2 | W42: 443 | X42: 0 | Y42: 2 | Z42: No Drawing | AA42: 10
E43: X | J43: INVALID COMBO | K43: VHF | M43: X | O43: X | P43: USER | Q43: XB-Forced | R43: SUITCASE-DVRS(VHF) Crossband; For APX (UHF+800) using Unknown or User-Defined Antenna | S43: 1 | T43: 10 | U43: 4 | V43: 2 | W43: 457 | X43: 0 | Y43: 2 | Z43: No Drawing | AA43: 4
J44: INVALID COMBO | K44: VHF | L44: X | M44: X | O44: X | P44: SINGLE | Q44: IB-Only | R44: SUITCASE-DVRS(VHF) Inband/No Crossband; For APX (VHF+UHF+800) using Single-Band Antenna(s) | S44: 1 | T44: 11 | U44: 1 | V44: 0 | W44: 463 | X44: 0 | Y44: 3 | Z44: No Drawing | AA44: 8 | AB44: 3-Band Single Antenna | AC44: INVALID COMBO
G45: X | J45: INVALID COMBO | K45: VHF | L45: X | M45: X | O45: X | P45: USER | Q45: IB-Only | R45: SUITCASE-DVRS(VHF) Inband/No Crossband; For APX (VHF+UHF+800) using Unknown or User-Defined Antenna | S45: 1 | T45: 11 | U45: 1 | V45: 2 | W45: 465 | X45: 0 | Y45: 3 | Z45: No Drawing | AA45: 6
J46: INVALID COMBO | K46: VHF | L46: X | M46: X | O46: X | P46: SINGLE | Q46: XB-Only | R46: SUITCASE-DVRS(VHF) Crossband/No Inband; For APX (VHF+UHF+800) using Single-Band Antenna(s) | S46: 1 | T46: 11 | U46: 3 | V46: 0 | W46: 469 | X46: 0 | Y46: 3 | Z46: No Drawing | AA46: 18 | AB46: 3-Band Single Antenna | AC46: INVALID COMBO | AD46: Special Order
F47: X | J47: INVALID COMBO | K47: VHF | L47: X | M47: X | O47: X | P47: ALL | Q47: XB-Only | R47: SUITCASE-DVRS(VHF) Crossband/No Inband; For APX (VHF+UHF+800) using One All-Band Antenna | S47: 1 | T47: 11 | U47: 3 | V47: 1 | W47: 470 | X47: 0 | Y47: 3 | Z47: No Drawing | AA47: 18 | AB47: Original Special Order | AD47: Special Order
F48: X | J48: INVALID COMBO | K48: VHF | L48: X | M48: X | O48: X | P48: USER | Q48: XB-Only | R48: SUITCASE-DVRS(VHF) Crossband/No Inband; For APX (VHF+UHF+800) using Unknown or User-Defined Antenna | S48: 1 | T48: 11 | U48: 3 | V48: 2 | W48: 471 | X48: 0 | Y48: 3 | Z48: No Drawing | AA48: 18 | AD48: Special Order
J49: INVALID COMBO | K49: VHF | L49: X | M49: X | O49: X | P49: SINGLE | Q49: IB+XB | R49: SUITCASE-DVRS(VHF) Inband & Crossband; For APX (VHF+UHF+800) using Single-Band Antenna(s) | S49: 1 | T49: 11 | U49: 5 | V49: 0 | W49: 475 | X49: 0 | Y49: 3 | Z49: No Drawing | AA49: 8 | AB49: 3-Band Single Antenna | AC49: INVALID COMBO
E50: X | G50: X | J50: INVALID COMBO | K50: VHF | L50: X | M50: X | O50: X | P50: USER | Q50: IB+XB | R50: SUITCASE-DVRS(VHF) Inband & Crossband; For APX (VHF+UHF+800) using Unknown or User-Defined Antenna | S50: 1 | T50: 11 | U50: 5 | V50: 2 | W50: 477 | X50: 0 | Y50: 3 | Z50: No Drawing | AA50: 10
B51: X | K51: VHF | N51: X | O51: X | P51: SINGLE | Q51: XB-Forced | R51: SUITCASE-DVRS(VHF) Crossband; For APX (700+800) using Single-Band Antenna(s) | S51: 1 | T51: 12 | U51: 4 | V51: 0 | W51: 489 | X51: 19 | Y51: 1 | Z51: No Drawing | AA51: 2 | AB51: Single MSU Band
B52: X | K52: VHF | N52: X | O52: X | P52: ALL | Q52: XB-Forced | R52: SUITCASE-DVRS(VHF) Crossband; For APX (700+800) using One All-Band Antenna | S52: 1 | T52: 12 | U52: 4 | V52: 1 | W52: 490 | X52: 19 | Y52: 1 | Z52: No Drawing | AA52: 2 | AB52: Single MSU Band
B53: X | J53: INVALID COMBO | K53: VHF | N53: X | O53: X | P53: USER | Q53: XB-Forced | R53: SUITCASE-DVRS(VHF) Crossband; For APX (700+800) using Unknown or User-Defined Antenna | S53: 1 | T53: 12 | U53: 4 | V53: 2 | W53: 491 | X53: 0 | Y53: 1 | Z53: No Drawing | AA53: 2
G54: X | J54: INVALID COMBO | K54: VHF | L54: X | N54: X | O54: X | P54: USER | Q54: IB-Only | R54: SUITCASE-DVRS(VHF) Inband/No Crossband; For APX (VHF+700+800) using Unknown or User-Defined Antenna | S54: 1 | T54: 13 | U54: 1 | V54: 2 | W54: 499 | X54: 0 | Y54: 2 | Z54: No Drawing | AA54: 6
B55: X | I55: X | J55: INVALID COMBO | K55: VHF | L55: X | N55: X | O55: X | P55: SINGLE | Q55: XB-Only | R55: SUITCASE-DVRS(VHF) Crossband/No Inband; For APX (VHF+700+800) using Single-Band Antenna(s) | S55: 1 | T55: 13 | U55: 3 | V55: 0 | W55: 503 | X55: 0 | Y55: 2 | Z55: No Drawing | AA55: 18 | AB55: Original Special Order | AD55: Special Order
D56: X | J56: INVALID COMBO | K56: VHF | L56: X | N56: X | O56: X | P56: ALL | Q56: XB-Only | R56: SUITCASE-DVRS(VHF) Crossband/No Inband; For APX (VHF+700+800) using One All-Band Antenna | S56: 1 | T56: 13 | U56: 3 | V56: 1 | W56: 504 | X56: 0 | Y56: 2 | Z56: No Drawing | AA56: 18 | AB56: Original Special Order | AD56: Special Order
D57: X | J57: INVALID COMBO | K57: VHF | L57: X | N57: X | O57: X | P57: USER | Q57: XB-Only | R57: SUITCASE-DVRS(VHF) Crossband/No Inband; For APX (VHF+700+800) using Unknown or User-Defined Antenna | S57: 1 | T57: 13 | U57: 3 | V57: 2 | W57: 505 | X57: 0 | Y57: 2 | Z57: No Drawing | AA57: 18 | AD57: Special Order
E58: X | G58: X | J58: INVALID COMBO | K58: VHF | L58: X | N58: X | O58: X | P58: USER | Q58: IB+XB | R58: SUITCASE-DVRS(VHF) Inband & Crossband; For APX (VHF+700+800) using Unknown or User-Defined Antenna | S58: 1 | T58: 13 | U58: 5 | V58: 2 | W58: 511 | X58: 0 | Y58: 2 | Z58: No Drawing | AA58: 10
E59: X | J59: INVALID COMBO | K59: VHF | M59: X | N59: X | O59: X | P59: USER | Q59: XB-Forced | R59: SUITCASE-DVRS(VHF) Crossband; For APX (UHF+700+800) using Unknown or User-Defined Antenna | S59: 1 | T59: 14 | U59: 4 | V59: 2 | W59: 525 | X59: 0 | Y59: 2 | Z59: No Drawing | AA59: 4
J60: INVALID COMBO | K60: VHF | L60: X | M60: X | N60: X | O60: X | P60: SINGLE | Q60: IB-Only | R60: SUITCASE-DVRS(VHF) Inband/No Crossband; For APX (VHF+UHF+700+800) using Single-Band Antenna(s) | S60: 1 | T60: 15 | U60: 1 | V60: 0 | W60: 531 | X60: 0 | Y60: 3 | Z60: No Drawing | AA60: 8 | AB60: 3-Band Single Antenna | AC60: INVALID COMBO
G61: X | J61: INVALID COMBO | K61: VHF | L61: X | M61: X | N61: X | O61: X | P61: USER | Q61: IB-Only | R61: SUITCASE-DVRS(VHF) Inband/No Crossband; For APX (VHF+UHF+700+800) using Unknown or User-Defined Antenna | S61: 1 | T61: 15 | U61: 1 | V61: 2 | W61: 533 | X61: 0 | Y61: 3 | Z61: No Drawing | AA61: 6
J62: INVALID COMBO | K62: VHF | L62: X | M62: X | N62: X | O62: X | P62: SINGLE | Q62: XB-Only | R62: SUITCASE-DVRS(VHF) Crossband/No Inband; For APX (VHF+UHF+700+800) using Single-Band Antenna(s) | S62: 1 | T62: 15 | U62: 3 | V62: 0 | W62: 537 | X62: 0 | Y62: 3 | Z62: No Drawing | AA62: 18 | AB62: 3-Band Single Antenna | AC62: INVALID COMBO | AD62: Special Order
F63: X | J63: INVALID COMBO | K63: VHF | L63: X | M63: X | N63: X | O63: X | P63: ALL | Q63: XB-Only | R63: SUITCASE-DVRS(VHF) Crossband/No Inband; For APX (VHF+UHF+700+800) using One All-Band Antenna | S63: 1 | T63: 15 | U63: 3 | V63: 1 | W63: 538 | X63: 0 | Y63: 3 | Z63: No Drawing | AA63: 18 | AB63: Original Special Order | AD63: Special Order
F64: X | J64: INVALID COMBO | K64: VHF | L64: X | M64: X | N64: X | O64: X | P64: USER | Q64: XB-Only | R64: SUITCASE-DVRS(VHF) Crossband/No Inband; For APX (VHF+UHF+700+800) using Unknown or User-Defined Antenna | S64: 1 | T64: 15 | U64: 3 | V64: 2 | W64: 539 | X64: 0 | Y64: 3 | Z64: No Drawing | AA64: 18 | AD64: Special Order
J65: INVALID COMBO | K65: VHF | L65: X | M65: X | N65: X | O65: X | P65: SINGLE | Q65: IB+XB | R65: SUITCASE-DVRS(VHF) Inband & Crossband; For APX (VHF+UHF+700+800) using Single-Band Antenna(s) | S65: 1 | T65: 15 | U65: 5 | V65: 0 | W65: 543 | X65: 0 | Y65: 3 | Z65: No Drawing | AA65: 8 | AB65: 3-Band Single Antenna | AC65: INVALID COMBO
E66: X | G66: X | J66: INVALID COMBO | K66: VHF | L66: X | M66: X | N66: X | O66: X | P66: USER | Q66: IB+XB | R66: SUITCASE-DVRS(VHF) Inband & Crossband; For APX (VHF+UHF+700+800) using Unknown or User-Defined Antenna | S66: 1 | T66: 15 | U66: 5 | V66: 2 | W66: 545 | X66: 0 | Y66: 3 | Z66: No Drawing | AA66: 10
B67: X | K67: UHF | L67: X | P67: SINGLE | Q67: XB-Forced | R67: SUITCASE-DVRS(UHF) Crossband; For APX (VHF) using Single-Band Antenna(s) | S67: 2 | T67: 1 | U67: 4 | V67: 0 | W67: 575 | X67: 19 | Y67: 1 | Z67: No Drawing | AA67: 2 | AB67: Single MSU Band
B68: X | K68: UHF | L68: X | P68: ALL | Q68: XB-Forced | R68: SUITCASE-DVRS(UHF) Crossband; For APX (VHF) using One All-Band Antenna | S68: 2 | T68: 1 | U68: 4 | V68: 1 | W68: 576 | X68: 19 | Y68: 1 | Z68: No Drawing | AA68: 2 | AB68: Single MSU Band
B69: X | J69: INVALID COMBO | K69: UHF | L69: X | P69: USER | Q69: XB-Forced | R69: SUITCASE-DVRS(UHF) Crossband; For APX (VHF) using Unknown or User-Defined Antenna | S69: 2 | T69: 1 | U69: 4 | V69: 2 | W69: 577 | X69: 0 | Y69: 1 | Z69: No Drawing | AA69: 2 | AB69: Single MSU Band
A70: X | G70: X | J70: INVALID COMBO | K70: UHF | M70: X | P70: USER | Q70: IB-Forced | R70: SUITCASE-DVRS(UHF) Inband; For APX (UHF) using Unknown or User-Defined Antenna | S70: 2 | T70: 2 | U70: 2 | V70: 2 | W70: 588 | X70: 0 | Y70: 1 | Z70: No Drawing | AA70: 7
J71: =IF(OR(AND(Y71>2,$P71<>"All"),$P71="USER",$Q71="XB-Only"),"INVALID COMBO","") -> INVALID COMBO | K71: UHF | M71: X | P71: SINGLE | Q71: XB-Only | R71: =$K$6&"("&$K71&")"&" "&VLOOKUP($Q71,RPTCodes,2,FALSE) &"; For APX ("&VLOOKUP($T71,BAND_NAMES,2)&") using "&VLOOKUP($P71,ANTcodes,3,FALSE) -> SUITCASE-DVRS(UHF) Crossband/No Inband; For APX (UHF) using Single-Band Antenna(s) | S71: =VLOOKUP(K71,Freq_Bands,2) -> 2 | T71: =IF(L71="X",1,0)+IF(M71="X",2,0)+IF(N71="X",4,0)+IF(O71="X",8,0) -> 2 | U71: =VLOOKUP(Q71,RPTCodes,4,FALSE) -> 3 | V71: =VLOOKUP(P71,ANTcodes,2,FALSE) -> 0 | W71: =$V71*MULT_ANT+$U71*MULT_RPT+$T71*MULT_MRF+$S71*MULT_VRF -> 589 | X71: =IF(LEFT($J71,4)="INVA",$J$4,IF($A71="X",$A$4,0)+IF($B71="X",$B$4,0)+IF($D71="X",$D$4,0)+IF($E71="X",$E$4,0)+IF($F71="X",$F$4,0)+IF($G71="X",$G$4,0)+IF($I71="X",$I$4,0)+IF($C71="X",$C$4,0)) -> 0 | Y71: =COUNTA(L71:M71)+IF(RIGHT(N71&O71,1)="X",1,0) -> 1 | Z71: No Drawing | AA71: 0 | AB71: Illogical terminology | AC71: =IF(COUNTIF($A71:$H71, "<>"&"")=0,"INVALID COMBO","") -> INVALID COMBO | AD71: INVALID COMBO
J72: INVALID COMBO | K72: UHF | M72: X | P72: ALL | Q72: XB-Only | R72: SUITCASE-DVRS(UHF) Crossband/No Inband; For APX (UHF) using One All-Band Antenna | S72: 2 | T72: 2 | U72: 3 | V72: 1 | W72: 590 | X72: 0 | Y72: 1 | Z72: No Drawing | AA72: 0 | AB72: Illogical terminology | AC72: INVALID COMBO | AD72: INVALID COMBO
J73: INVALID COMBO | K73: UHF | M73: X | P73: USER | Q73: XB-Only | R73: SUITCASE-DVRS(UHF) Crossband/No Inband; For APX (UHF) using Unknown or User-Defined Antenna | S73: 2 | T73: 2 | U73: 3 | V73: 2 | W73: 591 | X73: 0 | Y73: 1 | Z73: No Drawing | AA73: 0 | AC73: INVALID COMBO | AD73: INVALID COMBO
G74: X | J74: INVALID COMBO | K74: UHF | L74: X | M74: X | P74: USER | Q74: IB-Only | R74: SUITCASE-DVRS(UHF) Inband/No Crossband; For APX (VHF+UHF) using Unknown or User-Defined Antenna | S74: 2 | T74: 3 | U74: 1 | V74: 2 | W74: 602 | X74: 0 | Y74: 2 | Z74: No Drawing | AA74: 6
B75: X | I75: X | J75: INVALID COMBO | K75: UHF | L75: X | M75: X | P75: SINGLE | Q75: XB-Only | R75: SUITCASE-DVRS(UHF) Crossband/No Inband; For APX (VHF+UHF) using Single-Band Antenna(s) | S75: 2 | T75: 3 | U75: 3 | V75: 0 | W75: 606 | X75: 0 | Y75: 2 | Z75: No Drawing | AA75: 18 | AB75: Original Special Order | AD75: Special Order
D76: X | J76: INVALID COMBO | K76: UHF | L76: X | M76: X | P76: ALL | Q76: XB-Only | R76: SUITCASE-DVRS(UHF) Crossband/No Inband; For APX (VHF+UHF) using One All-Band Antenna | S76: 2 | T76: 3 | U76: 3 | V76: 1 | W76: 607 | X76: 0 | Y76: 2 | Z76: No Drawing | AA76: 18 | AB76: Original Special Order | AD76: Special Order
D77: X | J77: INVALID COMBO | K77: UHF | L77: X | M77: X | P77: USER | Q77: XB-Only | R77: SUITCASE-DVRS(UHF) Crossband/No Inband; For APX (VHF+UHF) using Unknown or User-Defined Antenna | S77: 2 | T77: 3 | U77: 3 | V77: 2 | W77: 608 | X77: 0 | Y77: 2 | Z77: No Drawing | AA77: 18 | AD77: Special Order
E78: X | G78: X | J78: INVALID COMBO | K78: UHF | L78: X | M78: X | P78: USER | Q78: IB+XB | R78: SUITCASE-DVRS(UHF) Inband & Crossband; For APX (VHF+UHF) using Unknown or User-Defined Antenna | S78: 2 | T78: 3 | U78: 5 | V78: 2 | W78: 614 | X78: 0 | Y78: 2 | Z78: No Drawing | AA78: 10
B79: X | K79: UHF | N79: X | P79: SINGLE | Q79: XB-Forced | R79: SUITCASE-DVRS(UHF) Crossband; For APX (700) using Single-Band Antenna(s) | S79: 2 | T79: 4 | U79: 4 | V79: 0 | W79: 626 | X79: 19 | Y79: 1 | Z79: No Drawing | AA79: 2 | AB79: Single MSU Band
B80: X | K80: UHF | N80: X | P80: ALL | Q80: XB-Forced | R80: SUITCASE-DVRS(UHF) Crossband; For APX (700) using One All-Band Antenna | S80: 2 | T80: 4 | U80: 4 | V80: 1 | W80: 627 | X80: 19 | Y80: 1 | Z80: No Drawing | AA80: 2 | AB80: Single MSU Band
B81: X | J81: INVALID COMBO | K81: UHF | N81: X | P81: USER | Q81: XB-Forced | R81: SUITCASE-DVRS(UHF) Crossband; For APX (700) using Unknown or User-Defined Antenna | S81: 2 | T81: 4 | U81: 4 | V81: 2 | W81: 628 | X81: 0 | Y81: 1 | Z81: No Drawing | AA81: 2
E82: X | J82: INVALID COMBO | K82: UHF | L82: X | N82: X | P82: USER | Q82: XB-Forced | R82: SUITCASE-DVRS(UHF) Crossband; For APX (VHF+700) using Unknown or User-Defined Antenna | S82: 2 | T82: 5 | U82: 4 | V82: 2 | W82: 645 | X82: 0 | Y82: 2 | Z82: No Drawing | AA82: 4
G83: X | J83: INVALID COMBO | K83: UHF | M83: X | N83: X | P83: USER | Q83: IB-Only | R83: SUITCASE-DVRS(UHF) Inband/No Crossband; For APX (UHF+700) using Unknown or User-Defined Antenna | S83: 2 | T83: 6 | U83: 1 | V83: 2 | W83: 653 | X83: 0 | Y83: 2 | Z83: No Drawing | AA83: 6
B84: X | I84: X | J84: INVALID COMBO | K84: UHF | M84: X | N84: X | P84: SINGLE | Q84: XB-Only | R84: SUITCASE-DVRS(UHF) Crossband/No Inband; For APX (UHF+700) using Single-Band Antenna(s) | S84: 2 | T84: 6 | U84: 3 | V84: 0 | W84: 657 | X84: 0 | Y84: 2 | Z84: No Drawing | AA84: 18 | AB84: Original Special Order | AD84: Special Order
D85: X | J85: INVALID COMBO | K85: UHF | M85: X | N85: X | P85: ALL | Q85: XB-Only | R85: SUITCASE-DVRS(UHF) Crossband/No Inband; For APX (UHF+700) using One All-Band Antenna | S85: 2 | T85: 6 | U85: 3 | V85: 1 | W85: 658 | X85: 0 | Y85: 2 | Z85: No Drawing | AA85: 18 | AB85: Original Special Order | AD85: Special Order
D86: X | J86: INVALID COMBO | K86: UHF | M86: X | N86: X | P86: USER | Q86: XB-Only | R86: SUITCASE-DVRS(UHF) Crossband/No Inband; For APX (UHF+700) using Unknown or User-Defined Antenna | S86: 2 | T86: 6 | U86: 3 | V86: 2 | W86: 659 | X86: 0 | Y86: 2 | Z86: No Drawing | AA86: 18 | AD86: Special Order
E87: X | G87: X | J87: INVALID COMBO | K87: UHF | M87: X | N87: X | P87: USER | Q87: IB+XB | R87: SUITCASE-DVRS(UHF) Inband & Crossband; For APX (UHF+700) using Unknown or User-Defined Antenna | S87: 2 | T87: 6 | U87: 5 | V87: 2 | W87: 665 | X87: 0 | Y87: 2 | Z87: No Drawing | AA87: 10
J88: INVALID COMBO | K88: UHF | L88: X | M88: X | N88: X | P88: SINGLE | Q88: IB-Only | R88: SUITCASE-DVRS(UHF) Inband/No Crossband; For APX (VHF+UHF+700) using Single-Band Antenna(s) | S88: 2 | T88: 7 | U88: 1 | V88: 0 | W88: 668 | X88: 0 | Y88: 3 | Z88: No Drawing | AA88: 8 | AB88: 3-Band Single Antenna | AC88: INVALID COMBO
G89: X | J89: INVALID COMBO | K89: UHF | L89: X | M89: X | N89: X | P89: USER | Q89: IB-Only | R89: SUITCASE-DVRS(UHF) Inband/No Crossband; For APX (VHF+UHF+700) using Unknown or User-Defined Antenna | S89: 2 | T89: 7 | U89: 1 | V89: 2 | W89: 670 | X89: 0 | Y89: 3 | Z89: No Drawing | AA89: 6
J90: INVALID COMBO | K90: UHF | L90: X | M90: X | N90: X | P90: SINGLE | Q90: XB-Only | R90: SUITCASE-DVRS(UHF) Crossband/No Inband; For APX (VHF+UHF+700) using Single-Band Antenna(s) | S90: 2 | T90: 7 | U90: 3 | V90: 0 | W90: 674 | X90: 0 | Y90: 3 | Z90: No Drawing | AA90: 18 | AB90: 3-Band Single Antenna | AC90: INVALID COMBO | AD90: Special Order
F91: X | J91: INVALID COMBO | K91: UHF | L91: X | M91: X | N91: X | P91: ALL | Q91: XB-Only | R91: SUITCASE-DVRS(UHF) Crossband/No Inband; For APX (VHF+UHF+700) using One All-Band Antenna | S91: 2 | T91: 7 | U91: 3 | V91: 1 | W91: 675 | X91: 0 | Y91: 3 | Z91: No Drawing | AA91: 18 | AB91: Original Special Order | AD91: Special Order
F92: X | J92: INVALID COMBO | K92: UHF | L92: X | M92: X | N92: X | P92: USER | Q92: XB-Only | R92: SUITCASE-DVRS(UHF) Crossband/No Inband; For APX (VHF+UHF+700) using Unknown or User-Defined Antenna | S92: 2 | T92: 7 | U92: 3 | V92: 2 | W92: 676 | X92: 0 | Y92: 3 | Z92: No Drawing | AA92: 18 | AD92: Special Order
J93: INVALID COMBO | K93: UHF | L93: X | M93: X | N93: X | P93: SINGLE | Q93: IB+XB | R93: SUITCASE-DVRS(UHF) Inband & Crossband; For APX (VHF+UHF+700) using Single-Band Antenna(s) | S93: 2 | T93: 7 | U93: 5 | V93: 0 | W93: 680 | X93: 0 | Y93: 3 | Z93: No Drawing | AA93: 8 | AB93: 3-Band Single Antenna | AC93: INVALID COMBO
E94: X | G94: X | J94: INVALID COMBO | K94: UHF | L94: X | M94: X | N94: X | P94: USER | Q94: IB+XB | R94: SUITCASE-DVRS(UHF) Inband & Crossband; For APX (VHF+UHF+700) using Unknown or User-Defined Antenna | S94: 2 | T94: 7 | U94: 5 | V94: 2 | W94: 682 | X94: 0 | Y94: 3 | Z94: No Drawing | AA94: 10
B95: X | K95: UHF | O95: X | P95: SINGLE | Q95: XB-Forced | R95: SUITCASE-DVRS(UHF) Crossband; For APX (800) using Single-Band Antenna(s) | S95: 2 | T95: 8 | U95: 4 | V95: 0 | W95: 694 | X95: 19 | Y95: 1 | Z95: No Drawing | AA95: 2 | AB95: Single MSU Band
B96: X | K96: UHF | O96: X | P96: ALL | Q96: XB-Forced | R96: SUITCASE-DVRS(UHF) Crossband; For APX (800) using One All-Band Antenna | S96: 2 | T96: 8 | U96: 4 | V96: 1 | W96: 695 | X96: 19 | Y96: 1 | Z96: No Drawing | AA96: 2 | AB96: Single MSU Band
B97: X | J97: INVALID COMBO | K97: UHF | O97: X | P97: USER | Q97: XB-Forced | R97: SUITCASE-DVRS(UHF) Crossband; For APX (800) using Unknown or User-Defined Antenna | S97: 2 | T97: 8 | U97: 4 | V97: 2 | W97: 696 | X97: 0 | Y97: 1 | Z97: No Drawing | AA97: 2
E98: X | J98: INVALID COMBO | K98: UHF | L98: X | O98: X | P98: USER | Q98: XB-Forced | R98: SUITCASE-DVRS(UHF) Crossband; For APX (VHF+800) using Unknown or User-Defined Antenna | S98: 2 | T98: 9 | U98: 4 | V98: 2 | W98: 713 | X98: 0 | Y98: 2 | Z98: No Drawing | AA98: 4
G99: X | J99: INVALID COMBO | K99: UHF | M99: X | O99: X | P99: USER | Q99: IB-Only | R99: SUITCASE-DVRS(UHF) Inband/No Crossband; For APX (UHF+800) using Unknown or User-Defined Antenna | S99: 2 | T99: 10 | U99: 1 | V99: 2 | W99: 721 | X99: 0 | Y99: 2 | Z99: No Drawing | AA99: 6
B100: X | I100: X | J100: INVALID COMBO | K100: UHF | M100: X | O100: X | P100: SINGLE | Q100: XB-Only | R100: SUITCASE-DVRS(UHF) Crossband/No Inband; For APX (UHF+800) using Single-Band Antenna(s) | S100: 2 | T100: 10 | U100: 3 | V100: 0 | W100: 725 | X100: 0 | Y100: 2 | Z100: No Drawing | AA100: 18 | AB100: Original Special Order | AD100: Special Order
D101: X | J101: INVALID COMBO | K101: UHF | M101: X | O101: X | P101: ALL | Q101: XB-Only | R101: SUITCASE-DVRS(UHF) Crossband/No Inband; For APX (UHF+800) using One All-Band Antenna | S101: 2 | T101: 10 | U101: 3 | V101: 1 | W101: 726 | X101: 0 | Y101: 2 | Z101: No Drawing | AA101: 18 | AB101: Original Special Order | AD101: Special Order
D102: X | J102: INVALID COMBO | K102: UHF | M102: X | O102: X | P102: USER | Q102: XB-Only | R102: SUITCASE-DVRS(UHF) Crossband/No Inband; For APX (UHF+800) using Unknown or User-Defined Antenna | S102: 2 | T102: 10 | U102: 3 | V102: 2 | W102: 727 | X102: 0 | Y102: 2 | Z102: No Drawing | AA102: 18 | AD102: Special Order
E103: X | G103: X | J103: INVALID COMBO | K103: UHF | M103: X | O103: X | P103: USER | Q103: IB+XB | R103: SUITCASE-DVRS(UHF) Inband & Crossband; For APX (UHF+800) using Unknown or User-Defined Antenna | S103: 2 | T103: 10 | U103: 5 | V103: 2 | W103: 733 | X103: 0 | Y103: 2 | Z103: No Drawing | AA103: 10
J104: INVALID COMBO | K104: UHF | L104: X | M104: X | O104: X | P104: SINGLE | Q104: IB-Only | R104: SUITCASE-DVRS(UHF) Inband/No Crossband; For APX (VHF+UHF+800) using Single-Band Antenna(s) | S104: 2 | T104: 11 | U104: 1 | V104: 0 | W104: 736 | X104: 0 | Y104: 3 | Z104: No Drawing | AA104: 8 | AB104: 3-Band Single Antenna | AC104: INVALID COMBO
G105: X | J105: INVALID COMBO | K105: UHF | L105: X | M105: X | O105: X | P105: USER | Q105: IB-Only | R105: SUITCASE-DVRS(UHF) Inband/No Crossband; For APX (VHF+UHF+800) using Unknown or User-Defined Antenna | S105: 2 | T105: 11 | U105: 1 | V105: 2 | W105: 738 | X105: 0 | Y105: 3 | Z105: No Drawing | AA105: 6
J106: INVALID COMBO | K106: UHF | L106: X | M106: X | O106: X | P106: SINGLE | Q106: XB-Only | R106: SUITCASE-DVRS(UHF) Crossband/No Inband; For APX (VHF+UHF+800) using Single-Band Antenna(s) | S106: 2 | T106: 11 | U106: 3 | V106: 0 | W106: 742 | X106: 0 | Y106: 3 | Z106: No Drawing | AA106: 18 | AB106: 3-Band Single Antenna | AC106: INVALID COMBO | AD106: Special Order
F107: X | J107: INVALID COMBO | K107: UHF | L107: X | M107: X | O107: X | P107: ALL | Q107: XB-Only | R107: SUITCASE-DVRS(UHF) Crossband/No Inband; For APX (VHF+UHF+800) using One All-Band Antenna | S107: 2 | T107: 11 | U107: 3 | V107: 1 | W107: 743 | X107: 0 | Y107: 3 | Z107: No Drawing | AA107: 18 | AB107: Original Special Order | AD107: Special Order
F108: X | J108: INVALID COMBO | K108: UHF | L108: X | M108: X | O108: X | P108: USER | Q108: XB-Only | R108: SUITCASE-DVRS(UHF) Crossband/No Inband; For APX (VHF+UHF+800) using Unknown or User-Defined Antenna | S108: 2 | T108: 11 | U108: 3 | V108: 2 | W108: 744 | X108: 0 | Y108: 3 | Z108: No Drawing | AA108: 18 | AD108: Special Order
J109: INVALID COMBO | K109: UHF | L109: X | M109: X | O109: X | P109: SINGLE | Q109: IB+XB | R109: SUITCASE-DVRS(UHF) Inband & Crossband; For APX (VHF+UHF+800) using Single-Band Antenna(s) | S109: 2 | T109: 11 | U109: 5 | V109: 0 | W109: 748 | X109: 0 | Y109: 3 | Z109: No Drawing | AA109: 8 | AB109: 3-Band Single Antenna | AC109: INVALID COMBO
E110: X | G110: X | J110: INVALID COMBO | K110: UHF | L110: X | M110: X | O110: X | P110: USER | Q110: IB+XB | R110: SUITCASE-DVRS(UHF) Inband & Crossband; For APX (VHF+UHF+800) using Unknown or User-Defined Antenna | S110: 2 | T110: 11 | U110: 5 | V110: 2 | W110: 750 | X110: 0 | Y110: 3 | Z110: No Drawing | AA110: 10
B111: X | K111: UHF | N111: X | O111: X | P111: SINGLE | Q111: XB-Forced | R111: SUITCASE-DVRS(UHF) Crossband; For APX (700+800) using Single-Band Antenna(s) | S111: 2 | T111: 12 | U111: 4 | V111: 0 | W111: 762 | X111: 19 | Y111: 1 | Z111: No Drawing | AA111: 2 | AB111: Single MSU Band
B112: X | K112: UHF | N112: X | O112: X | P112: ALL | Q112: XB-Forced | R112: SUITCASE-DVRS(UHF) Crossband; For APX (700+800) using One All-Band Antenna | S112: 2 | T112: 12 | U112: 4 | V112: 1 | W112: 763 | X112: 19 | Y112: 1 | Z112: No Drawing | AA112: 2 | AB112: Single MSU Band
B113: X | J113: INVALID COMBO | K113: UHF | N113: X | O113: X | P113: USER | Q113: XB-Forced | R113: SUITCASE-DVRS(UHF) Crossband; For APX (700+800) using Unknown or User-Defined Antenna | S113: 2 | T113: 12 | U113: 4 | V113: 2 | W113: 764 | X113: 0 | Y113: 1 | Z113: No Drawing | AA113: 2
E114: X | J114: INVALID COMBO | K114: UHF | L114: X | N114: X | O114: X | P114: USER | Q114: XB-Forced | R114: SUITCASE-DVRS(UHF) Crossband; For APX (VHF+700+800) using Unknown or User-Defined Antenna | S114: 2 | T114: 13 | U114: 4 | V114: 2 | W114: 781 | X114: 0 | Y114: 2 | Z114: No Drawing | AA114: 4
G115: X | J115: INVALID COMBO | K115: UHF | M115: X | N115: X | O115: X | P115: USER | Q115: IB-Only | R115: SUITCASE-DVRS(UHF) Inband/No Crossband; For APX (UHF+700+800) using Unknown or User-Defined Antenna | S115: 2 | T115: 14 | U115: 1 | V115: 2 | W115: 789 | X115: 0 | Y115: 2 | Z115: No Drawing | AA115: 6
B116: X | I116: X | J116: INVALID COMBO | K116: UHF | M116: X | N116: X | O116: X | P116: SINGLE | Q116: XB-Only | R116: SUITCASE-DVRS(UHF) Crossband/No Inband; For APX (UHF+700+800) using Single-Band Antenna(s) | S116: 2 | T116: 14 | U116: 3 | V116: 0 | W116: 793 | X116: 0 | Y116: 2 | Z116: No Drawing | AA116: 18 | AB116: Original Special Order | AD116: Special Order
D117: X | J117: INVALID COMBO | K117: UHF | M117: X | N117: X | O117: X | P117: ALL | Q117: XB-Only | R117: SUITCASE-DVRS(UHF) Crossband/No Inband; For APX (UHF+700+800) using One All-Band Antenna | S117: 2 | T117: 14 | U117: 3 | V117: 1 | W117: 794 | X117: 0 | Y117: 2 | Z117: No Drawing | AA117: 18 | AB117: Original Special Order | AD117: Special Order
D118: X | J118: INVALID COMBO | K118: UHF | M118: X | N118: X | O118: X | P118: USER | Q118: XB-Only | R118: SUITCASE-DVRS(UHF) Crossband/No Inband; For APX (UHF+700+800) using Unknown or User-Defined Antenna | S118: 2 | T118: 14 | U118: 3 | V118: 2 | W118: 795 | X118: 0 | Y118: 2 | Z118: No Drawing | AA118: 18 | AD118: Special Order
E119: X | G119: X | J119: INVALID COMBO | K119: UHF | M119: X | N119: X | O119: X | P119: USER | Q119: IB+XB | R119: SUITCASE-DVRS(UHF) Inband & Crossband; For APX (UHF+700+800) using Unknown or User-Defined Antenna | S119: 2 | T119: 14 | U119: 5 | V119: 2 | W119: 801 | X119: 0 | Y119: 2 | Z119: No Drawing | AA119: 10
J120: INVALID COMBO | K120: UHF | L120: X | M120: X | N120: X | O120: X | P120: SINGLE | Q120: IB-Only | R120: SUITCASE-DVRS(UHF) Inband/No Crossband; For APX (VHF+UHF+700+800) using Single-Band Antenna(s) | S120: 2 | T120: 15 | U120: 1 | V120: 0 | W120: 804 | X120: 0 | Y120: 3 | Z120: No Drawing | AA120: 8 | AB120: 3-Band Single Antenna | AC120: INVALID COMBO
G121: X | J121: INVALID COMBO | K121: UHF | L121: X | M121: X | N121: X | O121: X | P121: USER | Q121: IB-Only | R121: SUITCASE-DVRS(UHF) Inband/No Crossband; For APX (VHF+UHF+700+800) using Unknown or User-Defined Antenna | S121: 2 | T121: 15 | U121: 1 | V121: 2 | W121: 806 | X121: 0 | Y121: 3 | Z121: No Drawing | AA121: 6
J122: INVALID COMBO | K122: UHF | L122: X | M122: X | N122: X | O122: X | P122: SINGLE | Q122: XB-Only | R122: SUITCASE-DVRS(UHF) Crossband/No Inband; For APX (VHF+UHF+700+800) using Single-Band Antenna(s) | S122: 2 | T122: 15 | U122: 3 | V122: 0 | W122: 810 | X122: 0 | Y122: 3 | Z122: No Drawing | AA122: 18 | AB122: 3-Band Single Antenna | AC122: INVALID COMBO | AD122: Special Order
F123: X | J123: INVALID COMBO | K123: UHF | L123: X | M123: X | N123: X | O123: X | P123: ALL | Q123: XB-Only | R123: SUITCASE-DVRS(UHF) Crossband/No Inband; For APX (VHF+UHF+700+800) using One All-Band Antenna | S123: 2 | T123: 15 | U123: 3 | V123: 1 | W123: 811 | X123: 0 | Y123: 3 | Z123: No Drawing | AA123: 18 | AB123: Original Special Order | AD123: Special Order
F124: X | J124: INVALID COMBO | K124: UHF | L124: X | M124: X | N124: X | O124: X | P124: USER | Q124: XB-Only | R124: SUITCASE-DVRS(UHF) Crossband/No Inband; For APX (VHF+UHF+700+800) using Unknown or User-Defined Antenna | S124: 2 | T124: 15 | U124: 3 | V124: 2 | W124: 812 | X124: 0 | Y124: 3 | Z124: No Drawing | AA124: 18 | AD124: Special Order
J125: INVALID COMBO | K125: UHF | L125: X | M125: X | N125: X | O125: X | P125: SINGLE | Q125: IB+XB | R125: SUITCASE-DVRS(UHF) Inband & Crossband; For APX (VHF+UHF+700+800) using Single-Band Antenna(s) | S125: 2 | T125: 15 | U125: 5 | V125: 0 | W125: 816 | X125: 0 | Y125: 3 | Z125: No Drawing | AA125: 8 | AB125: 3-Band Single Antenna | AC125: INVALID COMBO
E126: X | G126: X | J126: INVALID COMBO | K126: UHF | L126: X | M126: X | N126: X | O126: X | P126: USER | Q126: IB+XB | R126: SUITCASE-DVRS(UHF) Inband & Crossband; For APX (VHF+UHF+700+800) using Unknown or User-Defined Antenna | S126: 2 | T126: 15 | U126: 5 | V126: 2 | W126: 818 | X126: 0 | Y126: 3 | Z126: No Drawing | AA126: 10
B127: X | K127: 700 | L127: X | P127: SINGLE | Q127: XB-Forced | R127: SUITCASE-DVRS(700) Crossband; For APX (VHF) using Single-Band Antenna(s) | S127: 3 | T127: 1 | U127: 4 | V127: 0 | W127: 848 | X127: 19 | Y127: 1 | Z127: No Drawing | AA127: 2 | AB127: Single MSU Band
B128: X | K128: 700 | L128: X | P128: ALL | Q128: XB-Forced | R128: SUITCASE-DVRS(700) Crossband; For APX (VHF) using One All-Band Antenna | S128: 3 | T128: 1 | U128: 4 | V128: 1 | W128: 849 | X128: 19 | Y128: 1 | Z128: No Drawing | AA128: 2 | AB128: Single MSU Band
B129: X | J129: INVALID COMBO | K129: 700 | L129: X | P129: USER | Q129: XB-Forced | R129: SUITCASE-DVRS(700) Crossband; For APX (VHF) using Unknown or User-Defined Antenna | S129: 3 | T129: 1 | U129: 4 | V129: 2 | W129: 850 | X129: 0 | Y129: 1 | Z129: No Drawing | AA129: 2 | AB129: Single MSU Band
B130: X | K130: 700 | M130: X | P130: SINGLE | Q130: XB-Forced | R130: SUITCASE-DVRS(700) Crossband; For APX (UHF) using Single-Band Antenna(s) | S130: 3 | T130: 2 | U130: 4 | V130: 0 | W130: 865 | X130: 19 | Y130: 1 | Z130: No Drawing | AA130: 2 | AB130: Single MSU Band
B131: X | K131: 700 | M131: X | P131: ALL | Q131: XB-Forced | R131: SUITCASE-DVRS(700) Crossband; For APX (UHF) using One All-Band Antenna | S131: 3 | T131: 2 | U131: 4 | V131: 1 | W131: 866 | X131: 19 | Y131: 1 | Z131: No Drawing | AA131: 2 | AB131: Single MSU Band
B132: X | J132: INVALID COMBO | K132: 700 | M132: X | P132: USER | Q132: XB-Forced | R132: SUITCASE-DVRS(700) Crossband; For APX (UHF) using Unknown or User-Defined Antenna | S132: 3 | T132: 2 | U132: 4 | V132: 2 | W132: 867 | X132: 0 | Y132: 1 | Z132: No Drawing | AA132: 2
E133: X | J133: INVALID COMBO | K133: 700 | L133: X | M133: X | P133: USER | Q133: XB-Forced | R133: SUITCASE-DVRS(700) Crossband; For APX (VHF+UHF) using Unknown or User-Defined Antenna | S133: 3 | T133: 3 | U133: 4 | V133: 2 | W133: 884 | X133: 0 | Y133: 2 | Z133: No Drawing | AA133: 4
A134: X | G134: X | J134: INVALID COMBO | K134: 700 | N134: X | P134: USER | Q134: IB-Forced | R134: SUITCASE-DVRS(700) Inband; For APX (700) using Unknown or User-Defined Antenna | S134: 3 | T134: 4 | U134: 2 | V134: 2 | W134: 895 | X134: 0 | Y134: 1 | Z134: No Drawing | AA134: 7
J135: =IF(OR(AND(Y135>2,$P135<>"All"),$P135="USER",$Q135="XB-Only"),"INVALID COMBO","") -> INVALID COMBO | K135: 700 | N135: X | P135: SINGLE | Q135: XB-Only | R135: =$K$6&"("&$K135&")"&" "&VLOOKUP($Q135,RPTCodes,2,FALSE) &"; For APX ("&VLOOKUP($T135,BAND_NAMES,2)&") using "&VLOOKUP($P135,ANTcodes,3,FALSE) -> SUITCASE-DVRS(700) Crossband/No Inband; For APX (700) using Single-Band Antenna(s) | S135: =VLOOKUP(K135,Freq_Bands,2) -> 3 | T135: =IF(L135="X",1,0)+IF(M135="X",2,0)+IF(N135="X",4,0)+IF(O135="X",8,0) -> 4 | U135: =VLOOKUP(Q135,RPTCodes,4,FALSE) -> 3 | V135: =VLOOKUP(P135,ANTcodes,2,FALSE) -> 0 | W135: =$V135*MULT_ANT+$U135*MULT_RPT+$T135*MULT_MRF+$S135*MULT_VRF -> 896 | X135: =IF(LEFT($J135,4)="INVA",$J$4,IF($A135="X",$A$4,0)+IF($B135="X",$B$4,0)+IF($D135="X",$D$4,0)+IF($E135="X",$E$4,0)+IF($F135="X",$F$4,0)+IF($G135="X",$G$4,0)+IF($I135="X",$I$4,0)+IF($C135="X",$C$4,0)) -> 0 | Y135: =COUNTA(L135:M135)+IF(RIGHT(N135&O135,1)="X",1,0) -> 1 | Z135: No Drawing | AA135: 0 | AB135: Illogical terminology | AC135: =IF(COUNTIF($A135:$H135, "<>"&"")=0,"INVALID COMBO","") -> INVALID COMBO | AD135: INVALID COMBO
J136: INVALID COMBO | K136: 700 | N136: X | P136: ALL | Q136: XB-Only | R136: SUITCASE-DVRS(700) Crossband/No Inband; For APX (700) using One All-Band Antenna | S136: 3 | T136: 4 | U136: 3 | V136: 1 | W136: 897 | X136: 0 | Y136: 1 | Z136: No Drawing | AA136: 0 | AB136: Illogical terminology | AC136: INVALID COMBO | AD136: INVALID COMBO
J137: INVALID COMBO | K137: 700 | N137: X | P137: USER | Q137: XB-Only | R137: SUITCASE-DVRS(700) Crossband/No Inband; For APX (700) using Unknown or User-Defined Antenna | S137: 3 | T137: 4 | U137: 3 | V137: 2 | W137: 898 | X137: 0 | Y137: 1 | Z137: No Drawing | AA137: 0 | AD137: INVALID COMBO
G138: X | J138: INVALID COMBO | K138: 700 | L138: X | N138: X | P138: USER | Q138: IB-Only | R138: SUITCASE-DVRS(700) Inband/No Crossband; For APX (VHF+700) using Unknown or User-Defined Antenna | S138: 3 | T138: 5 | U138: 1 | V138: 2 | W138: 909 | X138: 0 | Y138: 2 | Z138: No Drawing | AA138: 6
B139: X | I139: X | J139: INVALID COMBO | K139: 700 | L139: X | N139: X | P139: SINGLE | Q139: XB-Only | R139: SUITCASE-DVRS(700) Crossband/No Inband; For APX (VHF+700) using Single-Band Antenna(s) | S139: 3 | T139: 5 | U139: 3 | V139: 0 | W139: 913 | X139: 0 | Y139: 2 | Z139: No Drawing | AA139: 18 | AB139: Original Special Order | AD139: Special Order
D140: X | J140: INVALID COMBO | K140: 700 | L140: X | N140: X | P140: ALL | Q140: XB-Only | R140: SUITCASE-DVRS(700) Crossband/No Inband; For APX (VHF+700) using One All-Band Antenna | S140: 3 | T140: 5 | U140: 3 | V140: 1 | W140: 914 | X140: 0 | Y140: 2 | Z140: No Drawing | AA140: 18 | AB140: Original Special Order | AD140: Special Order
D141: X | J141: INVALID COMBO | K141: 700 | L141: X | N141: X | P141: USER | Q141: XB-Only | R141: SUITCASE-DVRS(700) Crossband/No Inband; For APX (VHF+700) using Unknown or User-Defined Antenna | S141: 3 | T141: 5 | U141: 3 | V141: 2 | W141: 915 | X141: 0 | Y141: 2 | Z141: No Drawing | AA141: 18 | AD141: Special Order
E142: X | G142: X | J142: INVALID COMBO | K142: 700 | L142: X | N142: X | P142: USER | Q142: IB+XB | R142: SUITCASE-DVRS(700) Inband & Crossband; For APX (VHF+700) using Unknown or User-Defined Antenna | S142: 3 | T142: 5 | U142: 5 | V142: 2 | W142: 921 | X142: 0 | Y142: 2 | Z142: No Drawing | AA142: 10
G143: X | J143: INVALID COMBO | K143: 700 | M143: X | N143: X | P143: USER | Q143: IB-Only | R143: SUITCASE-DVRS(700) Inband/No Crossband; For APX (UHF+700) using Unknown or User-Defined Antenna | S143: 3 | T143: 6 | U143: 1 | V143: 2 | W143: 926 | X143: 0 | Y143: 2 | Z143: No Drawing | AA143: 6
B144: X | I144: X | J144: INVALID COMBO | K144: 700 | M144: X | N144: X | P144: SINGLE | Q144: XB-Only | R144: SUITCASE-DVRS(700) Crossband/No Inband; For APX (UHF+700) using Single-Band Antenna(s) | S144: 3 | T144: 6 | U144: 3 | V144: 0 | W144: 930 | X144: 0 | Y144: 2 | Z144: No Drawing | AA144: 18 | AB144: Original Special Order | AD144: Special Order
D145: X | J145: INVALID COMBO | K145: 700 | M145: X | N145: X | P145: ALL | Q145: XB-Only | R145: SUITCASE-DVRS(700) Crossband/No Inband; For APX (UHF+700) using One All-Band Antenna | S145: 3 | T145: 6 | U145: 3 | V145: 1 | W145: 931 | X145: 0 | Y145: 2 | Z145: No Drawing | AA145: 18 | AB145: Original Special Order | AD145: Special Order
D146: X | J146: INVALID COMBO | K146: 700 | M146: X | N146: X | P146: USER | Q146: XB-Only | R146: SUITCASE-DVRS(700) Crossband/No Inband; For APX (UHF+700) using Unknown or User-Defined Antenna | S146: 3 | T146: 6 | U146: 3 | V146: 2 | W146: 932 | X146: 0 | Y146: 2 | Z146: No Drawing | AA146: 18 | AD146: Special Order
E147: X | G147: X | J147: INVALID COMBO | K147: 700 | M147: X | N147: X | P147: USER | Q147: IB+XB | R147: SUITCASE-DVRS(700) Inband & Crossband; For APX (UHF+700) using Unknown or User-Defined Antenna | S147: 3 | T147: 6 | U147: 5 | V147: 2 | W147: 938 | X147: 0 | Y147: 2 | Z147: No Drawing | AA147: 10
J148: INVALID COMBO | K148: 700 | L148: X | M148: X | N148: X | P148: SINGLE | Q148: IB-Only | R148: SUITCASE-DVRS(700) Inband/No Crossband; For APX (VHF+UHF+700) using Single-Band Antenna(s) | S148: 3 | T148: 7 | U148: 1 | V148: 0 | W148: 941 | X148: 0 | Y148: 3 | Z148: No Drawing | AA148: 8 | AB148: 3-Band Single Antenna | AC148: INVALID COMBO
G149: X | J149: INVALID COMBO | K149: 700 | L149: X | M149: X | N149: X | P149: USER | Q149: IB-Only | R149: SUITCASE-DVRS(700) Inband/No Crossband; For APX (VHF+UHF+700) using Unknown or User-Defined Antenna | S149: 3 | T149: 7 | U149: 1 | V149: 2 | W149: 943 | X149: 0 | Y149: 3 | Z149: No Drawing | AA149: 6
J150: INVALID COMBO | K150: 700 | L150: X | M150: X | N150: X | P150: SINGLE | Q150: XB-Only | R150: SUITCASE-DVRS(700) Crossband/No Inband; For APX (VHF+UHF+700) using Single-Band Antenna(s) | S150: 3 | T150: 7 | U150: 3 | V150: 0 | W150: 947 | X150: 0 | Y150: 3 | Z150: No Drawing | AA150: 18 | AB150: 3-Band Single Antenna | AC150: INVALID COMBO | AD150: Special Order
F151: X | J151: INVALID COMBO | K151: 700 | L151: X | M151: X | N151: X | P151: ALL | Q151: XB-Only | R151: SUITCASE-DVRS(700) Crossband/No Inband; For APX (VHF+UHF+700) using One All-Band Antenna | S151: 3 | T151: 7 | U151: 3 | V151: 1 | W151: 948 | X151: 0 | Y151: 3 | Z151: No Drawing | AA151: 18 | AB151: Original Special Order | AD151: Special Order
F152: X | J152: INVALID COMBO | K152: 700 | L152: X | M152: X | N152: X | P152: USER | Q152: XB-Only | R152: SUITCASE-DVRS(700) Crossband/No Inband; For APX (VHF+UHF+700) using Unknown or User-Defined Antenna | S152: 3 | T152: 7 | U152: 3 | V152: 2 | W152: 949 | X152: 0 | Y152: 3 | Z152: No Drawing | AA152: 18 | AD152: Special Order
J153: INVALID COMBO | K153: 700 | L153: X | M153: X | N153: X | P153: SINGLE | Q153: IB+XB | R153: SUITCASE-DVRS(700) Inband & Crossband; For APX (VHF+UHF+700) using Single-Band Antenna(s) | S153: 3 | T153: 7 | U153: 5 | V153: 0 | W153: 953 | X153: 0 | Y153: 3 | Z153: No Drawing | AA153: 8 | AB153: 3-Band Single Antenna | AC153: INVALID COMBO
E154: X | G154: X | J154: INVALID COMBO | K154: 700 | L154: X | M154: X | N154: X | P154: USER | Q154: IB+XB | R154: SUITCASE-DVRS(700) Inband & Crossband; For APX (VHF+UHF+700) using Unknown or User-Defined Antenna | S154: 3 | T154: 7 | U154: 5 | V154: 2 | W154: 955 | X154: 0 | Y154: 3 | Z154: No Drawing | AA154: 10
A155: X | G155: X | J155: INVALID COMBO | K155: 700 | O155: X | P155: USER | Q155: IB-Forced | R155: SUITCASE-DVRS(700) Inband; For APX (800) using Unknown or User-Defined Antenna | S155: 3 | T155: 8 | U155: 2 | V155: 2 | W155: 963 | X155: 0 | Y155: 1 | Z155: No Drawing | AA155: 7
J156: INVALID COMBO | K156: 700 | O156: X | P156: SINGLE | Q156: XB-Only | R156: SUITCASE-DVRS(700) Crossband/No Inband; For APX (800) using Single-Band Antenna(s) | S156: 3 | T156: 8 | U156: 3 | V156: 0 | W156: 964 | X156: 0 | Y156: 1 | Z156: No Drawing | AA156: 0 | AB156: Illogical terminology | AC156: INVALID COMBO | AD156: INVALID COMBO
J157: INVALID COMBO | K157: 700 | O157: X | P157: ALL | Q157: XB-Only | R157: SUITCASE-DVRS(700) Crossband/No Inband; For APX (800) using One All-Band Antenna | S157: 3 | T157: 8 | U157: 3 | V157: 1 | W157: 965 | X157: 0 | Y157: 1 | Z157: No Drawing | AA157: 0 | AB157: Illogical terminology | AC157: INVALID COMBO | AD157: INVALID COMBO
J158: INVALID COMBO | K158: 700 | O158: X | P158: USER | Q158: XB-Only | R158: SUITCASE-DVRS(700) Crossband/No Inband; For APX (800) using Unknown or User-Defined Antenna | S158: 3 | T158: 8 | U158: 3 | V158: 2 | W158: 966 | X158: 0 | Y158: 1 | Z158: No Drawing | AA158: 0 | AC158: INVALID COMBO | AD158: INVALID COMBO
G159: X | J159: INVALID COMBO | K159: 700 | L159: X | O159: X | P159: USER | Q159: IB-Only | R159: SUITCASE-DVRS(700) Inband/No Crossband; For APX (VHF+800) using Unknown or User-Defined Antenna | S159: 3 | T159: 9 | U159: 1 | V159: 2 | W159: 977 | X159: 0 | Y159: 2 | Z159: No Drawing | AA159: 6
B160: X | I160: X | J160: INVALID COMBO | K160: 700 | L160: X | O160: X | P160: SINGLE | Q160: XB-Only | R160: SUITCASE-DVRS(700) Crossband/No Inband; For APX (VHF+800) using Single-Band Antenna(s) | S160: 3 | T160: 9 | U160: 3 | V160: 0 | W160: 981 | X160: 0 | Y160: 2 | Z160: No Drawing | AA160: 18 | AB160: Original Special Order | AD160: Special Order
D161: X | J161: INVALID COMBO | K161: 700 | L161: X | O161: X | P161: ALL | Q161: XB-Only | R161: SUITCASE-DVRS(700) Crossband/No Inband; For APX (VHF+800) using One All-Band Antenna | S161: 3 | T161: 9 | U161: 3 | V161: 1 | W161: 982 | X161: 0 | Y161: 2 | Z161: No Drawing | AA161: 18 | AB161: Original Special Order | AD161: Special Order
D162: X | J162: INVALID COMBO | K162: 700 | L162: X | O162: X | P162: USER | Q162: XB-Only | R162: SUITCASE-DVRS(700) Crossband/No Inband; For APX (VHF+800) using Unknown or User-Defined Antenna | S162: 3 | T162: 9 | U162: 3 | V162: 2 | W162: 983 | X162: 0 | Y162: 2 | Z162: No Drawing | AA162: 18 | AD162: Special Order
E163: X | G163: X | J163: INVALID COMBO | K163: 700 | L163: X | O163: X | P163: USER | Q163: IB+XB | R163: SUITCASE-DVRS(700) Inband & Crossband; For APX (VHF+800) using Unknown or User-Defined Antenna | S163: 3 | T163: 9 | U163: 5 | V163: 2 | W163: 989 | X163: 0 | Y163: 2 | Z163: No Drawing | AA163: 10
G164: X | J164: INVALID COMBO | K164: 700 | M164: X | O164: X | P164: USER | Q164: IB-Only | R164: SUITCASE-DVRS(700) Inband/No Crossband; For APX (UHF+800) using Unknown or User-Defined Antenna | S164: 3 | T164: 10 | U164: 1 | V164: 2 | W164: 994 | X164: 0 | Y164: 2 | Z164: No Drawing | AA164: 6
B165: X | I165: X | J165: INVALID COMBO | K165: 700 | M165: X | O165: X | P165: SINGLE | Q165: XB-Only | R165: SUITCASE-DVRS(700) Crossband/No Inband; For APX (UHF+800) using Single-Band Antenna(s) | S165: 3 | T165: 10 | U165: 3 | V165: 0 | W165: 998 | X165: 0 | Y165: 2 | Z165: No Drawing | AA165: 18 | AB165: Original Special Order | AD165: Special Order
D166: X | J166: INVALID COMBO | K166: 700 | M166: X | O166: X | P166: ALL | Q166: XB-Only | R166: SUITCASE-DVRS(700) Crossband/No Inband; For APX (UHF+800) using One All-Band Antenna | S166: 3 | T166: 10 | U166: 3 | V166: 1 | W166: 999 | X166: 0 | Y166: 2 | Z166: No Drawing | AA166: 18 | AB166: Original Special Order | AD166: Special Order
D167: X | J167: INVALID COMBO | K167: 700 | M167: X | O167: X | P167: USER | Q167: XB-Only | R167: SUITCASE-DVRS(700) Crossband/No Inband; For APX (UHF+800) using Unknown or User-Defined Antenna | S167: 3 | T167: 10 | U167: 3 | V167: 2 | W167: 1000 | X167: 0 | Y167: 2 | Z167: No Drawing | AA167: 18 | AD167: Special Order
E168: X | G168: X | J168: INVALID COMBO | K168: 700 | M168: X | O168: X | P168: USER | Q168: IB+XB | R168: SUITCASE-DVRS(700) Inband & Crossband; For APX (UHF+800) using Unknown or User-Defined Antenna | S168: 3 | T168: 10 | U168: 5 | V168: 2 | W168: 1006 | X168: 0 | Y168: 2 | Z168: No Drawing | AA168: 10
J169: INVALID COMBO | K169: 700 | L169: X | M169: X | O169: X | P169: SINGLE | Q169: IB-Only | R169: SUITCASE-DVRS(700) Inband/No Crossband; For APX (VHF+UHF+800) using Single-Band Antenna(s) | S169: 3 | T169: 11 | U169: 1 | V169: 0 | W169: 1009 | X169: 0 | Y169: 3 | Z169: No Drawing | AA169: 8 | AB169: 3-Band Single Antenna | AC169: INVALID COMBO
G170: X | J170: INVALID COMBO | K170: 700 | L170: X | M170: X | O170: X | P170: USER | Q170: IB-Only | R170: SUITCASE-DVRS(700) Inband/No Crossband; For APX (VHF+UHF+800) using Unknown or User-Defined Antenna | S170: 3 | T170: 11 | U170: 1 | V170: 2 | W170: 1011 | X170: 0 | Y170: 3 | Z170: No Drawing | AA170: 6
J171: INVALID COMBO | K171: 700 | L171: X | M171: X | O171: X | P171: SINGLE | Q171: XB-Only | R171: SUITCASE-DVRS(700) Crossband/No Inband; For APX (VHF+UHF+800) using Single-Band Antenna(s) | S171: 3 | T171: 11 | U171: 3 | V171: 0 | W171: 1015 | X171: 0 | Y171: 3 | Z171: No Drawing | AA171: 18 | AB171: 3-Band Single Antenna | AC171: INVALID COMBO | AD171: Special Order
F172: X | J172: INVALID COMBO | K172: 700 | L172: X | M172: X | O172: X | P172: ALL | Q172: XB-Only | R172: SUITCASE-DVRS(700) Crossband/No Inband; For APX (VHF+UHF+800) using One All-Band Antenna | S172: 3 | T172: 11 | U172: 3 | V172: 1 | W172: 1016 | X172: 0 | Y172: 3 | Z172: No Drawing | AA172: 18 | AB172: Original Special Order | AD172: Special Order
F173: X | J173: INVALID COMBO | K173: 700 | L173: X | M173: X | O173: X | P173: USER | Q173: XB-Only | R173: SUITCASE-DVRS(700) Crossband/No Inband; For APX (VHF+UHF+800) using Unknown or User-Defined Antenna | S173: 3 | T173: 11 | U173: 3 | V173: 2 | W173: 1017 | X173: 0 | Y173: 3 | Z173: No Drawing | AA173: 18 | AD173: Special Order
J174: INVALID COMBO | K174: 700 | L174: X | M174: X | O174: X | P174: SINGLE | Q174: IB+XB | R174: SUITCASE-DVRS(700) Inband & Crossband; For APX (VHF+UHF+800) using Single-Band Antenna(s) | S174: 3 | T174: 11 | U174: 5 | V174: 0 | W174: 1021 | X174: 0 | Y174: 3 | Z174: No Drawing | AA174: 8 | AB174: 3-Band Single Antenna | AC174: INVALID COMBO
E175: X | G175: X | J175: INVALID COMBO | K175: 700 | L175: X | M175: X | O175: X | P175: USER | Q175: IB+XB | R175: SUITCASE-DVRS(700) Inband & Crossband; For APX (VHF+UHF+800) using Unknown or User-Defined Antenna | S175: 3 | T175: 11 | U175: 5 | V175: 2 | W175: 1023 | X175: 0 | Y175: 3 | Z175: No Drawing | AA175: 10
A176: X | G176: X | J176: INVALID COMBO | K176: 700 | N176: X | O176: X | P176: USER | Q176: IB-Forced | R176: SUITCASE-DVRS(700) Inband; For APX (700+800) using Unknown or User-Defined Antenna | S176: 3 | T176: 12 | U176: 2 | V176: 2 | W176: 1031 | X176: 0 | Y176: 1 | Z176: No Drawing | AA176: 7
J177: INVALID COMBO | K177: 700 | N177: X | O177: X | P177: SINGLE | Q177: XB-Only | R177: SUITCASE-DVRS(700) Crossband/No Inband; For APX (700+800) using Single-Band Antenna(s) | S177: 3 | T177: 12 | U177: 3 | V177: 0 | W177: 1032 | X177: 0 | Y177: 1 | Z177: No Drawing | AA177: 0 | AB177: Illogical terminology | AC177: INVALID COMBO | AD177: INVALID COMBO
J178: INVALID COMBO | K178: 700 | N178: X | O178: X | P178: ALL | Q178: XB-Only | R178: SUITCASE-DVRS(700) Crossband/No Inband; For APX (700+800) using One All-Band Antenna | S178: 3 | T178: 12 | U178: 3 | V178: 1 | W178: 1033 | X178: 0 | Y178: 1 | Z178: No Drawing | AA178: 0 | AB178: Illogical terminology | AC178: INVALID COMBO | AD178: INVALID COMBO
J179: INVALID COMBO | K179: 700 | N179: X | O179: X | P179: USER | Q179: XB-Only | R179: SUITCASE-DVRS(700) Crossband/No Inband; For APX (700+800) using Unknown or User-Defined Antenna | S179: 3 | T179: 12 | U179: 3 | V179: 2 | W179: 1034 | X179: 0 | Y179: 1 | Z179: No Drawing | AA179: 0 | AC179: INVALID COMBO | AD179: INVALID COMBO
G180: X | J180: INVALID COMBO | K180: 700 | L180: X | N180: X | O180: X | P180: USER | Q180: IB-Only | R180: SUITCASE-DVRS(700) Inband/No Crossband; For APX (VHF+700+800) using Unknown or User-Defined Antenna | S180: 3 | T180: 13 | U180: 1 | V180: 2 | W180: 1045 | X180: 0 | Y180: 2 | Z180: No Drawing | AA180: 6
B181: X | I181: X | J181: INVALID COMBO | K181: 700 | L181: X | N181: X | O181: X | P181: SINGLE | Q181: XB-Only | R181: SUITCASE-DVRS(700) Crossband/No Inband; For APX (VHF+700+800) using Single-Band Antenna(s) | S181: 3 | T181: 13 | U181: 3 | V181: 0 | W181: 1049 | X181: 0 | Y181: 2 | Z181: No Drawing | AA181: 18 | AB181: Original Special Order | AD181: Special Order
D182: X | J182: INVALID COMBO | K182: 700 | L182: X | N182: X | O182: X | P182: ALL | Q182: XB-Only | R182: SUITCASE-DVRS(700) Crossband/No Inband; For APX (VHF+700+800) using One All-Band Antenna | S182: 3 | T182: 13 | U182: 3 | V182: 1 | W182: 1050 | X182: 0 | Y182: 2 | Z182: No Drawing | AA182: 18 | AB182: Original Special Order | AD182: Special Order
D183: X | J183: INVALID COMBO | K183: 700 | L183: X | N183: X | O183: X | P183: USER | Q183: XB-Only | R183: SUITCASE-DVRS(700) Crossband/No Inband; For APX (VHF+700+800) using Unknown or User-Defined Antenna | S183: 3 | T183: 13 | U183: 3 | V183: 2 | W183: 1051 | X183: 0 | Y183: 2 | Z183: No Drawing | AA183: 18 | AD183: Special Order
E184: X | G184: X | J184: INVALID COMBO | K184: 700 | L184: X | N184: X | O184: X | P184: USER | Q184: IB+XB | R184: SUITCASE-DVRS(700) Inband & Crossband; For APX (VHF+700+800) using Unknown or User-Defined Antenna | S184: 3 | T184: 13 | U184: 5 | V184: 2 | W184: 1057 | X184: 0 | Y184: 2 | Z184: No Drawing | AA184: 10
G185: X | J185: INVALID COMBO | K185: 700 | M185: X | N185: X | O185: X | P185: USER | Q185: IB-Only | R185: SUITCASE-DVRS(700) Inband/No Crossband; For APX (UHF+700+800) using Unknown or User-Defined Antenna | S185: 3 | T185: 14 | U185: 1 | V185: 2 | W185: 1062 | X185: 0 | Y185: 2 | Z185: No Drawing | AA185: 6
B186: X | I186: X | J186: INVALID COMBO | K186: 700 | M186: X | N186: X | O186: X | P186: SINGLE | Q186: XB-Only | R186: SUITCASE-DVRS(700) Crossband/No Inband; For APX (UHF+700+800) using Single-Band Antenna(s) | S186: 3 | T186: 14 | U186: 3 | V186: 0 | W186: 1066 | X186: 0 | Y186: 2 | Z186: No Drawing | AA186: 18 | AB186: Original Special Order | AD186: Special Order
D187: X | J187: INVALID COMBO | K187: 700 | M187: X | N187: X | O187: X | P187: ALL | Q187: XB-Only | R187: SUITCASE-DVRS(700) Crossband/No Inband; For APX (UHF+700+800) using One All-Band Antenna | S187: 3 | T187: 14 | U187: 3 | V187: 1 | W187: 1067 | X187: 0 | Y187: 2 | Z187: No Drawing | AA187: 18 | AB187: Original Special Order | AD187: Special Order
D188: X | J188: INVALID COMBO | K188: 700 | M188: X | N188: X | O188: X | P188: USER | Q188: XB-Only | R188: SUITCASE-DVRS(700) Crossband/No Inband; For APX (UHF+700+800) using Unknown or User-Defined Antenna | S188: 3 | T188: 14 | U188: 3 | V188: 2 | W188: 1068 | X188: 0 | Y188: 2 | Z188: No Drawing | AA188: 18 | AD188: Special Order
E189: X | G189: X | J189: INVALID COMBO | K189: 700 | M189: X | N189: X | O189: X | P189: USER | Q189: IB+XB | R189: SUITCASE-DVRS(700) Inband & Crossband; For APX (UHF+700+800) using Unknown or User-Defined Antenna | S189: 3 | T189: 14 | U189: 5 | V189: 2 | W189: 1074 | X189: 0 | Y189: 2 | Z189: No Drawing | AA189: 10
J190: INVALID COMBO | K190: 700 | L190: X | M190: X | N190: X | O190: X | P190: SINGLE | Q190: IB-Only | R190: SUITCASE-DVRS(700) Inband/No Crossband; For APX (VHF+UHF+700+800) using Single-Band Antenna(s) | S190: 3 | T190: 15 | U190: 1 | V190: 0 | W190: 1077 | X190: 0 | Y190: 3 | Z190: No Drawing | AA190: 8 | AB190: 3-Band Single Antenna | AC190: INVALID COMBO
G191: X | J191: INVALID COMBO | K191: 700 | L191: X | M191: X | N191: X | O191: X | P191: USER | Q191: IB-Only | R191: SUITCASE-DVRS(700) Inband/No Crossband; For APX (VHF+UHF+700+800) using Unknown or User-Defined Antenna | S191: 3 | T191: 15 | U191: 1 | V191: 2 | W191: 1079 | X191: 0 | Y191: 3 | Z191: No Drawing | AA191: 6
J192: INVALID COMBO | K192: 700 | L192: X | M192: X | N192: X | O192: X | P192: SINGLE | Q192: XB-Only | R192: SUITCASE-DVRS(700) Crossband/No Inband; For APX (VHF+UHF+700+800) using Single-Band Antenna(s) | S192: 3 | T192: 15 | U192: 3 | V192: 0 | W192: 1083 | X192: 0 | Y192: 3 | Z192: No Drawing | AA192: 18 | AB192: 3-Band Single Antenna | AC192: INVALID COMBO | AD192: Special Order
F193: X | J193: INVALID COMBO | K193: 700 | L193: X | M193: X | N193: X | O193: X | P193: ALL | Q193: XB-Only | R193: SUITCASE-DVRS(700) Crossband/No Inband; For APX (VHF+UHF+700+800) using One All-Band Antenna | S193: 3 | T193: 15 | U193: 3 | V193: 1 | W193: 1084 | X193: 0 | Y193: 3 | Z193: No Drawing | AA193: 18 | AB193: Original Special Order | AD193: Special Order
F194: X | J194: INVALID COMBO | K194: 700 | L194: X | M194: X | N194: X | O194: X | P194: USER | Q194: XB-Only | R194: SUITCASE-DVRS(700) Crossband/No Inband; For APX (VHF+UHF+700+800) using Unknown or User-Defined Antenna | S194: 3 | T194: 15 | U194: 3 | V194: 2 | W194: 1085 | X194: 0 | Y194: 3 | Z194: No Drawing | AA194: 18 | AD194: Special Order
J195: INVALID COMBO | K195: 700 | L195: X | M195: X | N195: X | O195: X | P195: SINGLE | Q195: IB+XB | R195: SUITCASE-DVRS(700) Inband & Crossband; For APX (VHF+UHF+700+800) using Single-Band Antenna(s) | S195: 3 | T195: 15 | U195: 5 | V195: 0 | W195: 1089 | X195: 0 | Y195: 3 | Z195: No Drawing | AA195: 8 | AB195: 3-Band Single Antenna | AC195: INVALID COMBO
E196: X | G196: X | J196: INVALID COMBO | K196: 700 | L196: X | M196: X | N196: X | O196: X | P196: USER | Q196: IB+XB | R196: SUITCASE-DVRS(700) Inband & Crossband; For APX (VHF+UHF+700+800) using Unknown or User-Defined Antenna | S196: 3 | T196: 15 | U196: 5 | V196: 2 | W196: 1091 | X196: 0 | Y196: 3 | Z196: No Drawing | AA196: 10
B197: X | K197: 800 | L197: X | P197: SINGLE | Q197: XB-Forced | R197: SUITCASE-DVRS(800) Crossband; For APX (VHF) using Single-Band Antenna(s) | S197: 4 | T197: 1 | U197: 4 | V197: 0 | W197: 1121 | X197: 19 | Y197: 1 | Z197: No Drawing | AA197: 2 | AB197: Single MSU Band
B198: X | K198: 800 | L198: X | P198: ALL | Q198: XB-Forced | R198: SUITCASE-DVRS(800) Crossband; For APX (VHF) using One All-Band Antenna | S198: 4 | T198: 1 | U198: 4 | V198: 1 | W198: 1122 | X198: 19 | Y198: 1 | Z198: No Drawing | AA198: 2 | AB198: Single MSU Band
B199: X | J199: =IF(OR(AND(Y199>2,$P199<>"All"),$P199="USER",$Q199="XB-Only"),"INVALID COMBO","") -> INVALID COMBO | K199: 800 | L199: X | P199: USER | Q199: XB-Forced | R199: =$K$6&"("&$K199&")"&" "&VLOOKUP($Q199,RPTCodes,2,FALSE) &"; For APX ("&VLOOKUP($T199,BAND_NAMES,2)&") using "&VLOOKUP($P199,ANTcodes,3,FALSE) -> SUITCASE-DVRS(800) Crossband; For APX (VHF) using Unknown or User-Defined Antenna | S199: =VLOOKUP(K199,Freq_Bands,2) -> 4 | T199: =IF(L199="X",1,0)+IF(M199="X",2,0)+IF(N199="X",4,0)+IF(O199="X",8,0) -> 1 | U199: =VLOOKUP(Q199,RPTCodes,4,FALSE) -> 4 | V199: =VLOOKUP(P199,ANTcodes,2,FALSE) -> 2 | W199: =$V199*MULT_ANT+$U199*MULT_RPT+$T199*MULT_MRF+$S199*MULT_VRF -> 1123 | X199: =IF(LEFT($J199,4)="INVA",$J$4,IF($A199="X",$A$4,0)+IF($B199="X",$B$4,0)+IF($D199="X",$D$4,0)+IF($E199="X",$E$4,0)+IF($F199="X",$F$4,0)+IF($G199="X",$G$4,0)+IF($I199="X",$I$4,0)+IF($C199="X",$C$4,0)) -> 0 | Y199: =COUNTA(L199:M199)+IF(RIGHT(N199&O199,1)="X",1,0) -> 1 | Z199: No Drawing | AA199: 2 | AB199: Single MSU Band | AC199: =IF(COUNTIF($A199:$H199, "<>"&"")=0,"INVALID COMBO","") -> 
B200: X | K200: 800 | M200: X | P200: SINGLE | Q200: XB-Forced | R200: SUITCASE-DVRS(800) Crossband; For APX (UHF) using Single-Band Antenna(s) | S200: 4 | T200: 2 | U200: 4 | V200: 0 | W200: 1138 | X200: 19 | Y200: 1 | Z200: No Drawing | AA200: 2 | AB200: Single MSU Band
... 202 more rows

Sheet Lookups -ORIGINAL (hidden)
A2: DEVICE | B2: Choice | C2: Data TAB | D2: VR BAND | E2: VRF TX | F2: Choice | G2: REF COL | H2: APX8500 Band | I2: MRF RX | J2: Choice | K2: Code: | L2: REF COL | M2: VR Repeat w/Band | N2: MRF RX | O2: Choice | P2: Code: | Q2: RPT mBand | R2: inBand? | S2: xBand? | T2: Repeat Mode | U2: User Description | V2: Use: | W2: Code: | X2: APX ANTENNAS | Y2: Choice
A3: DVR | B3: 2 | C3: DVR SOLUTIONS | D3: VHF | E3: 138-174 | F3: 1 | G3: H | H3: VHF | I3: 136-174 | J3: TRUE | K3: 1 | L3: I | M3: VHF | N3: 136-174 | O3: FALSE | P3: 1 | Q3: =O3 -> FALSE | R3: =AND($O$3,VRFcode=1) -> FALSE | S3: =AND(OR($Q$4,$Q$6),VRFcode=1) -> TRUE | T3: IB-Enabled | V3: =OR($R$3,$R$4,$R$6) -> FALSE | X3: Unknown | Y3: 1
A4: VRX1000 | C4: VRX SOLUTIONS | D4: UHF | E4: 380-430 | G4: H | H4: UHF | I4: 380-470 | J4: TRUE | K4: 2 | L4: J | M4: UHF | N4: 380-470 | O4: FALSE | P4: 2 | Q4: =OR($O$4:$O$5) -> FALSE | R4: =AND(VRFcode=2,OR($O$4,$O$5)) -> FALSE | S4: =AND(VRFcode=2,OR($Q$3,$Q$6)) -> FALSE | T4: XB-Enabled | V4: =OR($S$3,$S$4,$S$6) -> TRUE | X4: 1+ SINGLE-BAND
A5: DVR Suitcase | C5: DVR Suitcase | D5: UHF | E5: 450-512 | G5: H | H5: UHF | I5: 450-520 | J5: TRUE | K5: 2 | L5: J | M5: UHF | N5: 450-520 | O5: FALSE | P5: 2 | T5: IB-Only | U5: Inband/No Crossband | V5: =AND($V$3,NOT($V$4)) -> FALSE | W5: 1 | X5: 1 ALL-BAND
D6: 700 | E6: 764-776 | G6: H | H6: 700 | I6: 764-776 | J6: TRUE | K6: 4 | L6: K | M6: 700 | N6: 764-776 | O6: FALSE | P6: 4 | Q6: =OR($O$6:$O$8) -> TRUE | R6: =AND(OR(VRFcode=3,VRFcode=4),OR($O$6,$O$7,$O$8)) -> FALSE | S6: =AND(OR(VRFcode=3,VRFcode=4),OR($Q$3,$Q$4)) -> FALSE | T6: IB-Forced | U6: Inband | V6: =CHOOSE(VRFcode,MRFcode=1,MRFcode=2,OR(MRFcode=4,MRFcode=8,MRFcode=12),OR(MRFcode=4,MRFcode=8,MRFcode=12)) -> FALSE | W6: 2
D7: 800 | E7: 851-869 | G7: H | H7: 700 | I7: 799-806 | J7: TRUE | K7: 4 | L7: K | M7: 700 | N7: 799-806 | O7: FALSE | P7: 4 | T7: XB-Only | U7: Crossband/No Inband | V7: =AND(NOT($V$3),$V$4) -> TRUE | W7: 3
H8: 800 | I8: 851-870 | J8: TRUE | K8: 8 | L8: L | M8: 800 | N8: 851-870 | O8: TRUE | P8: 8 | T8: XB-Forced | U8: Crossband | V8: =CHOOSE($F$12,NOT($J$3),NOT(OR($J$4:$J$5)),NOT(OR($J$6:$J$8)),NOT(OR($J$6:$J$8))) -> FALSE | W8: 4
T9: IB+XB | U9: Inband & Crossband | V9: =AND($V$3,$V$4) -> FALSE | W9: 5
B11: VRcode | F11: VRFcode | K11: MRFcode | P11: VRRcode | W11: RPTcode | Y11: ANTcode
A12: CODES: | B12: =$B$3-1 -> 1 | D12: <--LOOKUPS--> | F12: =CHOOSE($F$3,1,2,2,3,4) -> 1 | K12: =$J$3*1+OR($J$4,$J$5)*2+OR($J$6,$J$7)*4+OR($J$8)*8 -> 15 | P12: =O3*1+OR(O4,O5)*2+OR(O6,O7)*4+OR(O8)*8 -> 8 | W12: =MAX(IF($V$5:$V$9,$W$5:$W$9,0)) -> 3 | Y12: =$Y$3-1 -> 0
A13: RANGES:-> | B13: (0-2) | F13: (1-4) | K13: (0-15) | P13: (0-15) | W13: (0-5) | Y13: (0-2)
A14: MULTIPLIER:-> | F14: 273 | K14: 17 | W14: 3 | Y14: 1
F15: (273-1092) | K15: (0-255) | W15: (0-15) | Y15: (0-2)
A16: CONFIG CODE= | B16: =IF(OR(ErrorMRF,ErrorIBR,ERR_MSUband),"ERROR",MAX(0,(VRFcode)*MULT_VRF+(MRFcode)*MULT_MRF+RPTcode*MULT_RPT+ANTcode*MULT_ANT)) -> 537 | J16: ERROR? | K16: =NOT(OR(MsuRxBands)) -> FALSE | O16: ERROR? | P16: =OR(AND(NOT($J$3),$O$3),AND(NOT($J$4),$O$4),AND(NOT($J$5),$O$5),AND(NOT($J$6),$O$6),AND(NOT($J$7),$O$7),AND(NOT($J$8),$O$8)) -> FALSE
O17: ERROR? | P17: =NOT(OR(AND($J$3,$O$3),AND($J$4,$O$4),AND($J$5,$O$5),AND($J$6,$O$6),AND($J$7,$O$7),AND($J$8,$O$8))) -> FALSE
H18: FreqBands | I18: VR Band ID | J18: MSU Band ID | N18: Above ERRORs enable message cells on main tab | X18: ANTcodes
H19: 700 | I19: 3 | J19: 4 | X19: USER | Y19: 2 | Z19: Unknown or User-Defined Antenna
H20: 800 | I20: 4 | J20: 8 | X20: SINGLE | Y20: 0 | Z20: Single-Band Antenna(s)
H21: UHF | I21: 2 | J21: 2 | X21: ALL | Y21: 1 | Z21: One All-Band Antenna
H22: VHF | I22: 1 | J22: 1
M24: RESULTS FROM LOOKUP
B25: Max Interferer into APX8500 Receiver | H25: BAND NAMES | I25: MSU Bands | L25: D Index: | M25: =MATCH(CONFIG_CODE,'DVR SOLUTIONS'!$V$7:$V$500,0) -> 85 | N25: Line number in DVR Solution table
B26: Level dBm at Mobile Port | H26: 0 | I26: none | L26: V Index: | M26: =MATCH(CONFIG_CODE,'VRX SOLUTIONS'!$V$7:$V$500,0) -> 131 | N26: Line number in VRX Solution table
B27: APX8500 BAND Rx | H27: 1 | I27: VHF | L27: DS Index | M27: =MATCH(CONFIG_CODE,'DVR Suitcase'!$W$7:$W$500,0) -> 56 | N27: Line number in DVR Suitcase Solution table
A28: VR BAND TX | B28: VHF | C28: UHF | D28: 700 | E28: 800 | H28: 2 | I28: UHF | L28: Description | M28: =CHOOSE(VRcode+1,INDEX('DVR SOLUTIONS'!$Q$7:$Q$500,'Lookups -ORIGINAL'!$M$25),INDEX('VRX SOLUTIONS'!$Q$7:$Q$500,'Lookups -ORIGINAL'!$M$26),INDEX('DVR Suitcase'!$R$7:$R$500,'Lookups -ORIGINAL'!$M$27)) -> VRX1000 (VHF) Crossband/No Inband; For APX (VHF+UHF+700+800) using Single-Band Antenna(s)
A29: VHF | B29: X | C29: -2.9 | D29: -0.6 | E29: 3 | H29: 3 | I29: VHF+UHF | L29: Filtering | M29: =CHOOSE(VRcode+1,INDEX('DVR SOLUTIONS'!$W$7:$W$500,'Lookups -ORIGINAL'!$M$25),INDEX('VRX SOLUTIONS'!$W$7:$W$500,'Lookups -ORIGINAL'!$M$26),INDEX('DVR Suitcase'!$X$7:$X$500,'Lookups -ORIGINAL'!$M$27)) -> 12 | N29: =FILTER_Code
A30: UHF | B30: 3 | C30: X | D30: 4.4 | E30: 0.5 | H30: 4 | I30: 700 | L30: Filtering | M30: =VLOOKUP($M$29,AntennaFilters,15) -> Triplexer and Relay (Separate Kits)
A31: 700 | B31: 3.4 | C31: -1.6 | D31: X | E31: X | H31: 5 | I31: VHF+700 | L31: NOTES 1 | M31: =VLOOKUP($U$32,tblNOTES,2) -> Without Triplexer, at Least 44 dB VR-to-APX Antenna Isolation Required Instead! | U31: Note-Index | V31: tblNOTES
A32: 800 | B32: 2.6 | C32: 1.3 | D32: X | E32: X | H32: 6 | I32: UHF+700 | L32: NOTES 2 | M32: =VLOOKUP($U$32,tblNOTES,2) -> Without Triplexer, at Least 44 dB VR-to-APX Antenna Isolation Required Instead! | U32: =VLOOKUP(FILTER_Code,AntennaFilters,(VRcode+2)) -> 2 | V32: 1 | W32: This Filtering is Mandatory
H33: 7 | I33: VHF+UHF+700 | L33: Drawing | M33: =CHOOSE(VRcode+1,INDEX('DVR SOLUTIONS'!$Y$7:$Y$500,'Lookups -ORIGINAL'!$M$25),INDEX('VRX SOLUTIONS'!$Y$7:$Y$500,'Lookups -ORIGINAL'!$M$26),INDEX('DVR Suitcase'!$Z$7:$Z$500,'Lookups -ORIGINAL'!$M$27)) -> 8J087X51-58 | V33: 2 | W33: ="Without Triplexer, at Least "&$T$56&" dB VR-to-APX Antenna Isolation Required Instead!" -> Without Triplexer, at Least 44 dB VR-to-APX Antenna Isolation Required Instead!
B34: Above as-measured, used to determine isolation required | H34: 8 | I34: 800 | M34: ABOVE is what is displayed to User | V34: 3 | W34: ="CROSS-BAND operation REQUIRES At Least "&$T$56&" dB VR-to-APX Antenna Isolation!" -> CROSS-BAND operation REQUIRES At Least 44 dB VR-to-APX Antenna Isolation!
H35: 9 | I35: VHF+800 | V35: 4 | W35: ="IN-BAND Filtering Required; CROSS-BAND operation REQUIRES At Least "&$T$56&" dB VR-to-APX Antenna Isolation!" -> IN-BAND Filtering Required; CROSS-BAND operation REQUIRES At Least 44 dB VR-to-APX Antenna Isolation!
H36: 10 | I36: UHF+800 | V36: 5 | W36: INVALID Selections
B37: TX POWER (dBm) | D37: ISOLATION | E37: MARGIN (dB) | H37: 11 | I37: VHF+UHF+800 | L37: Reformatted VR->MSU Interferer Levels | T37: VALID: | V37: 6 | W37: N/A
A38: DVR | B38: 37.8 | E38: 6 | H38: 12 | I38: 700+800 | L38: VR Tx Band | M38: Used? | N38: MSU Rx Band | O38: Used? | P38: Interferer | Q38: Margin | R38: TxPwr | S38: Isol Req | T38: Isol. | V38: 7 | W38: Two Kits are Required
A39: VRX | B39: 34.8 | H39: 13 | I39: VHF+700+800 | L39: VHF | M39: =(VRFcode=1) -> TRUE | N39: VHF | O39: =$J$3 -> TRUE | P39: =B29 -> X | Q39: =$E$38 -> 6 | R39: =CHOOSE(VRcode+1,$B$38,$B$39,$B$38) -> 34.8 | S39: =R39+Q39-P39 ->  | T39: =IF(AND(M39,O39), "Inband","") -> Inband | V39: 8 | W39: Filter Bypass Relay Kit is Optionally Available
H40: 14 | I40: UHF+700+800 | L40: VHF | M40: TRUE | N40: UHF | O40: =OR($J$4,$J$5) -> TRUE | P40: =C29 -> -2.9 | Q40: 6 | R40: 34.8 | S40: =R40+Q40-P40 -> 43.7 | T40: =IF(AND(M40,O40), S40,"") -> 43.7 | V40: 9 | W40: NEW SUITCASE MESSAGE 9 (TBD)
H41: 15 | I41: VHF+UHF+700+800 | L41: VHF | M41: TRUE | N41: 700 | O41: =OR($J$6,$J$7) -> TRUE | P41: =D29 -> -0.6 | Q41: 6 | R41: 34.8 | S41: 41.4 | T41: =IF(AND(M41,O41), S41,"") -> 41.4 | V41: 10 | W41: MUST Contact Futurecom-CUSTOM ENGINEERING QUOTE REQUIRED
L42: VHF | M42: TRUE | N42: 800 | O42: =$J$8 -> TRUE | P42: =E29 -> 3 | Q42: 6 | R42: 34.8 | S42: 37.8 | T42: 37.8
L43: UHF | M43: =(VRFcode=2) -> FALSE | N43: VHF | O43: =$J$3 -> TRUE | P43: =B30 -> 3 | Q43: 6 | R43: 34.8 | S43: 37.8
L44: UHF | M44: FALSE | N44: UHF | O44: =OR($J$4,$J$5) -> TRUE | P44: =C30 -> X | Q44: 6 | R44: 34.8 | T44: =IF(AND(M44,O44), "Inband","") -> 
L45: UHF | M45: FALSE | N45: 700 | O45: =OR($J$6,$J$7) -> TRUE | P45: =D30 -> 4.4 | Q45: 6 | R45: 34.8 | S45: 36.4
L46: UHF | M46: FALSE | N46: 800 | O46: =$J$8 -> TRUE | P46: =E30 -> 0.5 | Q46: 6 | R46: 34.8 | S46: 40.3
L47: 700 | M47: =(VRFcode=3) -> FALSE | N47: VHF | O47: =$J$3 -> TRUE | P47: =B31 -> 3.4 | Q47: 6 | R47: 34.8 | S47: 37.4
L48: 700 | M48: FALSE | N48: UHF | O48: =OR($J$4,$J$5) -> TRUE | P48: =C31 -> -1.6 | Q48: 6 | R48: 34.8 | S48: 42.4
L49: 700 | M49: FALSE | N49: 700 | O49: =OR($J$6,$J$7) -> TRUE | P49: =D31 -> X | Q49: 6 | R49: 34.8 | T49: =IF(AND(M49,O49), "Inband","") -> 
L50: 700 | M50: FALSE | N50: 800 | O50: =$J$8 -> TRUE | P50: =E31 -> X | Q50: 6 | R50: 34.8 | T50: =IF(AND(M50,O50), "Inband","") -> 
L51: 800 | M51: =(VRFcode=4) -> FALSE | N51: VHF | O51: =$J$3 -> TRUE | P51: =B32 -> 2.6 | Q51: 6 | R51: 34.8 | S51: 38.2 | T51: =IF(AND(M51,O51), S51,"") -> 
L52: 800 | M52: FALSE | N52: UHF | O52: =OR($J$4,$J$5) -> TRUE | P52: =C32 -> 1.3 | Q52: 6 | R52: 34.8 | S52: 39.5 | T52: =IF(AND(M52,O52), S52,"") -> 
L53: 800 | M53: FALSE | N53: 700 | O53: =OR($J$6,$J$7) -> TRUE | P53: =D32 -> X | Q53: 6 | R53: 34.8 | T53: =IF(AND(M53,O53), "Inband","") -> 
L54: 800 | M54: FALSE | N54: 800 | O54: =$J$8 -> TRUE | P54: =E32 -> X | Q54: 6 | R54: 34.8 | T54: =IF(AND(M54,O54), "Inband","") -> 
E56: PACKAGE QTY TO ORDER (Displayed in table on MAIN) | S56: MIN ISOL: | T56: =ROUND(MAX(T39:T54),0) -> 44
A57: TABLE: ANTENNAFILTERS | E57: KIT #:
B58: Added NOTE to Display: | E58: - | F58: 1 | H58: 2 | I58: 3 | J58: 4 | K58: 5 | L58: 6 | M58: 7
A59: FILTER TYPES | B59: DVR | C59: VRX | D59: DVR-Case | E59: I/B | F59: TRI | H59: TRI+Relay | I59: 2xTRI | J59: 2xTRI+Relay | K59: RELAY+Encl | L59: TRI (SC) | M59: 2xTRI (SC) | N59: SPECIAL ! | O59: Description
A60: 0 | B60: 5 | C60: 5 | D60: 5 | E60: 0 | F60: 0 | H60: 0 | I60: 0 | J60: 0 | K60: 0 | L60: 0 | M60: 0 | N60: 0 | O60: INVALID COMBINATION
A61: 1 | E61: 0 | F61: 0 | H61: 0 | I61: 0 | J61: 0 | K61: 0 | L61: 0 | M61: 0 | N61: 0 | O61: NONE required
A62: 2 | B62: 2 | C62: 2 | E62: 0 | F62: 1 | H62: 0 | I62: 0 | J62: 0 | K62: 0 | L62: 0 | M62: 0 | N62: 0 | O62: Antenna TRIPLEXER
A63: 3 | B63: 2 | C63: 2 | E63: 0 | F63: 0 | H63: 1 | I63: 0 | J63: 0 | K63: 0 | L63: 0 | M63: 0 | N63: 0 | O63: Antenna TRIPLEXER & RELAY
A64: 4 | B64: 2 | C64: 2 | E64: 0 | F64: 0 | H64: 0 | I64: 1 | J64: 0 | K64: 0 | L64: 0 | M64: 0 | N64: 0 | O64: Dual TRIPLEXER
A65: 5 | B65: 2 | C65: 2 | E65: 0 | F65: 0 | H65: 0 | I65: 0 | J65: 1 | K65: 0 | L65: 0 | M65: 0 | N65: 0 | O65: Dual TRIPLEXER & RELAY
A66: 6 | B66: 1 | D66: 1 | E66: 1 | F66: 0 | H66: 0 | I66: 0 | J66: 0 | K66: 0 | L66: 0 | M66: 0 | N66: 0 | O66: STANDARD IN-BAND FILTER PACKAGE
A67: 7 | B67: 1 | D67: 1 | E67: 1 | F67: 0 | H67: 0 | I67: 0 | J67: 0 | K67: 0 | L67: 0 | M67: 0 | N67: 0 | O67: STANDARD IN-BAND FILTER PACKAGE
A68: 8 | B68: 1 | E68: 1 | F68: 1 | H68: 0 | I68: 0 | J68: 0 | K68: 0 | L68: 0 | M68: 0 | N68: 0 | O68: IN-BAND FILTER PACKAGE & APX Antenna TRIPLEXER
A69: 9 | E69: 1 | F69: 0 | H69: 1 | I69: 0 | J69: 0 | K69: 0 | L69: 0 | M69: 0 | N69: 0 | O69: IN-BAND FILTER PACKAGE & APX Antenna TRIPLEXER & RELAY
A70: 10 | B70: 2 | E70: 1 | F70: 0 | H70: 0 | I70: 1 | J70: 0 | K70: 0 | L70: 0 | M70: 0 | N70: 0 | O70: IN-BAND FILTER PACKAGE & APX Antenna DUAL TRIPLEXER
A71: 11 | E71: 1 | F71: 0 | H71: 0 | I71: 0 | J71: 1 | K71: 0 | L71: 0 | M71: 0 | N71: 0 | O71: IN-BAND FILTER PACKAGE & APX Antenna DUAL TRIPLEXER & RELAY
A72: 12 | B72: 2 | C72: 2 | E72: 0 | F72: 1 | H72: 0 | I72: 0 | J72: 0 | K72: 1 | L72: 0 | M72: 0 | N72: 0 | O72: Triplexer and Relay (Separate Kits)
A73: 13 | C73: 6 | E73: 1 | F73: 0 | H73: 0 | I73: 0 | J73: 0 | K73: 0 | L73: 0 | M73: 0 | N73: 0 | O73: STANDARD IN-BAND FILTER PACKAGE
A74: 14 | C74: 6 | E74: 1 | F74: 1 | H74: 0 | I74: 0 | J74: 0 | K74: 0 | L74: 0 | M74: 0 | N74: 0 | O74: IN-BAND FILTER PACKAGE & APX Antenna TRIPLEXER
A75: 15 | E75: 1 | F75: 0 | H75: 0 | I75: 1 | J75: 0 | K75: 0 | L75: 0 | M75: 0 | N75: 0 | O75: IN-BAND FILTER PACKAGE & APX Antenna DUAL TRIPLEXER
A76: 16 | C76: 6 | E76: 1 | F76: 0 | H76: 0 | I76: 1 | J76: 0 | K76: 0 | L76: 0 | M76: 0 | N76: 0 | O76: IN-BAND FILTER PACKAGE & APX Antenna DUAL TRIPLEXER
A77: 17 | E77: 0 | F77: 1 | H77: 0 | I77: 0 | J77: 0 | K77: 0 | L77: 0 | M77: 0 | N77: 0 | O77: Antenna TRIPLEXER for Multiple APX Antennas
A78: 18 | E78: 0 | F78: 0 | H78: 0 | I78: 0 | J78: 0 | K78: 0 | L78: 0 | M78: 0 | N78: 1 | O78: CANNOT ORDER - Special Quote Required
A79: 19 | D79: 2 | E79: 0 | F79: 0 | H79: 0 | I79: 0 | J79: 0 | K79: 0 | L79: 1 | M79: 0 | N79: 0 | O79: Single TRIPLEXER (Suitcase)
A80: 20 | D80: 2 | E80: 0 | F80: 0 | H80: 0 | I80: 0 | J80: 0 | K80: 0 | L80: 0 | M80: 1 | N80: 0 | O80: Dual TRIPLEXER (Suitcase)
A81: 23 | D81: 2 | E81: 0 | F81: 0 | H81: 0 | I81: 0 | J81: 0 | K81: 0 | L81: 1 | M81: 0 | N81: 0 | O81: Single TRIPLEXER for Multiple APX Antennas (Suitcase)
A82: 25 | D82: 2 | E82: 1 | F82: 0 | H82: 0 | I82: 0 | J82: 0 | K82: 0 | L82: 1 | M82: 0 | N82: 0 | O82: IN-BAND FILTER PACKAGE & APX Antenna TRIPLEXER (Suitcase)
A83: 26 | D83: 2 | E83: 1 | F83: 0 | H83: 0 | I83: 0 | J83: 0 | K83: 0 | L83: 0 | M83: 1 | N83: 0 | O83: IN-BAND FILTER PACKAGE & APX Antenna DUAL TRIPLEXER (Suitcase)
E87: See Order Guide | F87: In-Band Filtering Package
E88: QA09450AA | F88: Antenna Triplexer (Required for APX Radio using multiple antennas)
E89: DDN2656A | F89: Antenna Triplexer (Alternate to QA09450AA)
E90: QA09449AA | F90: Triplexer with Enclosure
E91: DDN2657A | F91: Dual Triplexers in Enclosure
E92: QA09445AA | F92: Dual Triplexers with Bypass Relay in Enclosure
E93: QA09446AA | F93: Filter Bypass Relay in Enclosure

Sheet Lookups (hidden)
A2: DEVICE | B2: Choice | C2: Data TAB | D2: VR BAND | E2: VRF TX | F2: Choice | G2: REF COL | H2: APX8500 Band | I2: MRF RX | J2: Choice | K2: Code: | L2: REF COL | M2: VR Repeat w/Band | N2: MRF RX | O2: Choice | P2: Code: | Q2: RPT mBand | R2: inBand? | S2: xBand? | T2: Repeat Mode | U2: User Description | V2: Use: | W2: Code: | X2: APX ANTENNAS | Y2: Choice
A3: DVR | B3: 2 | C3: DVR SOLUTIONS | D3: VHF | E3: 138-174 | F3: 1 | G3: H | H3: VHF | I3: 136-174 | J3: TRUE | K3: 1 | L3: I | M3: VHF | N3: 136-174 | O3: TRUE | P3: 1 | Q3: =O3 -> TRUE | R3: =AND($O$3,VRFcode=1) -> TRUE | S3: =AND(OR($Q$4,$Q$6),VRFcode=1) -> TRUE | T3: IB-Enabled | V3: =OR($R$3,$R$4,$R$6) -> TRUE | X3: Unknown | Y3: 1
A4: VRX1000 | C4: VRX SOLUTIONS | D4: UHF | E4: 380-430 | G4: H | H4: UHF | I4: 380-470 | J4: TRUE | K4: 2 | L4: J | M4: UHF | N4: 380-470 | O4: TRUE | P4: 2 | Q4: =OR($O$4:$O$5) -> TRUE | R4: =AND(VRFcode=2,OR($O$4,$O$5)) -> FALSE | S4: =AND(VRFcode=2,OR($Q$3,$Q$6)) -> FALSE | T4: XB-Enabled | V4: =OR($S$3,$S$4,$S$6) -> TRUE | X4: 1+ SINGLE-BAND
A5: DVR Suitcase | C5: DVR Suitcase | D5: UHF | E5: 450-512 | G5: H | H5: UHF | I5: 450-520 | J5: TRUE | K5: 2 | L5: J | M5: UHF | N5: 450-520 | O5: TRUE | P5: 2 | T5: IB-Only | U5: Inband/No Crossband | V5: =AND($V$3,NOT($V$4)) -> FALSE | W5: 1 | X5: 1 ALL-BAND
D6: 700 | E6: 764-776 | G6: H | H6: 700 | I6: 764-776 | J6: TRUE | K6: 4 | L6: K | M6: 700 | N6: 764-776 | O6: TRUE | P6: 4 | Q6: =OR($O$6:$O$8) -> TRUE | R6: =AND(OR(VRFcode=3,VRFcode=4),OR($O$6,$O$7,$O$8)) -> FALSE | S6: =AND(OR(VRFcode=3,VRFcode=4),OR($Q$3,$Q$4)) -> FALSE | T6: IB-Forced | U6: Inband | V6: =CHOOSE(VRFcode,MRFcode=1,MRFcode=2,OR(MRFcode=4,MRFcode=8,MRFcode=12),OR(MRFcode=4,MRFcode=8,MRFcode=12)) -> FALSE | W6: 2
D7: 800 | E7: 851-869 | G7: H | H7: 700 | I7: 799-806 | J7: TRUE | K7: 4 | L7: K | M7: 700 | N7: 799-806 | O7: TRUE | P7: 4 | T7: XB-Only | U7: Crossband/No Inband | V7: =AND(NOT($V$3),$V$4) -> FALSE | W7: 3
H8: 800 | I8: 851-870 | J8: TRUE | K8: 8 | L8: L | M8: 800 | N8: 851-870 | O8: TRUE | P8: 8 | T8: XB-Forced | U8: Crossband | V8: =CHOOSE($F$12,NOT($J$3),NOT(OR($J$4:$J$5)),NOT(OR($J$6:$J$8)),NOT(OR($J$6:$J$8))) -> FALSE | W8: 4
T9: IB+XB | U9: Inband & Crossband | V9: =AND($V$3,$V$4) -> TRUE | W9: 5
B11: VRcode | F11: VRFcode | K11: MRFcode | P11: VRRcode | W11: RPTcode | Y11: ANTcode
A12: CODES: | B12: =$B$3-1 -> 1 | D12: <--LOOKUPS--> | F12: =CHOOSE($F$3,1,2,2,3,4) -> 1 | K12: =$J$3*1+OR($J$4,$J$5)*2+OR($J$6,$J$7)*4+OR($J$8)*8 -> 15 | P12: =O3*1+OR(O4,O5)*2+OR(O6,O7)*4+OR(O8)*8 -> 15 | W12: =MAX(IF($V$5:$V$9,$W$5:$W$9,0)) -> 5 | Y12: =$Y$3-1 -> 0
A13: RANGES:-> | B13: (0-2) | F13: (1-4) | K13: (0-15) | P13: (0-15) | W13: (0-5) | Y13: (0-2)
A14: MULTIPLIER:-> | F14: 273 | K14: 17 | W14: 3 | Y14: 1
F15: (273-1092) | K15: (0-255) | W15: (0-15) | Y15: (0-2)
A16: CONFIG CODE= | B16: =IF(OR(ErrorMRF,ErrorIBR,ERR_MSUband),"ERROR",MAX(0,(VRFcode)*MULT_VRF+(MRFcode)*MULT_MRF+RPTcode*MULT_RPT+ANTcode*MULT_ANT)) -> 543 | J16: ERROR? | K16: =NOT(OR(MsuRxBands)) -> FALSE | O16: ERROR? | P16: =OR(AND(NOT($J$3),$O$3),AND(NOT($J$4),$O$4),AND(NOT($J$5),$O$5),AND(NOT($J$6),$O$6),AND(NOT($J$7),$O$7),AND(NOT($J$8),$O$8)) -> FALSE
O17: ERROR? | P17: =NOT(OR(AND($J$3,$O$3),AND($J$4,$O$4),AND($J$5,$O$5),AND($J$6,$O$6),AND($J$7,$O$7),AND($J$8,$O$8))) -> FALSE
H18: FreqBands | I18: VR Band ID | J18: MSU Band ID | N18: Above ERRORs enable message cells on main tab | X18: ANTcodes
H19: 700 | I19: 3 | J19: 4 | X19: USER | Y19: 2 | Z19: Unknown or User-Defined Antenna
H20: 800 | I20: 4 | J20: 8 | X20: SINGLE | Y20: 0 | Z20: Single-Band Antenna(s)
H21: UHF | I21: 2 | J21: 2 | X21: ALL | Y21: 1 | Z21: One All-Band Antenna
H22: VHF | I22: 1 | J22: 1
M24: RESULTS FROM LOOKUP
B25: Max Interferer into APX8500 Receiver | H25: BAND NAMES | I25: MSU Bands | L25: D Index: | M25: =MATCH(CONFIG_CODE,'DVR SOLUTIONS'!$V$7:$V$500,0) -> 88 | N25: Line number in DVR Solution table
B26: Level dBm at Mobile Port | H26: 0 | I26: none | L26: V Index: | M26: =MATCH(CONFIG_CODE,'VRX SOLUTIONS'!$V$7:$V$500,0) -> 287 | N26: Line number in VRX Solution table
B27: APX8500 BAND Rx | H27: 1 | I27: VHF | L27: DS Index | M27: =MATCH(CONFIG_CODE,'DVR Suitcase'!$W$7:$W$500,0) -> 59 | N27: Line number in DVR Suitcase Solution table
A28: VR BAND TX | B28: VHF | C28: UHF | D28: 700 | E28: 800 | H28: 2 | I28: UHF | L28: Description | M28: =CHOOSE(VRcode+1,INDEX('DVR SOLUTIONS'!$Q$7:$Q$500,Lookups!$M$25),INDEX('VRX SOLUTIONS'!$Q$7:$Q$500,Lookups!$M$26),INDEX('DVR Suitcase'!$R$7:$R$500,Lookups!$M$27)) -> VRX1000 (VHF) Inband & Crossband; For APX (VHF+UHF+700+800) using Single-Band Antenna(s)
A29: VHF | B29: X | C29: -2.9 | D29: -0.6 | E29: 3 | H29: 3 | I29: VHF+UHF | L29: Filtering | M29: =CHOOSE(VRcode+1,INDEX('DVR SOLUTIONS'!$W$7:$W$500,Lookups!$M$25),INDEX('VRX SOLUTIONS'!$W$7:$W$500,Lookups!$M$26),INDEX('DVR Suitcase'!$X$7:$X$500,Lookups!$M$27)) -> 14 | N29: =FILTER_Code
A30: UHF | B30: 3 | C30: X | D30: 4.4 | E30: 0.5 | H30: 4 | I30: 700 | L30: Filtering | M30: =VLOOKUP($M$29,AntennaFilters,15) -> IN-BAND FILTER PACKAGE & APX Antenna TRIPLEXER
A31: 700 | B31: 3.4 | C31: -1.6 | D31: X | E31: X | H31: 5 | I31: VHF+700 | L31: NOTES 1 | M31: =VLOOKUP($U$32,tblNOTES,2) -> N/A | U31: Note-Index | V31: tblNOTES
A32: 800 | B32: 2.6 | C32: 1.3 | D32: X | E32: X | H32: 6 | I32: UHF+700 | L32: NOTES 2 | M32: =VLOOKUP($U$32,tblNOTES,2) -> N/A | U32: =VLOOKUP(FILTER_Code,AntennaFilters,(VRcode+2)) -> 6 | V32: 1 | W32: This Filtering is Mandatory
H33: 7 | I33: VHF+UHF+700 | L33: Drawing | M33: =CHOOSE(VRcode+1,INDEX('DVR SOLUTIONS'!$Y$7:$Y$500,Lookups!$M$25),INDEX('VRX SOLUTIONS'!$Y$7:$Y$500,Lookups!$M$26),INDEX('DVR Suitcase'!$Z$7:$Z$500,Lookups!$M$27)) -> No Drawing | V33: 2 | W33: ="Without Triplexer, at Least "&$T$56&" dB VR-to-APX Antenna Isolation Required Instead!" -> Without Triplexer, at Least 44 dB VR-to-APX Antenna Isolation Required Instead!
B34: Above as-measured, used to determine isolation required | H34: 8 | I34: 800 | M34: ABOVE is what is displayed to User | V34: 3 | W34: ="CROSS-BAND operation REQUIRES At Least "&$T$56&" dB VR-to-APX Antenna Isolation!" -> CROSS-BAND operation REQUIRES At Least 44 dB VR-to-APX Antenna Isolation!
H35: 9 | I35: VHF+800 | V35: 4 | W35: ="IN-BAND Filtering Required; CROSS-BAND operation REQUIRES At Least "&$T$56&" dB VR-to-APX Antenna Isolation!" -> IN-BAND Filtering Required; CROSS-BAND operation REQUIRES At Least 44 dB VR-to-APX Antenna Isolation!
H36: 10 | I36: UHF+800 | V36: 5 | W36: INVALID Selections
B37: TX POWER (dBm) | D37: ISOLATION | E37: MARGIN (dB) | H37: 11 | I37: VHF+UHF+800 | L37: Reformatted VR->MSU Interferer Levels | T37: VALID: | V37: 6 | W37: N/A
A38: DVR | B38: 37.8 | E38: 6 | H38: 12 | I38: 700+800 | L38: VR Tx Band | M38: Used? | N38: MSU Rx Band | O38: Used? | P38: Interferer | Q38: Margin | R38: TxPwr | S38: Isol Req | T38: Isol. | V38: 7 | W38: Two Kits are Required
A39: VRX | B39: 34.8 | H39: 13 | I39: VHF+700+800 | L39: VHF | M39: =(VRFcode=1) -> TRUE | N39: VHF | O39: =$J$3 -> TRUE | P39: =B29 -> X | Q39: =$E$38 -> 6 | R39: =CHOOSE(VRcode+1,$B$38,$B$39,$B$38) -> 34.8 | S39: =R39+Q39-P39 ->  | T39: =IF(AND(M39,O39), "Inband","") -> Inband | V39: 8 | W39: Filter Bypass Relay Kit is Optionally Available
H40: 14 | I40: UHF+700+800 | L40: VHF | M40: TRUE | N40: UHF | O40: =OR($J$4,$J$5) -> TRUE | P40: =C29 -> -2.9 | Q40: 6 | R40: 34.8 | S40: =R40+Q40-P40 -> 43.7 | T40: =IF(AND(M40,O40), S40,"") -> 43.7 | V40: 9 | W40: NEW SUITCASE MESSAGE 9 (TBD)
H41: 15 | I41: VHF+UHF+700+800 | L41: VHF | M41: TRUE | N41: 700 | O41: =OR($J$6,$J$7) -> TRUE | P41: =D29 -> -0.6 | Q41: 6 | R41: 34.8 | S41: 41.4 | T41: =IF(AND(M41,O41), S41,"") -> 41.4 | V41: 10 | W41: MUST Contact Futurecom-CUSTOM ENGINEERING QUOTE REQUIRED
L42: VHF | M42: TRUE | N42: 800 | O42: =$J$8 -> TRUE | P42: =E29 -> 3 | Q42: 6 | R42: 34.8 | S42: 37.8 | T42: 37.8
L43: UHF | M43: =(VRFcode=2) -> FALSE | N43: VHF | O43: =$J$3 -> TRUE | P43: =B30 -> 3 | Q43: 6 | R43: 34.8 | S43: 37.8
